Workbook

Sheet FERC_IS1
A1: %,LACTUALS,SBAL | B1: %,ATF,FACCOUNT | C1: %,ATT,FDESCR,UDESCR | F1: %,LACTUALS,SPER | G1: %,LACTUALS,SPER-1YR | H1: %,C | I1: %,C | K1: %,LACTUALS,SYTD | L1: %,LACTUALS,SYTD-1YR | M1: %,C | N1: %,C | Q1: %,LACTUALS,SQTR | R1: %,LACTUALS,SQTR-1YR | S1: %,C | T1: %,C | V1: %,LACTUALS,SROLLING12 | W1: %,LACTUALS,SROLNG12-1Y | X1: %,C | Y1: %,C | AA1: %,LACTUALS,SPER12-2Y | AC1: %,LACTUALS,SPER1-1YR | AD1: %,LACTUALS,SPER2-1YR | AE1: %,LACTUALS,SPER3-1YR | AF1: %,LACTUALS,SPER4-1YR | AG1: %,LACTUALS,SPER5-1YR | AH1: %,LACTUALS,SPER6-1YR | AI1: %,LACTUALS,SPER7-1YR | AJ1: %,LACTUALS,SPER8-1YR | AK1: %,LACTUALS,SPER9-1YR | AL1: %,LACTUALS,SPER10-1YR | AM1: %,LACTUALS,SPER11-1YR | AN1: %,LACTUALS,SPER12-YR | AP1: %,LACTUALS,SPER1 | AQ1: %,LACTUALS,SPER2 | AR1: %,LACTUALS,SPER3 | AS1: %,LACTUALS,SPER4 | AT1: %,LACTUALS,SPER5 | AU1: %,LACTUALS,SPER6
C2: =IF($C$706="Error",$C$711,IF($C$712="Error",$C$708&" - "&$C$707,IF($C$712 = $C$711, "BU"& $C$712&" -" & $C$706,$C$712&" - "&$C$711))) -> Kentucky Power Corp Consol | G2: =+C2 -> Kentucky Power Corp Consol | L2: =+G2 -> Kentucky Power Corp Consol | R2: =+L2 -> Kentucky Power Corp Consol | W2: =+R2 -> Kentucky Power Corp Consol | AA2: =+C2 -> Kentucky Power Corp Consol | AP2: =+C2 -> Kentucky Power Corp Consol
C3: =TEXT(+$C$696,"MMMM YYYY") -> June 2026 | G3: =+"As of: "& TEXT(+$C$696,"MMM YYYY") -> As of: Jun 2026 | L3: =+G3 -> As of: Jun 2026 | R3: =+L3 -> As of: Jun 2026 | W3: =+R3 -> As of: Jun 2026 | AA3: =+G3 -> As of: Jun 2026
B4: ="Run Date: "& TEXT(NvsEndTime,"MM/DD/YYYY hh:mm AM/PM;@") -> Run Date: 07/08/2026 05:29 AM | AP4: =+AA4 -> 0
B5: =IF(C709<>"Error",C709,"") -> GLR6283P | C5: ="Rpt ID: "& C704& " Layout: "&C705 -> Rpt ID: FERC_IS1 Layout: FERC_IS1 | F5: ONE MONTH ENDED | H5: Variance | K5: YEAR TO DATE | M5: Variance | Q5: THREE MONTHS ENDED | S5: Variance | V5: TWELVE MONTHS ENDED | X5: Variance
B6: =IF(C706="Error",""&C712,IF(C712= "Error","" & C708,"" &C712)) -> KYP_CORP_CONSOL | C6: =IF($C$706="Error",NvsTreeASD & " Acct: GL_FERC_ACCT BU: "&+$C$713,IF(C712="Error",NvsTreeASD & " Acct: GL_FERC_ACCT BU: "&+$C$708,NvsTreeASD & " Acct: GL_FERC_ACCT BU: "&+$C$712)) -> V2099-01-01 Acct: GL_FERC_ACCT BU: GL_PRPT_CONS | F6: =TEXT($C$696,"YYYY") -> 2026 | G6: =+F6-1 -> 2025 | H6: $ | I6: % | K6: =TEXT($C$696,"YYYY") -> 2026 | L6: =+K6-1 -> 2025 | M6: $ | N6: % | O6: Explanation | Q6: =TEXT($C$696,"YYYY") -> 2026 | R6: =+Q6-1 -> 2025 | S6: $ | T6: % | V6: =TEXT($C$696,"YYYY") -> 2026 | W6: =+V6-1 -> 2025 | X6: $ | Y6: % | AA6: ="Dec "&TEXT($C$696,"YYYY") - 2 -> Dec 2024 | AC6: ="Jan "&TEXT($C$696,"YYYY")-1 -> Jan 2025 | AD6: ="Feb "&TEXT($C$696,"YYYY") - 1 -> Feb 2025 | AE6: ="Mar "&TEXT($C$696,"YYYY") - 1 -> Mar 2025 | AF6: ="Apr "&TEXT($C$696,"YYYY") - 1 -> Apr 2025 | AG6: ="May "&TEXT($C$696,"YYYY") - 1 -> May 2025 | AH6: ="Jun "&TEXT($C$696,"YYYY") - 1 -> Jun 2025 | AI6: ="Jul "&TEXT($C$696,"YYYY") - 1 -> Jul 2025 | AJ6: ="Aug "&TEXT($C$696,"YYYY") - 1 -> Aug 2025 | AK6: ="Sep "&TEXT($C$696,"YYYY") - 1 -> Sep 2025 | AL6: ="Oct "&TEXT($C$696,"YYYY") - 1 -> Oct 2025 | AM6: ="Nov "&TEXT($C$696,"YYYY") - 1 -> Nov 2025 | AN6: ="Dec "&TEXT($C$696,"YYYY") - 1 -> Dec 2025 | AP6: ="Jan "&TEXT($C$696,"YYYY") -> Jan 2026 | AQ6: ="Feb "&TEXT($C$696,"YYYY") -> Feb 2026 | AR6: ="Mar "&TEXT($C$696,"YYYY") -> Mar 2026 | AS6: ="Apr "&TEXT($C$696,"YYYY") -> Apr 2026 | AT6: ="May "&TEXT($C$696,"YYYY") -> May 2026 | AU6: ="Jun "&TEXT($C$696,"YYYY") -> Jun 2026
B7: FERC Form | C7: INCOME STATEMENT
B9: Line 1 | C9: Utility Operating Income
A11: %,V4400001 | B11: 4400001 | C11: Residential Sales-W/Space Htg | F11: 11877288.92 | G11: 10518841.64 | H11: =+F11-G11 -> 1358447.282 | I11: =IF(G11<0,IF(H11=0,0,IF(OR(G11=0,F11=0),"N.M.",IF(ABS(H11/G11)>=10,"N.M.",H11/(-G11)))),IF(H11=0,0,IF(OR(G11=0,F11=0),"N.M.",IF(ABS(H11/G11)>=10,"N.M.",H11/G11)))) -> 0.1291441899 | K11: 86255437.65 | L11: 82223736.13 | Q11: 34380321.68 | R11: 28645041.59 | V11: 160881560.9 | W11: 154050466 | X11: =+V11-W11 -> 6831094.863 | Y11: =IF(W11<0,IF(X11=0,0,IF(OR(W11=0,V11=0),"N.M.",IF(ABS(X11/W11)>=10,"N.M.",X11/(-W11)))),IF(X11=0,0,IF(OR(W11=0,V11=0),"N.M.",IF(ABS(X11/W11)>=10,"N.M.",X11/W11)))) -> 0.04434322751 | AA11: 18551170.45 | AC11: 21899121.56 | AD11: 16684360.74 | AE11: 14995212.24 | AF11: 10394968.61 | AG11: 7731231.34 | AH11: 10518841.64 | AI11: 12905113.72 | AJ11: 11599370.53 | AK11: 8472583.75 | AL11: 9871189.17 | AM11: 12490967.45 | AN11: 19286898.62 | AP11: 19918023.67 | AQ11: 18625352.19 | AR11: 13331740.11 | AS11: 10286745.71 | AT11: 12216287.05 | AU11: 11877288.92
A12: %,V4400002 | B12: 4400002 | C12: Residential Sales-W/O Space Ht | F12: 6266781.251 | G12: 5838656.28 | H12: =+F12-G12 -> 428124.971 | I12: =IF(G12<0,IF(H12=0,0,IF(OR(G12=0,F12=0),"N.M.",IF(ABS(H12/G12)>=10,"N.M.",H12/(-G12)))),IF(H12=0,0,IF(OR(G12=0,F12=0),"N.M.",IF(ABS(H12/G12)>=10,"N.M.",H12/G12)))) -> 0.07332594187 | K12: 37898885.12 | L12: 34140674.99 | Q12: 18238297.09 | R12: 14614184.12 | V12: 75414614.15 | W12: 68188104.01 | X12: =+V12-W12 -> 7226510.135 | Y12: =IF(W12<0,IF(X12=0,0,IF(OR(W12=0,V12=0),"N.M.",IF(ABS(X12/W12)>=10,"N.M.",X12/(-W12)))),IF(X12=0,0,IF(OR(W12=0,V12=0),"N.M.",IF(ABS(X12/W12)>=10,"N.M.",X12/W12)))) -> 0.1059790449 | AA12: 6080220.07 | AC12: 7798813.73 | AD12: 5861368.47 | AE12: 5866308.67 | AF12: 4806574.39 | AG12: 3968953.45 | AH12: 5838656.28 | AI12: 7940424.53 | AJ12: 6607786.695 | AK12: 4750570.07 | AL12: 5193758.17 | AM12: 5035844.717 | AN12: 7987344.84 | AP12: 6963240.391 | AQ12: 6938335.191 | AR12: 5759012.45 | AS12: 5259274.674 | AT12: 6712241.166 | AU12: 6266781.251
A13: %,V4400005 | B13: 4400005 | C13: Residential Fuel Rev | F13: 5362804.56 | G13: 12113659.34 | H13: =+F13-G13 -> -6750854.78 | I13: =IF(G13<0,IF(H13=0,0,IF(OR(G13=0,F13=0),"N.M.",IF(ABS(H13/G13)>=10,"N.M.",H13/(-G13)))),IF(H13=0,0,IF(OR(G13=0,F13=0),"N.M.",IF(ABS(H13/G13)>=10,"N.M.",H13/G13)))) -> -0.557292771 | K13: 41290799.57 | L13: 43100164.3 | Q13: 15226812.16 | R13: 18452329.53 | V13: 77752941.58 | W13: 77554301.81 | X13: =+V13-W13 -> 198639.77 | Y13: =IF(W13<0,IF(X13=0,0,IF(OR(W13=0,V13=0),"N.M.",IF(ABS(X13/W13)>=10,"N.M.",X13/(-W13)))),IF(X13=0,0,IF(OR(W13=0,V13=0),"N.M.",IF(ABS(X13/W13)>=10,"N.M.",X13/W13)))) -> 0.002561299185 | AA13: 7956303.42 | AC13: 11449951.72 | AD13: 6075362.78 | AE13: 7122520.27 | AF13: 3185157.45 | AG13: 3153512.74 | AH13: 12113659.34 | AI13: 8097863.13 | AJ13: 7131606.14 | AK13: 4108160.79 | AL13: 4270224.06 | AM13: 5723763.91 | AN13: 7130523.98 | AP13: 9779560.66 | AQ13: 9513473.14 | AR13: 6770953.61 | AS13: 4100083.22 | AT13: 5763924.38 | AU13: 5362804.56
A14: %,R,FACCOUNT,TGL_FERC_ACCT,XDYYNNY01,N4400 | C14: Residential Sales | F14: 23506874.73 | G14: 28471157.26 | H14: =+F14-G14 -> -4964282.527 | I14: =IF(G14<0,IF(H14=0,0,IF(OR(G14=0,F14=0),"N.M.",IF(ABS(H14/G14)>=10,"N.M.",H14/(-G14)))),IF(H14=0,0,IF(OR(G14=0,F14=0),"N.M.",IF(ABS(H14/G14)>=10,"N.M.",H14/G14)))) -> -0.1743618105 | K14: 165445122.3 | L14: 159464575.4 | Q14: 67845430.93 | R14: 61711555.24 | V14: 314049116.6 | W14: 299792871.8 | X14: =+V14-W14 -> 14256244.77 | Y14: =IF(W14<0,IF(X14=0,0,IF(OR(W14=0,V14=0),"N.M.",IF(ABS(X14/W14)>=10,"N.M.",X14/(-W14)))),IF(X14=0,0,IF(OR(W14=0,V14=0),"N.M.",IF(ABS(X14/W14)>=10,"N.M.",X14/W14)))) -> 0.04755364823 | AA14: 32587693.94 | AC14: 41147887.01 | AD14: 28621091.99 | AE14: 27984041.18 | AF14: 18386700.45 | AG14: 14853697.53 | AH14: 28471157.26 | AI14: 28943401.38 | AJ14: 25338763.37 | AK14: 17331314.61 | AL14: 19335171.4 | AM14: 23250576.07 | AN14: 34404767.44 | AP14: 36660824.72 | AQ14: 35077160.52 | AR14: 25861706.17 | AS14: 19646103.6 | AT14: 24692452.6 | AU14: 23506874.73
A16: %,V4420001 | B16: 4420001 | C16: Commercial Sales | F16: 9075580.51 | G16: 8621358.89 | H16: =+F16-G16 -> 454221.62 | I16: =IF(G16<0,IF(H16=0,0,IF(OR(G16=0,F16=0),"N.M.",IF(ABS(H16/G16)>=10,"N.M.",H16/(-G16)))),IF(H16=0,0,IF(OR(G16=0,F16=0),"N.M.",IF(ABS(H16/G16)>=10,"N.M.",H16/G16)))) -> 0.05268561787 | K16: 51002790.03 | L16: 49736597.09 | Q16: 27518461.28 | R16: 22981716.99 | V16: 102045441 | W16: 101452967 | X16: =+V16-W16 -> 592474.011 | Y16: =IF(W16<0,IF(X16=0,0,IF(OR(W16=0,V16=0),"N.M.",IF(ABS(X16/W16)>=10,"N.M.",X16/(-W16)))),IF(X16=0,0,IF(OR(W16=0,V16=0),"N.M.",IF(ABS(X16/W16)>=10,"N.M.",X16/W16)))) -> 0.005839888456 | AA16: 9983320.76 | AC16: 9756331.98 | AD16: 8300398.38 | AE16: 8698149.74 | AF16: 7636183.85 | AG16: 6724174.25 | AH16: 8621358.89 | AI16: 8896994.41 | AJ16: 8200358.925 | AK16: 7178826.69 | AL16: 8866081.53 | AM16: 7681838.358 | AN16: 10218551.1 | AP16: 8562474.459 | AQ16: 7282768.849 | AR16: 7639085.446 | AS16: 8701658.36 | AT16: 9741222.406 | AU16: 9075580.51
A17: %,V4420002 | B17: 4420002 | C17: Industrial Sales (Excl Mines) | F17: 5081451.085 | G17: 2312197.92 | H17: 2769253.165 | I17: 1.197671333 | K17: 41139297.17 | L17: 34922578.14 | Q17: 19839929.36 | R17: 15594247.91 | V17: 72166584.8 | W17: 74631180.78 | X17: -2464595.976 | Y17: -0.03302367657 | AA17: 7319084.09 | AC17: 5985417.87 | AD17: 6026809.65 | AE17: 7316102.71 | AF17: 6439848.92 | AG17: 6842201.07 | AH17: 2312197.92 | AI17: 6195767.86 | AJ17: 5372986.274 | AK17: 4824240.96 | AL17: 6684660.79 | AM17: 4458868.872 | AN17: 3490762.88 | AP17: 9533923.41 | AQ17: 4470737.686 | AR17: 7294706.712 | AS17: 5130336.107 | AT17: 9628142.168 | AU17: 5081451.085
A18: %,V4420004 | B18: 4420004 | C18: Ind Sales-NonAffil(Incl Mines) | F18: 1289560.189 | G18: 1112011.19 | H18: 177548.999 | I18: 0.1596647593 | K18: 6855090.891 | L18: 8070400.18 | Q18: 3541491.771 | R18: 3655583.56 | V18: 13707772.16 | W18: 16402272.41 | X18: -2694500.245 | Y18: -0.1642760331 | AA18: 1331746.31 | AC18: 1548190.26 | AD18: 1401376 | AE18: 1465250.36 | AF18: 1412047.01 | AG18: 1131525.36 | AH18: 1112011.19 | AI18: 1039373.23 | AJ18: 1160625.513 | AK18: 1120136.81 | AL18: 1290874.68 | AM18: 1027786.731 | AN18: 1213884.31 | AP18: 1335955.737 | AQ18: 829699.723 | AR18: 1147943.66 | AS18: 1153784.238 | AT18: 1098147.344 | AU18: 1289560.189
A19: %,V4420006 | B19: 4420006 | C19: Sales to Pub Auth - Schools | F19: 1349459.978 | G19: 1463355.15 | H19: -113895.172 | I19: -0.07783153119 | K19: 8239002.113 | L19: 8422279.2 | Q19: 4221211.085 | R19: 3897844.22 | V19: 16170857.17 | W19: 16394960.09 | X19: -224102.919 | Y19: -0.01366901278 | AA19: 1424105.15 | AC19: 1608928.86 | AD19: 1407960.65 | AE19: 1507545.47 | AF19: 1297881.81 | AG19: 1136607.26 | AH19: 1463355.15 | AI19: 1052794.29 | AJ19: 1264744.116 | AK19: 1284043.61 | AL19: 1461433.71 | AM19: 1287909.375 | AN19: 1580929.957 | AP19: 1483779.899 | AQ19: 1226017.045 | AR19: 1307994.084 | AS19: 1318953.092 | AT19: 1552798.015 | AU19: 1349459.978
A20: %,V4420007 | B20: 4420007 | C20: Sales to Pub Auth - Ex Schools | F20: 1762457.92 | G20: 1945278.57 | H20: -182820.65 | I20: -0.0939817324 | K20: 10263062.81 | L20: 10096519.21 | Q20: 5471929.997 | R20: 4856258.23 | V20: 19997949.09 | W20: 20348040.07 | X20: -350090.983 | Y20: -0.01720514515 | AA20: 2087668.21 | AC20: 1955065.23 | AD20: 1547060.4 | AE20: 1738135.35 | AF20: 1578642.63 | AG20: 1332337.03 | AH20: 1945278.57 | AI20: 1543791.29 | AJ20: 1545420.074 | AK20: 1344232.94 | AL20: 1744257.49 | AM20: 1608562.127 | AN20: 1948622.355 | AP20: 1818088.408 | AQ20: 1351714.257 | AR20: 1621330.149 | AS20: 1740066.857 | AT20: 1969405.22 | AU20: 1762457.92
A21: %,V4420013 | B21: 4420013 | C21: Commercial Fuel Rev | F21: 4941052.17 | G21: 9559013.53 | H21: -4617961.36 | I21: -0.4831002012 | K21: 30251285.27 | L21: 30465300.4 | Q21: 15048712.11 | R21: 16462182.71 | V21: 58471116.57 | W21: 58119574.23 | X21: 351542.34 | Y21: 0.006048604875 | AA21: 4554313.04 | AC21: 5862942.98 | AD21: 3298032.85 | AE21: 4842141.86 | AF21: 3232459.78 | AG21: 3670709.4 | AH21: 9559013.53 | AI21: 5979493.24 | AJ21: 5382681.54 | AK21: 4019913.93 | AL21: 4136817.01 | AM21: 4800937.7 | AN21: 3899987.88 | AP21: 5694959.73 | AQ21: 4377807.23 | AR21: 5129806.2 | AS21: 4480640.15 | AT21: 5627019.79 | AU21: 4941052.17
A22: %,V4420016 | B22: 4420016 | C22: Industrial Fuel Rev | F22: 6995875.95 | G22: 12406794.84 | H22: -5410918.89 | I22: -0.4361254425 | K22: 37655498.36 | L22: 41913346.01 | Q22: 22547277.8 | R22: 24255954.17 | V22: 76798596.14 | W22: 79540452.79 | X22: -2741856.65 | Y22: -0.03447122255 | AA22: 6156036.22 | AC22: 6561407.22 | AD22: 5302396.38 | AE22: 5793588.24 | AF22: 5314347.11 | AG22: 6534812.22 | AH22: 12406794.84 | AI22: 6821319.9 | AJ22: 6975137.68 | AK22: 6526079.14 | AL22: 4454003.08 | AM22: 7013721.08 | AN22: 7352836.9 | AP22: 3016302.06 | AQ22: 4981197.76 | AR22: 7110720.74 | AS22: 6968017.7 | AT22: 8583384.15 | AU22: 6995875.95
A23: %,R,FACCOUNT,TGL_FERC_ACCT,XDYYNNY01,N4420 | C23: Commercial Sales | F23: 30495437.8 | G23: 37420010.09 | H23: -6924572.288 | I23: -0.1850499845 | K23: 185406026.6 | L23: 183627020.2 | Q23: 98189013.4 | R23: 91703787.79 | V23: 359358317 | W23: 366889447.4 | X23: -7531130.422 | Y23: -0.02052697475 | AA23: 32856273.78 | AC23: 33278284.4 | AD23: 27284034.31 | AE23: 31360913.73 | AF23: 26911411.11 | AG23: 27372366.59 | AH23: 37420010.09 | AI23: 31529534.22 | AJ23: 29901954.12 | AK23: 26297474.08 | AL23: 28638128.29 | AM23: 27879624.24 | AN23: 29705575.38 | AP23: 31445483.7 | AQ23: 24519942.55 | AR23: 31251586.99 | AS23: 29493456.5 | AT23: 38200119.09 | AU23: 30495437.8
A25: %,V4440000 | B25: 4440000 | C25: Public Street/Highway Lighting | F25: 162289.267 | G25: 144242.97 | H25: =+F25-G25 -> 18046.297 | I25: =IF(G25<0,IF(H25=0,0,IF(OR(G25=0,F25=0),"N.M.",IF(ABS(H25/G25)>=10,"N.M.",H25/(-G25)))),IF(H25=0,0,IF(OR(G25=0,F25=0),"N.M.",IF(ABS(H25/G25)>=10,"N.M.",H25/G25)))) -> 0.1251104092 | K25: 1101891.307 | L25: 923095.01 | Q25: 506199.839 | R25: 451856.72 | V25: 1890515.813 | W25: 1826066.23 | X25: =+V25-W25 -> 64449.583 | Y25: =IF(W25<0,IF(X25=0,0,IF(OR(W25=0,V25=0),"N.M.",IF(ABS(X25/W25)>=10,"N.M.",X25/(-W25)))),IF(X25=0,0,IF(OR(W25=0,V25=0),"N.M.",IF(ABS(X25/W25)>=10,"N.M.",X25/W25)))) -> 0.03529421986 | AA25: 153504.45 | AC25: 158477.95 | AD25: 161221.96 | AE25: 151538.38 | AF25: 156242.37 | AG25: 151371.38 | AH25: 144242.97 | AI25: 151057.82 | AJ25: 151856.169 | AK25: 150194.75 | AL25: 154153.05 | AM25: 158430.905 | AN25: 22931.812 | AP25: 287750.999 | AQ25: 149132.438 | AR25: 158808.031 | AS25: 169345.181 | AT25: 174565.391 | AU25: 162289.267
A26: %,V4440002 | B26: 4440002 | C26: Public St & Hwy Light Fuel Rev | F26: 22595.82 | G26: 43292.14 | H26: =+F26-G26 -> -20696.32 | I26: =IF(G26<0,IF(H26=0,0,IF(OR(G26=0,F26=0),"N.M.",IF(ABS(H26/G26)>=10,"N.M.",H26/(-G26)))),IF(H26=0,0,IF(OR(G26=0,F26=0),"N.M.",IF(ABS(H26/G26)>=10,"N.M.",H26/G26)))) -> -0.4780618376 | K26: 192031.28 | L26: 173007.32 | Q26: 75394.71 | R26: 83846.11 | V26: 336024.29 | W26: 343880.02 | X26: =+V26-W26 -> -7855.73 | Y26: =IF(W26<0,IF(X26=0,0,IF(OR(W26=0,V26=0),"N.M.",IF(ABS(X26/W26)>=10,"N.M.",X26/(-W26)))),IF(X26=0,0,IF(OR(W26=0,V26=0),"N.M.",IF(ABS(X26/W26)>=10,"N.M.",X26/W26)))) -> -0.02284439206 | AA26: 34491.81 | AC26: 36592.55 | AD26: 21359.11 | AE26: 31209.55 | AF26: 17960.67 | AG26: 22593.3 | AH26: 43292.14 | AI26: 23661.31 | AJ26: 28446.05 | AK26: 28992.25 | AL26: 23033.25 | AM26: 37177.3 | AN26: 2682.85 | AP26: 54869.27 | AQ26: 26189.29 | AR26: 35578.01 | AS26: 27025.04 | AT26: 25773.85 | AU26: 22595.82
A27: %,R,FACCOUNT,TGL_FERC_ACCT,XDYYNNY01,N4440,N4450,N4460,N4480 | C27: Public Streets and Highway Lighting | F27: 184885.087 | G27: 187535.11 | H27: =+F27-G27 -> -2650.023 | I27: =IF(G27<0,IF(H27=0,0,IF(OR(G27=0,F27=0),"N.M.",IF(ABS(H27/G27)>=10,"N.M.",H27/(-G27)))),IF(H27=0,0,IF(OR(G27=0,F27=0),"N.M.",IF(ABS(H27/G27)>=10,"N.M.",H27/G27)))) -> -0.01413080996 | K27: 1293922.587 | L27: 1096102.33 | Q27: 581594.549 | R27: 535702.83 | V27: 2226540.103 | W27: 2169946.25 | X27: =+V27-W27 -> 56593.853 | Y27: =IF(W27<0,IF(X27=0,0,IF(OR(W27=0,V27=0),"N.M.",IF(ABS(X27/W27)>=10,"N.M.",X27/(-W27)))),IF(X27=0,0,IF(OR(W27=0,V27=0),"N.M.",IF(ABS(X27/W27)>=10,"N.M.",X27/W27)))) -> 0.0260807626 | AA27: 187996.26 | AC27: 195070.5 | AD27: 182581.07 | AE27: 182747.93 | AF27: 174203.04 | AG27: 173964.68 | AH27: 187535.11 | AI27: 174719.13 | AJ27: 180302.219 | AK27: 179187 | AL27: 177186.3 | AM27: 195608.205 | AN27: 25614.662 | AP27: 342620.269 | AQ27: 175321.728 | AR27: 194386.041 | AS27: 196370.221 | AT27: 200339.241 | AU27: 184885.087
A29: %,V4470006 | B29: 4470006 | C29: Sales for Resale-Bookout Sales | F29: 0 | G29: 0 | H29: =+F29-G29 -> 0 | I29: =IF(G29<0,IF(H29=0,0,IF(OR(G29=0,F29=0),"N.M.",IF(ABS(H29/G29)>=10,"N.M.",H29/(-G29)))),IF(H29=0,0,IF(OR(G29=0,F29=0),"N.M.",IF(ABS(H29/G29)>=10,"N.M.",H29/G29)))) -> 0 | K29: 0 | L29: 0 | Q29: 0 | R29: 0 | V29: 0.2 | W29: 0 | X29: =+V29-W29 -> 0.2 | Y29: =IF(W29<0,IF(X29=0,0,IF(OR(W29=0,V29=0),"N.M.",IF(ABS(X29/W29)>=10,"N.M.",X29/(-W29)))),IF(X29=0,0,IF(OR(W29=0,V29=0),"N.M.",IF(ABS(X29/W29)>=10,"N.M.",X29/W29)))) -> N.M. | AA29: 0 | AC29: 0 | AD29: 0 | AE29: 0 | AF29: 0 | AG29: 0 | AH29: 0 | AI29: 0 | AJ29: 0 | AK29: 0 | AL29: 0 | AM29: 0 | AN29: 0.2 | AP29: 0 | AQ29: 0 | AR29: 0 | AS29: 0 | AT29: 0 | AU29: 0
A30: %,V4470010 | B30: 4470010 | C30: Sales for Resale-Bookout Purch | F30: 0 | G30: 0 | H30: 0 | I30: 0 | K30: -12.02 | L30: 0 | Q30: 0 | R30: 0 | V30: 34.63 | W30: 0 | X30: 34.63 | Y30: N.M. | AA30: 0 | AC30: 0 | AD30: 0 | AE30: 0 | AF30: 0 | AG30: 0 | AH30: 0 | AI30: 0 | AJ30: 0 | AK30: 0 | AL30: 0 | AM30: 0 | AN30: 46.65 | AP30: -24.2 | AQ30: 12.18 | AR30: 0 | AS30: 0 | AT30: 0 | AU30: 0
A31: %,V4470027 | B31: 4470027 | C31: Whsal/Muni/Pb Ath Fuel Rev | F31: 0 | G31: 3490.5 | H31: -3490.5 | I31: N.M. | K31: 10166.21 | L31: 1518601.93 | Q31: 10166.21 | R31: 596169.99 | V31: 53132.94 | W31: 2810530.43 | X31: -2757397.49 | Y31: -0.981095049 | AA31: 302675.32 | AC31: 377771.11 | AD31: 262886.07 | AE31: 281774.76 | AF31: 301957.53 | AG31: 290721.96 | AH31: 3490.5 | AI31: 42966.73 | AJ31: 0 | AK31: 0 | AL31: 0 | AM31: 0 | AN31: 0 | AP31: 0 | AQ31: 0 | AR31: 0 | AS31: 0 | AT31: 10166.21 | AU31: 0
A32: %,V4470033 | B32: 4470033 | C32: Whsal/Muni/Pub Auth Base Rev | F32: 0 | G32: 132.43 | H32: -132.43 | I32: N.M. | K32: 31333.83 | L32: 1325054.69 | Q32: 31333.83 | R32: 669868.24 | V32: 31333.83 | W32: 2378979.06 | X32: -2347645.23 | Y32: -0.9868288752 | AA32: 208511.64 | AC32: 270507.72 | AD32: 208315.58 | AE32: 176363.15 | AF32: 153614.26 | AG32: 516121.55 | AH32: 132.43 | AI32: 0 | AJ32: 0 | AK32: 0 | AL32: 0 | AM32: 0 | AN32: 0 | AP32: 0 | AQ32: 0 | AR32: 0 | AS32: 0 | AT32: 31333.83 | AU32: 0
A33: %,V4470074 | B33: 4470074 | C33: Sale for Resale-Aff-Trnf Price | F33: 0 | G33: 0 | H33: 0 | I33: 0 | K33: 0 | L33: 0 | Q33: 0 | R33: 0 | V33: 0 | W33: 0 | X33: 0 | Y33: 0 | AA33: 0 | AC33: 0 | AD33: 0 | AE33: 0 | AF33: 0 | AG33: 0 | AH33: 0 | AI33: 0 | AJ33: 0 | AK33: 0 | AL33: 0 | AM33: 0 | AN33: 0 | AP33: 0 | AQ33: 0 | AR33: 0 | AS33: 0 | AT33: 0 | AU33: 0
A34: %,V4470082 | B34: 4470082 | C34: Financial Electric Realized | F34: -249.93 | G34: -220.65 | H34: -29.28 | I34: -0.1326988443 | K34: -1126.86 | L34: -2247.05 | Q34: -749.68 | R34: -878.1 | V34: -2585.16 | W34: -6016.61 | X34: 3431.45 | Y34: 0.5703294712 | AA34: -338.99 | AC34: -200.53 | AD34: -956.48 | AE34: -211.94 | AF34: -498.85 | AG34: -158.6 | AH34: -220.65 | AI34: -297.09 | AJ34: -207.38 | AK34: -294.09 | AL34: -290.98 | AM34: -228.38 | AN34: -140.38 | AP34: -245.62 | AQ34: -131.56 | AR34: 0 | AS34: -268.47 | AT34: -231.28 | AU34: -249.93
A35: %,V4470089 | B35: 4470089 | C35: PJM Energy Sales Margin | F35: -358174.7 | G35: 1140661.57 | H35: -1498836.27 | I35: -1.314006108 | K35: 812260.94 | L35: 1484495.94 | Q35: -525364.13 | R35: 1196694.71 | V35: 1767801.62 | W35: 708078.74 | X35: 1059722.88 | Y35: 1.496617283 | AA35: -163952.38 | AC35: 215057.19 | AD35: 177310.55 | AE35: -104566.51 | AF35: -25948.59 | AG35: 81981.73 | AH35: 1140661.57 | AI35: -593030.27 | AJ35: 260906.18 | AK35: 72820.4 | AL35: 150746.48 | AM35: 916866.79 | AN35: 147231.1 | AP35: 1754682.79 | AQ35: 127941.83 | AR35: -544999.55 | AS35: -63234.03 | AT35: -103955.4 | AU35: -358174.7
A36: %,V4470098 | B36: 4470098 | C36: PJM Oper.Reserve Rev-OSS | F36: -6895.73 | G36: 1589.11 | H36: -8484.84 | I36: -5.33936606 | K36: -448991.26 | L36: -32988.91 | Q36: -7767.61 | R36: -13176.59 | V36: -515111.03 | W36: -63960.32 | X36: -451150.71 | Y36: -7.053603078 | AA36: -5128.19 | AC36: -6943.64 | AD36: -8921.61 | AE36: -3947.07 | AF36: -6103.18 | AG36: -8662.52 | AH36: 1589.11 | AI36: -14240.69 | AJ36: -14683.02 | AK36: -7762.45 | AL36: -4685.51 | AM36: -4575.42 | AN36: -20172.68 | AP36: -52401.2 | AQ36: -366210.92 | AR36: -22611.53 | AS36: -1991.94 | AT36: 1120.06 | AU36: -6895.73
A37: %,V4470099 | B37: 4470099 | C37: Capacity Cr. Net Sales | F37: 134950.5 | G37: 0 | H37: 134950.5 | I37: N.M. | K37: 134950.5 | L37: -50880.99 | Q37: 134950.5 | R37: -20554.56 | V37: 134950.5 | W37: -122922.11 | X37: 257872.61 | Y37: 2.097853755 | AA37: -10782.72 | AC37: -10445.79 | AD37: -9434.88 | AE37: -10445.76 | AF37: -10108.8 | AG37: -10445.76 | AH37: 0 | AI37: 0 | AJ37: 0 | AK37: 0 | AL37: 0 | AM37: 0 | AN37: 0 | AP37: 0 | AQ37: 0 | AR37: 0 | AS37: 0 | AT37: 0 | AU37: 134950.5
A38: %,V4470100 | B38: 4470100 | C38: PJM FTR Revenue-OSS | F38: 197146.29 | G38: -26837.99 | H38: 223984.28 | I38: 8.345791917 | K38: 509139.58 | L38: 50888.03 | Q38: 234467.8 | R38: 13874.05 | V38: 679199.92 | W38: 225002.79 | X38: 454197.13 | Y38: 2.01862888 | AA38: 34721.73 | AC38: 24879.79 | AD38: 11932.16 | AE38: 202.03 | AF38: 10033.5 | AG38: 30678.54 | AH38: -26837.99 | AI38: 5023.71 | AJ38: -18991.87 | AK38: 13000.11 | AL38: 13167.68 | AM38: 140115.16 | AN38: 17745.55 | AP38: 164249.99 | AQ38: 106897.86 | AR38: 3523.93 | AS38: 26906.68 | AT38: 10414.83 | AU38: 197146.29
A39: %,V4470103 | B39: 4470103 | C39: PJM Energy Sales Cost | F39: 1611541.06 | G39: 4740913.12 | H39: -3129372.06 | I39: -0.6600779176 | K39: 13424791.49 | L39: 9683651.76 | Q39: 3736723.1 | R39: 6702714.37 | V39: 31433025.17 | W39: 18617694.86 | X39: 12815330.31 | Y39: 0.6883414089 | AA39: 1350615.96 | AC39: 1294412.92 | AD39: 757948 | AE39: 928576.47 | AF39: 1081945.58 | AG39: 879855.67 | AH39: 4740913.12 | AI39: 2877833.29 | AJ39: 2304763.97 | AK39: 1187201.28 | AL39: 2962191.55 | AM39: 6336301.06 | AN39: 2339942.53 | AP39: 5242579.21 | AQ39: 3057408.55 | AR39: 1388080.63 | AS39: 1068207.76 | AT39: 1056974.28 | AU39: 1611541.06
A40: %,V4470115 | B40: 4470115 | C40: PJM Meter Corrections-OSS | F40: 3999.01 | G40: 6201.32 | H40: -2202.31 | I40: -0.3551356808 | K40: 7184.1 | L40: -3755.61 | Q40: 9525.99 | R40: 6106.57 | V40: -273262.65 | W40: 45534.51 | X40: -318797.16 | Y40: -7.001220832 | AA40: -533.96 | AC40: -925.65 | AD40: 356.22 | AE40: -9292.75 | AF40: -107.51 | AG40: 12.76 | AH40: 6201.32 | AI40: -248051.39 | AJ40: 3102.43 | AK40: -20912.7 | AL40: -5647.24 | AM40: -3391.35 | AN40: -5546.5 | AP40: -1208.24 | AQ40: -1165.25 | AR40: 31.6 | AS40: 25.8 | AT40: 5501.18 | AU40: 3999.01
A41: %,V4470116 | B41: 4470116 | C41: PJM Meter Corrections-LSE | F41: 98927.46 | G41: -672953.05 | H41: 771880.51 | I41: 1.147004995 | K41: 173011.93 | L41: -839017.05 | Q41: 195433.15 | R41: -690633.86 | V41: -586367.97 | W41: -396881.52 | X41: -189486.45 | Y41: -0.4774383297 | AA41: -12638.19 | AC41: -17119.72 | AD41: 21912.53 | AE41: -153176 | AF41: -17930.13 | AG41: 249.32 | AH41: -672953.05 | AI41: -1339418.95 | AJ41: 834884.08 | AK41: -168695.96 | AL41: -65059.98 | AM41: 2239.27 | AN41: -23328.36 | AP41: -28572.16 | AQ41: 23746.44 | AR41: -17595.5 | AS41: 124289.46 | AT41: -27783.77 | AU41: 98927.46
A42: %,V4470126 | B42: 4470126 | C42: PJM Incremental Imp Cong-OSS | F42: -11680.01 | G42: -272561.5 | H42: 260881.49 | I42: 0.9571472493 | K42: -412004.88 | L42: -318877.31 | Q42: -22051.92 | R42: -276600.95 | V42: -741140.41 | W42: -556239.44 | X42: -184900.97 | Y42: -0.3324125488 | AA42: -15805.07 | AC42: -13135.32 | AD42: -22116.36 | AE42: -7024.68 | AF42: -228.34 | AG42: -3811.11 | AH42: -272561.5 | AI42: -52487.18 | AJ42: -18041.02 | AK42: -28080.53 | AL42: -42945.85 | AM42: 12576.61 | AN42: -200157.56 | AP42: -285591.19 | AQ42: -129380.45 | AR42: 25018.68 | AS42: 25733.11 | AT42: -36105.02 | AU42: -11680.01
A43: %,V4470150 | B43: 4470150 | C43: Transm. Rev.-Dedic. Whlsl/Muni | F43: -5638 | G43: 390.14 | H43: -6028.14 | I43: N.M. | K43: -24712 | L43: -9750.14 | Q43: -13269 | R43: -3942.9 | V43: -71842.85 | W43: 88852.75 | X43: -160695.6 | Y43: -1.808560793 | AA43: 50521.33 | AC43: -2477.4 | AD43: -3440.73 | AE43: 110.89 | AF43: -1157.1 | AG43: -3175.94 | AH43: 390.14 | AI43: -8329 | AJ43: -5429.75 | AK43: -8262 | AL43: -8313 | AM43: -8311 | AN43: -8486.1 | AP43: -3814 | AQ43: -3815 | AR43: -3814 | AS43: -3816 | AT43: -3815 | AU43: -5638
A44: %,V4470151 | B44: 4470151 | C44: Trading Auction Sales Affil | F44: 0 | G44: 0 | H44: 0 | I44: 0 | K44: 0 | L44: 0 | Q44: 0 | R44: 0 | V44: 0 | W44: -114212.59 | X44: 114212.59 | Y44: N.M. | AA44: 0 | AC44: 0 | AD44: 0 | AE44: 0 | AF44: 0 | AG44: 0 | AH44: 0 | AI44: 0 | AJ44: 0 | AK44: 0 | AL44: 0 | AM44: 0 | AN44: 0 | AP44: 0 | AQ44: 0 | AR44: 0 | AS44: 0 | AT44: 0 | AU44: 0
A45: %,V4470175 | B45: 4470175 | C45: OSS Sharing Reclass - Retail | F45: 813839.29 | G45: 928453.77 | H45: -114614.48 | I45: -0.1234466203 | K45: 2016148.27 | L45: 3601257.42 | Q45: 572075.85 | R45: 1989684.73 | V45: 3862797.86 | W45: 5248211.31 | X45: -1385413.45 | Y45: -0.2639782143 | AA45: 205508.11 | AC45: -599338.58 | AD45: 1815828.59 | AE45: 395082.68 | AF45: 559141.1 | AG45: 502089.86 | AH45: 928453.77 | AI45: -503833.15 | AJ45: 485975.18 | AK45: 197510.04 | AL45: 205864.92 | AM45: 1618461.4 | AN45: -157328.8 | AP45: 1618883.31 | AQ45: -488203.2 | AR45: 313392.31 | AS45: 549579.47 | AT45: -791342.91 | AU45: 813839.29
A46: %,V4470176 | B46: 4470176 | C46: OSS Sharing Reclass-Reduction | F46: -813839.29 | G46: -928453.77 | H46: 114614.48 | I46: 0.1234466203 | K46: -2016148.27 | L46: -3601257.42 | Q46: -572075.85 | R46: -1989684.73 | V46: -3862797.86 | W46: -5248211.31 | X46: 1385413.45 | Y46: 0.2639782143 | AA46: -205508.11 | AC46: 599338.58 | AD46: -1815828.59 | AE46: -395082.68 | AF46: -559141.1 | AG46: -502089.86 | AH46: -928453.77 | AI46: 503833.15 | AJ46: -485975.18 | AK46: -197510.04 | AL46: -205864.92 | AM46: -1618461.4 | AN46: 157328.8 | AP46: -1618883.31 | AQ46: 488203.2 | AR46: -313392.31 | AS46: -549579.47 | AT46: 791342.91 | AU46: -813839.29
A47: %,V4470206 | B47: 4470206 | C47: PJM Trans loss credits-OSS | F47: 1396.76 | G47: 39713.92 | H47: -38317.16 | I47: -0.9648294603 | K47: 136628.19 | L47: 88012.75 | Q47: 17941.65 | R47: 44877.79 | V47: 259606.5 | W47: 147137.27 | X47: 112469.23 | Y47: 0.7643830146 | AA47: 16454.41 | AC47: 10543.07 | AD47: 21824.75 | AE47: 10767.14 | AF47: 3139.08 | AG47: 2024.79 | AH47: 39713.92 | AI47: 16496.54 | AJ47: 1483.34 | AK47: 13170.7 | AL47: 21409.43 | AM47: 50808.03 | AN47: 19610.27 | AP47: 47967.06 | AQ47: 53933.03 | AR47: 16786.45 | AS47: 11999.13 | AT47: 4545.76 | AU47: 1396.76
A48: %,V4470209 | B48: 4470209 | C48: PJM transm loss charges-OSS | F48: -11075.15 | G48: -88606.82 | H48: 77531.67 | I48: 0.8750079283 | K48: -273539.11 | L48: -163539.49 | Q48: -36879.29 | R48: -96787.51 | V48: -544262.97 | W48: -294830.93 | X48: -249432.04 | Y48: -0.8460172072 | AA48: -29652.64 | AC48: -18613.39 | AD48: -31490.14 | AE48: -16648.45 | AF48: -5500.54 | AG48: -2680.15 | AH48: -88606.82 | AI48: -59176.36 | AJ48: -3677.22 | AK48: -47243.9 | AL48: -18092.59 | AM48: -107406.04 | AN48: -35127.75 | AP48: -111221.21 | AQ48: -88340.76 | AR48: -37097.85 | AS48: -17554.99 | AT48: -8249.15 | AU48: -11075.15
A49: %,V4470220 | B49: 4470220 | C49: PJM Regulation - OSS | F49: 852024.04 | G49: 114346.43 | H49: 737677.61 | I49: 6.451251779 | K49: 1441349.74 | L49: 2512037.66 | Q49: 742134.91 | R49: 1110589.54 | V49: 2846311.6 | W49: 5218672.94 | X49: -2372361.34 | Y49: -0.4545909213 | AA49: 372449.64 | AC49: 627126.58 | AD49: 232646.66 | AE49: 541674.88 | AF49: 586031.62 | AG49: 410211.49 | AH49: 114346.43 | AI49: 389802.64 | AJ49: 273252.59 | AK49: 193400.45 | AL49: 63996.65 | AM49: 569814.29 | AN49: -85304.76 | AP49: 71085.45 | AQ49: -207904.77 | AR49: 836034.15 | AS49: 554322.2 | AT49: -664211.33 | AU49: 852024.04
A50: %,V4470221 | B50: 4470221 | C50: PJM Spinning Reserve - OSS | F50: 11716.93 | G50: 15059.88 | H50: -3342.95 | I50: -0.2219772003 | K50: 113012.16 | L50: 64408.03 | Q50: 25079.99 | R50: 35716.39 | V50: 251824.43 | W50: 108934.51 | X50: 142889.92 | Y50: 1.311704803 | AA50: 9679.91 | AC50: 8819.03 | AD50: 21730.89 | AE50: -1858.28 | AF50: 13366.32 | AG50: 7290.19 | AH50: 15059.88 | AI50: 52051.47 | AJ50: 3497.27 | AK50: 9133.65 | AL50: 27213.73 | AM50: 43826.34 | AN50: 3089.81 | AP50: 34288.27 | AQ50: 17581.06 | AR50: 36062.84 | AS50: 15001.84 | AT50: -1638.78 | AU50: 11716.93
A51: %,R,FACCOUNT,TGL_FERC_ACCT,XDYYNNY01,N4470 | C51: Sales for Resale | F51: 2517988.53 | G51: 5001318.41 | H51: -2483329.88 | I51: -0.4965350486 | K51: 15633442.54 | L51: 15306094.24 | Q51: 4531675.5 | R51: 9274037.18 | V51: 34722648.3 | W51: 28794354.34 | X51: 5928293.96 | Y51: 0.2058838997 | AA51: 2106797.8 | AC51: 2759255.97 | AD51: 1640503.21 | AE51: 1632297.88 | AF51: 2082504.85 | AG51: 2190213.92 | AH51: 5001318.41 | AI51: 1069143.45 | AJ51: 3620859.6 | AK51: 1207474.96 | AL51: 3093690.37 | AM51: 7948635.36 | AN51: 2149402.02 | AP51: 6831774.95 | AQ51: 2590572.24 | AR51: 1679419.85 | AS51: 1739620.55 | AT51: 274066.42 | AU51: 2517988.53
C52: Sales of Electricity | F52: =+F51+F27+#REF!+F23 ->  | G52: =+G51+G27+#REF!+G23 ->  | K52: =+K51+K27+#REF!+K23 ->  | L52: =+L51+L27+#REF!+L23 ->  | M52: =+K52-L52 ->  | N52: =IF(L52<0,IF(M52=0,0,IF(OR(L52=0,K52=0),"N.M.",IF(ABS(M52/L52)>=10,"N.M.",M52/(-L52)))),IF(M52=0,0,IF(OR(L52=0,K52=0),"N.M.",IF(ABS(M52/L52)>=10,"N.M.",M52/L52)))) ->  | Q52: =+Q51+Q27+#REF!+Q23 ->  | R52: =+R51+R27+#REF!+R23 ->  | S52: =+Q52-R52 ->  | T52: =IF(R52<0,IF(S52=0,0,IF(OR(R52=0,Q52=0),"N.M.",IF(ABS(S52/R52)>=10,"N.M.",S52/(-R52)))),IF(S52=0,0,IF(OR(R52=0,Q52=0),"N.M.",IF(ABS(S52/R52)>=10,"N.M.",S52/R52)))) ->  | V52: =+V51+V27+#REF!+V23 ->  | W52: =+W51+W27+#REF!+W23 ->  | AA52: =+AA51+AA27+#REF!+AA23 ->  | AC52: =+AC51+AC27+#REF!+AC23 ->  | AD52: =+AD51+AD27+#REF!+AD23 ->  | AE52: =+AE51+AE27+#REF!+AE23 ->  | AF52: =+AF51+AF27+#REF!+AF23 ->  | AG52: =+AG51+AG27+#REF!+AG23 ->  | AH52: =+AH51+AH27+#REF!+AH23 ->  | AI52: =+AI51+AI27+#REF!+AI23 ->  | AJ52: =+AJ51+AJ27+#REF!+AJ23 ->  | AK52: =+AK51+AK27+#REF!+AK23 ->  | AL52: =+AL51+AL27+#REF!+AL23 ->  | AM52: =+AM51+AM27+#REF!+AM23 ->  | AN52: =+AN51+AN27+#REF!+AN23 ->  | AP52: =+AP51+AP27+#REF!+AP23 ->  | AQ52: =+AQ51+AQ27+#REF!+AQ23 ->  | AR52: =+AR51+AR27+#REF!+AR23 ->  | AS52: =+AS51+AS27+#REF!+AS23 ->  | AT52: =+AT51+AT27+#REF!+AT23 ->  | AU52: =+AU51+AU27+#REF!+AU23 -> 
A53: %,V4491002 | B53: 4491002 | C53: Non-Tran Prov Rate Ref Whlsale | F53: 0 | G53: 0 | H53: 0 | I53: 0 | K53: 0 | L53: 0 | M53: 0 | N53: 0 | Q53: 0 | R53: 0 | S53: 0 | T53: 0 | V53: 0 | W53: -719707 | X53: 719707 | Y53: N.M. | AA53: -700994 | AC53: -15607 | AD53: -24369 | AE53: 39976 | AF53: 0 | AG53: 0 | AH53: 0 | AI53: 0 | AJ53: 0 | AK53: 0 | AL53: 0 | AM53: 0 | AN53: 0 | AP53: 0 | AQ53: 0 | AR53: 0 | AS53: 0 | AT53: 0 | AU53: 0
A54: %,V4491003 | B54: 4491003 | C54: Non-Tran Prov Rate Ref Retail | F54: 0 | G54: 0 | H54: 0 | I54: 0 | K54: 0 | L54: 0 | M54: 0 | N54: 0 | Q54: 0 | R54: 0 | S54: 0 | T54: 0 | V54: 0 | W54: -158271 | X54: 158271 | Y54: N.M. | AA54: -154733 | AC54: -3541 | AD54: -5497 | AE54: 9038 | AF54: 0 | AG54: 0 | AH54: 0 | AI54: 0 | AJ54: 0 | AK54: 0 | AL54: 0 | AM54: 0 | AN54: 0 | AP54: 0 | AQ54: 0 | AR54: 0 | AS54: 0 | AT54: 0 | AU54: 0
A55: %,V4491004 | B55: 4491004 | C55: Prov Rate Refund - Affiliated | F55: 0 | G55: 0 | H55: 0 | I55: 0 | K55: 0 | L55: 0 | M55: 0 | N55: 0 | Q55: 0 | R55: 0 | S55: 0 | T55: 0 | V55: 0 | W55: -4764663 | X55: 4764663 | Y55: N.M. | AA55: -4662950 | AC55: -104520 | AD55: -162857 | AE55: 267377 | AF55: 0 | AG55: 0 | AH55: 0 | AI55: 0 | AJ55: 0 | AK55: 0 | AL55: 0 | AM55: 0 | AN55: 0 | AP55: 0 | AQ55: 0 | AR55: 0 | AS55: 0 | AT55: 0 | AU55: 0
A56: %,V4491005 | B56: 4491005 | C56: Tran Prov Trans Ref NonAffil | F56: 75421 | G56: 625314 | H56: -549893 | I56: -0.879386996 | K56: 74848 | L56: 524618 | M56: -449770 | N56: -0.8573285705 | Q56: 75192 | R56: 584945 | S56: -509753 | T56: -0.8714545812 | V56: -667490 | W56: 524618 | X56: -1192108 | Y56: -2.272335299 | AA56: 0 | AC56: 0 | AD56: 0 | AE56: -60327 | AF56: -20067 | AG56: -20302 | AH56: 625314 | AI56: -101 | AJ56: -101 | AK56: -866 | AL56: -107 | AM56: -107 | AN56: -741056 | AP56: -116 | AQ56: -114 | AR56: -114 | AS56: -115 | AT56: -114 | AU56: 75421
A57: %,V4491006 | B57: 4491006 | C57: Tran Prov Trans Ref Frml Rate | F57: 28948 | G57: 124062 | H57: -95114 | I57: -0.7666650546 | K57: 28803 | L57: 101295 | M57: -72492 | N57: -0.7156523027 | Q57: 28890 | R57: 114938 | S57: -86048 | T57: -0.7486470967 | V57: -148986 | W57: 101295 | X57: -250281 | Y57: -2.470812972 | AA57: 0 | AC57: 0 | AD57: 0 | AE57: -13643 | AF57: -4535 | AG57: -4589 | AH57: 124062 | AI57: -25 | AJ57: -25 | AK57: -219 | AL57: -27 | AM57: -27 | AN57: -177466 | AP57: -28 | AQ57: -29 | AR57: -30 | AS57: -28 | AT57: -30 | AU57: 28948
A58: %,V4491007 | B58: 4491007 | C58: Trans Prov Trans Refunds Affil | F58: 611184 | G58: 3623431 | H58: -3012247 | I58: -0.8313245098 | K58: 606920 | L58: 2949945 | M58: -2343025 | N58: -0.794260571 | Q58: 609480 | R58: 3353458 | S58: -2743978 | T58: -0.8182532777 | V58: -4861907 | W58: 2949945 | X58: -7811852 | Y58: -2.648134796 | AA58: 0 | AC58: 0 | AD58: 0 | AE58: -403513 | AF58: -134198 | AG58: -135775 | AH58: 3623431 | AI58: -750 | AJ58: -750 | AK58: -6444 | AL58: -797 | AM58: -793 | AN58: -5459293 | AP58: -853 | AQ58: -851 | AR58: -856 | AS58: -851 | AT58: -853 | AU58: 611184
A59: %,R,FACCOUNT,TGL_FERC_ACCT,XDYYNNY01,N449 | C59: Less Rate Refund Provision | F59: 715553 | G59: 4372807 | H59: -3657254 | I59: -0.8363630044 | K59: 710571 | L59: 3575858 | M59: -2865287 | N59: -0.8012865723 | Q59: 713562 | R59: 4053341 | S59: -3339779 | T59: -0.8239570764 | V59: -5678383 | W59: -2066783 | X59: -3611600 | Y59: -1.747450023 | AA59: -5518677 | AC59: -123668 | AD59: -192723 | AE59: -161092 | AF59: -158800 | AG59: -160666 | AH59: 4372807 | AI59: -876 | AJ59: -876 | AK59: -7529 | AL59: -931 | AM59: -927 | AN59: -6377815 | AP59: -997 | AQ59: -994 | AR59: -1000 | AS59: -994 | AT59: -997 | AU59: 715553
A61: %,V4500000 | B61: 4500000 | C61: Forfeited Discounts | F61: 130002.62 | G61: 124423.59 | H61: =+F61-G61 -> 5579.03 | I61: =IF(G61<0,IF(H61=0,0,IF(OR(G61=0,F61=0),"N.M.",IF(ABS(H61/G61)>=10,"N.M.",H61/(-G61)))),IF(H61=0,0,IF(OR(G61=0,F61=0),"N.M.",IF(ABS(H61/G61)>=10,"N.M.",H61/G61)))) -> 0.04483900521 | K61: 727888.29 | L61: 680763.22 | M61: =+K61-L61 -> 47125.07 | N61: =IF(L61<0,IF(M61=0,0,IF(OR(L61=0,K61=0),"N.M.",IF(ABS(M61/L61)>=10,"N.M.",M61/(-L61)))),IF(M61=0,0,IF(OR(L61=0,K61=0),"N.M.",IF(ABS(M61/L61)>=10,"N.M.",M61/L61)))) -> 0.06922387787 | Q61: 358334.86 | R61: 346624.64 | S61: =+Q61-R61 -> 11710.22 | T61: =IF(R61<0,IF(S61=0,0,IF(OR(R61=0,Q61=0),"N.M.",IF(ABS(S61/R61)>=10,"N.M.",S61/(-R61)))),IF(S61=0,0,IF(OR(R61=0,Q61=0),"N.M.",IF(ABS(S61/R61)>=10,"N.M.",S61/R61)))) -> 0.03378357638 | V61: 1502016.72 | W61: 1134658.67 | X61: =+V61-W61 -> 367358.05 | Y61: =IF(W61<0,IF(X61=0,0,IF(OR(W61=0,V61=0),"N.M.",IF(ABS(X61/W61)>=10,"N.M.",X61/(-W61)))),IF(X61=0,0,IF(OR(W61=0,V61=0),"N.M.",IF(ABS(X61/W61)>=10,"N.M.",X61/W61)))) -> 0.3237608452 | AA61: 77402.33 | AC61: 118690.44 | AD61: 105048.23 | AE61: 110399.91 | AF61: 102579.11 | AG61: 119621.94 | AH61: 124423.59 | AI61: 131497.47 | AJ61: 149009.76 | AK61: 99721.87 | AL61: 143924.36 | AM61: 68553.24 | AN61: 181421.73 | AP61: 137774.02 | AQ61: 126414.54 | AR61: 105364.87 | AS61: 117613.16 | AT61: 110719.08 | AU61: 130002.62
A62: %,V4510001 | B62: 4510001 | C62: Misc Service Rev - Nonaffil | F62: 13312.13 | G62: 9475.14 | H62: 3836.99 | I62: 0.4049533833 | K62: 80764.81 | L62: 48343.75 | M62: 32421.06 | N62: 0.6706360181 | Q62: 46954.35 | R62: 25959.9 | S62: 20994.45 | T62: 0.8087261507 | V62: 107471.35 | W62: 97243.61 | X62: 10227.74 | Y62: 0.1051764738 | AA62: 9229.44 | AC62: 6667.37 | AD62: 2008.69 | AE62: 13707.79 | AF62: 4911.74 | AG62: 11573.02 | AH62: 9475.14 | AI62: 12751.5 | AJ62: 10697.33 | AK62: -1673.42 | AL62: 7727.85 | AM62: -4947.64 | AN62: 2150.92 | AP62: 8015.08 | AQ62: 7092.56 | AR62: 18702.82 | AS62: 18632.43 | AT62: 15009.79 | AU62: 13312.13
A63: %,V4540001 | B63: 4540001 | C63: Rent From Elect Property - Af | F63: 66858.21 | G63: 121231.235 | H63: -54373.025 | I63: -0.4485067318 | K63: 601888.29 | L63: 903168.79 | M63: -301280.5 | N63: -0.333581611 | Q63: 205842.337 | R63: 418719.605 | S63: -212877.268 | T63: -0.5084005274 | V63: 1532891.33 | W63: 1550963.39 | X63: -18072.06 | Y63: -0.01165215125 | AA63: 129786.675 | AC63: 186737.245 | AD63: 148899.075 | AE63: 148812.865 | AF63: 148739.795 | AG63: 148748.575 | AH63: 121231.235 | AI63: 117095.985 | AJ63: 226451.425 | AK63: 148076.755 | AL63: 149022.995 | AM63: 145198.985 | AN63: 145156.895 | AP63: 132135.779 | AQ63: 170723.242 | AR63: 93186.932 | AS63: 76927.357 | AT63: 62056.77 | AU63: 66858.21
A64: %,V4540002 | B64: 4540002 | C64: Rent From Elect Property-NAC | F64: 163262.95 | G64: 261124.27 | H64: -97861.32 | I64: -0.3747691473 | K64: 1088943.22 | L64: 1265466.22 | M64: -176523 | N64: -0.1394924631 | Q64: 550874.57 | R64: 560293.73 | S64: -9419.16 | T64: -0.01681111084 | V64: 2097022.35 | W64: 2517763.5 | X64: -420741.15 | Y64: -0.1671090831 | AA64: 186246.39 | AC64: 211328.39 | AD64: 175 | AE64: 493669.1 | AF64: 298994.46 | AG64: 175 | AH64: 261124.27 | AI64: 175 | AJ64: 375839.37 | AK64: 161760.34 | AL64: 176972.26 | AM64: 156931.32 | AN64: 136400.84 | AP64: 159439.61 | AQ64: 182892.87 | AR64: 195736.17 | AS64: 199744.74 | AT64: 187866.88 | AU64: 163262.95
A65: %,V4540004 | B65: 4540004 | C65: Rent From Elect Prop-ABD-Nonaf | F65: 0 | G65: 0 | H65: 0 | I65: 0 | K65: 0 | L65: 0 | M65: 0 | N65: 0 | Q65: 0 | R65: 0 | S65: 0 | T65: 0 | V65: -8941.71 | W65: 18000 | X65: -26941.71 | Y65: -1.496761667 | AA65: 0 | AC65: 0 | AD65: 0 | AE65: 0 | AF65: 0 | AG65: 0 | AH65: 0 | AI65: -8941.71 | AJ65: 0 | AK65: 0 | AL65: 0 | AM65: 0 | AN65: 0 | AP65: 0 | AQ65: 0 | AR65: 0 | AS65: 0 | AT65: 0 | AU65: 0
A66: %,V4540005 | B66: 4540005 | C66: Rent from Elec Prop-Pole Attch | F66: 1690437.56 | G66: 819804.66 | H66: 870632.9 | I66: 1.062000428 | K66: 3868701.51 | L66: 2793718.03 | M66: 1074983.48 | N66: 0.3847859621 | Q66: 2560597.26 | R66: 1609973.3 | S66: 950623.96 | T66: 0.5904594567 | V66: 6710671.78 | W66: 5302838.02 | X66: 1407833.76 | Y66: 0.2654868496 | AA66: 418284.44 | AC66: 395186.98 | AD66: 393462.25 | AE66: 395095.5 | AF66: 395084.32 | AG66: 395084.32 | AH66: 819804.66 | AI66: 473887.79 | AJ66: 473759.75 | AK66: 473043.44 | AL66: 473759.75 | AM66: 473759.75 | AN66: 473759.79 | AP66: 435069.32 | AQ66: 438156.38 | AR66: 434878.55 | AS66: 435079.85 | AT66: 435079.85 | AU66: 1690437.56
A67: %,V4560001 | B67: 4560001 | C67: Oth Elect Rev - Affiliated | F67: 24072.88 | G67: 14443.73 | H67: 9629.15 | I67: 0.6666664359 | K67: 144437.28 | L67: 14443.73 | M67: 129993.55 | N67: 8.999998615 | Q67: 72218.64 | R67: 14443.73 | S67: 57774.91 | T67: 3.999999308 | V67: 288874.56 | W67: 14443.73 | X67: 274430.83 | Y67: N.M. | AA67: 0 | AC67: 0 | AD67: 0 | AE67: 0 | AF67: 0 | AG67: 0 | AH67: 14443.73 | AI67: 24072.88 | AJ67: 24072.88 | AK67: 24072.88 | AL67: 24072.88 | AM67: 24072.88 | AN67: 24072.88 | AP67: 24072.88 | AQ67: 24072.88 | AR67: 24072.88 | AS67: 24072.88 | AT67: 24072.88 | AU67: 24072.88
A68: %,V4560007 | B68: 4560007 | C68: Oth Elect Rev - DSM Program | F68: 135753.62 | G68: 120168.05 | H68: 15585.57 | I68: 0.1296981186 | K68: 935044.28 | L68: 550443.89 | M68: 384600.39 | N68: 0.698709527 | Q68: 379079.06 | R68: 361084.55 | S68: 17994.51 | T68: 0.0498346163 | V68: 1777173.15 | W68: 670859.68 | X68: 1106313.47 | Y68: 1.649098169 | AA68: 26218.95 | AC68: 35556.09 | AD68: 34155.5 | AE68: 119647.75 | AF68: 126267.94 | AG68: 114648.56 | AH68: 120168.05 | AI68: 161639.16 | AJ68: 160297.7 | AK68: 135960.73 | AL68: 115032.11 | AM68: 117476.85 | AN68: 151722.32 | AP68: 180769.57 | AQ68: 210829.64 | AR68: 164366.01 | AS68: 132700.42 | AT68: 110625.02 | AU68: 135753.62
A69: %,V4560012 | B69: 4560012 | C69: Oth Elect Rev - Nonaffiliated | F69: 0 | G69: 0 | H69: 0 | I69: 0 | K69: 0 | L69: 0 | M69: 0 | N69: 0 | Q69: 0 | R69: 0 | S69: 0 | T69: 0 | V69: 100000 | W69: 0 | X69: 100000 | Y69: N.M. | AA69: 0 | AC69: 0 | AD69: 0 | AE69: 0 | AF69: 0 | AG69: 0 | AH69: 0 | AI69: 0 | AJ69: 0 | AK69: 0 | AL69: 100000 | AM69: 0 | AN69: 0 | AP69: 0 | AQ69: 0 | AR69: 0 | AS69: 0 | AT69: 0 | AU69: 0
A70: %,V4560015 | B70: 4560015 | C70: Other Electric Revenues - ABD | F70: 10044.65 | G70: 16488.22 | H70: -6443.57 | I70: -0.3907984003 | K70: 147520.56 | L70: 205352.1 | M70: -57831.54 | N70: -0.2816213713 | Q70: 62186.34 | R70: 62703.84 | S70: -517.5 | T70: -0.008253083065 | V70: 427699.64 | W70: 501023.31 | X70: -73323.67 | Y70: -0.1463478216 | AA70: 58780.02 | AC70: 61700.75 | AD70: 38014 | AE70: 42933.51 | AF70: 10196.64 | AG70: 36018.98 | AH70: 16488.22 | AI70: 24375.43 | AJ70: 88451.69 | AK70: 39920.57 | AL70: 16020.2 | AM70: 23745.53 | AN70: 87665.66 | AP70: 23788.56 | AQ70: 45840.48 | AR70: 15705.18 | AS70: 9100.94 | AT70: 43040.75 | AU70: 10044.65
A71: %,V4560041 | B71: 4560041 | C71: Miscellaneous Revenue-NonAffil | F71: 0 | G71: 1881.94 | H71: -1881.94 | I71: N.M. | K71: 376.75 | L71: 1881.94 | M71: -1505.19 | N71: -0.7998076453 | Q71: 0 | R71: 1881.94 | S71: -1881.94 | T71: N.M. | V71: 719.2 | W71: 1881.94 | X71: -1162.74 | Y71: -0.6178411639 | AA71: 0 | AC71: 0 | AD71: 0 | AE71: 0 | AF71: 0 | AG71: 0 | AH71: 1881.94 | AI71: 242.45 | AJ71: 0 | AK71: 0 | AL71: 100 | AM71: 0 | AN71: 0 | AP71: 141 | AQ71: 0 | AR71: 235.75 | AS71: 0 | AT71: 0 | AU71: 0
A72: %,V4560043 | B72: 4560043 | C72: Oth Elec Rv-Trn-Aff-Trnf Price | F72: 0 | G72: 0 | H72: 0 | I72: 0 | K72: 0 | L72: 0 | M72: 0 | N72: 0 | Q72: 0 | R72: 0 | S72: 0 | T72: 0 | V72: 0 | W72: 0 | X72: 0 | Y72: 0 | AA72: 0 | AC72: 0 | AD72: 0 | AE72: 0 | AF72: 0 | AG72: 0 | AH72: 0 | AI72: 0 | AJ72: 0 | AK72: 0 | AL72: 0 | AM72: 0 | AN72: 0 | AP72: 0 | AQ72: 0 | AR72: 0 | AS72: 0 | AT72: 0 | AU72: 0
A73: %,V4560180 | B73: 4560180 | C73: Amort of Defer Equity Inc | F73: 39503.52 | G73: 0 | H73: 39503.52 | I73: N.M. | K73: 233882.06 | L73: 0 | M73: 233882.06 | N73: N.M. | Q73: 118510.56 | R73: 0 | S73: 118510.56 | T73: N.M. | V73: 461486 | W73: 0 | X73: 461486 | Y73: N.M. | AA73: 0 | AC73: 0 | AD73: 0 | AE73: 0 | AF73: 0 | AG73: 0 | AH73: 0 | AI73: 37933.99 | AJ73: 37933.99 | AK73: 37933.99 | AL73: 37933.99 | AM73: 37933.99 | AN73: 37933.99 | AP73: 37933.99 | AQ73: 37933.99 | AR73: 39503.52 | AS73: 39503.52 | AT73: 39503.52 | AU73: 39503.52
A74: %,V4561005 | B74: 4561005 | C74: PJM Point to Point Trans Svc | F74: 254298.68 | G74: -22977.47 | H74: 277276.15 | I74: N.M. | K74: 1517542.99 | L74: 1034615.78 | M74: 482927.21 | N74: 0.4667696157 | Q74: 686417.03 | R74: 379263.93 | S74: 307153.1 | T74: 0.809866364 | V74: 3065189.48 | W74: 2020340.79 | X74: 1044848.69 | Y74: 0.517164577 | AA74: 190746.49 | AC74: 338806.06 | AD74: 190931.29 | AE74: 125614.5 | AF74: 225133.31 | AG74: 177108.09 | AH74: -22977.47 | AI74: 488031.28 | AJ74: 234203.96 | AK74: 202344.45 | AL74: 221770.7 | AM74: 179532.01 | AN74: 221764.09 | AP74: 353014.03 | AQ74: 269977.65 | AR74: 208134.28 | AS74: 230774.12 | AT74: 201344.23 | AU74: 254298.68
A75: %,V4561006 | B75: 4561006 | C75: PJM Trans Owner Admin Rev | F75: 8958.1 | G75: 8103.53 | H75: 854.57 | I75: 0.1054565109 | K75: 60441.08 | L75: 47285.7 | M75: 13155.38 | N75: 0.2782105372 | Q75: 25859.66 | R75: 21620.52 | S75: 4239.14 | T75: 0.1960702148 | V75: 107751.17 | W75: 90068.82 | X75: 17682.35 | Y75: 0.1963204359 | AA75: 7817.02 | AC75: 9761.51 | AD75: 8208.91 | AE75: 7694.76 | AF75: 6471.39 | AG75: 7045.6 | AH75: 8103.53 | AI75: 8408.83 | AJ75: 10925.78 | AK75: 8386.91 | AL75: 5324 | AM75: 5864.08 | AN75: 8400.49 | AP75: 13571.79 | AQ75: 10933.22 | AR75: 10076.41 | AS75: 8958.45 | AT75: 7943.11 | AU75: 8958.1
A76: %,V4561007 | B76: 4561007 | C76: PJM Network Integ Trans Svc | F76: 997685.96 | G76: 990773.91 | H76: 6912.05 | I76: 0.006976415033 | K76: 5805540.3 | L76: 5926564.81 | M76: -121024.51 | N76: -0.02042068447 | Q76: 2939323.12 | R76: 2984675.28 | S76: -45352.16 | T76: -0.01519500641 | V76: 11883744.74 | W76: 11479682.06 | X76: 404062.68 | Y76: 0.03519807238 | AA76: 922837.26 | AC76: 1016242.7 | AD76: 916971.66 | AE76: 1008675.17 | AF76: 980820.86 | AG76: 1013080.51 | AH76: 990773.91 | AI76: 1024240.15 | AJ76: 1024058.98 | AK76: 990797.71 | AL76: 1024149.55 | AM76: 990785.76 | AN76: 1024172.29 | AP76: 987378.39 | AQ76: 891035.29 | AR76: 987803.5 | AS76: 955321.53 | AT76: 986315.63 | AU76: 997685.96
A77: %,V4561019 | B77: 4561019 | C77: Oth Elec Rev Trans Non Affil | F77: 4027.5 | G77: 4519.5 | H77: -492 | I77: -0.1088615997 | K77: 26904 | L77: 28369.5 | M77: -1465.5 | N77: -0.05165759002 | Q77: 11061 | R77: 11611.5 | S77: -550.5 | T77: -0.04740989536 | V77: 53814 | W77: 54463.5 | X77: -649.5 | Y77: -0.01192541794 | AA77: 5500.5 | AC77: 7192.5 | AD77: 5176.5 | AE77: 4389 | AF77: 3643.5 | AG77: 3448.5 | AH77: 4519.5 | AI77: 5172 | AJ77: 4468.5 | AK77: 3537 | AL77: 3639 | AM77: 4299 | AN77: 5794.5 | AP77: 6615 | AQ77: 5275.5 | AR77: 3952.5 | AS77: 3417 | AT77: 3616.5 | AU77: 4027.5
A78: %,V4561027 | B78: 4561027 | C78: PJM Transm Dist/Meter - NonAff | F78: 6492 | G78: 0 | H78: 6492 | I78: N.M. | K78: 38952 | L78: 0 | M78: 38952 | N78: N.M. | Q78: 19476 | R78: 0 | S78: 19476 | T78: N.M. | V78: 84396 | W78: 0 | X78: 84396 | Y78: N.M. | AA78: 0 | AC78: 0 | AD78: 0 | AE78: 0 | AF78: 0 | AG78: 0 | AH78: 0 | AI78: 6492 | AJ78: 12984 | AK78: 6492 | AL78: 6492 | AM78: 6492 | AN78: 6492 | AP78: 6492 | AQ78: 6492 | AR78: 6492 | AS78: 6492 | AT78: 6492 | AU78: 6492
A79: %,V4561028 | B79: 4561028 | C79: PJM Pow Fac Cre Rev Whsl Cu-NA | F79: 0 | G79: 111.83 | H79: -111.83 | I79: N.M. | K79: 0 | L79: 955.69 | M79: -955.69 | N79: N.M. | Q79: 0 | R79: 920.8 | S79: -920.8 | T79: N.M. | V79: 0 | W79: 3961.11 | X79: -3961.11 | Y79: N.M. | AA79: 117.26 | AC79: 21.93 | AD79: 31.26 | AE79: -18.3 | AF79: 409.02 | AG79: 399.95 | AH79: 111.83 | AI79: 0 | AJ79: 0 | AK79: 0 | AL79: 0 | AM79: 0 | AN79: 0 | AP79: 0 | AQ79: 0 | AR79: 0 | AS79: 0 | AT79: 0 | AU79: 0
A80: %,V4561029 | B80: 4561029 | C80: PJM NITS Revenue Whsl Cus-NAff | F80: 169598.93 | G80: 237243.05 | H80: -67644.12 | I80: -0.2851258235 | K80: 1242650.46 | L80: 1484592.03 | M80: -241941.57 | N80: -0.162968388 | Q80: 603121.68 | R80: 741473 | S80: -138351.32 | T80: -0.1865898286 | V80: 2698087.57 | W80: 2729438.15 | X80: -31350.58 | Y80: -0.01148609284 | AA80: 209524.06 | AC80: 256640.43 | AD80: 231590.6 | AE80: 254888 | AF80: 247940 | AG80: 256289.95 | AH80: 237243.05 | AI80: 245232.76 | AJ80: 245238.46 | AK80: 237248.76 | AL80: 245235.61 | AM80: 237245.91 | AN80: 245235.61 | AP80: 220346.49 | AQ80: 198835.8 | AR80: 220346.49 | AS80: 213176.26 | AT80: 220346.49 | AU80: 169598.93
A81: %,V4561030 | B81: 4561030 | C81: PJM TO Serv Rev Whls Cus-NAff | F81: 858.56 | G81: 570.03 | H81: 288.53 | I81: 0.5061663421 | K81: 5852.01 | L81: 3403.32 | M81: 2448.69 | N81: 0.7195003702 | Q81: 2744.28 | R81: 1635.32 | S81: 1108.96 | T81: 0.6781302742 | V81: 9310.08 | W81: 8082.08 | X81: 1228 | Y81: 0.1519410845 | AA81: 807.31 | AC81: 647.03 | AD81: 557.63 | AE81: 563.34 | AF81: 533.61 | AG81: 531.68 | AH81: 570.03 | AI81: 654.49 | AJ81: 592.44 | AK81: 533.72 | AL81: 523.76 | AM81: 537.39 | AN81: 616.27 | AP81: 1125.24 | AQ81: 1006.66 | AR81: 975.83 | AS81: 932.12 | AT81: 953.6 | AU81: 858.56
A82: %,V4561033 | B82: 4561033 | C82: PJM NITS Revenue - Affiliated | F82: 6958112.9 | G82: 7298299.27 | H82: -340186.37 | I82: -0.04661173205 | K82: 41981523.77 | L82: 44009775.79 | M82: -2028252.02 | N82: -0.04608639748 | Q82: 21108674.18 | R82: 22139940.82 | S82: -1031266.64 | T82: -0.04657946687 | V82: 86755058.28 | W82: 81067636.01 | X82: 5687422.27 | Y82: 0.07015650819 | AA82: 6237327.7 | AC82: 7552626.05 | AD82: 6815525.85 | AE82: 7501683.07 | AF82: 7297555.39 | AG82: 7544086.16 | AH82: 7298299.27 | AI82: 7544086.16 | AJ82: 7544261.62 | AK82: 7298474.72 | AL82: 7544173.89 | AM82: 7298386.99 | AN82: 7544151.13 | AP82: 7191797.79 | AQ82: 6489679.12 | AR82: 7191372.68 | AS82: 6957700.73 | AT82: 7192860.55 | AU82: 6958112.9
A83: %,V4561034 | B83: 4561034 | C83: PJM TO Adm. Serv Rev - Aff | F83: 32786.05 | G83: 17174.5 | H83: 15611.55 | I83: 0.9089958951 | K83: 193354.74 | L83: 97117.05 | M83: 96237.69 | N83: 0.9909453592 | Q83: 92193.34 | R83: 46076.05 | S83: 46117.29 | T83: 1.000895042 | V83: 298165.31 | W83: 224210.35 | X83: 73954.96 | Y83: 0.3298463251 | AA83: 22919.84 | AC83: 19433.2 | AD83: 16031.13 | AE83: 15576.67 | AF83: 14333.09 | AG83: 14568.46 | AH83: 17174.5 | AI83: 19212.59 | AJ83: 18120.42 | AK83: 15845.23 | AL83: 15869.93 | AM83: 16456.01 | AN83: 19306.39 | AP83: 36971.14 | AQ83: 32937.59 | AR83: 31252.67 | AS83: 28902.52 | AT83: 30504.77 | AU83: 32786.05
A84: %,V4561035 | B84: 4561035 | C84: PJM Affiliated Trans NITS Cost | F84: -5126069.6 | G84: -4749763.69 | H84: -376305.91 | I84: -0.07922623831 | K84: -30931376.93 | L84: -28645112.86 | M84: -2286264.07 | N84: -0.07981340765 | Q84: -15551652.63 | R84: -14409250.21 | S84: -1142402.42 | T84: -0.07928257219 | V84: -60070798.48 | W84: -59191443.53 | X84: -879354.95 | Y84: -0.01485611598 | AA84: -5141351.21 | AC84: -4916437.05 | AD84: -4436559.62 | AE84: -4882865.98 | AF84: -4749763.69 | AG84: -4909722.83 | AH84: -4749763.69 | AI84: -4909722.83 | AJ84: -4909837.02 | AK84: -4749877.89 | AL84: -4909779.93 | AM84: -4750220.69 | AN84: -4909983.19 | AP84: -5299008.26 | AQ84: -4781707.78 | AR84: -5299008.26 | AS84: -5126574.77 | AT84: -5299008.26 | AU84: -5126069.6
A85: %,V4561036 | B85: 4561036 | C85: PJM Affiliated Trans TO Cost | F85: -10383.77 | G85: -7968.23 | H85: -2415.54 | I85: -0.30314637 | K85: -64916.97 | L85: -49504.19 | M85: -15412.78 | N85: -0.3113429389 | Q85: -28914.27 | R85: -21746.19 | S85: -7168.08 | T85: -0.3296246377 | V85: -112469.45 | W85: -131424.76 | X85: 18955.31 | Y85: 0.1442293674 | AA85: -15781.37 | AC85: -11216.7 | AD85: -8542.78 | AE85: -7998.52 | AF85: -7031.69 | AG85: -6746.27 | AH85: -7968.23 | AI85: -9072.99 | AJ85: -8058.55 | AK85: -6737.24 | AL85: -6626.47 | AM85: -7602.9 | AN85: -9454.33 | AP85: -13943.2 | AQ85: -12006.21 | AR85: -10053.29 | AS85: -9008.72 | AT85: -9521.78 | AU85: -10383.77
A86: %,V4561045 | B86: 4561045 | C86: PJM Non-Aff Gen IPP Rev | F86: 1737.59 | G86: 1994 | H86: -256.41 | I86: -0.1285907723 | K86: 10377.57 | L86: 11964 | M86: -1586.43 | N86: -0.1326003009 | Q86: 5193.58 | R86: 5982 | S86: -788.42 | T86: -0.1317987295 | V86: 20745.57 | W86: 23928 | X86: -3182.43 | Y86: -0.1330002508 | AA86: 1994 | AC86: 1994 | AD86: 1994 | AE86: 1994 | AF86: 1994 | AG86: 1994 | AH86: 1994 | AI86: 1728 | AJ86: 1728 | AK86: 1728.01 | AL86: 1728 | AM86: 1727.99 | AN86: 1728 | AP86: 1728 | AQ86: 1728 | AR86: 1727.99 | AS86: 1727.99 | AT86: 1728 | AU86: 1737.59
A87: %,V4561058 | B87: 4561058 | C87: NonAffil PJM Trans Enhncmt Rev | F87: 138376.71 | G87: 157873.97 | H87: -19497.26 | I87: -0.1234988897 | K87: 826455.85 | L87: 946334.8 | M87: -119878.95 | N87: -0.126677102 | Q87: 411470.22 | R87: 473233.23 | S87: -61763.01 | T87: -0.130512834 | V87: 1773700.09 | W87: 1805412.22 | X87: -31712.13 | Y87: -0.01756503565 | AA87: 143179.57 | AC87: 157704.9 | AD87: 157703.19 | AE87: 157693.48 | AF87: 157686.63 | AG87: 157672.63 | AH87: 157873.97 | AI87: 157873.97 | AJ87: 157873.97 | AK87: 157873.97 | AL87: 157873.97 | AM87: 157873.97 | AN87: 157874.39 | AP87: 138680 | AQ87: 138680.68 | AR87: 137624.95 | AS87: 135494.25 | AT87: 137599.26 | AU87: 138376.71
A88: %,V4561059 | B88: 4561059 | C88: Affil PJM Trans Enhancmnt Rev | F88: 124194.31 | G88: 137371.08 | H88: -13176.77 | I88: -0.09592099007 | K88: 745083.17 | L88: 824128.76 | M88: -79045.59 | N88: -0.09591412633 | Q88: 374624.81 | R88: 412099.24 | S88: -37474.43 | T88: -0.0909354504 | V88: 1569309.23 | W88: 1605607.88 | X88: -36298.65 | Y88: -0.02260741894 | AA88: 130246.52 | AC88: 137338.77 | AD88: 137340.52 | AE88: 137350.23 | AF88: 137357.08 | AG88: 137371.08 | AH88: 137371.08 | AI88: 137371.08 | AJ88: 137371.08 | AK88: 137371.08 | AL88: 137371.08 | AM88: 137371.08 | AN88: 137370.66 | AP88: 123145.24 | AQ88: 123144.48 | AR88: 124168.64 | AS88: 126236.17 | AT88: 124194.33 | AU88: 124194.31
A89: %,V4561060 | B89: 4561060 | C89: Affil PJM Trans Enhancmnt Cost | F89: -91494.44 | G89: -89401.67 | H89: -2092.77 | I89: -0.02340862313 | K89: -548966.64 | L89: -536410.02 | M89: -12556.62 | N89: -0.02340862313 | Q89: -276002.24 | R89: -268205.01 | S89: -7797.23 | T89: -0.02907190287 | V89: -1085387.76 | W89: -1180573.5 | X89: 95185.74 | Y89: 0.08062669542 | AA89: -107360.58 | AC89: -89401.67 | AD89: -89401.67 | AE89: -89401.67 | AF89: -89401.67 | AG89: -89401.67 | AH89: -89401.67 | AI89: -89401.67 | AJ89: -89401.67 | AK89: -89401.67 | AL89: -89401.67 | AM89: -89409.07 | AN89: -89405.37 | AP89: -90734.98 | AQ89: -90734.98 | AR89: -91494.44 | AS89: -93013.36 | AT89: -91494.44 | AU89: -91494.44
A90: %,V4561061 | B90: 4561061 | C90: NAff PJM RTEP Rev for Whsl-FR | F90: 3027.15 | G90: 4465.47 | H90: -1438.32 | I90: -0.3220982338 | K90: 22050.05 | L90: 27799.52 | M90: -5749.47 | N90: -0.2068190386 | Q90: 10699.47 | R90: 13799.09 | S90: -3099.62 | T90: -0.2246249572 | V90: 48842.87 | W90: 54050.95 | X90: -5208.08 | Y90: -0.09635501319 | AA90: 4375.24 | AC90: 4666.81 | AD90: 4666.81 | AE90: 4666.81 | AF90: 4666.81 | AG90: 4666.81 | AH90: 4465.47 | AI90: 4465.47 | AJ90: 4465.47 | AK90: 4465.47 | AL90: 4465.47 | AM90: 4465.47 | AN90: 4465.47 | AP90: 3773 | AQ90: 3773 | AR90: 3804.58 | AS90: 3867.74 | AT90: 3804.58 | AU90: 3027.15
A91: %,V4561062 | B91: 4561062 | C91: PROVISION RTO Tran Cost Affi | F91: -720738 | G91: -1469769 | H91: 749031 | I91: 0.5096249819 | K91: -1579368 | L91: -804189 | M91: -775179 | N91: -0.9639263904 | Q91: -935052 | R91: -1203476 | S91: 268424 | T91: 0.2230405924 | V91: -836266 | W91: 1029323 | X91: -1865589 | Y91: -1.812442741 | AA91: 1065652 | AC91: 138615 | AD91: 129352 | AE91: 131320 | AF91: 132925 | AG91: 133368 | AH91: -1469769 | AI91: 32474 | AJ91: 95918 | AK91: 84626 | AL91: 94426 | AM91: 94423 | AN91: 341235 | AP91: -78400 | AQ91: -107159 | AR91: -458757 | AS91: -107157 | AT91: -107157 | AU91: -720738
A92: %,V4561063 | B92: 4561063 | C92: PROVISION RTO Tran Rev Aff | F92: 807407 | G92: 689219 | H92: 118188 | I92: 0.1714810532 | K92: 3932983 | L92: 552274 | M92: 3380709 | N92: 6.121434288 | Q92: 1792159 | R92: 634441 | S92: 1157718 | T92: 1.824784338 | V92: 3855163 | W92: 1910524 | X92: 1944639 | Y92: 1.017856358 | AA92: 226375 | AC92: -27389 | AD92: -27389 | AE92: -27389 | AF92: -27389 | AG92: -27389 | AH92: 689219 | AI92: -21015 | AJ92: -21015 | AK92: 15188 | AL92: -16993 | AM92: -16992 | AN92: -16993 | AP92: 492376 | AQ92: 492375 | AR92: 1156073 | AS92: 492376 | AT92: 492376 | AU92: 807407
A93: %,V4561064 | B93: 4561064 | C93: PROVISION RTO Tran Rv Frml Rts | F93: 16729 | G93: 23428 | H93: -6699 | I93: -0.285939901 | K93: 100374 | L93: 18828 | M93: 81546 | N93: 4.331102613 | Q93: 50186 | R93: 21588 | S93: 28598 | T93: 1.324717436 | V93: 98052 | W93: 64675 | X93: 33377 | Y93: 0.516072671 | AA93: 7642 | AC93: -920 | AD93: -920 | AE93: -920 | AF93: -920 | AG93: -920 | AH93: 23428 | AI93: -661 | AJ93: -660 | AK93: 569 | AL93: -522 | AM93: -524 | AN93: -524 | AP93: 16729 | AQ93: 16730 | AR93: 16729 | AS93: 16728 | AT93: 16729 | AU93: 16729
A94: %,V4561065 | B94: 4561065 | C94: PROVISION RTO Tran Rev NonAff | F94: 118899 | G94: 92190 | H94: 26709 | I94: 0.289716889 | K94: 561201 | L94: 71615 | M94: 489586 | N94: 6.836361098 | Q94: 251240 | R94: 83960 | S94: 167280 | T94: 1.992377323 | V94: 537399 | W94: 263113 | X94: 274286 | Y94: 1.042464644 | AA94: 31918 | AC94: -4115 | AD94: -4115 | AE94: -4115 | AF94: -4115 | AG94: -4115 | AH94: 92190 | AI94: -5048 | AJ94: -5049 | AK94: -182 | AL94: -4508 | AM94: -4508 | AN94: -4507 | AP94: 66170 | AQ94: 66170 | AR94: 177621 | AS94: 66171 | AT94: 66170 | AU94: 118899
A95: %,V4561075 | B95: 4561075 | C95: PJM-Nonaff Power Factor Credit | F95: 484.49 | G95: 421.26 | H95: 63.23 | I95: 0.1500973271 | K95: 2034.22 | L95: 421.26 | M95: 1612.96 | N95: 3.82889427 | Q95: 1312.79 | R95: 421.26 | S95: 891.53 | T95: 2.116341452 | V95: 5507.95 | W95: 421.26 | X95: 5086.69 | Y95: N.M. | AA95: 0 | AC95: 0 | AD95: 0 | AE95: 0 | AF95: 0 | AG95: 0 | AH95: 421.26 | AI95: 1393.48 | AJ95: 620.05 | AK95: 802.89 | AL95: 349.98 | AM95: 236.4 | AN95: 70.93 | AP95: 196.13 | AQ95: 237.41 | AR95: 287.89 | AS95: 416.34 | AT95: 411.96 | AU95: 484.49
A96: %,R,FACCOUNT,TGL_FERC_ACCT,XDYYNNY01,NOTHER_OPER_REVENUES | C96: Other Operating Revenues | F96: 5968236.26 | G96: 4812919.175 | H96: 1155317.085 | I96: 0.2400449796 | K96: 31778138.72 | L96: 31514410.61 | M96: 263728.11 | N96: 0.008368492537 | Q96: 15948733 | R96: 15471748.87 | S96: 476984.132 | T96: 0.03082936106 | V96: 65756399.02 | W96: 55741172.24 | X96: 10015226.78 | Y96: 0.1796737739 | AA96: 4850434.855 | AC96: 5608078.735 | AD96: 4770916.025 | AE96: 5663666.985 | AF96: 5419622.645 | AG96: 5239207.045 | AH96: 4812919.175 | AI96: 5616644.715 | AJ96: 6005323.385 | AK96: 5438903.275 | AL96: 5680128.265 | AM96: 5309165.305 | AN96: 5928095.355 | AP96: 5317162.609 | AQ96: 5001360.012 | AR96: 5510883.102 | AS96: 4966313.667 | AT96: 5014183.07 | AU96: 5968236.26
B97: Line 2 | C97: Operating Revenues (400) | F97: =+F14+F23+F27+F51+F59+F96 -> 63388975.41 | G97: =+G14+G23+G27+G51+G59+G96 -> 80265747.05 | H97: -16876771.63 | I97: -0.2102611918 | K97: =+K14+K23+K27+K51+K59+K96 -> 400267223.8 | L97: =+L14+L23+L27+L51+L59+L96 -> 394584060.8 | M97: 5683163 | N97: 0.01440292086 | Q97: =+Q14+Q23+Q27+Q51+Q59+Q96 -> 187810009.4 | R97: =+R14+R23+R27+R51+R59+R96 -> 182750172.9 | S97: 5059836.474 | T97: 0.02768717749 | V97: =+V14+V23+V27+V51+V59+V96 -> 770434638 | W97: =+W14+W23+W27+W51+W59+W96 -> 751321009.1 | X97: 19113628.94 | Y97: 0.02544002991 | AA97: =+AA14+AA23+AA27+AA51+AA59+AA96 -> 67070519.64 | AC97: =+AC14+AC23+AC27+AC51+AC59+AC96 -> 82864908.61 | AD97: 62306403.6 | AE97: 66662575.7 | AF97: 52815642.09 | AG97: 49668783.77 | AH97: 80265747.05 | AI97: 67332566.89 | AJ97: 65046326.7 | AK97: 50446824.92 | AL97: 56923373.62 | AM97: 64582682.18 | AN97: 65835639.85 | AP97: =+AP14+AP23+AP27+AP51+AP59+AP96 -> 80596869.25 | AQ97: 67363363.05 | AR97: 64496982.15 | AS97: 56040870.55 | AT97: 68380163.42 | AU97: 63388975.41
B98: Line 3 | C98: Operating Expenses
A100: %,V5010000 | B100: 5010000 | C100: Fuel | F100: 523739.1 | G100: 438840.56 | H100: =+F100-G100 -> 84898.54 | I100: =IF(G100<0,IF(H100=0,0,IF(OR(G100=0,F100=0),"N.M.",IF(ABS(H100/G100)>=10,"N.M.",H100/(-G100)))),IF(H100=0,0,IF(OR(G100=0,F100=0),"N.M.",IF(ABS(H100/G100)>=10,"N.M.",H100/G100)))) -> 0.1934610146 | K100: 3131516.11 | L100: 4099683.87 | M100: =+K100-L100 -> -968167.76 | N100: =IF(L100<0,IF(M100=0,0,IF(OR(L100=0,K100=0),"N.M.",IF(ABS(M100/L100)>=10,"N.M.",M100/(-L100)))),IF(M100=0,0,IF(OR(L100=0,K100=0),"N.M.",IF(ABS(M100/L100)>=10,"N.M.",M100/L100)))) -> -0.2361566869 | Q100: 1689503.55 | R100: 1397412.57 | S100: =+Q100-R100 -> 292090.98 | T100: =IF(R100<0,IF(S100=0,0,IF(OR(R100=0,Q100=0),"N.M.",IF(ABS(S100/R100)>=10,"N.M.",S100/(-R100)))),IF(S100=0,0,IF(OR(R100=0,Q100=0),"N.M.",IF(ABS(S100/R100)>=10,"N.M.",S100/R100)))) -> 0.2090227226 | V100: 6782297.75 | W100: 7373288.13 | X100: =+V100-W100 -> -590990.38 | Y100: =IF(W100<0,IF(X100=0,0,IF(OR(W100=0,V100=0),"N.M.",IF(ABS(X100/W100)>=10,"N.M.",X100/(-W100)))),IF(X100=0,0,IF(OR(W100=0,V100=0),"N.M.",IF(ABS(X100/W100)>=10,"N.M.",X100/W100)))) -> -0.08015289374 | AA100: 468044.21 | AC100: 618298.26 | AD100: 692259.2 | AE100: 1391713.84 | AF100: 422235.9 | AG100: 536336.11 | AH100: 438840.56 | AI100: 671120.34 | AJ100: 615530.47 | AK100: 667204.1 | AL100: 534269.35 | AM100: 469001.09 | AN100: 693656.29 | AP100: 355395.69 | AQ100: 676522.13 | AR100: 410094.74 | AS100: 589775.53 | AT100: 575988.92 | AU100: 523739.1
A101: %,V5010001 | B101: 5010001 | C101: Fuel Consumed | F101: 4070848.44 | G101: 5465171.12 | H101: -1394322.68 | I101: -0.2551288239 | K101: 30111505.26 | L101: 28988957.97 | M101: 1122547.29 | N101: 0.0387232715 | Q101: 10520090.72 | R101: 11994024.05 | S101: -1473933.33 | T101: -0.1228889757 | V101: 75432287.23 | W101: 72898701.36 | X101: 2533585.87 | Y101: 0.03475488346 | AA101: 10015105.62 | AC101: 12290393.29 | AD101: 3464421.5 | AE101: 1240119.13 | AF101: 5166295.41 | AG101: 1362557.52 | AH101: 5465171.12 | AI101: 9639698.94 | AJ101: 7211243.8 | AK101: 2473641.01 | AL101: 9776000.93 | AM101: 8735699.02 | AN101: 7484498.27 | AP101: 9351907.34 | AQ101: 7322476.54 | AR101: 2917030.66 | AS101: 3523402.44 | AT101: 2925839.84 | AU101: 4070848.44
A102: %,V5010003 | B102: 5010003 | C102: Fuel - Procure Unload & Handle | F102: 369120.61 | G102: 500918.55 | H102: -131797.94 | I102: -0.263112516 | K102: 1773107.11 | L102: 1749200.13 | M102: 23906.98 | N102: 0.01366737836 | Q102: 755364.45 | R102: 890622.49 | S102: -135258.04 | T102: -0.1518691045 | V102: 4095539.11 | W102: 3804662.46 | X102: 290876.65 | Y102: 0.07645268222 | AA102: 482065.47 | AC102: 617385.32 | AD102: 176267.9 | AE102: 64924.42 | AF102: 309300.95 | AG102: 80402.99 | AH102: 500918.55 | AI102: 519917.36 | AJ102: 387404.5 | AK102: 132593.12 | AL102: 464300.85 | AM102: 429668.03 | AN102: 388548.14 | AP102: 475199.31 | AQ102: 378748.5 | AR102: 163794.85 | AS102: 204531.57 | AT102: 181712.27 | AU102: 369120.61
A103: %,V5010005 | B103: 5010005 | C103: Fuel - Deferred | F103: 3211356.809 | G103: -3340582.92 | H103: 6551939.729 | I103: 1.961316299 | K103: 3635723.411 | L103: 1555354.3 | M103: 2080369.111 | N103: 1.337553194 | Q103: 13528402.91 | R103: 2122048.909 | S103: 11406354 | T103: 5.375160749 | V103: 7217515.944 | W103: -267358.96 | X103: 7484874.904 | Y103: N.M. | AA103: -1673812.24 | AC103: -5123318.9 | AD103: 2751467.731 | AE103: 1805156.56 | AF103: 1044760.324 | AG103: 4417871.505 | AH103: -3340582.92 | AI103: -1315935.06 | AJ103: 6623129 | AK103: 802175.391 | AL103: -4067343.391 | AM103: 2201282 | AN103: -661515.407 | AP103: -18012455.37 | AQ103: -298532.515 | AR103: 8418308.386 | AS103: 1602469.104 | AT103: 8714577 | AU103: 3211356.809
A104: %,V5010012 | B104: 5010012 | C104: Ash Sales Proceeds | F104: 789.28 | G104: -1796.76 | H104: 2586.04 | I104: 1.439279592 | K104: 3607.35 | L104: 1958.46 | M104: 1648.89 | N104: 0.8419319261 | Q104: 1810.86 | R104: -1376.5 | S104: 3187.36 | T104: 2.315553941 | V104: 8923.83 | W104: 12268.57 | X104: -3344.74 | Y104: -0.2726267201 | AA104: 1236.31 | AC104: 992.95 | AD104: 2082.52 | AE104: 259.49 | AF104: -1356.98 | AG104: 1777.24 | AH104: -1796.76 | AI104: 1061.09 | AJ104: 489.78 | AK104: 719.77 | AL104: 880.4 | AM104: 916.08 | AN104: 1249.36 | AP104: 951.45 | AQ104: 397.78 | AR104: 447.26 | AS104: 424.81 | AT104: 596.77 | AU104: 789.28
A105: %,V5010013 | B105: 5010013 | C105: Fuel Survey Activity | F105: 2019976.75 | G105: 4136038.43 | H105: -2116061.68 | I105: -0.5116155751 | K105: 2019976.75 | L105: 4136038.43 | M105: -2116061.68 | N105: -0.5116155751 | Q105: 2019976.75 | R105: 4136038.43 | S105: -2116061.68 | T105: -0.5116155751 | V105: 1790471.45 | W105: 4136038.43 | X105: -2345566.98 | Y105: -0.5671047355 | AA105: 0 | AC105: 0 | AD105: 0 | AE105: 0 | AF105: 0 | AG105: 0 | AH105: 4136038.43 | AI105: 0 | AJ105: 0 | AK105: 0 | AL105: 0 | AM105: -229505.3 | AN105: 0 | AP105: 0 | AQ105: 0 | AR105: 0 | AS105: 0 | AT105: 0 | AU105: 2019976.75
A106: %,V5010019 | B106: 5010019 | C106: Fuel Oil Consumed | F106: 953718.64 | G106: 1026257.44 | H106: -72538.8 | I106: -0.07068284932 | K106: 3132568.8 | L106: 2389555.58 | M106: 743013.22 | N106: 0.3109420121 | Q106: 2292899.62 | R106: 1283557.56 | S106: 1009342.06 | T106: 0.7863629115 | V106: 4881341.3 | W106: 4306433.5 | X106: 574907.8 | Y106: 0.133499751 | AA106: 159819.37 | AC106: 170057.37 | AD106: 269009.72 | AE106: 666930.93 | AF106: 96647.53 | AG106: 160652.59 | AH106: 1026257.44 | AI106: 310596.72 | AJ106: 229206.49 | AK106: 191928.15 | AL106: 299158.57 | AM106: 295059.16 | AN106: 422823.41 | AP106: 340798.73 | AQ106: 199795.38 | AR106: 299075.07 | AS106: 289928.46 | AT106: 1049252.52 | AU106: 953718.64
A107: %,V5010020 | B107: 5010020 | C107: Nat Gas Consumed Steam | F107: 2695738.82 | G107: 3625585.34 | H107: -929846.52 | I107: -0.2564679721 | K107: 26607729.1 | L107: 20948927.28 | M107: 5658801.82 | N107: 0.2701237034 | Q107: 6177446.99 | R107: 8035922.82 | S107: -1858475.83 | T107: -0.2312709905 | V107: 44534997.75 | W107: 31582773.46 | X107: 12952224.29 | Y107: 0.4101040812 | AA107: 3177051.68 | AC107: 4815547.63 | AD107: 5005197.61 | AE107: 3092259.22 | AF107: 1956384.15 | AG107: 2453953.33 | AH107: 3625585.34 | AI107: 4467847.34 | AJ107: 3920242.98 | AK107: 1578750.06 | AL107: 10346.29 | AM107: 3365399.16 | AN107: 4584682.82 | AP107: 7261725.14 | AQ107: 8840767.36 | AR107: 4327789.61 | AS107: 1416565.56 | AT107: 2065142.61 | AU107: 2695738.82
A108: %,V5010021 | B108: 5010021 | C108: Transp Gas Consumed Steam | F108: 26793.66 | G108: 86157.96 | H108: -59364.3 | I108: -0.6890170102 | K108: 269749.79 | L108: 280191.31 | M108: -10441.52 | N108: -0.03726568108 | Q108: 92616.18 | R108: 171145.92 | S108: -78529.74 | T108: -0.4588466964 | V108: 490330.77 | W108: 387422.67 | X108: 102908.1 | Y108: 0.2656222983 | AA108: -40356.87 | AC108: 27014.1 | AD108: 40059.22 | AE108: 41972.07 | AF108: 44452.54 | AG108: 40535.42 | AH108: 86157.96 | AI108: 34941.63 | AJ108: 55139.12 | AK108: 69469.33 | AL108: 105032.69 | AM108: -75991.46 | AN108: 31989.67 | AP108: 70462.15 | AQ108: 48177.21 | AR108: 58494.25 | AS108: 51176.2 | AT108: 14646.32 | AU108: 26793.66
A109: %,V5010027 | B109: 5010027 | C109: Gypsum handling/disposal costs | F109: 118418.89 | G109: 119621.95 | H109: -1203.06 | I109: -0.01005718432 | K109: 791622.73 | L109: 645973.99 | M109: 145648.74 | N109: 0.225471524 | Q109: 363936.37 | R109: 278311.02 | S109: 85625.35 | T109: 0.3076606525 | V109: 1537996.39 | W109: 1355179.5 | X109: 182816.89 | Y109: 0.1349023432 | AA109: 127705.35 | AC109: 65968.69 | AD109: 149021.03 | AE109: 152673.25 | AF109: 106262.46 | AG109: 52426.61 | AH109: 119621.95 | AI109: 123628.91 | AJ109: 175772.97 | AK109: 91408.13 | AL109: 136617.8 | AM109: 102005.9 | AN109: 116939.95 | AP109: 79813.95 | AQ109: 147777.64 | AR109: 200094.77 | AS109: 134774.73 | AT109: 110742.75 | AU109: 118418.89
A110: %,V5010028 | B110: 5010028 | C110: Gypsum Sales Proceeds | F110: -24552.9 | G110: -57542.76 | H110: 32989.86 | I110: 0.5733103522 | K110: -496616.48 | L110: -609206.72 | M110: 112590.24 | N110: 0.1848145076 | Q110: -138566.82 | R110: -209761.13 | S110: 71194.31 | T110: 0.3394065907 | V110: -1109851.93 | W110: -1225360.95 | X110: 115509.02 | Y110: 0.09426530199 | AA110: -90075.39 | AC110: -242087.17 | AD110: -120703.2 | AE110: -36655.22 | AF110: -55250.53 | AG110: -96967.84 | AH110: -57542.76 | AI110: -90539.53 | AJ110: -126577.74 | AK110: -116907.68 | AL110: -100916.97 | AM110: 0 | AN110: -178293.53 | AP110: -85142.33 | AQ110: -74338.35 | AR110: -198568.98 | AS110: -69247.85 | AT110: -44766.07 | AU110: -24552.9
A111: %,V5010033 | B111: 5010033 | C111: Coal Procurement Sales Net-NA | F111: 0 | G111: 0 | H111: 0 | I111: 0 | K111: 281689.3 | L111: 0 | M111: 281689.3 | N111: N.M. | Q111: 150302.14 | R111: 0 | S111: 150302.14 | T111: N.M. | V111: 281689.3 | W111: 0 | X111: 281689.3 | Y111: N.M. | AA111: 0 | AC111: 0 | AD111: 0 | AE111: 0 | AF111: 0 | AG111: 0 | AH111: 0 | AI111: 0 | AJ111: 0 | AK111: 0 | AL111: 0 | AM111: 0 | AN111: 0 | AP111: 0 | AQ111: 0 | AR111: 131387.16 | AS111: 150302.14 | AT111: 0 | AU111: 0
A112: %,V5010034 | B112: 5010034 | C112: Gas Transp Res Fees-Steam | F112: 488447.28 | G112: 487940.4 | H112: 506.88 | I112: 0.001038815396 | K112: 2950274.16 | L112: 3097248.48 | M112: -146974.32 | N112: -0.04745318981 | Q112: 1481258.16 | R112: 1481684.4 | S112: -426.24 | T112: -0.0002876725975 | V112: 5956231.74 | W112: 6185840.6 | X112: -229608.86 | Y112: -0.03711845727 | AA112: 461278.8 | AC112: 554413.68 | AD112: 508975.2 | AE112: 552175.2 | AF112: 537775.2 | AG112: 455968.8 | AH112: 487940.4 | AI112: 503208 | AJ112: 503204.39 | AK112: 488804.4 | AL112: 503208 | AM112: 488804.4 | AN112: 518728.39 | AP112: 504504 | AQ112: 460656 | AR112: 503856 | AS112: 489451.68 | AT112: 503359.2 | AU112: 488447.28
A113: %,V5010040 | B113: 5010040 | C113: Gas Procuremnt Sales Net | F113: -4024.51 | G113: -0.045 | H113: -4024.465 | I113: N.M. | K113: 119105.71 | L113: 237983.675 | M113: -118877.965 | N113: -0.4995215113 | Q113: 119105.58 | R113: -215304.515 | S113: 334410.095 | T113: 1.553195923 | V113: 505413.935 | W113: 1796089.295 | X113: -1290675.36 | Y113: -0.7186031138 | AA113: 0.21 | AC113: 122978.916 | AD113: 172291.543 | AE113: 158017.731 | AF113: -219487.01 | AG113: 4182.54 | AH113: -0.045 | AI113: 0.075 | AJ113: -0.11 | AK113: 109220.12 | AL113: 312992.9 | AM113: -35903.75 | AN113: -1.01 | AP113: 0.02 | AQ113: -0.18 | AR113: 0.29 | AS113: 150274.98 | AT113: -27144.89 | AU113: -4024.51
A114: %,FACCOUNT,TGL_FERC_ACCT,XDYYNNY01,N5010 | C114: Fuel Expense | F114: 14450370.87 | G114: 12486609.27 | H114: 1963761.604 | I114: 0.1572694046 | K114: 74331559.1 | L114: 67521866.75 | M114: 6809692.346 | N114: 0.10085166 | Q114: 39054147.46 | R114: 31364326.02 | S114: 7689821.439 | T114: 0.2451773213 | V114: 152405184.6 | W114: 132345978.1 | X114: 20059206.5 | Y114: 0.1515664231 | AA114: 13088062.52 | AC114: 13917644.14 | AD114: 13110349.97 | AE114: 9129546.621 | AF114: 9408019.944 | AG114: 9469696.815 | AH114: 12486609.27 | AI114: 14865545.81 | AJ114: 19594785.65 | AK114: 6489005.901 | AL114: 7974547.419 | AM114: 15746434.33 | AN114: 13403306.35 | AP114: 343160.077 | AQ114: 17702447.5 | AR114: 17231804.07 | AS114: 8533829.354 | AT114: 16069947.24 | AU114: 14450370.87
A116: %,V5000000 | B116: 5000000 | C116: Oper Supervision & Engineering | F116: 370425.13 | G116: 340471.02 | H116: =+F116-G116 -> 29954.11 | I116: =IF(G116<0,IF(H116=0,0,IF(OR(G116=0,F116=0),"N.M.",IF(ABS(H116/G116)>=10,"N.M.",H116/(-G116)))),IF(H116=0,0,IF(OR(G116=0,F116=0),"N.M.",IF(ABS(H116/G116)>=10,"N.M.",H116/G116)))) -> 0.08797844234 | K116: 2287064.52 | L116: 1951709.91 | M116: =+K116-L116 -> 335354.61 | N116: =IF(L116<0,IF(M116=0,0,IF(OR(L116=0,K116=0),"N.M.",IF(ABS(M116/L116)>=10,"N.M.",M116/(-L116)))),IF(M116=0,0,IF(OR(L116=0,K116=0),"N.M.",IF(ABS(M116/L116)>=10,"N.M.",M116/L116)))) -> 0.1718260528 | Q116: 1095506.19 | R116: 964221.19 | S116: =+Q116-R116 -> 131285 | T116: =IF(R116<0,IF(S116=0,0,IF(OR(R116=0,Q116=0),"N.M.",IF(ABS(S116/R116)>=10,"N.M.",S116/(-R116)))),IF(S116=0,0,IF(OR(R116=0,Q116=0),"N.M.",IF(ABS(S116/R116)>=10,"N.M.",S116/R116)))) -> 0.1361565182 | V116: 4838427.2 | W116: 4041549.7 | X116: =+V116-W116 -> 796877.5 | Y116: =IF(W116<0,IF(X116=0,0,IF(OR(W116=0,V116=0),"N.M.",IF(ABS(X116/W116)>=10,"N.M.",X116/(-W116)))),IF(X116=0,0,IF(OR(W116=0,V116=0),"N.M.",IF(ABS(X116/W116)>=10,"N.M.",X116/W116)))) -> 0.1971712732 | AA116: 327253.38 | AC116: 336540.33 | AD116: 344075.13 | AE116: 306873.26 | AF116: 318921.29 | AG116: 304828.88 | AH116: 340471.02 | AI116: 441077.5 | AJ116: 405316.32 | AK116: 374330.16 | AL116: 366881.03 | AM116: 428464.07 | AN116: 535293.6 | AP116: 375740.17 | AQ116: 396945.03 | AR116: 418873.13 | AS116: 336128.68 | AT116: 388952.38 | AU116: 370425.13
A117: %,V5000002 | B117: 5000002 | C117: Dresden Oper Supervision & Eng | F117: 0 | G117: 0 | H117: 0 | I117: 0 | K117: 0 | L117: 0 | M117: 0 | N117: 0 | Q117: 0 | R117: 0 | S117: 0 | T117: 0 | V117: -33.12 | W117: 0 | X117: -33.12 | Y117: N.M. | AA117: 0 | AC117: 0 | AD117: 0 | AE117: 0 | AF117: 0 | AG117: 0 | AH117: 0 | AI117: 0 | AJ117: 0 | AK117: 0 | AL117: 0 | AM117: 41.08 | AN117: -74.2 | AP117: 0 | AQ117: 0 | AR117: 0 | AS117: 0 | AT117: 0 | AU117: 0
A118: %,V5000003 | B118: 5000003 | C118: Cnstr Srchrge Op Sup & Eng Exp | F118: 0 | G118: 0 | H118: 0 | I118: 0 | K118: 0 | L118: 0 | M118: 0 | N118: 0 | Q118: 0 | R118: 0 | S118: 0 | T118: 0 | V118: 64.34 | W118: 0 | X118: 64.34 | Y118: N.M. | AA118: 0 | AC118: 0 | AD118: 0 | AE118: 0 | AF118: 0 | AG118: 0 | AH118: 0 | AI118: 0 | AJ118: 64.34 | AK118: 0 | AL118: 0 | AM118: 0 | AN118: 0 | AP118: 0 | AQ118: 0 | AR118: 0 | AS118: 0 | AT118: 0 | AU118: 0
A119: %,V5020000 | B119: 5020000 | C119: Steam Expenses | F119: 166389.81 | G119: 161081.79 | H119: 5308.02 | I119: 0.03295232813 | K119: 1004301.07 | L119: 987585.79 | M119: 16715.28 | N119: 0.01692539541 | Q119: 470536.32 | R119: 492009.93 | S119: -21473.61 | T119: -0.0436446679 | V119: 2033152.61 | W119: 1697129.64 | X119: 336022.97 | Y119: 0.1979948745 | AA119: 102563.19 | AC119: 263752.04 | AD119: 99111.26 | AE119: 132712.56 | AF119: 183480.07 | AG119: 147448.07 | AH119: 161081.79 | AI119: 202681.56 | AJ119: 163552.9 | AK119: 154617.86 | AL119: 168965.39 | AM119: 104244.74 | AN119: 234789.09 | AP119: 150342.07 | AQ119: 190864.22 | AR119: 192558.46 | AS119: 143316.68 | AT119: 160829.83 | AU119: 166389.81
A120: %,V5020002 | B120: 5020002 | C120: Urea Expense | F120: 56908.78 | G120: 82902.21 | H120: -25993.43 | I120: -0.3135432698 | K120: 407494.67 | L120: 390980.68 | M120: 16513.99 | N120: 0.04223735556 | Q120: 110708.06 | R120: 157744.72 | S120: -47036.66 | T120: -0.2981821515 | V120: 931003.57 | W120: 1002768.23 | X120: -71764.66 | Y120: -0.07156654734 | AA120: 158103.85 | AC120: 178812.53 | AD120: 40869.72 | AE120: 13553.71 | AF120: 73029.31 | AG120: 1813.2 | AH120: 82902.21 | AI120: 89646.41 | AJ120: 88624.99 | AK120: 22135.35 | AL120: 137585.53 | AM120: 82892.35 | AN120: 102624.27 | AP120: 140342.57 | AQ120: 104775.44 | AR120: 51668.6 | AS120: 53168.22 | AT120: 631.06 | AU120: 56908.78
A121: %,V5020004 | B121: 5020004 | C121: Lime-Related Expenses | F121: 202655.83 | G121: 92368.08 | H121: 110287.75 | I121: 1.194002842 | K121: 1108790.46 | L121: 780669.01 | M121: 328121.45 | N121: 0.4203080253 | Q121: 426005.4 | R121: 350614.95 | S121: 75390.45 | T121: 0.2150234894 | V121: 2738154.75 | W121: 2180933.43 | X121: 557221.32 | Y121: 0.2554967118 | AA121: 320071.87 | AC121: 293674.01 | AD121: 108042.89 | AE121: 28337.16 | AF121: 201531.73 | AG121: 56715.14 | AH121: 92368.08 | AI121: 379391.47 | AJ121: 285011.39 | AK121: 73936.82 | AL121: 358832.84 | AM121: 260340.62 | AN121: 271851.15 | AP121: 321910.22 | AQ121: 242251.29 | AR121: 118623.55 | AS121: 112931.6 | AT121: 110417.97 | AU121: 202655.83
A122: %,V5050000 | B122: 5050000 | C122: Electric Expenses | F122: 1727.81 | G122: 13658.29 | H122: -11930.48 | I122: -0.8734973412 | K122: 32761.35 | L122: 39587.04 | M122: -6825.69 | N122: -0.1724223382 | Q122: 18048.22 | R122: 36774.96 | S122: -18726.74 | T122: -0.509225299 | V122: 68217.7 | W122: 65726.21 | X122: 2491.49 | Y122: 0.03790709977 | AA122: -773.37 | AC122: 1444.38 | AD122: -433.93 | AE122: 1801.63 | AF122: 16578.74 | AG122: 6537.93 | AH122: 13658.29 | AI122: 6851.37 | AJ122: 12544.92 | AK122: 4144.83 | AL122: 4963.2 | AM122: 4182.45 | AN122: 2769.58 | AP122: 6141.83 | AQ122: 1143.4 | AR122: 7427.9 | AS122: 14860.84 | AT122: 1459.57 | AU122: 1727.81
A123: %,V5060000 | B123: 5060000 | C123: Misc Steam Power Expenses | F123: 462090.4 | G123: 412492.9 | H123: 49597.5 | I123: 0.1202384332 | K123: 2914752.76 | L123: 2393523.596 | M123: 521229.164 | N123: 0.2177664615 | Q123: 1333971.94 | R123: 1241600.27 | S123: 92371.67 | T123: 0.07439726958 | V123: 5530900.59 | W123: 4958181.756 | X123: 572718.834 | Y123: 0.1155098506 | AA123: 444638.68 | AC123: 417841.51 | AD123: 352355.376 | AE123: 381726.44 | AF123: 374041.75 | AG123: 455065.62 | AH123: 412492.9 | AI123: 448311.9 | AJ123: 264385.36 | AK123: 343775.758 | AL123: 402701.312 | AM123: 443736.08 | AN123: 713237.42 | AP123: 477295.08 | AQ123: 587253.12 | AR123: 516232.62 | AS123: 438281.02 | AT123: 433600.52 | AU123: 462090.4
A124: %,V5060002 | B124: 5060002 | C124: Misc Steam Power Exp-Assoc | F124: 4071.92 | G124: 3074.38 | H124: 997.54 | I124: 0.3244686734 | K124: 27666.14 | L124: 25593.01 | M124: 2073.13 | N124: 0.08100375845 | Q124: 12789.6 | R124: 11208.78 | S124: 1580.82 | T124: 0.1410340822 | V124: 50072.44 | W124: 50832.15 | X124: -759.71 | Y124: -0.01494546266 | AA124: 5032.84 | AC124: 4967.41 | AD124: 5161.98 | AE124: 4254.84 | AF124: 4662.2 | AG124: 3472.2 | AH124: 3074.38 | AI124: 4032.86 | AJ124: 3702.6 | AK124: 3908.36 | AL124: 3162.2 | AM124: 3688.78 | AN124: 3911.5 | AP124: 4902.78 | AQ124: 4795.7 | AR124: 5178.06 | AS124: 4687.48 | AT124: 4030.2 | AU124: 4071.92
A125: %,V5060011 | B125: 5060011 | C125: BSRR O/U Recovery-Oper Costs | F125: 1779.73 | G125: 0 | H125: 1779.73 | I125: N.M. | K125: 9899.81 | L125: 0 | M125: 9899.81 | N125: N.M. | Q125: 9899.81 | R125: 0 | S125: 9899.81 | T125: N.M. | V125: 9899.81 | W125: 0 | X125: 9899.81 | Y125: N.M. | AA125: 0 | AC125: 0 | AD125: 0 | AE125: 0 | AF125: 0 | AG125: 0 | AH125: 0 | AI125: 0 | AJ125: 0 | AK125: 0 | AL125: 0 | AM125: 0 | AN125: 0 | AP125: 0 | AQ125: 0 | AR125: 0 | AS125: 6157.14 | AT125: 1962.94 | AU125: 1779.73
A126: %,V5070006 | B126: 5070006 | C126: Rents - Associated | F126: 127.56 | G126: 193.17 | H126: -65.61 | I126: -0.3396490138 | K126: 765.35 | L126: 1159.02 | M126: -393.67 | N126: -0.3396576418 | Q126: 382.68 | R126: 579.51 | S126: -196.83 | T126: -0.3396490138 | V126: 1924.37 | W126: 1159.02 | X126: 765.35 | Y126: 0.6603423582 | AA126: 0 | AC126: 193.17 | AD126: 193.17 | AE126: 193.17 | AF126: 193.17 | AG126: 193.17 | AH126: 193.17 | AI126: 193.17 | AJ126: 193.17 | AK126: 193.17 | AL126: 193.17 | AM126: 193.17 | AN126: 193.17 | AP126: 122.25 | AQ126: 131.83 | AR126: 128.59 | AS126: 127.56 | AT126: 127.56 | AU126: 127.56
A127: %,V5090000 | B127: 5090000 | C127: Allow Consum Title IV SO2 | F127: 2859.33 | G127: 1321.84 | H127: 1537.49 | I127: 1.1631438 | K127: 8772.35 | L127: 7860.93 | M127: 911.42 | N127: 0.1159430246 | Q127: 5478.42 | R127: 2605.91 | S127: 2872.51 | T127: 1.102305912 | V127: 17609.82 | W127: 33077.77 | X127: -15467.95 | Y127: -0.4676237243 | AA127: 3197.64 | AC127: 2913.47 | AD127: 2114.95 | AE127: 226.6 | AF127: 944.17 | AG127: 339.9 | AH127: 1321.84 | AI127: 2266.02 | AJ127: 1548.45 | AK127: 566.51 | AL127: 1737.28 | AM127: 1586.21 | AN127: 1133 | AP127: 1805.04 | AQ127: 958 | AR127: 530.89 | AS127: 1557.29 | AT127: 1061.8 | AU127: 2859.33
A128: %,V5090001 | B128: 5090001 | C128: Allowance Consumption - NOx | F128: -24634.08 | G128: 0 | H128: -24634.08 | I128: N.M. | K128: -39768.74 | L128: 0 | M128: -39768.74 | N128: N.M. | Q128: -39768.74 | R128: 0 | S128: -39768.74 | T128: N.M. | V128: -196911.6 | W128: 42857.15 | X128: -239768.75 | Y128: -5.594603234 | AA128: 0 | AC128: 0 | AD128: 0 | AE128: 0 | AF128: 0 | AG128: 0 | AH128: 0 | AI128: 0 | AJ128: 0 | AK128: -157142.86 | AL128: 0 | AM128: 0 | AN128: 0 | AP128: 0 | AQ128: 0 | AR128: 0 | AS128: 0 | AT128: -15134.66 | AU128: -24634.08
A129: %,V5090009 | B129: 5090009 | C129: Allow Consumpt CSAPR SO2 | F129: 14.25 | G129: 6.46 | H129: 7.79 | I129: 1.205882353 | K129: 43.25 | L129: 38.4 | M129: 4.85 | N129: 0.1263020833 | Q129: 27.1 | R129: 12.74 | S129: 14.36 | T129: 1.127158556 | V129: 85.87 | W129: 159.26 | X129: -73.39 | Y129: -0.4608187869 | AA129: 15.32 | AC129: 14.22 | AD129: 10.33 | AE129: 1.11 | AF129: 4.62 | AG129: 1.66 | AH129: 6.46 | AI129: 10.93 | AJ129: 7.46 | AK129: 2.73 | AL129: 8.38 | AM129: 7.65 | AN129: 5.47 | AP129: 8.86 | AQ129: 4.69 | AR129: 2.6 | AS129: 7.64 | AT129: 5.21 | AU129: 14.25
A130: %,FACCOUNT,TGL_FERC_ACCT,XDYYNNY01,N500-509_EXC_501 | C130: Steam Power Operations | F130: 1244416.47 | G130: 1107570.14 | H130: 136846.33 | I130: 0.1235554527 | K130: 7762542.99 | L130: 6578707.386 | M130: 1183835.604 | N130: 0.1799495759 | Q130: 3443585 | R130: 3257372.96 | S130: 186212.04 | T130: 0.05716632461 | V130: 16022568.35 | W130: 14074374.32 | X130: 1948194.034 | Y130: 0.13842136 | AA130: 1360103.4 | AC130: 1500153.07 | AD130: 951500.876 | AE130: 869680.48 | AF130: 1173387.05 | AG130: 976415.77 | AH130: 1107570.14 | AI130: 1574463.19 | AJ130: 1224951.9 | AK130: 820468.688 | AL130: 1445030.332 | AM130: 1329377.2 | AN130: 1865734.05 | AP130: 1478610.87 | AQ130: 1529122.72 | AR130: 1311224.4 | AS130: 1111224.15 | AT130: 1087944.38 | AU130: 1244416.47
A132: %,FACCOUNT,TGL_FERC_ACCT,XDYYNNY01,N517-525 | C132: Nuclear Power Operations | F132: 0 | G132: 0 | H132: =+F132-G132 -> 0 | I132: =IF(G132<0,IF(H132=0,0,IF(OR(G132=0,F132=0),"N.M.",IF(ABS(H132/G132)>=10,"N.M.",H132/(-G132)))),IF(H132=0,0,IF(OR(G132=0,F132=0),"N.M.",IF(ABS(H132/G132)>=10,"N.M.",H132/G132)))) -> 0 | K132: 0 | L132: 0 | M132: =+K132-L132 -> 0 | N132: =IF(L132<0,IF(M132=0,0,IF(OR(L132=0,K132=0),"N.M.",IF(ABS(M132/L132)>=10,"N.M.",M132/(-L132)))),IF(M132=0,0,IF(OR(L132=0,K132=0),"N.M.",IF(ABS(M132/L132)>=10,"N.M.",M132/L132)))) -> 0 | Q132: 0 | R132: 0 | S132: =+Q132-R132 -> 0 | T132: =IF(R132<0,IF(S132=0,0,IF(OR(R132=0,Q132=0),"N.M.",IF(ABS(S132/R132)>=10,"N.M.",S132/(-R132)))),IF(S132=0,0,IF(OR(R132=0,Q132=0),"N.M.",IF(ABS(S132/R132)>=10,"N.M.",S132/R132)))) -> 0 | V132: 0 | W132: 0 | X132: =+V132-W132 -> 0 | Y132: =IF(W132<0,IF(X132=0,0,IF(OR(W132=0,V132=0),"N.M.",IF(ABS(X132/W132)>=10,"N.M.",X132/(-W132)))),IF(X132=0,0,IF(OR(W132=0,V132=0),"N.M.",IF(ABS(X132/W132)>=10,"N.M.",X132/W132)))) -> 0 | AA132: 0 | AC132: 0 | AD132: 0 | AE132: 0 | AF132: 0 | AG132: 0 | AH132: 0 | AI132: 0 | AJ132: 0 | AK132: 0 | AL132: 0 | AM132: 0 | AN132: 0 | AP132: 0 | AQ132: 0 | AR132: 0 | AS132: 0 | AT132: 0 | AU132: 0
A134: %,FACCOUNT,TGL_FERC_ACCT,XDYYNNY01,N535-540 | C134: Hydraulic Power Operations | F134: 0 | G134: 0 | H134: =+F134-G134 -> 0 | I134: =IF(G134<0,IF(H134=0,0,IF(OR(G134=0,F134=0),"N.M.",IF(ABS(H134/G134)>=10,"N.M.",H134/(-G134)))),IF(H134=0,0,IF(OR(G134=0,F134=0),"N.M.",IF(ABS(H134/G134)>=10,"N.M.",H134/G134)))) -> 0 | K134: 0 | L134: 0 | M134: =+K134-L134 -> 0 | N134: =IF(L134<0,IF(M134=0,0,IF(OR(L134=0,K134=0),"N.M.",IF(ABS(M134/L134)>=10,"N.M.",M134/(-L134)))),IF(M134=0,0,IF(OR(L134=0,K134=0),"N.M.",IF(ABS(M134/L134)>=10,"N.M.",M134/L134)))) -> 0 | Q134: 0 | R134: 0 | S134: =+Q134-R134 -> 0 | T134: =IF(R134<0,IF(S134=0,0,IF(OR(R134=0,Q134=0),"N.M.",IF(ABS(S134/R134)>=10,"N.M.",S134/(-R134)))),IF(S134=0,0,IF(OR(R134=0,Q134=0),"N.M.",IF(ABS(S134/R134)>=10,"N.M.",S134/R134)))) -> 0 | V134: 0 | W134: 0 | X134: =+V134-W134 -> 0 | Y134: =IF(W134<0,IF(X134=0,0,IF(OR(W134=0,V134=0),"N.M.",IF(ABS(X134/W134)>=10,"N.M.",X134/(-W134)))),IF(X134=0,0,IF(OR(W134=0,V134=0),"N.M.",IF(ABS(X134/W134)>=10,"N.M.",X134/W134)))) -> 0 | AA134: 0 | AC134: 0 | AD134: 0 | AE134: 0 | AF134: 0 | AG134: 0 | AH134: 0 | AI134: 0 | AJ134: 0 | AK134: 0 | AL134: 0 | AM134: 0 | AN134: 0 | AP134: 0 | AQ134: 0 | AR134: 0 | AS134: 0 | AT134: 0 | AU134: 0
A136: %,V5490000 | B136: 5490000 | C136: Misc Other Pwer Generation Exp | F136: 0 | G136: 0 | H136: =+F136-G136 -> 0 | I136: =IF(G136<0,IF(H136=0,0,IF(OR(G136=0,F136=0),"N.M.",IF(ABS(H136/G136)>=10,"N.M.",H136/(-G136)))),IF(H136=0,0,IF(OR(G136=0,F136=0),"N.M.",IF(ABS(H136/G136)>=10,"N.M.",H136/G136)))) -> 0 | K136: 0 | L136: 0 | M136: =+K136-L136 -> 0 | N136: =IF(L136<0,IF(M136=0,0,IF(OR(L136=0,K136=0),"N.M.",IF(ABS(M136/L136)>=10,"N.M.",M136/(-L136)))),IF(M136=0,0,IF(OR(L136=0,K136=0),"N.M.",IF(ABS(M136/L136)>=10,"N.M.",M136/L136)))) -> 0 | Q136: 0 | R136: 0 | S136: =+Q136-R136 -> 0 | T136: =IF(R136<0,IF(S136=0,0,IF(OR(R136=0,Q136=0),"N.M.",IF(ABS(S136/R136)>=10,"N.M.",S136/(-R136)))),IF(S136=0,0,IF(OR(R136=0,Q136=0),"N.M.",IF(ABS(S136/R136)>=10,"N.M.",S136/R136)))) -> 0 | V136: 0.01 | W136: 0 | X136: =+V136-W136 -> 0.01 | Y136: =IF(W136<0,IF(X136=0,0,IF(OR(W136=0,V136=0),"N.M.",IF(ABS(X136/W136)>=10,"N.M.",X136/(-W136)))),IF(X136=0,0,IF(OR(W136=0,V136=0),"N.M.",IF(ABS(X136/W136)>=10,"N.M.",X136/W136)))) -> N.M. | AA136: 0 | AC136: 0 | AD136: 0 | AE136: 0 | AF136: 0 | AG136: 0 | AH136: 0 | AI136: 0 | AJ136: 0 | AK136: 0.01 | AL136: 0 | AM136: 0 | AN136: 0 | AP136: 0 | AQ136: 0 | AR136: 0 | AS136: 0 | AT136: 0 | AU136: 0
A137: %,V8140000 | B137: 8140000 | C137: Underground Storage Expenses | F137: 0 | G137: 0 | H137: =+F137-G137 -> 0 | I137: =IF(G137<0,IF(H137=0,0,IF(OR(G137=0,F137=0),"N.M.",IF(ABS(H137/G137)>=10,"N.M.",H137/(-G137)))),IF(H137=0,0,IF(OR(G137=0,F137=0),"N.M.",IF(ABS(H137/G137)>=10,"N.M.",H137/G137)))) -> 0 | K137: 0 | L137: 0 | M137: =+K137-L137 -> 0 | N137: =IF(L137<0,IF(M137=0,0,IF(OR(L137=0,K137=0),"N.M.",IF(ABS(M137/L137)>=10,"N.M.",M137/(-L137)))),IF(M137=0,0,IF(OR(L137=0,K137=0),"N.M.",IF(ABS(M137/L137)>=10,"N.M.",M137/L137)))) -> 0 | Q137: 0 | R137: 0 | S137: =+Q137-R137 -> 0 | T137: =IF(R137<0,IF(S137=0,0,IF(OR(R137=0,Q137=0),"N.M.",IF(ABS(S137/R137)>=10,"N.M.",S137/(-R137)))),IF(S137=0,0,IF(OR(R137=0,Q137=0),"N.M.",IF(ABS(S137/R137)>=10,"N.M.",S137/R137)))) -> 0 | V137: 0 | W137: 0 | X137: =+V137-W137 -> 0 | Y137: =IF(W137<0,IF(X137=0,0,IF(OR(W137=0,V137=0),"N.M.",IF(ABS(X137/W137)>=10,"N.M.",X137/(-W137)))),IF(X137=0,0,IF(OR(W137=0,V137=0),"N.M.",IF(ABS(X137/W137)>=10,"N.M.",X137/W137)))) -> 0 | AA137: -1637.46 | AC137: 0 | AD137: 0 | AE137: 0 | AF137: 0 | AG137: 0 | AH137: 0 | AI137: 0 | AJ137: 0 | AK137: 0 | AL137: 0 | AM137: 0 | AN137: 0 | AP137: 0 | AQ137: 0 | AR137: 0 | AS137: 0 | AT137: 0 | AU137: 0
A138: %,FACCOUNT,TGL_FERC_ACCT,XDYYNNY01,N546-550 | C138: Other Power Operations | F138: 0 | G138: 0 | H138: =+F138-G138 -> 0 | I138: =IF(G138<0,IF(H138=0,0,IF(OR(G138=0,F138=0),"N.M.",IF(ABS(H138/G138)>=10,"N.M.",H138/(-G138)))),IF(H138=0,0,IF(OR(G138=0,F138=0),"N.M.",IF(ABS(H138/G138)>=10,"N.M.",H138/G138)))) -> 0 | K138: 0 | L138: 0 | M138: =+K138-L138 -> 0 | N138: =IF(L138<0,IF(M138=0,0,IF(OR(L138=0,K138=0),"N.M.",IF(ABS(M138/L138)>=10,"N.M.",M138/(-L138)))),IF(M138=0,0,IF(OR(L138=0,K138=0),"N.M.",IF(ABS(M138/L138)>=10,"N.M.",M138/L138)))) -> 0 | Q138: 0 | R138: 0 | S138: =+Q138-R138 -> 0 | T138: =IF(R138<0,IF(S138=0,0,IF(OR(R138=0,Q138=0),"N.M.",IF(ABS(S138/R138)>=10,"N.M.",S138/(-R138)))),IF(S138=0,0,IF(OR(R138=0,Q138=0),"N.M.",IF(ABS(S138/R138)>=10,"N.M.",S138/R138)))) -> 0 | V138: 0.01 | W138: 0 | X138: =+V138-W138 -> 0.01 | Y138: =IF(W138<0,IF(X138=0,0,IF(OR(W138=0,V138=0),"N.M.",IF(ABS(X138/W138)>=10,"N.M.",X138/(-W138)))),IF(X138=0,0,IF(OR(W138=0,V138=0),"N.M.",IF(ABS(X138/W138)>=10,"N.M.",X138/W138)))) -> N.M. | AA138: -1637.46 | AC138: 0 | AD138: 0 | AE138: 0 | AF138: 0 | AG138: 0 | AH138: 0 | AI138: 0 | AJ138: 0 | AK138: 0.01 | AL138: 0 | AM138: 0 | AN138: 0 | AP138: 0 | AQ138: 0 | AR138: 0 | AS138: 0 | AT138: 0 | AU138: 0
A140: %,V5550001 | B140: 5550001 | C140: Purch Pwr-NonTrading-Nonassoc | F140: 12940602.84 | G140: 6715935.28 | H140: =+F140-G140 -> 6224667.56 | I140: =IF(G140<0,IF(H140=0,0,IF(OR(G140=0,F140=0),"N.M.",IF(ABS(H140/G140)>=10,"N.M.",H140/(-G140)))),IF(H140=0,0,IF(OR(G140=0,F140=0),"N.M.",IF(ABS(H140/G140)>=10,"N.M.",H140/G140)))) -> 0.9268504386 | K140: 76438790.63 | L140: 68678373.62 | M140: =+K140-L140 -> 7760417.01 | N140: =IF(L140<0,IF(M140=0,0,IF(OR(L140=0,K140=0),"N.M.",IF(ABS(M140/L140)>=10,"N.M.",M140/(-L140)))),IF(M140=0,0,IF(OR(L140=0,K140=0),"N.M.",IF(ABS(M140/L140)>=10,"N.M.",M140/L140)))) -> 0.112996517 | Q140: 38815169.99 | R140: 24662942.85 | S140: =+Q140-R140 -> 14152227.14 | T140: =IF(R140<0,IF(S140=0,0,IF(OR(R140=0,Q140=0),"N.M.",IF(ABS(S140/R140)>=10,"N.M.",S140/(-R140)))),IF(S140=0,0,IF(OR(R140=0,Q140=0),"N.M.",IF(ABS(S140/R140)>=10,"N.M.",S140/R140)))) -> 0.573825566 | V140: 120796722.3 | W140: 112345802.7 | X140: =+V140-W140 -> 8450919.56 | Y140: =IF(W140<0,IF(X140=0,0,IF(OR(W140=0,V140=0),"N.M.",IF(ABS(X140/W140)>=10,"N.M.",X140/(-W140)))),IF(X140=0,0,IF(OR(W140=0,V140=0),"N.M.",IF(ABS(X140/W140)>=10,"N.M.",X140/W140)))) -> 0.07522238799 | AA140: 6910226.45 | AC140: 15205502.66 | AD140: 14508733.28 | AE140: 14301194.83 | AF140: 7405117.81 | AG140: 10541889.76 | AH140: 6715935.28 | AI140: 7717470.3 | AJ140: 3967199.65 | AK140: 10258070.89 | AL140: 8213710.37 | AM140: 5071677.35 | AN140: 9129803.07 | AP140: 20913772.49 | AQ140: 7530380.71 | AR140: 9179467.44 | AS140: 11977818.9 | AT140: 13896748.25 | AU140: 12940602.84
A141: %,V5550003 | B141: 5550003 | C141: Purchased Power - Cogeneration | F141: 3941 | G141: 0 | H141: 3941 | I141: N.M. | K141: 3941 | L141: 0 | M141: 3941 | N141: N.M. | Q141: 3941 | R141: 0 | S141: 3941 | T141: N.M. | V141: 3941 | W141: 0 | X141: 3941 | Y141: N.M. | AA141: 0 | AC141: 0 | AD141: 0 | AE141: 0 | AF141: 0 | AG141: 0 | AH141: 0 | AI141: 0 | AJ141: 0 | AK141: 0 | AL141: 0 | AM141: 0 | AN141: 0 | AP141: 0 | AQ141: 0 | AR141: 0 | AS141: 0 | AT141: 0 | AU141: 3941
A142: %,V5550004 | B142: 5550004 | C142: Purchased Power-Pool Capacity | F142: 0 | G142: 0 | H142: 0 | I142: 0 | K142: 158289.38 | L142: 0 | M142: 158289.38 | N142: N.M. | Q142: 63679.78 | R142: 0 | S142: 63679.78 | T142: N.M. | V142: 383250 | W142: 0 | X142: 383250 | Y142: N.M. | AA142: 0 | AC142: 0 | AD142: 0 | AE142: 0 | AF142: 0 | AG142: 0 | AH142: 0 | AI142: 64124.29 | AJ142: 32587.75 | AK142: 31536.54 | AL142: 32587.75 | AM142: 31536.54 | AN142: 32587.75 | AP142: 32587.75 | AQ142: 29434.1 | AR142: 32587.75 | AS142: 31536.54 | AT142: 32143.24 | AU142: 0
A143: %,V5550023 | B143: 5550023 | C143: Purch Power Capacity -NA | F143: 0 | G143: 483018.55 | H143: -483018.55 | I143: N.M. | K143: 0 | L143: 2332542 | M143: -2332542 | N143: N.M. | Q143: 0 | R143: 1727896.68 | S143: -1727896.68 | T143: N.M. | V143: -480389.31 | W143: 3531740.64 | X143: -4012129.95 | Y143: -1.136020552 | AA143: 201548.44 | AC143: 201548.44 | AD143: 201548.44 | AE143: 201548.44 | AF143: 201548.44 | AG143: 1043329.69 | AH143: 483018.55 | AI143: 0 | AJ143: -448262.49 | AK143: 0 | AL143: -32126.82 | AM143: 0 | AN143: 0 | AP143: 0 | AQ143: 0 | AR143: 0 | AS143: 0 | AT143: 0 | AU143: 0
A144: %,V5550029 | B144: 5550029 | C144: Purch Power-Assoc-Trnsfr Price | F144: 0 | G144: 0 | H144: 0 | I144: 0 | K144: 0 | L144: 0 | M144: 0 | N144: 0 | Q144: 0 | R144: 0 | S144: 0 | T144: 0 | V144: 0 | W144: 0 | X144: 0 | Y144: 0 | AA144: 0 | AC144: 0 | AD144: 0 | AE144: 0 | AF144: 0 | AG144: 0 | AH144: 0 | AI144: 0 | AJ144: 0 | AK144: 0 | AL144: 0 | AM144: 0 | AN144: 0 | AP144: 0 | AQ144: 0 | AR144: 0 | AS144: 0 | AT144: 0 | AU144: 0
A145: %,V5550039 | B145: 5550039 | C145: PJM Inadvertent Mtr Res-OSS | F145: -681.28 | G145: 891.5 | H145: -1572.78 | I145: -1.764195177 | K145: 2702.81 | L145: -1531.24 | M145: 4234.05 | N145: 2.765111935 | Q145: -787.64 | R145: -391.77 | S145: -395.87 | T145: -1.010465324 | V145: 569.32 | W145: 1843.49 | X145: -1274.17 | Y145: -0.6911727213 | AA145: -640.23 | AC145: -507.21 | AD145: -183.3 | AE145: -448.96 | AF145: -477.24 | AG145: -806.03 | AH145: 891.5 | AI145: -75.47 | AJ145: 666.12 | AK145: -278.4 | AL145: -993.12 | AM145: -55.37 | AN145: -1397.25 | AP145: 2698.59 | AQ145: 1435.45 | AR145: -643.59 | AS145: 1359.86 | AT145: -1466.22 | AU145: -681.28
A146: %,V5550040 | B146: 5550040 | C146: PJM Inadvertent Mtr Res-LSE | F146: -31837.43 | G146: -4019.14 | H146: -27818.29 | I146: -6.921453346 | K146: 67682.75 | L146: -38270.13 | M146: 105952.88 | N146: 2.768552916 | Q146: 3794.73 | R146: -21728.22 | S146: 25522.95 | T146: 1.174645231 | V146: 43243.85 | W146: -4990.23 | X146: 48234.08 | Y146: 9.665702783 | AA146: -4170.81 | AC146: -3524.71 | AD146: -5794.71 | AE146: -7222.49 | AF146: -8456.78 | AG146: -9252.3 | AH146: -4019.14 | AI146: -2432.77 | AJ146: 3370.29 | AK146: -4706.82 | AL146: -8561.5 | AM146: -5256.76 | AN146: -6851.34 | AP146: 23822.37 | AQ146: 24505 | AR146: 15560.65 | AS146: 20513.57 | AT146: 15118.59 | AU146: -31837.43
A147: %,V5550074 | B147: 5550074 | C147: PJM Reactive-Charge | F147: -46309.94 | G147: 271549.29 | H147: -317859.23 | I147: -1.17053972 | K147: 1087270.95 | L147: 1649750.95 | M147: -562480 | N147: -0.3409484322 | Q147: 338612.31 | R147: 818938.66 | S147: -480326.35 | T147: -0.5865229882 | V147: 2655321.88 | W147: 3389853.77 | X147: -734531.89 | Y147: -0.2166854206 | AA147: 290161.54 | AC147: 286667.43 | AD147: 273119.37 | AE147: 271025.49 | AF147: 273005.67 | AG147: 274383.7 | AH147: 271549.29 | AI147: 266154.98 | AJ147: 268149.33 | AK147: 266645.7 | AL147: 262768.6 | AM147: 244671.13 | AN147: 259661.19 | AP147: 253599.31 | AQ147: 255056.58 | AR147: 240002.75 | AS147: 259550.69 | AT147: 125371.56 | AU147: -46309.94
A148: %,V5550075 | B148: 5550075 | C148: PJM Reactive-Credit | F148: 0 | G148: -119573 | H148: 119573 | I148: N.M. | K148: -597865 | L148: -717438 | M148: 119573 | N148: 0.1666666667 | Q148: -239146 | R148: -358719 | S148: 119573 | T148: 0.3333333333 | V148: -1315303 | W148: -1434876 | X148: 119573 | Y148: 0.08333333333 | AA148: -119573 | AC148: -119573 | AD148: -119573 | AE148: -119573 | AF148: -119573 | AG148: -119573 | AH148: -119573 | AI148: -119573 | AJ148: -119573 | AK148: -119573 | AL148: -119573 | AM148: -119573 | AN148: -119573 | AP148: -119573 | AQ148: -119573 | AR148: -119573 | AS148: -119573 | AT148: -119573 | AU148: 0
A149: %,V5550076 | B149: 5550076 | C149: PJM Black Start-Charge | F149: 34809.12 | G149: 26888.6 | H149: 7920.52 | I149: 0.2945679582 | K149: 194306.52 | L149: 208661.02 | M149: -14354.5 | N149: -0.06879339514 | Q149: 119680.6 | R149: 111222.19 | S149: 8458.41 | T149: 0.07604966239 | V149: 448878.12 | W149: 782192.34 | X149: -333314.22 | Y149: -0.4261282078 | AA149: 94990.6 | AC149: 3383.75 | AD149: 46795.03 | AE149: 47260.05 | AF149: 46811.54 | AG149: 37522.05 | AH149: 26888.6 | AI149: 26837.71 | AJ149: 58868.57 | AK149: 37065.79 | AL149: 46995.64 | AM149: 42721.44 | AN149: 42082.45 | AP149: -32622.09 | AQ149: 33933.29 | AR149: 73314.72 | AS149: 42639.46 | AT149: 42232.02 | AU149: 34809.12
A150: %,V5550078 | B150: 5550078 | C150: PJM Regulation-Charge | F150: 95390.75 | G150: 108302.07 | H150: -12911.32 | I150: -0.1192158192 | K150: 1091282.92 | L150: 505567.03 | M150: 585715.89 | N150: 1.158532608 | Q150: 279110.21 | R150: 228433.39 | S150: 50676.82 | T150: 0.2218450639 | V150: 1864951.59 | W150: 799682.65 | X150: 1065268.94 | Y150: 1.332114608 | AA150: 43038.27 | AC150: 127637.02 | AD150: 72549.02 | AE150: 76947.6 | AF150: 72784.06 | AG150: 47347.26 | AH150: 108302.07 | AI150: 74426.03 | AJ150: 49743.75 | AK150: 59902.75 | AL150: 395562.56 | AM150: -100532.22 | AN150: 294565.8 | AP150: 388317.6 | AQ150: 783895.78 | AR150: -360040.67 | AS150: 80208.09 | AT150: 103511.37 | AU150: 95390.75
A151: %,V5550079 | B151: 5550079 | C151: PJM Regulation-Credit | F151: -14873.11 | G151: -961.09 | H151: -13912.02 | I151: N.M. | K151: -687138.06 | L151: 211096.54 | M151: -898234.6 | N151: -4.255089164 | Q151: -524629.8 | R151: -1821.42 | S151: -522808.38 | T151: N.M. | V151: -404952.32 | W151: -19127.42 | X151: -385824.9 | Y151: N.M. | AA151: -226210.47 | AC151: 215934.81 | AD151: -1993.79 | AE151: -1023.06 | AF151: -274.49 | AG151: -585.84 | AH151: -961.09 | AI151: -3196.69 | AJ151: -2761.37 | AK151: -1224.51 | AL151: -384669.63 | AM151: 842964.84 | AN151: -168926.9 | AP151: 28512.12 | AQ151: -1144539.79 | AR151: 953519.41 | AS151: -11576.11 | AT151: -498180.58 | AU151: -14873.11
A152: %,V5550080 | B152: 5550080 | C152: PJM Hourly Net Purch.-FERC | F152: 1105089.92 | G152: 3619595.03 | H152: -2514505.11 | I152: -0.6946923866 | K152: 9040239.12 | L152: 6498538.99 | M152: 2541700.13 | N152: 0.3911187013 | Q152: 2340209.37 | R152: 5159257.56 | S152: -2819048.19 | T152: -0.5464057875 | V152: 21991666.48 | W152: 12556509.93 | X152: 9435156.55 | Y152: 0.7514155289 | AA152: 715522.54 | AC152: 783482.6 | AD152: 147910.84 | AE152: 407887.99 | AF152: 784752.9 | AG152: 754909.63 | AH152: 3619595.03 | AI152: 1838939.89 | AJ152: 1322426.52 | AK152: 914313.81 | AL152: 2318897.42 | AM152: 4789574.69 | AN152: 1767275.03 | AP152: 4335957.95 | AQ152: 2034767.41 | AR152: 329304.39 | AS152: 480323.59 | AT152: 754795.86 | AU152: 1105089.92
A153: %,V5550083 | B153: 5550083 | C153: PJM Sync & Non Sync-Charge | F153: 62566.07 | G153: 95618.73 | H153: -33052.66 | I153: -0.3456713972 | K153: 553463.28 | L153: 544778.74 | M153: 8684.54 | N153: 0.0159414077 | Q153: 162768.65 | R153: 270474.18 | S153: -107705.53 | T153: -0.3982100251 | V153: 1078823.24 | W153: 795604.79 | X153: 283218.45 | Y153: 0.3559788146 | AA153: 22069.79 | AC153: 102438.71 | AD153: 38724.19 | AE153: 133141.66 | AF153: 111429.76 | AG153: 63425.69 | AH153: 95618.73 | AI153: 140539.29 | AJ153: 107907.97 | AK153: 54373.06 | AL153: 77606.97 | AM153: 43229.24 | AN153: 101703.43 | AP153: 113293.07 | AQ153: 169541.07 | AR153: 107860.49 | AS153: 52755.81 | AT153: 47446.77 | AU153: 62566.07
A154: %,V5550084 | B154: 5550084 | C154: PJM Sync & Non Sync-Credit | F154: -6156.01 | G154: -5237.44 | H154: -918.57 | I154: -0.1753853027 | K154: -45779.52 | L154: -98626.83 | M154: 52847.31 | N154: 0.5358309701 | Q154: -9669.31 | R154: -55687.7 | S154: 46018.39 | T154: 0.8263654272 | V154: -115777.84 | W154: -120514.41 | X154: 4736.57 | Y154: 0.03930293481 | AA154: 3460 | AC154: -8869.23 | AD154: 786.63 | AE154: -34856.53 | AF154: -28724.06 | AG154: -21726.2 | AH154: -5237.44 | AI154: -13288.33 | AJ154: -9614.59 | AK154: -2078.36 | AL154: -27942.9 | AM154: 9214.05 | AN154: -26288.19 | AP154: 7668.69 | AQ154: -23560.27 | AR154: -20218.63 | AS154: -500.37 | AT154: -3012.93 | AU154: -6156.01
A155: %,V5550123 | B155: 5550123 | C155: PJM OpRes-LSE-Charge | F155: 176400.55 | G155: 115041.68 | H155: 61358.87 | I155: 0.5333620823 | K155: 6714953.44 | L155: 3754534.42 | M155: 2960419.02 | N155: 0.7884916447 | Q155: 449552.42 | R155: 441454 | S155: 8098.42 | T155: 0.01834487852 | V155: 7548634.03 | W155: 4223240.52 | X155: 3325393.51 | Y155: 0.7874032971 | AA155: 122718.14 | AC155: 2956748.73 | AD155: 184745.69 | AE155: 171586 | AF155: 195018.63 | AG155: 131393.69 | AH155: 115041.68 | AI155: 165760.06 | AJ155: 79512.82 | AK155: 41149.68 | AL155: 229398.45 | AM155: 116805.13 | AN155: 201054.45 | AP155: 3625154.36 | AQ155: 2233913.08 | AR155: 406333.58 | AS155: 135804.52 | AT155: 137347.35 | AU155: 176400.55
A156: %,V5550124 | B156: 5550124 | C156: PJM Implicit Congestion-LSE | F156: -1019610.94 | G156: 652934.32 | H156: -1672545.26 | I156: -2.561582703 | K156: 10798634.2 | L156: 3399859.13 | M156: 7398775.07 | N156: 2.17620048 | Q156: -1239600.11 | R156: 934624.7 | S156: -2174224.81 | T156: -2.326307886 | V156: 12681309.98 | W156: 7868469.75 | X156: 4812840.23 | Y156: 0.611661528 | AA156: 837583.09 | AC156: 1254434.87 | AD156: 539257.41 | AE156: 671542.15 | AF156: 638168.13 | AG156: -356477.75 | AH156: 652934.32 | AI156: -639690.3 | AJ156: 176273.08 | AK156: 507553.42 | AL156: 352130.73 | AM156: 477418.13 | AN156: 1008990.72 | AP156: 5230836.28 | AQ156: 5548209.68 | AR156: 1259188.35 | AS156: 793181.23 | AT156: -1013170.4 | AU156: -1019610.94
A157: %,V5550132 | B157: 5550132 | C157: PJM FTR Revenue-LSE | F157: -2702638.35 | G157: -77097.56 | H157: -2625540.79 | I157: N.M. | K157: -24704362.14 | L157: -6119712.68 | M157: -18584649.46 | N157: -3.036850001 | Q157: -9596827.24 | R157: -1341557.79 | S157: -8255269.45 | T157: -6.153495221 | V157: -28731875.37 | W157: -9904130.78 | X157: -18827744.59 | Y157: -1.90099919 | AA157: -564350.74 | AC157: -4080094.46 | AD157: -461599.88 | AE157: -236460.55 | AF157: -617167.97 | AG157: -647292.26 | AH157: -77097.56 | AI157: -229459.49 | AJ157: 96096.39 | AK157: -640803.33 | AL157: -933982.99 | AM157: -792207.81 | AN157: -1527156 | AP157: -6706507.94 | AQ157: -7222076.95 | AR157: -1178950.01 | AS157: -1221027.41 | AT157: -5673161.48 | AU157: -2702638.35
A158: %,V5550137 | B158: 5550137 | C158: PJM OpRes-LSE-Credit | F158: 12050.84 | G158: -356.27 | H158: 12407.11 | I158: N.M. | K158: -101148.53 | L158: -37127.01 | M158: -64021.52 | N158: -1.724392026 | Q158: -78654.12 | R158: -21039.74 | S158: -57614.38 | T158: -2.738359885 | V158: -199224.55 | W158: -65337.69 | X158: -133886.86 | Y158: -2.049152028 | AA158: -4175.88 | AC158: -11216.43 | AD158: -2505.76 | AE158: -2365.08 | AF158: -2498.53 | AG158: -18184.94 | AH158: -356.27 | AI158: -12729.52 | AJ158: -9779.79 | AK158: -18699.27 | AL158: -53378.42 | AM158: 1335 | AN158: -4824.02 | AP158: 31446.44 | AQ158: -28016.66 | AR158: -25924.19 | AS158: -113252.29 | AT158: 22547.33 | AU158: 12050.84
A159: %,V5550139 | B159: 5550139 | C159: Generation Deactivation expens | F159: 43102.74 | G159: 0 | H159: 43102.74 | I159: N.M. | K159: -20964.7 | L159: 0 | M159: -20964.7 | N159: N.M. | Q159: 105216.77 | R159: 0 | S159: 105216.77 | T159: N.M. | V159: 104037.37 | W159: 0 | X159: 104037.37 | Y159: N.M. | AA159: 0 | AC159: 0 | AD159: 0 | AE159: 0 | AF159: 0 | AG159: 0 | AH159: 0 | AI159: -285.27 | AJ159: 0 | AK159: 15770.18 | AL159: 48466.54 | AM159: 28569.17 | AN159: 32481.45 | AP159: 27919.09 | AQ159: -97608.9 | AR159: -56491.66 | AS159: 30541.58 | AT159: 31572.45 | AU159: 43102.74
A160: %,V5550326 | B160: 5550326 | C160: PJM Transm Loss Charges - LSE | F160: 199558.97 | G160: 547423.21 | H160: -347864.24 | I160: -0.6354576014 | K160: 5048289.66 | L160: 3523439.49 | M160: 1524850.17 | N160: 0.4327731963 | Q160: 224011.3 | R160: 1178978.75 | S160: -954967.45 | T160: -0.8099954728 | V160: 8437234.17 | W160: 6410111.34 | X160: 2027122.83 | Y160: 0.3162383183 | AA160: 589842.22 | AC160: 1575293.84 | AD160: 603005.29 | AE160: 166161.61 | AF160: 428411.6 | AG160: 203143.94 | AH160: 547423.21 | AI160: 1107461.48 | AJ160: 794704.73 | AK160: 314638.01 | AL160: 169132.19 | AM160: 360837.89 | AN160: 642170.21 | AP160: 2954850.24 | AQ160: 1625981.86 | AR160: 243446.26 | AS160: 54124.45 | AT160: -29672.12 | AU160: 199558.97
A161: %,V5550327 | B161: 5550327 | C161: PJM Transm Loss Credits-LSE | F161: -303927.19 | G161: -279161.09 | H161: -24766.1 | I161: -0.08871616026 | K161: -3263696.26 | L161: -1889123.8 | M161: -1374572.46 | N161: -0.727624341 | Q161: -811189.43 | R161: -670774.89 | S161: -140414.54 | T161: -0.2093318371 | V161: -5117694.11 | W161: -3178811.56 | X161: -1938882.55 | Y161: -0.6099394423 | AA161: -294026.04 | AC161: -720312.77 | AD161: -267904.83 | AE161: -230131.31 | AF161: -212977.36 | AG161: -178636.44 | AH161: -279161.09 | AI161: -425874.15 | AJ161: -239304.5 | AK161: -198265.14 | AL161: -249617.73 | AM161: -245826.45 | AN161: -495109.88 | AP161: -1278350.7 | AQ161: -962847.84 | AR161: -211308.29 | AS161: -229343.14 | AT161: -277919.1 | AU161: -303927.19
A162: %,V5550328 | B162: 5550328 | C162: PJM FC Penalty Credit | F162: 0 | G162: -288.03 | H162: 288.03 | I162: N.M. | K162: -10216.63 | L162: -2256.95 | M162: -7959.68 | N162: -3.526741842 | Q162: -10120.1 | R162: -659.8 | S162: -9460.3 | T162: N.M. | V162: -10680.45 | W162: -2779.37 | X162: -7901.08 | Y162: -2.84275933 | AA162: -12.81 | AC162: -934.65 | AD162: -419.65 | AE162: -242.85 | AF162: -371.77 | AG162: 0 | AH162: -288.03 | AI162: 0 | AJ162: 0 | AK162: -327.29 | AL162: 0 | AM162: -69.54 | AN162: -66.99 | AP162: 0 | AQ162: -60.66 | AR162: -35.87 | AS162: 0 | AT162: -10120.1 | AU162: 0
A163: %,V5550335 | B163: 5550335 | C163: Purchased Power-PPA Rider | F163: -766148.2 | G163: 0 | H163: -766148.2 | I163: N.M. | K163: -4586956.888 | L163: 0 | M163: -4586956.888 | N163: N.M. | Q163: -4586956.888 | R163: 0 | S163: -4586956.888 | T163: N.M. | V163: -4586956.888 | W163: 0 | X163: -4586956.888 | Y163: N.M. | AA163: 0 | AC163: 0 | AD163: 0 | AE163: 0 | AF163: 0 | AG163: 0 | AH163: 0 | AI163: 0 | AJ163: 0 | AK163: 0 | AL163: 0 | AM163: 0 | AN163: 0 | AP163: 0 | AQ163: 0 | AR163: 0 | AS163: -4120303.94 | AT163: 299495.252 | AU163: -766148.2
A164: %,V5560000 | B164: 5560000 | C164: Sys Control & Load Dispatching | F164: 3659.43 | G164: 3584.03 | H164: 75.4 | I164: 0.02103777033 | K164: 26011.5 | L164: 23562.55 | M164: 2448.95 | N164: 0.103933997 | Q164: 12458.8 | R164: 10333.35 | S164: 2125.45 | T164: 0.2056883779 | V164: 56531.73 | W164: 62567.05 | X164: -6035.32 | Y164: -0.09646163596 | AA164: 6355.16 | AC164: 5359.34 | AD164: 4293.06 | AE164: 3576.8 | AF164: 3967.26 | AG164: 2782.06 | AH164: 3584.03 | AI164: 5757.33 | AJ164: 3313.8 | AK164: 4948.2 | AL164: 4293.59 | AM164: 4707.01 | AN164: 7500.3 | AP164: 5966.64 | AQ164: 3905.85 | AR164: 3680.21 | AS164: 4871.28 | AT164: 3928.09 | AU164: 3659.43
A165: %,V5570000 | B165: 5570000 | C165: Other Expenses | F165: 64386.57 | G165: 61090.1 | H165: 3296.47 | I165: 0.05396078906 | K165: 423576.1 | L165: 376416.24 | M165: 47159.86 | N165: 0.1252864648 | Q165: 236680.13 | R165: 183964.11 | S165: 52716.02 | T165: 0.2865560027 | V165: 858345.97 | W165: 716667.11 | X165: 141678.86 | Y165: 0.1976913103 | AA165: 51339.46 | AC165: 65627.83 | AD165: 64770.11 | AE165: 62054.19 | AF165: 59972.58 | AG165: 62901.43 | AH165: 61090.1 | AI165: 82871.34 | AJ165: 64405.17 | AK165: 63767.86 | AL165: 68234.29 | AM165: 64761.3 | AN165: 90729.91 | AP165: 74162.02 | AQ165: 56675.78 | AR165: 56058.17 | AS165: 96217.66 | AT165: 76075.9 | AU165: 64386.57
A166: %,V5570007 | B166: 5570007 | C166: Other Pwr Exp - Wholesale RECs | F166: 0 | G166: 0 | H166: 0 | I166: 0 | K166: 231.75 | L166: 243.15 | M166: -11.4 | N166: -0.04688463911 | Q166: 0 | R166: 0 | S166: 0 | T166: 0 | V166: 231.75 | W166: 243.15 | X166: -11.4 | Y166: -0.04688463911 | AA166: 0 | AC166: 243.15 | AD166: 0 | AE166: 0 | AF166: 0 | AG166: 0 | AH166: 0 | AI166: 0 | AJ166: 0 | AK166: 0 | AL166: 0 | AM166: 0 | AN166: 0 | AP166: 231.75 | AQ166: 0 | AR166: 0 | AS166: 0 | AT166: 0 | AU166: 0
A167: %,V5570025 | B167: 5570025 | C167: MATL-SAFETY | F167: 0 | G167: 0 | H167: 0 | I167: 0 | K167: 0 | L167: 0.93 | M167: -0.93 | N167: N.M. | Q167: 0 | R167: 0.93 | S167: -0.93 | T167: N.M. | V167: 0 | W167: 0.93 | X167: -0.93 | Y167: N.M. | AA167: 0 | AC167: 0 | AD167: 0 | AE167: 0 | AF167: 0.93 | AG167: 0 | AH167: 0 | AI167: 0 | AJ167: 0 | AK167: 0 | AL167: 0 | AM167: 0 | AN167: 0 | AP167: 0 | AQ167: 0 | AR167: 0 | AS167: 0 | AT167: 0 | AU167: 0
A168: %,FACCOUNT,TGL_FERC_ACCT,XDYYNNY01,N555-557 | C168: Purchased Power | F168: 9849376.35 | G168: 12215178.77 | H168: -2365802.42 | I168: -0.1936772654 | K168: 77631538.28 | L168: 82803278.16 | M168: -5171739.878 | N168: -0.06245815375 | Q168: 26057305.42 | R168: 33256141.02 | S168: -7198835.598 | T168: -0.2164663541 | V168: 137990838.9 | W168: 138753962.7 | X168: -763123.798 | Y168: -0.005499834262 | AA168: 8675695.72 | AC168: 17839270.72 | AD168: 15826263.44 | AE168: 15881602.98 | AF168: 9230468.11 | AG168: 11810494.14 | AH168: 12215178.77 | AI168: 10043737.71 | AJ168: 6195930.2 | AK168: 11583779.77 | AL168: 10408938.99 | AM168: 10866501.76 | AN168: 11260412.19 | AP168: 29913743.03 | AQ168: 10733351.57 | AR168: 10927138.26 | AS168: 8245870.97 | AT168: 7962058.102 | AU168: 9849376.35
A170: %,V5581000 | B170: 5581000 | C170: Oper Supervision & Engineering | F170: 273.64 | G170: 78.59 | H170: =+F170-G170 -> 195.05 | I170: =IF(G170<0,IF(H170=0,0,IF(OR(G170=0,F170=0),"N.M.",IF(ABS(H170/G170)>=10,"N.M.",H170/(-G170)))),IF(H170=0,0,IF(OR(G170=0,F170=0),"N.M.",IF(ABS(H170/G170)>=10,"N.M.",H170/G170)))) -> 2.481867922 | K170: 1045.45 | L170: 224.88 | M170: =+K170-L170 -> 820.57 | N170: =IF(L170<0,IF(M170=0,0,IF(OR(L170=0,K170=0),"N.M.",IF(ABS(M170/L170)>=10,"N.M.",M170/(-L170)))),IF(M170=0,0,IF(OR(L170=0,K170=0),"N.M.",IF(ABS(M170/L170)>=10,"N.M.",M170/L170)))) -> 3.648923871 | Q170: 744.2 | R170: 224.88 | S170: =+Q170-R170 -> 519.32 | V170: 2225.34 | W170: 224.88 | X170: =+V170-W170 -> 2000.46 | Y170: =IF(W170<0,IF(X170=0,0,IF(OR(W170=0,V170=0),"N.M.",IF(ABS(X170/W170)>=10,"N.M.",X170/(-W170)))),IF(X170=0,0,IF(OR(W170=0,V170=0),"N.M.",IF(ABS(X170/W170)>=10,"N.M.",X170/W170)))) -> 8.895677695 | AA170: 0 | AC170: 0 | AD170: 0 | AE170: 0 | AF170: 25.32 | AG170: 120.97 | AH170: 78.59 | AI170: 243.12 | AJ170: 249.48 | AK170: 153.79 | AL170: 122.28 | AM170: 149.61 | AN170: 261.61 | AP170: 217.61 | AQ170: 22.22 | AR170: 61.42 | AS170: 383.23 | AT170: 87.33 | AU170: 273.64
A171: %,V5581300 | B171: 5581300 | C171: Oper Supervision & Engineering | F171: 0 | G171: 1636.25 | H171: -1636.25 | I171: N.M. | K171: 0 | L171: 3971.3 | M171: -3971.3 | N171: N.M. | Q171: -2412.1 | R171: 3599.56 | S171: -6011.66 | V171: 5541.93 | W171: 3971.3 | X171: 1570.63 | Y171: 0.3954951779 | AA171: 0 | AC171: 0 | AD171: 154.41 | AE171: 217.33 | AF171: -136.13 | AG171: 2099.44 | AH171: 1636.25 | AI171: 775.81 | AJ171: 616.48 | AK171: 631.95 | AL171: 751.76 | AM171: 1007.55 | AN171: 1758.38 | AP171: 1360.79 | AQ171: 647.48 | AR171: 403.83 | AS171: 571.57 | AT171: -2983.67 | AU171: 0
A172: %,V5581400 | B172: 5581400 | C172: Wind Turb Gen&Oth Plnt Op-Mjr | F172: 0 | G172: 103.28 | H172: -103.28 | I172: N.M. | K172: 0 | L172: 514.06 | M172: -514.06 | N172: N.M. | Q172: -342.41 | R172: -518.02 | S172: 175.61 | V172: -0.21 | W172: 514.06 | X172: -514.27 | Y172: -1.000408513 | AA172: 0 | AC172: 412.87 | AD172: -14.26 | AE172: 633.47 | AF172: 167.23 | AG172: -788.53 | AH172: 103.28 | AI172: 81.96 | AJ172: 171.49 | AK172: 306.93 | AL172: -645.16 | AM172: -46.48 | AN172: 131.05 | AP172: 701.72 | AQ172: -172.11 | AR172: -187.2 | AS172: 263.24 | AT172: -605.65 | AU172: 0
A173: %,V5581601 | B173: 5581601 | C173: Wind - Variable Production Exp | F173: 0 | G173: 53.61 | H173: -53.61 | I173: N.M. | K173: 0 | L173: 53.61 | M173: -53.61 | N173: N.M. | Q173: -60.77 | R173: 53.61 | S173: -114.38 | V173: -29.55 | W173: 53.61 | X173: -83.16 | Y173: -1.551203134 | AA173: 0 | AC173: 0 | AD173: 0 | AE173: 0 | AF173: 0 | AG173: 0 | AH173: 53.61 | AI173: 53.07 | AJ173: -9.42 | AK173: 11.93 | AL173: -62.92 | AM173: -27.79 | AN173: 5.58 | AP173: 66.61 | AQ173: -68.54 | AR173: 62.7 | AS173: -15.06 | AT173: -45.71 | AU173: 0
A174: %,V5582000 | B174: 5582000 | C174: Solar Panel Gen&Oth Plt Op-Mjr | F174: -1.69 | G174: 0 | H174: -1.69 | I174: N.M. | K174: 11.1 | L174: 2.07 | M174: 9.03 | N174: 4.362318841 | Q174: 11.1 | R174: -8.32 | S174: 19.42 | V174: 11.1 | W174: 2.07 | X174: 9.03 | Y174: 4.362318841 | AA174: 0 | AC174: 0 | AD174: 2.07 | AE174: 8.32 | AF174: -8.32 | AG174: 0 | AH174: 0 | AI174: 0 | AJ174: 0 | AK174: 0 | AL174: 0 | AM174: 2.26 | AN174: -2.26 | AP174: 11.32 | AQ174: -8.24 | AR174: -3.08 | AS174: 4.71 | AT174: 8.08 | AU174: -1.69
A175: %,FACCOUNT,TGL_FERC_ACCT,XDYYNNY01,N5580 | C175: Solar and Wind Operations Expenses | F175: 271.95 | G175: 1871.73 | H175: -1599.78 | I175: -0.8547066083 | K175: 1056.55 | L175: 4765.92 | M175: -3709.37 | N175: -0.7783114278 | Q175: -2059.98 | R175: 3351.71 | S175: -5411.69 | V175: 7748.61 | W175: 4765.92 | X175: 2982.69 | Y175: 0.6258371941 | AA175: 0 | AC175: 412.87 | AD175: 142.22 | AE175: 859.12 | AF175: 48.1 | AG175: 1431.88 | AH175: 1871.73 | AI175: 1153.96 | AJ175: 1028.03 | AK175: 1104.6 | AL175: 165.96 | AM175: 1085.15 | AN175: 2154.36 | AP175: 2358.05 | AQ175: 420.81 | AR175: 337.67 | AS175: 1207.69 | AT175: -3539.62 | AU175: 271.95
A177: %,FACCOUNT,TGL_FERC_ACCT,XDYYNNY01,N5590 | C177: Other Renewables Operations Expense | F177: 0 | G177: 0 | H177: =+F177-G177 -> 0 | I177: =IF(G177<0,IF(H177=0,0,IF(OR(G177=0,F177=0),"N.M.",IF(ABS(H177/G177)>=10,"N.M.",H177/(-G177)))),IF(H177=0,0,IF(OR(G177=0,F177=0),"N.M.",IF(ABS(H177/G177)>=10,"N.M.",H177/G177)))) -> 0 | K177: 0 | L177: 0 | M177: =+K177-L177 -> 0 | N177: =IF(L177<0,IF(M177=0,0,IF(OR(L177=0,K177=0),"N.M.",IF(ABS(M177/L177)>=10,"N.M.",M177/(-L177)))),IF(M177=0,0,IF(OR(L177=0,K177=0),"N.M.",IF(ABS(M177/L177)>=10,"N.M.",M177/L177)))) -> 0 | Q177: 0 | R177: 0 | S177: =+Q177-R177 -> 0 | V177: 0 | W177: 0 | X177: =+V177-W177 -> 0 | Y177: =IF(W177<0,IF(X177=0,0,IF(OR(W177=0,V177=0),"N.M.",IF(ABS(X177/W177)>=10,"N.M.",X177/(-W177)))),IF(X177=0,0,IF(OR(W177=0,V177=0),"N.M.",IF(ABS(X177/W177)>=10,"N.M.",X177/W177)))) -> 0 | AA177: 0 | AC177: 0 | AD177: 0 | AE177: 0 | AF177: 0 | AG177: 0 | AH177: 0 | AI177: 0 | AJ177: 0 | AK177: 0 | AL177: 0 | AM177: 0 | AN177: 0 | AP177: 0 | AQ177: 0 | AR177: 0 | AS177: 0 | AT177: 0 | AU177: 0
A179: %,FACCOUNT,TGL_FERC_ACCT,XDYYNNY01,N401_OPERATION | C179: 401 Operation Expense | F179: 0 | G179: 0 | H179: =+F179-G179 -> 0 | I179: =IF(G179<0,IF(H179=0,0,IF(OR(G179=0,F179=0),"N.M.",IF(ABS(H179/G179)>=10,"N.M.",H179/(-G179)))),IF(H179=0,0,IF(OR(G179=0,F179=0),"N.M.",IF(ABS(H179/G179)>=10,"N.M.",H179/G179)))) -> 0 | K179: 0 | L179: 0 | M179: =+K179-L179 -> 0 | N179: =IF(L179<0,IF(M179=0,0,IF(OR(L179=0,K179=0),"N.M.",IF(ABS(M179/L179)>=10,"N.M.",M179/(-L179)))),IF(M179=0,0,IF(OR(L179=0,K179=0),"N.M.",IF(ABS(M179/L179)>=10,"N.M.",M179/L179)))) -> 0 | Q179: 0 | R179: 0 | S179: =+Q179-R179 -> 0 | T179: =IF(R179<0,IF(S179=0,0,IF(OR(R179=0,Q179=0),"N.M.",IF(ABS(S179/R179)>=10,"N.M.",S179/(-R179)))),IF(S179=0,0,IF(OR(R179=0,Q179=0),"N.M.",IF(ABS(S179/R179)>=10,"N.M.",S179/R179)))) -> 0 | V179: 0 | W179: 0 | X179: =+V179-W179 -> 0 | Y179: =IF(W179<0,IF(X179=0,0,IF(OR(W179=0,V179=0),"N.M.",IF(ABS(X179/W179)>=10,"N.M.",X179/(-W179)))),IF(X179=0,0,IF(OR(W179=0,V179=0),"N.M.",IF(ABS(X179/W179)>=10,"N.M.",X179/W179)))) -> 0 | AA179: 0 | AC179: 0 | AD179: 0 | AE179: 0 | AF179: 0 | AG179: 0 | AH179: 0 | AI179: 0 | AJ179: 0 | AK179: 0 | AL179: 0 | AM179: 0 | AN179: 0 | AP179: 0 | AQ179: 0 | AR179: 0 | AS179: 0 | AT179: 0 | AU179: 0
A181: %,V5600000 | B181: 5600000 | C181: Oper Supervision & Engineering | F181: 280762.77 | G181: 212175.87 | H181: =+F181-G181 -> 68586.9 | I181: =IF(G181<0,IF(H181=0,0,IF(OR(G181=0,F181=0),"N.M.",IF(ABS(H181/G181)>=10,"N.M.",H181/(-G181)))),IF(H181=0,0,IF(OR(G181=0,F181=0),"N.M.",IF(ABS(H181/G181)>=10,"N.M.",H181/G181)))) -> 0.3232549488 | K181: 1667830.27 | L181: 1118799.25 | M181: =+K181-L181 -> 549031.02 | N181: =IF(L181<0,IF(M181=0,0,IF(OR(L181=0,K181=0),"N.M.",IF(ABS(M181/L181)>=10,"N.M.",M181/(-L181)))),IF(M181=0,0,IF(OR(L181=0,K181=0),"N.M.",IF(ABS(M181/L181)>=10,"N.M.",M181/L181)))) -> 0.4907323812 | Q181: 791389.12 | R181: 525207.21 | S181: =+Q181-R181 -> 266181.91 | T181: =IF(R181<0,IF(S181=0,0,IF(OR(R181=0,Q181=0),"N.M.",IF(ABS(S181/R181)>=10,"N.M.",S181/(-R181)))),IF(S181=0,0,IF(OR(R181=0,Q181=0),"N.M.",IF(ABS(S181/R181)>=10,"N.M.",S181/R181)))) -> 0.50681313 | V181: 3093755.38 | W181: 2092674.6 | X181: =+V181-W181 -> 1001080.78 | Y181: =IF(W181<0,IF(X181=0,0,IF(OR(W181=0,V181=0),"N.M.",IF(ABS(X181/W181)>=10,"N.M.",X181/(-W181)))),IF(X181=0,0,IF(OR(W181=0,V181=0),"N.M.",IF(ABS(X181/W181)>=10,"N.M.",X181/W181)))) -> 0.478373838 | AA181: 96098.04 | AC181: 228555.82 | AD181: 190482.01 | AE181: 174554.21 | AF181: 185380.88 | AG181: 127650.46 | AH181: 212175.87 | AI181: 258645.99 | AJ181: 189783.07 | AK181: 226452.98 | AL181: 201931.02 | AM181: 225901.82 | AN181: 323210.23 | AP181: 415603.13 | AQ181: 226145.75 | AR181: 234692.27 | AS181: 270303.55 | AT181: 240322.8 | AU181: 280762.77
A182: %,V5612000 | B182: 5612000 | C182: Load Dispatch-Mntr&Op TransSys | F182: 77241.16 | G182: 54208.05 | H182: 23033.11 | I182: 0.424902021 | K182: 467143.65 | L182: 314413.55 | M182: 152730.1 | N182: 0.4857618255 | Q182: 231140.87 | R182: 206227.56 | S182: 24913.31 | T182: 0.1208049496 | V182: 847801.02 | W182: 511614.5 | X182: 336186.52 | Y182: 0.6571090538 | AA182: 32795.81 | AC182: 39358.12 | AD182: 35577.94 | AE182: 33249.93 | AF182: 103888.42 | AG182: 48131.09 | AH182: 54208.05 | AI182: 64520.68 | AJ182: 55995.37 | AK182: 60235.59 | AL182: 63095.82 | AM182: 59808.9 | AN182: 77001.01 | AP182: 92709.75 | AQ182: 72986.69 | AR182: 70306.34 | AS182: 77847.04 | AT182: 76052.67 | AU182: 77241.16
A183: %,V5613000 | B183: 5613000 | C183: Load Dispatch-Trans Srvc&Sched | F183: -23.98 | G183: 80.16 | H183: -104.14 | I183: -1.299151697 | K183: -36.57 | L183: 25.2 | M183: -61.77 | N183: -2.451190476 | Q183: -106.08 | R183: -149.14 | S183: 43.06 | T183: 0.2887220062 | V183: -170.96 | W183: 155.25 | X183: -326.21 | Y183: -2.101191626 | AA183: 130.05 | AC183: 192.28 | AD183: 52.16 | AE183: -70.1 | AF183: -66.9 | AG183: -162.4 | AH183: 80.16 | AI183: 79.49 | AJ183: 60.99 | AK183: 81.3 | AL183: -105.54 | AM183: -209.83 | AN183: -40.8 | AP183: 56.21 | AQ183: 1.11 | AR183: 12.19 | AS183: -90.37 | AT183: 8.27 | AU183: -23.98
A184: %,V5614000 | B184: 5614000 | C184: PJM Admin-SSC&DS-OSS | F184: 6213.96 | G184: 12356.26 | H184: -6142.3 | I184: -0.4971002553 | K184: 46728.18 | L184: 44546.51 | M184: 2181.67 | N184: 0.0489751049 | Q184: 17846.02 | R184: 26784.82 | S184: -8938.8 | T184: -0.333726342 | V184: 115096.94 | W184: 82486.93 | X184: 32610.01 | Y184: 0.3953354792 | AA184: 9339.5 | AC184: 6581.16 | AD184: 7185.07 | AE184: 3995.46 | AF184: 7351.26 | AG184: 7077.3 | AH184: 12356.26 | AI184: 8280.97 | AJ184: 12482.78 | AK184: 5608.58 | AL184: 9864.81 | AM184: 7907.19 | AN184: 24224.43 | AP184: 10456.3 | AQ184: 12792.42 | AR184: 5633.44 | AS184: 6593.17 | AT184: 5038.89 | AU184: 6213.96
A185: %,V5614001 | B185: 5614001 | C185: PJM Admin-SSC&DS-Internal | F185: 107631.68 | G185: 101015.23 | H185: 6616.45 | I185: 0.06549952913 | K185: 726973.51 | L185: 731688.02 | M185: -4714.51 | N185: -0.006443333595 | Q185: 332007.96 | R185: 351880.81 | S185: -19872.85 | T185: -0.05647608348 | V185: 1293641.84 | W185: 1317217.41 | X185: -23575.57 | Y185: -0.01789800971 | AA185: 110241.52 | AC185: 144999.86 | AD185: 133517.82 | AE185: 101289.53 | AF185: 146971.6 | AG185: 103893.98 | AH185: 101015.23 | AI185: 74683.55 | AJ185: 101237.23 | AK185: 86644.62 | AL185: 86514.87 | AM185: 104475.85 | AN185: 113112.21 | AP185: 139339.09 | AQ185: 140811.16 | AR185: 114815.3 | AS185: 107525.82 | AT185: 116850.46 | AU185: 107631.68
A186: %,V5615000 | B186: 5615000 | C186: Reliability,Plng&Stds Develop | F186: 5108.09 | G186: 2751.74 | H186: 2356.35 | I186: 0.856312733 | K186: 57302.33 | L186: 51021.8 | M186: 6280.53 | N186: 0.12309503 | Q186: 42903.98 | R186: 36674.86 | S186: 6229.12 | T186: 0.1698471378 | V186: 113953.84 | W186: 94538.03 | X186: 19415.81 | Y186: 0.2053756568 | AA186: 4572.76 | AC186: 5237.07 | AD186: 5257.11 | AE186: 3852.76 | AF186: 17798.1 | AG186: 16125.02 | AH186: 2751.74 | AI186: 3325.84 | AJ186: 2540.7 | AK186: 3553.13 | AL186: 20632.64 | AM186: 10177.36 | AN186: 16421.84 | AP186: 5291.67 | AQ186: 2963.11 | AR186: 6143.57 | AS186: 24825.86 | AT186: 12970.03 | AU186: 5108.09
A187: %,V5616000 | B187: 5616000 | C187: Transmission Service Studies | F187: 0 | G187: 0 | H187: 0 | I187: 0 | K187: 29 | L187: 0 | M187: 29 | N187: N.M. | Q187: 29 | R187: 0 | S187: 29 | T187: N.M. | V187: 34.36 | W187: 0 | X187: 34.36 | Y187: N.M. | AA187: 0 | AC187: 0 | AD187: 0 | AE187: 0 | AF187: 0 | AG187: 0 | AH187: 0 | AI187: 0 | AJ187: 0 | AK187: 0 | AL187: 0 | AM187: 5.36 | AN187: 0 | AP187: 0 | AQ187: 0 | AR187: 0 | AS187: 0 | AT187: 29 | AU187: 0
A188: %,V5618000 | B188: 5618000 | C188: PJM Admin-RP&SDS-OSS | F188: 1884.82 | G188: 3382.46 | H188: -1497.64 | I188: -0.4427665072 | K188: 12204.67 | L188: 12828.38 | M188: -623.71 | N188: -0.0486195451 | Q188: 3426.92 | R188: 6220.92 | S188: -2794 | T188: -0.4491297107 | V188: 32269.69 | W188: 25755.26 | X188: 6514.43 | Y188: 0.2529359051 | AA188: 2638.2 | AC188: 3336.66 | AD188: 2383.17 | AE188: 887.63 | AF188: 1730.27 | AG188: 1108.19 | AH188: 3382.46 | AI188: 953.49 | AJ188: 6494.27 | AK188: 1510.57 | AL188: 2987.97 | AM188: 2038.39 | AN188: 6080.33 | AP188: 3361.41 | AQ188: 4261.91 | AR188: 1154.43 | AS188: 463.29 | AT188: 1078.81 | AU188: 1884.82
A189: %,V5618001 | B189: 5618001 | C189: PJM Admin-RP&SDS- Internal | F189: 33730.45 | G189: 31652.36 | H189: 2078.09 | I189: 0.06565355632 | K189: 228518.05 | L189: 208451.86 | M189: 20066.19 | N189: 0.09626294532 | Q189: 87877.25 | R189: 80037.51 | S189: 7839.74 | T189: 0.09795082331 | V189: 396049.45 | W189: 396855.67 | X189: -806.22 | Y189: -0.002031519419 | AA189: 30769.11 | AC189: 59349.11 | AD189: 44773.07 | AE189: 24292.17 | AF189: 34095.87 | AG189: 14289.28 | AH189: 31652.36 | AI189: 7187.72 | AJ189: 55073.63 | AK189: 24232.84 | AL189: 26155.4 | AM189: 28725 | AN189: 26156.81 | AP189: 65575.24 | AQ189: 47339.99 | AR189: 27725.57 | AS189: 28082.29 | AT189: 26064.51 | AU189: 33730.45
A190: %,V5620001 | B190: 5620001 | C190: Station Expenses - Nonassoc | F190: 37872.75 | G190: 28263.51 | H190: 9609.24 | I190: 0.3399874962 | K190: 186343 | L190: 159404.64 | M190: 26938.36 | N190: 0.1689935751 | Q190: 109165.13 | R190: 88438.6 | S190: 20726.53 | T190: 0.2343606751 | V190: 386230.07 | W190: 253090.06 | X190: 133140.01 | Y190: 0.5260578389 | AA190: 141.55 | AC190: 25544.2 | AD190: 17002.71 | AE190: 28419.13 | AF190: 31279.02 | AG190: 28896.07 | AH190: 28263.51 | AI190: 30018.81 | AJ190: 25540.66 | AK190: 18115.65 | AL190: 29046.67 | AM190: 59458.43 | AN190: 37706.85 | AP190: 9289.94 | AQ190: 35405.56 | AR190: 32482.37 | AS190: 30873.21 | AT190: 40419.17 | AU190: 37872.75
A191: %,V5630000 | B191: 5630000 | C191: Overhead Line Expenses | F191: 6793.94 | G191: 3344.88 | H191: 3449.06 | I191: 1.03114611 | K191: 15501.86 | L191: 9808.01 | M191: 5693.85 | N191: 0.5805306071 | Q191: 11694.22 | R191: 6518.24 | S191: 5175.98 | T191: 0.7940763151 | V191: 37111.84 | W191: 23385.66 | X191: 13726.18 | Y191: 0.586948583 | AA191: 680.9 | AC191: 864.88 | AD191: 732.27 | AE191: 1692.62 | AF191: 904.92 | AG191: 2268.44 | AH191: 3344.88 | AI191: 3243.07 | AJ191: 1857.34 | AK191: 3281.45 | AL191: 881.04 | AM191: 9156.21 | AN191: 3190.87 | AP191: 1323.13 | AQ191: 2198.46 | AR191: 286.05 | AS191: 1689.72 | AT191: 3210.56 | AU191: 6793.94
A192: %,V5640000 | B192: 5640000 | C192: Underground Line Expenses | F192: 0 | G192: 0 | H192: 0 | I192: 0 | K192: 0 | L192: 0 | M192: 0 | N192: 0 | Q192: 0 | R192: 0 | S192: 0 | T192: 0 | V192: 0 | W192: 15.85 | X192: -15.85 | Y192: N.M. | AA192: 0 | AC192: 0 | AD192: 0 | AE192: 0 | AF192: 0 | AG192: 0 | AH192: 0 | AI192: 0 | AJ192: 0 | AK192: 0 | AL192: 0 | AM192: 0 | AN192: 0 | AP192: 0 | AQ192: 0 | AR192: 0 | AS192: 0 | AT192: 0 | AU192: 0
A193: %,V5650002 | B193: 5650002 | C193: Transmssn Elec by Others-NAC | F193: 7500 | G193: 7993.5 | H193: -493.5 | I193: -0.06173766185 | K193: 53935.5 | L193: 52641 | M193: 1294.5 | N193: 0.02459109819 | Q193: 22621.5 | R193: 20562 | S193: 2059.5 | T193: 0.1001604902 | V193: 104200.5 | W193: 98224.5 | X193: 5976 | Y193: 0.06084021807 | AA193: 8956.5 | AC193: 15075 | AD193: 9775.5 | AE193: 7228.5 | AF193: 6552 | AG193: 6016.5 | AH193: 7993.5 | AI193: 9369 | AJ193: 8422.5 | AK193: 7107 | AL193: 6253.5 | AM193: 6985.5 | AN193: 12127.5 | AP193: 12823.5 | AQ193: 11709 | AR193: 6781.5 | AS193: 7807.5 | AT193: 7314 | AU193: 7500
A194: %,V5650007 | B194: 5650007 | C194: Tran Elec by Oth-Aff-Trn Price | F194: 0 | G194: 0 | H194: 0 | I194: 0 | K194: 0 | L194: 0 | M194: 0 | N194: 0 | Q194: 0 | R194: 0 | S194: 0 | T194: 0 | V194: 0 | W194: 0 | X194: 0 | Y194: 0 | AA194: 0 | AC194: 0 | AD194: 0 | AE194: 0 | AF194: 0 | AG194: 0 | AH194: 0 | AI194: 0 | AJ194: 0 | AK194: 0 | AL194: 0 | AM194: 0 | AN194: 0 | AP194: 0 | AQ194: 0 | AR194: 0 | AS194: 0 | AT194: 0 | AU194: 0
A195: %,V5650012 | B195: 5650012 | C195: PJM Trans Enhancement Charge | F195: 235916.94 | G195: 173337.14 | H195: 62579.8 | I195: 0.3610293789 | K195: 1398599.31 | L195: 1036559.73 | M195: 362039.58 | N195: 0.3492703503 | Q195: 700895.56 | R195: 520913.81 | S195: 179981.75 | T195: 0.3455115732 | V195: 2381989.12 | W195: 2059801.9 | X195: 322187.22 | Y195: 0.1564166049 | AA195: 170438.3 | AC195: 167900.46 | AD195: 178658.29 | AE195: 169087.17 | AF195: 173806.15 | AG195: 173770.52 | AH195: 173337.14 | AI195: 172514.6 | AJ195: 168427.8 | AK195: 172514.58 | AL195: 172514.55 | AM195: 117768.74 | AN195: 179649.54 | AP195: 232394.04 | AQ195: 232597.11 | AR195: 232712.6 | AS195: 232520.02 | AT195: 232458.6 | AU195: 235916.94
A196: %,V5650015 | B196: 5650015 | C196: PJM TO Serv Exp - Aff | F196: 13503.36 | G196: 13654.09 | H196: -150.73 | I196: -0.01103918313 | K196: 84650.39 | L196: 84746.66 | M196: -96.27 | N196: -0.001135973972 | Q196: 37828.58 | R196: 37244.51 | S196: 584.07 | T196: 0.0156820428 | V196: 165989.37 | W196: 167212.24 | X196: -1222.87 | Y196: -0.007313280415 | AA196: 15917.14 | AC196: 19216.27 | AD196: 14587.66 | AE196: 13698.22 | AF196: 12070.45 | AG196: 11519.97 | AH196: 13654.09 | AI196: 15493.06 | AJ196: 13760.82 | AK196: 11522.91 | AL196: 11322.4 | AM196: 13050.18 | AN196: 16189.61 | AP196: 18125.51 | AQ196: 15613.34 | AR196: 13082.96 | AS196: 11801.42 | AT196: 12523.8 | AU196: 13503.36
A197: %,V5650016 | B197: 5650016 | C197: PJM NITS Expense - Affiliated | F197: 6745995.99 | G197: 6290829.34 | H197: 455166.65 | I197: 0.07235399745 | K197: 40701789.33 | L197: 37955679.9 | M197: 2746109.43 | N197: 0.07235042126 | Q197: 20463801.37 | R197: 19083191.89 | S197: 1380609.48 | T197: 0.07234688452 | V197: 79290379.6 | W197: 75485407.16 | X197: 3804972.44 | Y197: 0.05040672871 | AA197: 6323263.11 | AC197: 6501533.21 | AD197: 5869421.59 | AE197: 6501533.21 | AF197: 6290829.34 | AG197: 6501533.21 | AH197: 6290829.34 | AI197: 6501533.21 | AJ197: 6501533.21 | AK197: 6290829.34 | AL197: 6501533.21 | AM197: 6291358.93 | AN197: 6501802.37 | AP197: 6971809.39 | AQ197: 6294369.18 | AR197: 6971809.39 | AS197: 6745995.99 | AT197: 6971809.39 | AU197: 6745995.99
A198: %,V5650019 | B198: 5650019 | C198: Affil PJM Trans Enhncement Exp | F198: 366366.23 | G198: 398850.65 | H198: -32484.42 | I198: -0.08144507223 | K198: 2198197.4 | L198: 2393103.9 | M198: -194906.5 | N198: -0.08144506388 | Q198: 1099098.7 | R198: 1196551.95 | S198: -97453.25 | T198: -0.08144506388 | V198: 4591727.03 | W198: 5142598.6 | X198: -550871.57 | Y198: -0.1071193015 | AA198: 458249.12 | AC198: 398850.65 | AD198: 398850.64 | AE198: 398850.66 | AF198: 398850.65 | AG198: 398850.65 | AH198: 398850.65 | AI198: 398850.65 | AJ198: 398850.65 | AK198: 398850.65 | AL198: 398850.65 | AM198: 398883.66 | AN198: 399243.37 | AP198: 366366.24 | AQ198: 366366.23 | AR198: 366366.23 | AS198: 366366.24 | AT198: 366366.23 | AU198: 366366.23
A199: %,V5650020 | B199: 5650020 | C199: PROVISION RTO Affl Tran Expnse | F199: 258421 | G199: 8170676 | H199: -7912255 | I199: -0.9683721396 | K199: 136901 | L199: 7582166 | M199: -7445265 | N199: -0.9819443415 | Q199: 293287 | R199: 7936051 | S199: -7642764 | T199: -0.9630437103 | V199: -5986 | W199: 5697033 | X199: -5703019 | Y199: -1.001050722 | AA199: -1164502 | AC199: -147629 | AD199: -86875 | AE199: -119381 | AF199: -117156 | AG199: -117469 | AH199: 8170676 | AI199: 171641 | AJ199: 235247 | AK199: 306708 | AL199: 240243 | AM199: 243540 | AN199: -1340266 | AP199: -130194 | AQ199: 18192 | AR199: -44384 | AS199: 16537 | AT199: 18329 | AU199: 258421
A200: %,V5650021 | B200: 5650021 | C200: PJM NITS Expense - Non-Affilia | F200: 88852.42 | G200: 90871.66 | H200: -2019.24 | I200: -0.02222078919 | K200: 531038.58 | L200: 559044.05 | M200: -28005.47 | N200: -0.05009528319 | Q200: 265997.26 | R200: 273000.8 | S200: -7003.54 | T200: -0.0256539175 | V200: 1077423.12 | W200: 999612.88 | X200: 77810.24 | Y200: 0.07784037357 | AA200: 78947.76 | AC200: 84543.12 | AD200: 74451.6 | AE200: 127048.53 | AF200: 90871.65 | AG200: 91257.49 | AH200: 90871.66 | AI200: 91257.45 | AJ200: 91143.26 | AK200: 90757.44 | AL200: 91200.32 | AM200: 90822.04 | AN200: 91204.03 | AP200: 88797.23 | AQ200: 87446.53 | AR200: 88797.56 | AS200: 88347.25 | AT200: 88797.59 | AU200: 88852.42
A201: %,V5650023 | B201: 5650023 | C201: Amort of PROVISION RTO Expense | F201: 109942.26 | G201: 793952 | H201: -684009.74 | I201: -0.8615253063 | K201: 659653.56 | L201: 4763712 | M201: -4104058.44 | N201: -0.8615253063 | Q201: 329826.78 | R201: 2381856 | S201: -2052029.22 | T201: -0.8615253063 | V201: 4178743.56 | W201: 4791115.06 | X201: -612371.5 | Y201: -0.1278139832 | AA201: 4565.51 | AC201: 793952 | AD201: 793952 | AE201: 793952 | AF201: 793952 | AG201: 793952 | AH201: 793952 | AI201: 586515 | AJ201: 586515 | AK201: 586515 | AL201: 586515 | AM201: 586515 | AN201: 586515 | AP201: 109942.26 | AQ201: 109942.26 | AR201: 109942.26 | AS201: 109942.26 | AT201: 109942.26 | AU201: 109942.26
A202: %,V5650062 | B202: 5650062 | C202: Deferral of Provision RTO Exp | F202: 573910.52 | G202: 0 | H202: 573910.52 | I202: N.M. | K202: 4018654.7 | L202: 0 | M202: 4018654.7 | N202: N.M. | Q202: 1501711.52 | R202: 0 | S202: 1501711.52 | T202: N.M. | V202: -9833151.21 | W202: 0 | X202: -9833151.21 | Y202: N.M. | AA202: 0 | AC202: 0 | AD202: 0 | AE202: 0 | AF202: 0 | AG202: 0 | AH202: 0 | AI202: 0 | AJ202: 0 | AK202: -15726307 | AL202: 0 | AM202: 875308.06 | AN202: 999193.03 | AP202: 657992.89 | AQ202: 1550982.49 | AR202: 307967.8 | AS202: 685317 | AT202: 242484 | AU202: 573910.52
A203: %,V5660000 | B203: 5660000 | C203: Misc Transmission Expenses | F203: 61518.96 | G203: 250785.13 | H203: -189266.17 | I203: -0.7546945467 | K203: 411738.16 | L203: 542275.01 | M203: -130536.85 | N203: -0.2407207553 | Q203: 173619.38 | R203: 372220.55 | S203: -198601.17 | T203: -0.5335577791 | V203: 985657.94 | W203: 930145.65 | X203: 55512.29 | Y203: 0.05968128755 | AA203: 113415.74 | AC203: 43287.71 | AD203: 68253.07 | AE203: 58513.68 | AF203: 76585.19 | AG203: 44850.23 | AH203: 250785.13 | AI203: -52578.14 | AJ203: 104293.39 | AK203: 87683.25 | AL203: 93127.41 | AM203: 63225.14 | AN203: 278168.73 | AP203: -20804.61 | AQ203: 100874.68 | AR203: 158048.71 | AS203: 64820.64 | AT203: 47279.78 | AU203: 61518.96
A204: %,V5660011 | B204: 5660011 | C204: Misc Transm Exp - Affiliate | F204: 265.84 | G204: 355.43 | H204: -89.59 | I204: -0.252060884 | K204: 1642.2 | L204: 1819.95 | M204: -177.75 | N204: -0.09766751834 | Q204: 703.91 | R204: 910.01 | S204: -206.1 | T204: -0.2264810277 | V204: 3192.01 | W204: 3532.4 | X204: -340.39 | Y204: -0.09636224663 | AA204: 405.62 | AC204: 268.33 | AD204: 363.53 | AE204: 278.08 | AF204: 277.29 | AG204: 277.29 | AH204: 355.43 | AI204: 252.07 | AJ204: 257.31 | AK204: 251.06 | AL204: 264.04 | AM204: 276.21 | AN204: 249.12 | AP204: 259.5 | AQ204: 319.44 | AR204: 359.35 | AS204: 172.23 | AT204: 265.84 | AU204: 265.84
A205: %,V5670001 | B205: 5670001 | C205: Rents - Nonassociated | F205: 0 | G205: 0 | H205: 0 | I205: 0 | K205: 272.93 | L205: 250 | M205: 22.93 | N205: 0.09172 | Q205: 0 | R205: 0 | S205: 0 | T205: 0 | V205: 2058.05 | W205: 250 | X205: 1808.05 | Y205: 7.2322 | AA205: 0 | AC205: 0 | AD205: 0 | AE205: 250 | AF205: 0 | AG205: 0 | AH205: 0 | AI205: 0 | AJ205: 0 | AK205: 1630.19 | AL205: 0 | AM205: 100 | AN205: 54.93 | AP205: 0 | AQ205: 0 | AR205: 272.93 | AS205: 0 | AT205: 0 | AU205: 0
A206: %,V5670002 | B206: 5670002 | C206: Rents - Associated | F206: 77035.03 | G206: 0 | H206: 77035.03 | I206: N.M. | K206: 234356.96 | L206: 0 | M206: 234356.96 | N206: N.M. | Q206: 234356.96 | R206: 0 | S206: 234356.96 | T206: N.M. | V206: 234356.96 | W206: 0 | X206: 234356.96 | Y206: N.M. | AA206: 0 | AC206: 0 | AD206: 0 | AE206: 0 | AF206: 0 | AG206: 0 | AH206: 0 | AI206: 0 | AJ206: 0 | AK206: 0 | AL206: 0 | AM206: 0 | AN206: 0 | AP206: 0 | AQ206: 0 | AR206: 0 | AS206: 78785.28 | AT206: 78536.65 | AU206: 77035.03
A207: %,FACCOUNT,TGL_FERC_ACCT,XDYYNNY01,N560-567 | C207: Transmission Operations | F207: 9096444.19 | G207: 16640535.46 | H207: -7544091.27 | I207: -0.453356281 | K207: 53839967.97 | L207: 57622985.42 | M207: -3783017.45 | N207: -0.06565118802 | Q207: 26751122.91 | R207: 33150343.91 | S207: -6399221 | T207: -0.1930363382 | V207: 89492353.52 | W207: 100172722.6 | X207: -10680369.09 | Y207: -0.1066195349 | AA207: 6297064.24 | AC207: 8391016.91 | AD207: 7758402.21 | AE207: 8323222.39 | AF207: 8255972.16 | AG207: 8253836.29 | AH207: 16640535.46 | AI207: 8345787.51 | AJ207: 8559516.98 | AK207: -7342220.87 | AL207: 8542828.78 | AM207: 9195278.14 | AN207: 8351195.01 | AP207: 9050517.82 | AQ207: 9333318.42 | AR207: 8705008.82 | AS207: 8956526.41 | AT207: 8698152.31 | AU207: 9096444.19
A209: %,V5757000 | B209: 5757000 | C209: PJM Admin-MAM&SC- OSS | F209: 4011.46 | G209: 7744.23 | H209: =+F209-G209 -> -3732.77 | I209: =IF(G209<0,IF(H209=0,0,IF(OR(G209=0,F209=0),"N.M.",IF(ABS(H209/G209)>=10,"N.M.",H209/(-G209)))),IF(H209=0,0,IF(OR(G209=0,F209=0),"N.M.",IF(ABS(H209/G209)>=10,"N.M.",H209/G209)))) -> -0.4820066036 | K209: 29602.71 | L209: 33733.38 | M209: =+K209-L209 -> -4130.67 | N209: =IF(L209<0,IF(M209=0,0,IF(OR(L209=0,K209=0),"N.M.",IF(ABS(M209/L209)>=10,"N.M.",M209/(-L209)))),IF(M209=0,0,IF(OR(L209=0,K209=0),"N.M.",IF(ABS(M209/L209)>=10,"N.M.",M209/L209)))) -> -0.1224505223 | Q209: 7733.74 | R209: 17705.68 | S209: =+Q209-R209 -> -9971.94 | T209: =IF(R209<0,IF(S209=0,0,IF(OR(R209=0,Q209=0),"N.M.",IF(ABS(S209/R209)>=10,"N.M.",S209/(-R209)))),IF(S209=0,0,IF(OR(R209=0,Q209=0),"N.M.",IF(ABS(S209/R209)>=10,"N.M.",S209/R209)))) -> -0.5632057057 | V209: 92658.97 | W209: 73284.78 | X209: =+V209-W209 -> 19374.19 | Y209: =IF(W209<0,IF(X209=0,0,IF(OR(W209=0,V209=0),"N.M.",IF(ABS(X209/W209)>=10,"N.M.",X209/(-W209)))),IF(X209=0,0,IF(OR(W209=0,V209=0),"N.M.",IF(ABS(X209/W209)>=10,"N.M.",X209/W209)))) -> 0.264368536 | AA209: 7812.63 | AC209: 6761.19 | AD209: 7074.43 | AE209: 2192.08 | AF209: 4530.45 | AG209: 5431 | AH209: 7744.23 | AI209: 4983.45 | AJ209: 18902.24 | AK209: 5308.89 | AL209: 7096.63 | AM209: 6734.4 | AN209: 20030.65 | AP209: 9068.52 | AQ209: 8793.69 | AR209: 4006.76 | AS209: 1307.78 | AT209: 2414.5 | AU209: 4011.46
A210: %,V5757001 | B210: 5757001 | C210: PJM Admin-MAM&SC- Internal | F210: 87684.34 | G210: 81406.89 | H210: =+F210-G210 -> 6277.45 | I210: =IF(G210<0,IF(H210=0,0,IF(OR(G210=0,F210=0),"N.M.",IF(ABS(H210/G210)>=10,"N.M.",H210/(-G210)))),IF(H210=0,0,IF(OR(G210=0,F210=0),"N.M.",IF(ABS(H210/G210)>=10,"N.M.",H210/G210)))) -> 0.07711202332 | K210: 610932.89 | L210: 666539 | M210: =+K210-L210 -> -55606.11 | N210: =IF(L210<0,IF(M210=0,0,IF(OR(L210=0,K210=0),"N.M.",IF(ABS(M210/L210)>=10,"N.M.",M210/(-L210)))),IF(M210=0,0,IF(OR(L210=0,K210=0),"N.M.",IF(ABS(M210/L210)>=10,"N.M.",M210/L210)))) -> -0.08342514091 | Q210: 241573.63 | R210: 277755.64 | S210: =+Q210-R210 -> -36182.01 | T210: =IF(R210<0,IF(S210=0,0,IF(OR(R210=0,Q210=0),"N.M.",IF(ABS(S210/R210)>=10,"N.M.",S210/(-R210)))),IF(S210=0,0,IF(OR(R210=0,Q210=0),"N.M.",IF(ABS(S210/R210)>=10,"N.M.",S210/R210)))) -> -0.1302656176 | V210: 1240023.46 | W210: 1305677.89 | X210: =+V210-W210 -> -65654.43 | Y210: =IF(W210<0,IF(X210=0,0,IF(OR(W210=0,V210=0),"N.M.",IF(ABS(X210/W210)>=10,"N.M.",X210/(-W210)))),IF(X210=0,0,IF(OR(W210=0,V210=0),"N.M.",IF(ABS(X210/W210)>=10,"N.M.",X210/W210)))) -> -0.05028378783 | AA210: 109004.36 | AC210: 158273.45 | AD210: 149555.78 | AE210: 80954.13 | AF210: 101728.7 | AG210: 94620.05 | AH210: 81406.89 | AI210: 53996.14 | AJ210: 162453.75 | AK210: 104306.15 | AL210: 77560.36 | AM210: 120547.96 | AN210: 110226.21 | AP210: 147592.13 | AQ210: 122402.25 | AR210: 99364.88 | AS210: 76319.37 | AT210: 77569.92 | AU210: 87684.34
A211: %,FACCOUNT,TGL_FERC_ACCT,XDYYNNY01,N575-576 | C211: Regional Market Expense | F211: 91695.8 | G211: 89151.12 | H211: =+F211-G211 -> 2544.68 | I211: =IF(G211<0,IF(H211=0,0,IF(OR(G211=0,F211=0),"N.M.",IF(ABS(H211/G211)>=10,"N.M.",H211/(-G211)))),IF(H211=0,0,IF(OR(G211=0,F211=0),"N.M.",IF(ABS(H211/G211)>=10,"N.M.",H211/G211)))) -> 0.02854344399 | K211: 640535.6 | L211: 700272.38 | M211: =+K211-L211 -> -59736.78 | N211: =IF(L211<0,IF(M211=0,0,IF(OR(L211=0,K211=0),"N.M.",IF(ABS(M211/L211)>=10,"N.M.",M211/(-L211)))),IF(M211=0,0,IF(OR(L211=0,K211=0),"N.M.",IF(ABS(M211/L211)>=10,"N.M.",M211/L211)))) -> -0.08530506372 | Q211: 249307.37 | R211: 295461.32 | S211: =+Q211-R211 -> -46153.95 | T211: =IF(R211<0,IF(S211=0,0,IF(OR(R211=0,Q211=0),"N.M.",IF(ABS(S211/R211)>=10,"N.M.",S211/(-R211)))),IF(S211=0,0,IF(OR(R211=0,Q211=0),"N.M.",IF(ABS(S211/R211)>=10,"N.M.",S211/R211)))) -> -0.1562097875 | V211: 1332682.43 | W211: 1378962.67 | X211: =+V211-W211 -> -46280.24 | Y211: =IF(W211<0,IF(X211=0,0,IF(OR(W211=0,V211=0),"N.M.",IF(ABS(X211/W211)>=10,"N.M.",X211/(-W211)))),IF(X211=0,0,IF(OR(W211=0,V211=0),"N.M.",IF(ABS(X211/W211)>=10,"N.M.",X211/W211)))) -> -0.03356163369 | AA211: 116816.99 | AC211: 165034.64 | AD211: 156630.21 | AE211: 83146.21 | AF211: 106259.15 | AG211: 100051.05 | AH211: 89151.12 | AI211: 58979.59 | AJ211: 181355.99 | AK211: 109615.04 | AL211: 84656.99 | AM211: 127282.36 | AN211: 130256.86 | AP211: 156660.65 | AQ211: 131195.94 | AR211: 103371.64 | AS211: 77627.15 | AT211: 79984.42 | AU211: 91695.8
A213: %,V5772000 | B213: 5772000 | C213: Oper-Energy Storage Eqp-Majr | F213: 0 | G213: 0 | H213: =+F213-G213 -> 0 | I213: =IF(G213<0,IF(H213=0,0,IF(OR(G213=0,F213=0),"N.M.",IF(ABS(H213/G213)>=10,"N.M.",H213/(-G213)))),IF(H213=0,0,IF(OR(G213=0,F213=0),"N.M.",IF(ABS(H213/G213)>=10,"N.M.",H213/G213)))) -> 0 | K213: 0 | L213: 0 | M213: =+K213-L213 -> 0 | N213: =IF(L213<0,IF(M213=0,0,IF(OR(L213=0,K213=0),"N.M.",IF(ABS(M213/L213)>=10,"N.M.",M213/(-L213)))),IF(M213=0,0,IF(OR(L213=0,K213=0),"N.M.",IF(ABS(M213/L213)>=10,"N.M.",M213/L213)))) -> 0 | Q213: 0 | R213: 0 | S213: =+Q213-R213 -> 0 | V213: 0 | W213: 0 | X213: =+V213-W213 -> 0 | Y213: =IF(W213<0,IF(X213=0,0,IF(OR(W213=0,V213=0),"N.M.",IF(ABS(X213/W213)>=10,"N.M.",X213/(-W213)))),IF(X213=0,0,IF(OR(W213=0,V213=0),"N.M.",IF(ABS(X213/W213)>=10,"N.M.",X213/W213)))) -> 0 | AA213: 0 | AC213: 0 | AD213: 0 | AE213: 0 | AF213: 0 | AG213: 0 | AH213: 0 | AI213: 0 | AJ213: 0 | AK213: 0 | AL213: 1.83 | AM213: -1.83 | AN213: 0 | AP213: 0 | AQ213: 0 | AR213: 0 | AS213: 0 | AT213: 0 | AU213: 0
A214: %,V5775000 | B214: 5775000 | C214: Oper Supplies and Expense NMjr | F214: 0 | G214: 3.77 | H214: =+F214-G214 -> -3.77 | I214: =IF(G214<0,IF(H214=0,0,IF(OR(G214=0,F214=0),"N.M.",IF(ABS(H214/G214)>=10,"N.M.",H214/(-G214)))),IF(H214=0,0,IF(OR(G214=0,F214=0),"N.M.",IF(ABS(H214/G214)>=10,"N.M.",H214/G214)))) -> N.M. | K214: 0 | L214: 3.77 | M214: =+K214-L214 -> -3.77 | N214: =IF(L214<0,IF(M214=0,0,IF(OR(L214=0,K214=0),"N.M.",IF(ABS(M214/L214)>=10,"N.M.",M214/(-L214)))),IF(M214=0,0,IF(OR(L214=0,K214=0),"N.M.",IF(ABS(M214/L214)>=10,"N.M.",M214/L214)))) -> N.M. | Q214: 0 | R214: 3.77 | S214: =+Q214-R214 -> -3.77 | V214: -3.77 | W214: 3.77 | X214: =+V214-W214 -> -7.54 | Y214: =IF(W214<0,IF(X214=0,0,IF(OR(W214=0,V214=0),"N.M.",IF(ABS(X214/W214)>=10,"N.M.",X214/(-W214)))),IF(X214=0,0,IF(OR(W214=0,V214=0),"N.M.",IF(ABS(X214/W214)>=10,"N.M.",X214/W214)))) -> -2 | AA214: 0 | AC214: 0 | AD214: 0 | AE214: 0 | AF214: 12.84 | AG214: -12.84 | AH214: 3.77 | AI214: 0.33 | AJ214: -4.1 | AK214: 0 | AL214: 0 | AM214: 0 | AN214: 0 | AP214: 0 | AQ214: 0 | AR214: 0 | AS214: 0 | AT214: 0 | AU214: 0
A215: %,FACCOUNT,TGL_FERC_ACCT,XDYYNNY01,N5771-5775 | C215: Energy Storage Operation Expense | F215: 0 | G215: 3.77 | H215: =+F215-G215 -> -3.77 | I215: =IF(G215<0,IF(H215=0,0,IF(OR(G215=0,F215=0),"N.M.",IF(ABS(H215/G215)>=10,"N.M.",H215/(-G215)))),IF(H215=0,0,IF(OR(G215=0,F215=0),"N.M.",IF(ABS(H215/G215)>=10,"N.M.",H215/G215)))) -> N.M. | K215: 0 | L215: 3.77 | M215: =+K215-L215 -> -3.77 | N215: =IF(L215<0,IF(M215=0,0,IF(OR(L215=0,K215=0),"N.M.",IF(ABS(M215/L215)>=10,"N.M.",M215/(-L215)))),IF(M215=0,0,IF(OR(L215=0,K215=0),"N.M.",IF(ABS(M215/L215)>=10,"N.M.",M215/L215)))) -> N.M. | Q215: 0 | R215: 3.77 | S215: =+Q215-R215 -> -3.77 | V215: -3.77 | W215: 3.77 | X215: =+V215-W215 -> -7.54 | Y215: =IF(W215<0,IF(X215=0,0,IF(OR(W215=0,V215=0),"N.M.",IF(ABS(X215/W215)>=10,"N.M.",X215/(-W215)))),IF(X215=0,0,IF(OR(W215=0,V215=0),"N.M.",IF(ABS(X215/W215)>=10,"N.M.",X215/W215)))) -> -2 | AA215: 0 | AC215: 0 | AD215: 0 | AE215: 0 | AF215: 12.84 | AG215: -12.84 | AH215: 3.77 | AI215: 0.33 | AJ215: -4.1 | AK215: 0 | AL215: 1.83 | AM215: -1.83 | AN215: 0 | AP215: 0 | AQ215: 0 | AR215: 0 | AS215: 0 | AT215: 0 | AU215: 0
A217: %,V5800000 | B217: 5800000 | C217: Oper Supervision & Engineering | F217: -116994.67 | G217: 188720.03 | H217: =+F217-G217 -> -305714.7 | I217: =IF(G217<0,IF(H217=0,0,IF(OR(G217=0,F217=0),"N.M.",IF(ABS(H217/G217)>=10,"N.M.",H217/(-G217)))),IF(H217=0,0,IF(OR(G217=0,F217=0),"N.M.",IF(ABS(H217/G217)>=10,"N.M.",H217/G217)))) -> -1.619937746 | K217: 389301.27 | L217: 961106.02 | M217: =+K217-L217 -> -571804.75 | N217: =IF(L217<0,IF(M217=0,0,IF(OR(L217=0,K217=0),"N.M.",IF(ABS(M217/L217)>=10,"N.M.",M217/(-L217)))),IF(M217=0,0,IF(OR(L217=0,K217=0),"N.M.",IF(ABS(M217/L217)>=10,"N.M.",M217/L217)))) -> -0.5949445099 | Q217: 223218.35 | R217: 478592.95 | S217: =+Q217-R217 -> -255374.6 | T217: =IF(R217<0,IF(S217=0,0,IF(OR(R217=0,Q217=0),"N.M.",IF(ABS(S217/R217)>=10,"N.M.",S217/(-R217)))),IF(S217=0,0,IF(OR(R217=0,Q217=0),"N.M.",IF(ABS(S217/R217)>=10,"N.M.",S217/R217)))) -> -0.5335945713 | V217: -137319.52 | W217: 1720218.8 | X217: =+V217-W217 -> -1857538.32 | Y217: =IF(W217<0,IF(X217=0,0,IF(OR(W217=0,V217=0),"N.M.",IF(ABS(X217/W217)>=10,"N.M.",X217/(-W217)))),IF(X217=0,0,IF(OR(W217=0,V217=0),"N.M.",IF(ABS(X217/W217)>=10,"N.M.",X217/W217)))) -> -1.079826776 | AA217: 228073.75 | AC217: -27859.28 | AD217: 259916.83 | AE217: 250455.52 | AF217: 85589.78 | AG217: 204283.14 | AH217: 188720.03 | AI217: -153811.89 | AJ217: -4457.35 | AK217: -673.2 | AL217: -56595.32 | AM217: -389632.91 | AN217: 78549.88 | AP217: -21590.03 | AQ217: 44323.1 | AR217: 143349.85 | AS217: 80717.15 | AT217: 259495.87 | AU217: -116994.67
A218: %,V5810000 | B218: 5810000 | C218: Load Dispatching | F218: 842.14 | G218: 587.23 | H218: 254.91 | I218: 0.4340888579 | K218: 1938.91 | L218: 2414.25 | M218: -475.34 | N218: -0.1968893031 | Q218: 1545.44 | R218: 2107.94 | S218: -562.5 | T218: -0.2668482025 | V218: 2278.05 | W218: 3462.32 | X218: -1184.27 | Y218: -0.3420452182 | AA218: 51.59 | AC218: 78.67 | AD218: 110.11 | AE218: 117.53 | AF218: 419.97 | AG218: 1100.74 | AH218: 587.23 | AI218: 0 | AJ218: 0 | AK218: 120.89 | AL218: 108.7 | AM218: 43.98 | AN218: 65.57 | AP218: 0 | AQ218: 393.47 | AR218: 0 | AS218: 0 | AT218: 703.3 | AU218: 842.14
A219: %,V5820000 | B219: 5820000 | C219: Station Expenses | F219: 29717.49 | G219: 35364.84 | H219: -5647.35 | I219: -0.1596882667 | K219: 159623.05 | L219: 166659.49 | M219: -7036.44 | N219: -0.04222045801 | Q219: 95119.09 | R219: 85862.84 | S219: 9256.25 | T219: 0.1078027468 | V219: 398733.88 | W219: 379909.65 | X219: 18824.23 | Y219: 0.04954922835 | AA219: 30332.27 | AC219: 19031.36 | AD219: 44340.39 | AE219: 17424.9 | AF219: 32495.32 | AG219: 18002.68 | AH219: 35364.84 | AI219: 27294.53 | AJ219: 40688.97 | AK219: 38868.21 | AL219: 44668.78 | AM219: 57941.77 | AN219: 29648.57 | AP219: 24667.69 | AQ219: 24461.35 | AR219: 15374.92 | AS219: 28742.08 | AT219: 36659.52 | AU219: 29717.49
... 416 more rows

Sheet Modification History (hidden)
A2: BU_Name | C2: Scope-based
A3: Contact Person | C3: Neal Hartley
A4: Department Owner | C4: Financial Reporting
A5: Account Tree | C5: GL_FERC_ACCT
A6: Business Unit Tree | C6: Scope-based
A7: Sunset Date
A8: Report Statement Type | C8: Reporting Package
A9: Report Description | C9: IS, BS, O&M, and Trial Bal
A10: Title (Builtin) | C10: FERC Comparative Statements
A11: Author (Builtin) | C11: Financial Reporting / Neal Hartley
A12: Comments (Builtin) | C12: Acct: GL_FERC_ACCT BU: Scope-based
A13: Subject (Builtin)
A14: Category (Builtin)
A15: Keywords (Builtin)
A18: 2016-08-01 | C18: Neal Hartley | E18: Created this new report from GLR3000V
A19: 2018-09-05 | C19: Neal Hartley | E19: Change Effective tax rate on lines 93 & 166 from 35% to 21%

Sheet O&M
A1: %,LACTUALS,SBAL | B1: %,ATF,FACCOUNT | C1: %,ATT,FDESCR,UDESCR | F1: %,LACTUALS,SPER | G1: %,LACTUALS,SPER-1YR | H1: %,C | I1: %,C | K1: %,LACTUALS,SYTD | L1: %,LACTUALS,SYTD-1YR | M1: %,C | N1: %,C | Q1: %,LACTUALS,SQTR | R1: %,LACTUALS,SQTR-1YR | S1: %,C | T1: %,C | V1: %,LACTUALS,SROLLING12 | W1: %,LACTUALS,SROLNG12-1Y | X1: %,C | Y1: %,C
C2: Kentucky Power Corp Consol | G2: Kentucky Power Corp Consol | L2: Kentucky Power Corp Consol | R2: Kentucky Power Corp Consol | W2: Kentucky Power Corp Consol
C3: June 2026 | G3: As of: Jun 2026 | L3: As of: Jun 2026 | R3: As of: Jun 2026 | W3: As of: Jun 2026
B4: Run Date: 07/08/2026 05:29 AM
B5: GLR6283P | C5: Rpt ID: FERC_IS1 Layout: FERC_IS1 | F5: ONE MONTH ENDED | H5: Variance | K5: YEAR TO DATE | M5: Variance | Q5: THREE MONTHS ENDED | S5: Variance | V5: TWELVE MONTHS ENDED | X5: Variance
B6: KYP_CORP_CONSOL | C6: V2099-01-01 Acct: GL_FERC_ACCT BU: GL_PRPT_CONS | F6: 2026 | G6: 2025 | H6: $ | I6: % | K6: 2026 | L6: 2025 | M6: $ | N6: % | O6: Explanation | Q6: 2026 | R6: 2025 | S6: $ | T6: % | V6: 2026 | W6: 2025 | X6: $ | Y6: %
C8: OPERATING AND MAINTENANCE DETAIL
C9: FERC Page 320
B10: Line 1 | C10: 1. POWER PRODUCTION EXPENSES
B11: Line 2 | C11: A. STEAM POWER GENERATION
B12: Line 3 | C12: Operation
A13: %,V5000000 | B13: 5000000 | C13: Oper Supervision & Engineering | F13: 370425.13 | G13: 340471.02 | H13: =+F13-G13 -> 29954.11 | I13: =IF(G13<0,IF(H13=0,0,IF(OR(G13=0,F13=0),"N.M.",IF(ABS(H13/G13)>=10,"N.M.",H13/(-G13)))),IF(H13=0,0,IF(OR(G13=0,F13=0),"N.M.",IF(ABS(H13/G13)>=10,"N.M.",H13/G13)))) -> 0.08797844234 | K13: 2287064.52 | L13: 1951709.91 | M13: =+K13-L13 -> 335354.61 | N13: =IF(L13<0,IF(M13=0,0,IF(OR(L13=0,K13=0),"N.M.",IF(ABS(M13/L13)>=10,"N.M.",M13/(-L13)))),IF(M13=0,0,IF(OR(L13=0,K13=0),"N.M.",IF(ABS(M13/L13)>=10,"N.M.",M13/L13)))) -> 0.1718260528 | Q13: 1095506.19 | R13: 964221.19 | S13: =+Q13-R13 -> 131285 | T13: =IF(R13<0,IF(S13=0,0,IF(OR(R13=0,Q13=0),"N.M.",IF(ABS(S13/R13)>=10,"N.M.",S13/(-R13)))),IF(S13=0,0,IF(OR(R13=0,Q13=0),"N.M.",IF(ABS(S13/R13)>=10,"N.M.",S13/R13)))) -> 0.1361565182 | V13: 4838427.2 | W13: 4041549.7 | X13: =+V13-W13 -> 796877.5 | Y13: =IF(W13<0,IF(X13=0,0,IF(OR(W13=0,V13=0),"N.M.",IF(ABS(X13/W13)>=10,"N.M.",X13/(-W13)))),IF(X13=0,0,IF(OR(W13=0,V13=0),"N.M.",IF(ABS(X13/W13)>=10,"N.M.",X13/W13)))) -> 0.1971712732
A14: %,V5000002 | B14: 5000002 | C14: Dresden Oper Supervision & Eng | F14: 0 | G14: 0 | H14: 0 | I14: 0 | K14: 0 | L14: 0 | M14: 0 | N14: 0 | Q14: 0 | R14: 0 | S14: 0 | T14: 0 | V14: -33.12 | W14: 0 | X14: -33.12 | Y14: N.M.
A15: %,V5000003 | B15: 5000003 | C15: Cnstr Srchrge Op Sup & Eng Exp | F15: 0 | G15: 0 | H15: 0 | I15: 0 | K15: 0 | L15: 0 | M15: 0 | N15: 0 | Q15: 0 | R15: 0 | S15: 0 | T15: 0 | V15: 64.34 | W15: 0 | X15: 64.34 | Y15: N.M.
A16: %,FACCOUNT,X,TGL_FERC_ACCT,N5000 | B16: Line 4 | C16: (500) Operation Supervision and Engineering | F16: 370425.13 | G16: 340471.02 | H16: 29954.11 | I16: 0.08797844234 | K16: 2287064.52 | L16: 1951709.91 | M16: 335354.61 | N16: 0.1718260528 | Q16: 1095506.19 | R16: 964221.19 | S16: 131285 | T16: 0.1361565182 | V16: 4838458.42 | W16: 4041549.7 | X16: 796908.72 | Y16: 0.1971789979
A17: %,V5010000 | B17: 5010000 | C17: Fuel | F17: 523739.1 | G17: 438840.56 | H17: 84898.54 | I17: 0.1934610146 | K17: 3131516.11 | L17: 4099683.87 | M17: -968167.76 | N17: -0.2361566869 | Q17: 1689503.55 | R17: 1397412.57 | S17: 292090.98 | T17: 0.2090227226 | V17: 6782297.75 | W17: 7373288.13 | X17: -590990.38 | Y17: -0.08015289374
A18: %,V5010001 | B18: 5010001 | C18: Fuel Consumed | F18: 4070848.44 | G18: 5465171.12 | H18: -1394322.68 | I18: -0.2551288239 | K18: 30111505.26 | L18: 28988957.97 | M18: 1122547.29 | N18: 0.0387232715 | Q18: 10520090.72 | R18: 11994024.05 | S18: -1473933.33 | T18: -0.1228889757 | V18: 75432287.23 | W18: 72898701.36 | X18: 2533585.87 | Y18: 0.03475488346
A19: %,V5010003 | B19: 5010003 | C19: Fuel - Procure Unload & Handle | F19: 369120.61 | G19: 500918.55 | H19: -131797.94 | I19: -0.263112516 | K19: 1773107.11 | L19: 1749200.13 | M19: 23906.98 | N19: 0.01366737836 | Q19: 755364.45 | R19: 890622.49 | S19: -135258.04 | T19: -0.1518691045 | V19: 4095539.11 | W19: 3804662.46 | X19: 290876.65 | Y19: 0.07645268222
A20: %,V5010005 | B20: 5010005 | C20: Fuel - Deferred | F20: 3211356.809 | G20: -3340582.92 | H20: 6551939.729 | I20: 1.961316299 | K20: 3635723.411 | L20: 1555354.3 | M20: 2080369.111 | N20: 1.337553194 | Q20: 13528402.91 | R20: 2122048.909 | S20: 11406354 | T20: 5.375160749 | V20: 7217515.944 | W20: -267358.96 | X20: 7484874.904 | Y20: N.M.
A21: %,V5010012 | B21: 5010012 | C21: Ash Sales Proceeds | F21: 789.28 | G21: -1796.76 | H21: 2586.04 | I21: 1.439279592 | K21: 3607.35 | L21: 1958.46 | M21: 1648.89 | N21: 0.8419319261 | Q21: 1810.86 | R21: -1376.5 | S21: 3187.36 | T21: 2.315553941 | V21: 8923.83 | W21: 12268.57 | X21: -3344.74 | Y21: -0.2726267201
A22: %,V5010013 | B22: 5010013 | C22: Fuel Survey Activity | F22: 2019976.75 | G22: 4136038.43 | H22: -2116061.68 | I22: -0.5116155751 | K22: 2019976.75 | L22: 4136038.43 | M22: -2116061.68 | N22: -0.5116155751 | Q22: 2019976.75 | R22: 4136038.43 | S22: -2116061.68 | T22: -0.5116155751 | V22: 1790471.45 | W22: 4136038.43 | X22: -2345566.98 | Y22: -0.5671047355
A23: %,V5010019 | B23: 5010019 | C23: Fuel Oil Consumed | F23: 953718.64 | G23: 1026257.44 | H23: -72538.8 | I23: -0.07068284932 | K23: 3132568.8 | L23: 2389555.58 | M23: 743013.22 | N23: 0.3109420121 | Q23: 2292899.62 | R23: 1283557.56 | S23: 1009342.06 | T23: 0.7863629115 | V23: 4881341.3 | W23: 4306433.5 | X23: 574907.8 | Y23: 0.133499751
A24: %,V5010020 | B24: 5010020 | C24: Nat Gas Consumed Steam | F24: 2695738.82 | G24: 3625585.34 | H24: -929846.52 | I24: -0.2564679721 | K24: 26607729.1 | L24: 20948927.28 | M24: 5658801.82 | N24: 0.2701237034 | Q24: 6177446.99 | R24: 8035922.82 | S24: -1858475.83 | T24: -0.2312709905 | V24: 44534997.75 | W24: 31582773.46 | X24: 12952224.29 | Y24: 0.4101040812
A25: %,V5010021 | B25: 5010021 | C25: Transp Gas Consumed Steam | F25: 26793.66 | G25: 86157.96 | H25: -59364.3 | I25: -0.6890170102 | K25: 269749.79 | L25: 280191.31 | M25: -10441.52 | N25: -0.03726568108 | Q25: 92616.18 | R25: 171145.92 | S25: -78529.74 | T25: -0.4588466964 | V25: 490330.77 | W25: 387422.67 | X25: 102908.1 | Y25: 0.2656222983
A26: %,V5010027 | B26: 5010027 | C26: Gypsum handling/disposal costs | F26: 118418.89 | G26: 119621.95 | H26: -1203.06 | I26: -0.01005718432 | K26: 791622.73 | L26: 645973.99 | M26: 145648.74 | N26: 0.225471524 | Q26: 363936.37 | R26: 278311.02 | S26: 85625.35 | T26: 0.3076606525 | V26: 1537996.39 | W26: 1355179.5 | X26: 182816.89 | Y26: 0.1349023432
A27: %,V5010028 | B27: 5010028 | C27: Gypsum Sales Proceeds | F27: -24552.9 | G27: -57542.76 | H27: 32989.86 | I27: 0.5733103522 | K27: -496616.48 | L27: -609206.72 | M27: 112590.24 | N27: 0.1848145076 | Q27: -138566.82 | R27: -209761.13 | S27: 71194.31 | T27: 0.3394065907 | V27: -1109851.93 | W27: -1225360.95 | X27: 115509.02 | Y27: 0.09426530199
A28: %,V5010033 | B28: 5010033 | C28: Coal Procurement Sales Net-NA | F28: 0 | G28: 0 | H28: 0 | I28: 0 | K28: 281689.3 | L28: 0 | M28: 281689.3 | N28: N.M. | Q28: 150302.14 | R28: 0 | S28: 150302.14 | T28: N.M. | V28: 281689.3 | W28: 0 | X28: 281689.3 | Y28: N.M.
A29: %,V5010034 | B29: 5010034 | C29: Gas Transp Res Fees-Steam | F29: 488447.28 | G29: 487940.4 | H29: 506.88 | I29: 0.001038815396 | K29: 2950274.16 | L29: 3097248.48 | M29: -146974.32 | N29: -0.04745318981 | Q29: 1481258.16 | R29: 1481684.4 | S29: -426.24 | T29: -0.0002876725975 | V29: 5956231.74 | W29: 6185840.6 | X29: -229608.86 | Y29: -0.03711845727
A30: %,V5010040 | B30: 5010040 | C30: Gas Procuremnt Sales Net | F30: -4024.51 | G30: -0.045 | H30: -4024.465 | I30: N.M. | K30: 119105.71 | L30: 237983.675 | M30: -118877.965 | N30: -0.4995215113 | Q30: 119105.58 | R30: -215304.515 | S30: 334410.095 | T30: 1.553195923 | V30: 505413.935 | W30: 1796089.295 | X30: -1290675.36 | Y30: -0.7186031138
A31: %,FACCOUNT,X,TGL_FERC_ACCT,N5010 | B31: Line 5 | C31: (501) Fuel | F31: 14450370.87 | G31: 12486609.27 | H31: 1963761.604 | I31: 0.1572694046 | K31: 74331559.1 | L31: 67521866.75 | M31: 6809692.346 | N31: 0.10085166 | Q31: 39054147.46 | R31: 31364326.02 | S31: 7689821.439 | T31: 0.2451773213 | V31: 152405184.6 | W31: 132345978.1 | X31: 20059206.5 | Y31: 0.1515664231
A32: %,V5020000 | B32: 5020000 | C32: Steam Expenses | F32: 166389.81 | G32: 161081.79 | H32: 5308.02 | I32: 0.03295232813 | K32: 1004301.07 | L32: 987585.79 | M32: 16715.28 | N32: 0.01692539541 | Q32: 470536.32 | R32: 492009.93 | S32: -21473.61 | T32: -0.0436446679 | V32: 2033152.61 | W32: 1697129.64 | X32: 336022.97 | Y32: 0.1979948745
A33: %,V5020002 | B33: 5020002 | C33: Urea Expense | F33: 56908.78 | G33: 82902.21 | H33: -25993.43 | I33: -0.3135432698 | K33: 407494.67 | L33: 390980.68 | M33: 16513.99 | N33: 0.04223735556 | Q33: 110708.06 | R33: 157744.72 | S33: -47036.66 | T33: -0.2981821515 | V33: 931003.57 | W33: 1002768.23 | X33: -71764.66 | Y33: -0.07156654734
A34: %,V5020004 | B34: 5020004 | C34: Lime-Related Expenses | F34: 202655.83 | G34: 92368.08 | H34: 110287.75 | I34: 1.194002842 | K34: 1108790.46 | L34: 780669.01 | M34: 328121.45 | N34: 0.4203080253 | Q34: 426005.4 | R34: 350614.95 | S34: 75390.45 | T34: 0.2150234894 | V34: 2738154.75 | W34: 2180933.43 | X34: 557221.32 | Y34: 0.2554967118
A35: %,FACCOUNT,X,TGL_FERC_ACCT,N5020 | B35: Line 6 | C35: (502) Steam Expenses | F35: 425954.42 | G35: 336352.08 | H35: 89602.34 | I35: 0.2663944876 | K35: 2520586.2 | L35: 2159235.48 | M35: 361350.72 | N35: 0.167351233 | Q35: 1007249.78 | R35: 1000369.6 | S35: 6880.18 | T35: 0.006877638025 | V35: 5702310.93 | W35: 4880831.3 | X35: 821479.63 | Y35: 0.1683073189
A36: %,FACCOUNT,X,TGL_FERC_ACCT,N5030 | B36: Line 7 | C36: (503) Steam from Other Sources | F36: 0 | G36: 0 | H36: 0 | I36: 0 | K36: 0 | L36: 0 | M36: 0 | N36: 0 | Q36: 0 | R36: 0 | S36: 0 | T36: 0 | V36: 0 | W36: 0 | X36: 0 | Y36: 0
A37: %,R,FACCOUNT,X,TGL_FERC_ACCT,N5040 | B37: Line 8 | C37: (Less) (504) Steam Transferred-Cr. | F37: 0 | G37: 0 | H37: 0 | I37: 0 | K37: 0 | L37: 0 | M37: 0 | N37: 0 | Q37: 0 | R37: 0 | S37: 0 | T37: 0 | V37: 0 | W37: 0 | X37: 0 | Y37: 0
A38: %,V5050000 | B38: 5050000 | C38: Electric Expenses | F38: 1727.81 | G38: 13658.29 | H38: -11930.48 | I38: -0.8734973412 | K38: 32761.35 | L38: 39587.04 | M38: -6825.69 | N38: -0.1724223382 | Q38: 18048.22 | R38: 36774.96 | S38: -18726.74 | T38: -0.509225299 | V38: 68217.7 | W38: 65726.21 | X38: 2491.49 | Y38: 0.03790709977
A39: %,FACCOUNT,X,TGL_FERC_ACCT,N5050 | B39: Line 9 | C39: (505) Electric Expenses | F39: 1727.81 | G39: 13658.29 | H39: -11930.48 | I39: -0.8734973412 | K39: 32761.35 | L39: 39587.04 | M39: -6825.69 | N39: -0.1724223382 | Q39: 18048.22 | R39: 36774.96 | S39: -18726.74 | T39: -0.509225299 | V39: 68217.7 | W39: 65726.21 | X39: 2491.49 | Y39: 0.03790709977
A40: %,V5060000 | B40: 5060000 | C40: Misc Steam Power Expenses | F40: 462090.4 | G40: 412492.9 | H40: 49597.5 | I40: 0.1202384332 | K40: 2914752.76 | L40: 2393523.596 | M40: 521229.164 | N40: 0.2177664615 | Q40: 1333971.94 | R40: 1241600.27 | S40: 92371.67 | T40: 0.07439726958 | V40: 5530900.59 | W40: 4958181.756 | X40: 572718.834 | Y40: 0.1155098506
A41: %,V5060002 | B41: 5060002 | C41: Misc Steam Power Exp-Assoc | F41: 4071.92 | G41: 3074.38 | H41: 997.54 | I41: 0.3244686734 | K41: 27666.14 | L41: 25593.01 | M41: 2073.13 | N41: 0.08100375845 | Q41: 12789.6 | R41: 11208.78 | S41: 1580.82 | T41: 0.1410340822 | V41: 50072.44 | W41: 50832.15 | X41: -759.71 | Y41: -0.01494546266
A42: %,V5060011 | B42: 5060011 | C42: BSRR O/U Recovery-Oper Costs | F42: 1779.73 | G42: 0 | H42: 1779.73 | I42: N.M. | K42: 9899.81 | L42: 0 | M42: 9899.81 | N42: N.M. | Q42: 9899.81 | R42: 0 | S42: 9899.81 | T42: N.M. | V42: 9899.81 | W42: 0 | X42: 9899.81 | Y42: N.M.
A43: %,FACCOUNT,X,TGL_FERC_ACCT,N5060,N5080 | B43: Line 10 | C43: (506) Miscellaneous Steam Power Expenses | F43: 467942.05 | G43: 415567.28 | H43: 52374.77 | I43: 0.1260319869 | K43: 2952318.71 | L43: 2419116.606 | M43: 533202.104 | N43: 0.2204119068 | Q43: 1356661.35 | R43: 1252809.05 | S43: 103852.3 | T43: 0.0828955538 | V43: 5590872.84 | W43: 5009013.906 | X43: 581858.934 | Y43: 0.1161623715
A44: %,V5070006 | B44: 5070006 | C44: Rents - Associated | F44: 127.56 | G44: 193.17 | H44: -65.61 | I44: -0.3396490138 | K44: 765.35 | L44: 1159.02 | M44: -393.67 | N44: -0.3396576418 | Q44: 382.68 | R44: 579.51 | S44: -196.83 | T44: -0.3396490138 | V44: 1924.37 | W44: 1159.02 | X44: 765.35 | Y44: 0.6603423582
A45: %,FACCOUNT,X,TGL_FERC_ACCT,N5070 | B45: Line 11 | C45: (507) Rents | F45: 127.56 | G45: 193.17 | H45: =+F45-G45 -> -65.61 | I45: =IF(G45<0,IF(H45=0,0,IF(OR(G45=0,F45=0),"N.M.",IF(ABS(H45/G45)>=10,"N.M.",H45/(-G45)))),IF(H45=0,0,IF(OR(G45=0,F45=0),"N.M.",IF(ABS(H45/G45)>=10,"N.M.",H45/G45)))) -> -0.3396490138 | K45: 765.35 | L45: 1159.02 | M45: =+K45-L45 -> -393.67 | N45: =IF(L45<0,IF(M45=0,0,IF(OR(L45=0,K45=0),"N.M.",IF(ABS(M45/L45)>=10,"N.M.",M45/(-L45)))),IF(M45=0,0,IF(OR(L45=0,K45=0),"N.M.",IF(ABS(M45/L45)>=10,"N.M.",M45/L45)))) -> -0.3396576418 | Q45: 382.68 | R45: 579.51 | S45: =+Q45-R45 -> -196.83 | T45: =IF(R45<0,IF(S45=0,0,IF(OR(R45=0,Q45=0),"N.M.",IF(ABS(S45/R45)>=10,"N.M.",S45/(-R45)))),IF(S45=0,0,IF(OR(R45=0,Q45=0),"N.M.",IF(ABS(S45/R45)>=10,"N.M.",S45/R45)))) -> -0.3396490138 | V45: 1924.37 | W45: 1159.02 | X45: =+V45-W45 -> 765.35 | Y45: =IF(W45<0,IF(X45=0,0,IF(OR(W45=0,V45=0),"N.M.",IF(ABS(X45/W45)>=10,"N.M.",X45/(-W45)))),IF(X45=0,0,IF(OR(W45=0,V45=0),"N.M.",IF(ABS(X45/W45)>=10,"N.M.",X45/W45)))) -> 0.6603423582
A46: %,V5090000 | B46: 5090000 | C46: Allow Consum Title IV SO2 | F46: 2859.33 | G46: 1321.84 | H46: 1537.49 | I46: 1.1631438 | K46: 8772.35 | L46: 7860.93 | M46: 911.42 | N46: 0.1159430246 | Q46: 5478.42 | R46: 2605.91 | S46: 2872.51 | T46: 1.102305912 | V46: 17609.82 | W46: 33077.77 | X46: -15467.95 | Y46: -0.4676237243
A47: %,V5090001 | B47: 5090001 | C47: Allowance Consumption - NOx | F47: -24634.08 | G47: 0 | H47: -24634.08 | I47: N.M. | K47: -39768.74 | L47: 0 | M47: -39768.74 | N47: N.M. | Q47: -39768.74 | R47: 0 | S47: -39768.74 | T47: N.M. | V47: -196911.6 | W47: 42857.15 | X47: -239768.75 | Y47: -5.594603234
A48: %,V5090009 | B48: 5090009 | C48: Allow Consumpt CSAPR SO2 | F48: 14.25 | G48: 6.46 | H48: 7.79 | I48: 1.205882353 | K48: 43.25 | L48: 38.4 | M48: 4.85 | N48: 0.1263020833 | Q48: 27.1 | R48: 12.74 | S48: 14.36 | T48: 1.127158556 | V48: 85.87 | W48: 159.26 | X48: -73.39 | Y48: -0.4608187869
A49: %,FACCOUNT,X,TGL_FERC_ACCT,N5090 | B49: Line 12 | C49: (509) Allowances | F49: -21760.5 | G49: 1328.3 | H49: -23088.8 | I49: N.M. | K49: -30953.14 | L49: 7899.33 | M49: -38852.47 | N49: -4.918451312 | Q49: -34263.22 | R49: 2618.65 | S49: -36881.87 | T49: N.M. | V49: -179215.91 | W49: 76094.18 | X49: -255310.09 | Y49: -3.355185508
A50: %,V5000000 | B50: 5000000 | C50: Oper Supervision & Engineering | F50: 370425.13 | G50: 340471.02 | H50: 29954.11 | I50: 0.08797844234 | K50: 2287064.52 | L50: 1951709.91 | M50: 335354.61 | N50: 0.1718260528 | Q50: 1095506.19 | R50: 964221.19 | S50: 131285 | T50: 0.1361565182 | V50: 4838427.2 | W50: 4041549.7 | X50: 796877.5 | Y50: 0.1971712732
A51: %,V5000002 | B51: 5000002 | C51: Dresden Oper Supervision & Eng | F51: 0 | G51: 0 | H51: 0 | I51: 0 | K51: 0 | L51: 0 | M51: 0 | N51: 0 | Q51: 0 | R51: 0 | S51: 0 | T51: 0 | V51: -33.12 | W51: 0 | X51: -33.12 | Y51: N.M.
A52: %,V5000003 | B52: 5000003 | C52: Cnstr Srchrge Op Sup & Eng Exp | F52: 0 | G52: 0 | H52: 0 | I52: 0 | K52: 0 | L52: 0 | M52: 0 | N52: 0 | Q52: 0 | R52: 0 | S52: 0 | T52: 0 | V52: 64.34 | W52: 0 | X52: 64.34 | Y52: N.M.
A53: %,V5010000 | B53: 5010000 | C53: Fuel | F53: 523739.1 | G53: 438840.56 | H53: 84898.54 | I53: 0.1934610146 | K53: 3131516.11 | L53: 4099683.87 | M53: -968167.76 | N53: -0.2361566869 | Q53: 1689503.55 | R53: 1397412.57 | S53: 292090.98 | T53: 0.2090227226 | V53: 6782297.75 | W53: 7373288.13 | X53: -590990.38 | Y53: -0.08015289374
A54: %,V5010001 | B54: 5010001 | C54: Fuel Consumed | F54: 4070848.44 | G54: 5465171.12 | H54: -1394322.68 | I54: -0.2551288239 | K54: 30111505.26 | L54: 28988957.97 | M54: 1122547.29 | N54: 0.0387232715 | Q54: 10520090.72 | R54: 11994024.05 | S54: -1473933.33 | T54: -0.1228889757 | V54: 75432287.23 | W54: 72898701.36 | X54: 2533585.87 | Y54: 0.03475488346
A55: %,V5010003 | B55: 5010003 | C55: Fuel - Procure Unload & Handle | F55: 369120.61 | G55: 500918.55 | H55: -131797.94 | I55: -0.263112516 | K55: 1773107.11 | L55: 1749200.13 | M55: 23906.98 | N55: 0.01366737836 | Q55: 755364.45 | R55: 890622.49 | S55: -135258.04 | T55: -0.1518691045 | V55: 4095539.11 | W55: 3804662.46 | X55: 290876.65 | Y55: 0.07645268222
A56: %,V5010005 | B56: 5010005 | C56: Fuel - Deferred | F56: 3211356.809 | G56: -3340582.92 | H56: 6551939.729 | I56: 1.961316299 | K56: 3635723.411 | L56: 1555354.3 | M56: 2080369.111 | N56: 1.337553194 | Q56: 13528402.91 | R56: 2122048.909 | S56: 11406354 | T56: 5.375160749 | V56: 7217515.944 | W56: -267358.96 | X56: 7484874.904 | Y56: N.M.
A57: %,V5010012 | B57: 5010012 | C57: Ash Sales Proceeds | F57: 789.28 | G57: -1796.76 | H57: 2586.04 | I57: 1.439279592 | K57: 3607.35 | L57: 1958.46 | M57: 1648.89 | N57: 0.8419319261 | Q57: 1810.86 | R57: -1376.5 | S57: 3187.36 | T57: 2.315553941 | V57: 8923.83 | W57: 12268.57 | X57: -3344.74 | Y57: -0.2726267201
A58: %,V5010013 | B58: 5010013 | C58: Fuel Survey Activity | F58: 2019976.75 | G58: 4136038.43 | H58: -2116061.68 | I58: -0.5116155751 | K58: 2019976.75 | L58: 4136038.43 | M58: -2116061.68 | N58: -0.5116155751 | Q58: 2019976.75 | R58: 4136038.43 | S58: -2116061.68 | T58: -0.5116155751 | V58: 1790471.45 | W58: 4136038.43 | X58: -2345566.98 | Y58: -0.5671047355
A59: %,V5010019 | B59: 5010019 | C59: Fuel Oil Consumed | F59: 953718.64 | G59: 1026257.44 | H59: -72538.8 | I59: -0.07068284932 | K59: 3132568.8 | L59: 2389555.58 | M59: 743013.22 | N59: 0.3109420121 | Q59: 2292899.62 | R59: 1283557.56 | S59: 1009342.06 | T59: 0.7863629115 | V59: 4881341.3 | W59: 4306433.5 | X59: 574907.8 | Y59: 0.133499751
A60: %,V5010020 | B60: 5010020 | C60: Nat Gas Consumed Steam | F60: 2695738.82 | G60: 3625585.34 | H60: -929846.52 | I60: -0.2564679721 | K60: 26607729.1 | L60: 20948927.28 | M60: 5658801.82 | N60: 0.2701237034 | Q60: 6177446.99 | R60: 8035922.82 | S60: -1858475.83 | T60: -0.2312709905 | V60: 44534997.75 | W60: 31582773.46 | X60: 12952224.29 | Y60: 0.4101040812
A61: %,V5010021 | B61: 5010021 | C61: Transp Gas Consumed Steam | F61: 26793.66 | G61: 86157.96 | H61: -59364.3 | I61: -0.6890170102 | K61: 269749.79 | L61: 280191.31 | M61: -10441.52 | N61: -0.03726568108 | Q61: 92616.18 | R61: 171145.92 | S61: -78529.74 | T61: -0.4588466964 | V61: 490330.77 | W61: 387422.67 | X61: 102908.1 | Y61: 0.2656222983
A62: %,V5010027 | B62: 5010027 | C62: Gypsum handling/disposal costs | F62: 118418.89 | G62: 119621.95 | H62: -1203.06 | I62: -0.01005718432 | K62: 791622.73 | L62: 645973.99 | M62: 145648.74 | N62: 0.225471524 | Q62: 363936.37 | R62: 278311.02 | S62: 85625.35 | T62: 0.3076606525 | V62: 1537996.39 | W62: 1355179.5 | X62: 182816.89 | Y62: 0.1349023432
A63: %,V5010028 | B63: 5010028 | C63: Gypsum Sales Proceeds | F63: -24552.9 | G63: -57542.76 | H63: 32989.86 | I63: 0.5733103522 | K63: -496616.48 | L63: -609206.72 | M63: 112590.24 | N63: 0.1848145076 | Q63: -138566.82 | R63: -209761.13 | S63: 71194.31 | T63: 0.3394065907 | V63: -1109851.93 | W63: -1225360.95 | X63: 115509.02 | Y63: 0.09426530199
A64: %,V5010033 | B64: 5010033 | C64: Coal Procurement Sales Net-NA | F64: 0 | G64: 0 | H64: 0 | I64: 0 | K64: 281689.3 | L64: 0 | M64: 281689.3 | N64: N.M. | Q64: 150302.14 | R64: 0 | S64: 150302.14 | T64: N.M. | V64: 281689.3 | W64: 0 | X64: 281689.3 | Y64: N.M.
A65: %,V5010034 | B65: 5010034 | C65: Gas Transp Res Fees-Steam | F65: 488447.28 | G65: 487940.4 | H65: 506.88 | I65: 0.001038815396 | K65: 2950274.16 | L65: 3097248.48 | M65: -146974.32 | N65: -0.04745318981 | Q65: 1481258.16 | R65: 1481684.4 | S65: -426.24 | T65: -0.0002876725975 | V65: 5956231.74 | W65: 6185840.6 | X65: -229608.86 | Y65: -0.03711845727
A66: %,V5010040 | B66: 5010040 | C66: Gas Procuremnt Sales Net | F66: -4024.51 | G66: -0.045 | H66: -4024.465 | I66: N.M. | K66: 119105.71 | L66: 237983.675 | M66: -118877.965 | N66: -0.4995215113 | Q66: 119105.58 | R66: -215304.515 | S66: 334410.095 | T66: 1.553195923 | V66: 505413.935 | W66: 1796089.295 | X66: -1290675.36 | Y66: -0.7186031138
A67: %,V5020000 | B67: 5020000 | C67: Steam Expenses | F67: 166389.81 | G67: 161081.79 | H67: 5308.02 | I67: 0.03295232813 | K67: 1004301.07 | L67: 987585.79 | M67: 16715.28 | N67: 0.01692539541 | Q67: 470536.32 | R67: 492009.93 | S67: -21473.61 | T67: -0.0436446679 | V67: 2033152.61 | W67: 1697129.64 | X67: 336022.97 | Y67: 0.1979948745
A68: %,V5020002 | B68: 5020002 | C68: Urea Expense | F68: 56908.78 | G68: 82902.21 | H68: -25993.43 | I68: -0.3135432698 | K68: 407494.67 | L68: 390980.68 | M68: 16513.99 | N68: 0.04223735556 | Q68: 110708.06 | R68: 157744.72 | S68: -47036.66 | T68: -0.2981821515 | V68: 931003.57 | W68: 1002768.23 | X68: -71764.66 | Y68: -0.07156654734
A69: %,V5020004 | B69: 5020004 | C69: Lime-Related Expenses | F69: 202655.83 | G69: 92368.08 | H69: 110287.75 | I69: 1.194002842 | K69: 1108790.46 | L69: 780669.01 | M69: 328121.45 | N69: 0.4203080253 | Q69: 426005.4 | R69: 350614.95 | S69: 75390.45 | T69: 0.2150234894 | V69: 2738154.75 | W69: 2180933.43 | X69: 557221.32 | Y69: 0.2554967118
A70: %,V5050000 | B70: 5050000 | C70: Electric Expenses | F70: 1727.81 | G70: 13658.29 | H70: -11930.48 | I70: -0.8734973412 | K70: 32761.35 | L70: 39587.04 | M70: -6825.69 | N70: -0.1724223382 | Q70: 18048.22 | R70: 36774.96 | S70: -18726.74 | T70: -0.509225299 | V70: 68217.7 | W70: 65726.21 | X70: 2491.49 | Y70: 0.03790709977
A71: %,V5060000 | B71: 5060000 | C71: Misc Steam Power Expenses | F71: 462090.4 | G71: 412492.9 | H71: 49597.5 | I71: 0.1202384332 | K71: 2914752.76 | L71: 2393523.596 | M71: 521229.164 | N71: 0.2177664615 | Q71: 1333971.94 | R71: 1241600.27 | S71: 92371.67 | T71: 0.07439726958 | V71: 5530900.59 | W71: 4958181.756 | X71: 572718.834 | Y71: 0.1155098506
A72: %,V5060002 | B72: 5060002 | C72: Misc Steam Power Exp-Assoc | F72: 4071.92 | G72: 3074.38 | H72: 997.54 | I72: 0.3244686734 | K72: 27666.14 | L72: 25593.01 | M72: 2073.13 | N72: 0.08100375845 | Q72: 12789.6 | R72: 11208.78 | S72: 1580.82 | T72: 0.1410340822 | V72: 50072.44 | W72: 50832.15 | X72: -759.71 | Y72: -0.01494546266
A73: %,V5060011 | B73: 5060011 | C73: BSRR O/U Recovery-Oper Costs | F73: 1779.73 | G73: 0 | H73: 1779.73 | I73: N.M. | K73: 9899.81 | L73: 0 | M73: 9899.81 | N73: N.M. | Q73: 9899.81 | R73: 0 | S73: 9899.81 | T73: N.M. | V73: 9899.81 | W73: 0 | X73: 9899.81 | Y73: N.M.
A74: %,V5070006 | B74: 5070006 | C74: Rents - Associated | F74: 127.56 | G74: 193.17 | H74: -65.61 | I74: -0.3396490138 | K74: 765.35 | L74: 1159.02 | M74: -393.67 | N74: -0.3396576418 | Q74: 382.68 | R74: 579.51 | S74: -196.83 | T74: -0.3396490138 | V74: 1924.37 | W74: 1159.02 | X74: 765.35 | Y74: 0.6603423582
A75: %,V5090000 | B75: 5090000 | C75: Allow Consum Title IV SO2 | F75: 2859.33 | G75: 1321.84 | H75: 1537.49 | I75: 1.1631438 | K75: 8772.35 | L75: 7860.93 | M75: 911.42 | N75: 0.1159430246 | Q75: 5478.42 | R75: 2605.91 | S75: 2872.51 | T75: 1.102305912 | V75: 17609.82 | W75: 33077.77 | X75: -15467.95 | Y75: -0.4676237243
A76: %,V5090001 | B76: 5090001 | C76: Allowance Consumption - NOx | F76: -24634.08 | G76: 0 | H76: -24634.08 | I76: N.M. | K76: -39768.74 | L76: 0 | M76: -39768.74 | N76: N.M. | Q76: -39768.74 | R76: 0 | S76: -39768.74 | T76: N.M. | V76: -196911.6 | W76: 42857.15 | X76: -239768.75 | Y76: -5.594603234
A77: %,V5090009 | B77: 5090009 | C77: Allow Consumpt CSAPR SO2 | F77: 14.25 | G77: 6.46 | H77: =+F77-G77 -> 7.79 | I77: =IF(G77<0,IF(H77=0,0,IF(OR(G77=0,F77=0),"N.M.",IF(ABS(H77/G77)>=10,"N.M.",H77/(-G77)))),IF(H77=0,0,IF(OR(G77=0,F77=0),"N.M.",IF(ABS(H77/G77)>=10,"N.M.",H77/G77)))) -> 1.205882353 | K77: 43.25 | L77: 38.4 | M77: =+K77-L77 -> 4.85 | N77: =IF(L77<0,IF(M77=0,0,IF(OR(L77=0,K77=0),"N.M.",IF(ABS(M77/L77)>=10,"N.M.",M77/(-L77)))),IF(M77=0,0,IF(OR(L77=0,K77=0),"N.M.",IF(ABS(M77/L77)>=10,"N.M.",M77/L77)))) -> 0.1263020833 | Q77: 27.1 | R77: 12.74 | S77: =+Q77-R77 -> 14.36 | T77: =IF(R77<0,IF(S77=0,0,IF(OR(R77=0,Q77=0),"N.M.",IF(ABS(S77/R77)>=10,"N.M.",S77/(-R77)))),IF(S77=0,0,IF(OR(R77=0,Q77=0),"N.M.",IF(ABS(S77/R77)>=10,"N.M.",S77/R77)))) -> 1.127158556 | V77: 85.87 | W77: 159.26 | X77: =+V77-W77 -> -73.39 | Y77: =IF(W77<0,IF(X77=0,0,IF(OR(W77=0,V77=0),"N.M.",IF(ABS(X77/W77)>=10,"N.M.",X77/(-W77)))),IF(X77=0,0,IF(OR(W77=0,V77=0),"N.M.",IF(ABS(X77/W77)>=10,"N.M.",X77/W77)))) -> -0.4608187869
A78: %,FACCOUNT,X,TGL_FERC_ACCT,N500-509 | B78: Line 13 | C78: TOTAL Operation (Enter Total of Lines 4 thru 12) | D78: o | F78: 15694787.34 | G78: 13594179.41 | H78: 2100607.934 | I78: 0.1545225991 | K78: 82094102.09 | L78: 74100574.14 | M78: 7993527.95 | N78: 0.1078740353 | Q78: 42497732.46 | R78: 34621698.98 | S78: 7876033.479 | T78: 0.2274883587 | V78: 168427752.9 | W78: 146420352.4 | X78: 22007400.54 | Y78: 0.1503028792
B79: Line 14 | C79: Maintenance
A80: %,V5100000 | B80: 5100000 | C80: Maint Supv & Engineering | F80: 69178.41 | G80: 65789.02 | H80: =+F80-G80 -> 3389.39 | I80: =IF(G80<0,IF(H80=0,0,IF(OR(G80=0,F80=0),"N.M.",IF(ABS(H80/G80)>=10,"N.M.",H80/(-G80)))),IF(H80=0,0,IF(OR(G80=0,F80=0),"N.M.",IF(ABS(H80/G80)>=10,"N.M.",H80/G80)))) -> 0.05151908328 | K80: 544937.32 | L80: 524607.31 | M80: =+K80-L80 -> 20330.01 | N80: =IF(L80<0,IF(M80=0,0,IF(OR(L80=0,K80=0),"N.M.",IF(ABS(M80/L80)>=10,"N.M.",M80/(-L80)))),IF(M80=0,0,IF(OR(L80=0,K80=0),"N.M.",IF(ABS(M80/L80)>=10,"N.M.",M80/L80)))) -> 0.03875281494 | Q80: 251424.65 | R80: 263765.79 | S80: =+Q80-R80 -> -12341.14 | T80: =IF(R80<0,IF(S80=0,0,IF(OR(R80=0,Q80=0),"N.M.",IF(ABS(S80/R80)>=10,"N.M.",S80/(-R80)))),IF(S80=0,0,IF(OR(R80=0,Q80=0),"N.M.",IF(ABS(S80/R80)>=10,"N.M.",S80/R80)))) -> -0.04678825105 | V80: 1012012.1 | W80: 1289727.2 | X80: =+V80-W80 -> -277715.1 | Y80: =IF(W80<0,IF(X80=0,0,IF(OR(W80=0,V80=0),"N.M.",IF(ABS(X80/W80)>=10,"N.M.",X80/(-W80)))),IF(X80=0,0,IF(OR(W80=0,V80=0),"N.M.",IF(ABS(X80/W80)>=10,"N.M.",X80/W80)))) -> -0.2153285594
A81: %,V5100001 | B81: 5100001 | C81: Dresden Maint Sup& Engineer | F81: 15.71 | G81: 0 | H81: 15.71 | I81: N.M. | K81: 5.77 | L81: 0 | M81: 5.77 | N81: N.M. | Q81: 15.71 | R81: 0 | S81: 15.71 | T81: N.M. | V81: 375.34 | W81: 0 | X81: 375.34 | Y81: N.M.
A82: %,FACCOUNT,X,TGL_FERC_ACCT,N5100 | B82: Line 15 | C82: (510) Maintenance Supervision and Engineering | F82: 69194.12 | G82: 65789.02 | H82: 3405.1 | I82: 0.05175787692 | K82: 544943.09 | L82: 524607.31 | M82: 20335.78 | N82: 0.03876381364 | Q82: 251440.36 | R82: 263765.79 | S82: -12325.43 | T82: -0.04672869063 | V82: 1012387.44 | W82: 1289727.2 | X82: -277339.76 | Y82: -0.2150375366
A83: %,V5110000 | B83: 5110000 | C83: Maintenance of Structures | F83: 99973.82 | G83: 167010.37 | H83: -67036.55 | I83: -0.4013915423 | K83: 970716.25 | L83: 900636.81 | M83: 70079.44 | N83: 0.07781098798 | Q83: 380452.15 | R83: 447180.39 | S83: -66728.24 | T83: -0.1492199602 | V83: 1762959.08 | W83: 2065957.56 | X83: -302998.48 | Y83: -0.14666249
A84: %,FACCOUNT,X,TGL_FERC_ACCT,N5110 | B84: Line 16 | C84: (511) Maintenance of Structures | F84: 99973.82 | G84: 167010.37 | H84: -67036.55 | I84: -0.4013915423 | K84: 970716.25 | L84: 900636.81 | M84: 70079.44 | N84: 0.07781098798 | Q84: 380452.15 | R84: 447180.39 | S84: -66728.24 | T84: -0.1492199602 | V84: 1762959.08 | W84: 2065957.56 | X84: -302998.48 | Y84: -0.14666249
A85: %,V5120000 | B85: 5120000 | C85: Maintenance of Boiler Plant | F85: 721884.84 | G85: 316845.68 | H85: 405039.16 | I85: 1.278348375 | K85: 6885136.69 | L85: 7594538.63 | M85: -709401.94 | N85: -0.0934094847 | Q85: 3858686.37 | R85: 3724881.02 | S85: 133805.35 | T85: 0.03592204671 | V85: 11837820 | W85: 15209176.84 | X85: -3371356.84 | Y85: -0.2216659636
A86: %,V5120034 | B86: 5120034 | C86: BSDR O/U Recovery - Maint Cost | F86: -1845.36 | G86: -540.36 | H86: -1305 | I86: -2.415056629 | K86: -17752.8 | L86: -3221.82 | M86: -14530.98 | N86: -4.510177477 | Q86: -14903.28 | R86: -2634.75 | S86: -12268.53 | T86: -4.656430401 | V86: -23053.4 | W86: -7719.5 | X86: -15333.9 | Y86: -1.986385129
A87: %,V5120037 | B87: 5120037 | C87: KY Steam Maint O/U | F87: -58271.11 | G87: -58271.11 | H87: 0 | I87: 0 | K87: -349626.66 | L87: -349626.66 | M87: 0 | N87: 0 | Q87: -174813.33 | R87: -174813.33 | S87: 0 | T87: 0 | V87: -699253.32 | W87: -699253.32 | X87: 0 | Y87: 0
A88: %,FACCOUNT,X,TGL_FERC_ACCT,N5120 | B88: Line 17 | C88: (512) Maintenance of Boiler Plant | F88: 661768.37 | G88: 258034.21 | H88: 403734.16 | I88: 1.564653617 | K88: 6517757.23 | L88: 7241690.15 | M88: -723932.92 | N88: -0.0999673978 | Q88: 3668969.76 | R88: 3547432.94 | S88: 121536.82 | T88: 0.03426049824 | V88: 11115513.28 | W88: 14502204.02 | X88: -3386690.74 | Y88: -0.2335293818
A89: %,V5130000 | B89: 5130000 | C89: Maintenance of Electric Plant | F89: 533257.79 | G89: 252404.07 | H89: 280853.72 | I89: 1.112714704 | K89: 3284304.64 | L89: 2628405.12 | M89: 655899.52 | N89: 0.2495427798 | Q89: 2120560.3 | R89: 1135146.34 | S89: 985413.96 | T89: 0.8680942054 | V89: 6562013.02 | W89: 4489140.33 | X89: 2072872.69 | Y89: 0.4617527049
A90: %,FACCOUNT,X,TGL_FERC_ACCT,N5130 | B90: Line 18 | C90: (513) Maintenance of Electric Plant | F90: 533257.79 | G90: 252404.07 | H90: 280853.72 | I90: 1.112714704 | K90: 3284304.64 | L90: 2628405.12 | M90: 655899.52 | N90: 0.2495427798 | Q90: 2120560.3 | R90: 1135146.34 | S90: 985413.96 | T90: 0.8680942054 | V90: 6562013.02 | W90: 4489140.33 | X90: 2072872.69 | Y90: 0.4617527049
A91: %,FACCOUNT,X,TGL_FERC_ACCT,N5131 | B91: Line 18.1 | C91: (513.1) Maintenance of Computer Hardware | D91: m | F91: 0 | G91: 0 | H91: 0 | I91: 0 | K91: 0 | L91: 0 | M91: 0 | Q91: 0 | R91: 0 | S91: 0 | V91: 0 | W91: 0 | X91: 0 | Y91: 0
A92: %,V5132000 | B92: 5132000 | C92: Maint of Computer Software-Mjr | F92: 3837.85 | G92: 2475.3 | H92: 1362.55 | I92: 0.5504585303 | K92: 23100.95 | L92: 29545.25 | M92: -6444.3 | Q92: 10026.75 | R92: 12377.75 | S92: -2351 | V92: 48820.7 | W92: 29545.25 | X92: 19275.45 | Y92: 0.6524043628
A93: %,FACCOUNT,X,TGL_FERC_ACCT,N5132 | B93: Line 18.2 | C93: (513.2) Maintenance of Computer Software | D93: m | F93: 3837.85 | G93: 2475.3 | H93: 1362.55 | I93: 0.5504585303 | K93: 23100.95 | L93: 29545.25 | M93: -6444.3 | Q93: 10026.75 | R93: 12377.75 | S93: -2351 | V93: 48820.7 | W93: 29545.25 | X93: 19275.45 | Y93: 0.6524043628
A94: %,V5133000 | B94: 5133000 | C94: Maint of Comm Equipmt-Mjr | F94: 272.28 | G94: 248.73 | H94: 23.55 | I94: 0.09468097938 | K94: 3696.97 | L94: 1372.91 | M94: 2324.06 | Q94: 741.23 | R94: 961.05 | S94: -219.82 | V94: 8007.79 | W94: 1372.91 | X94: 6634.88 | Y94: 4.832712996
A95: %,FACCOUNT,X,TGL_FERC_ACCT,N5133 | B95: Line 18.3 | C95: (513.3) Maintenance of Communication Equipment | D95: m | F95: 272.28 | G95: 248.73 | H95: 23.55 | I95: 0.09468097938 | K95: 3696.97 | L95: 1372.91 | M95: 2324.06 | Q95: 741.23 | R95: 961.05 | S95: -219.82 | V95: 8007.79 | W95: 1372.91 | X95: 6634.88 | Y95: 4.832712996
A96: %,V5140000 | B96: 5140000 | C96: Maintenance of Misc Steam Plt | F96: 177278.11 | G96: 183758.83 | H96: -6480.72 | I96: -0.03526752973 | K96: 1139946.28 | L96: 748353.77 | M96: 391592.51 | N96: =IF(L96<0,IF(M96=0,0,IF(OR(L96=0,K96=0),"N.M.",IF(ABS(M96/L96)>=10,"N.M.",M96/(-L96)))),IF(M96=0,0,IF(OR(L96=0,K96=0),"N.M.",IF(ABS(M96/L96)>=10,"N.M.",M96/L96)))) -> 0.5232719146 | Q96: 652975.38 | R96: 343008.11 | S96: 309967.27 | T96: =IF(R96<0,IF(S96=0,0,IF(OR(R96=0,Q96=0),"N.M.",IF(ABS(S96/R96)>=10,"N.M.",S96/(-R96)))),IF(S96=0,0,IF(OR(R96=0,Q96=0),"N.M.",IF(ABS(S96/R96)>=10,"N.M.",S96/R96)))) -> 0.903673298 | V96: 1874135.14 | W96: 1466160 | X96: 407975.14 | Y96: 0.2782609947
A97: %,FACCOUNT,X,TGL_FERC_ACCT,N5140 | B97: Line 19 | C97: (514) Maintenance of Miscellaneous Steam Plant | F97: 177278.11 | G97: 183758.83 | H97: -6480.72 | I97: -0.03526752973 | K97: 1139946.28 | L97: 748353.77 | M97: 391592.51 | N97: 0.5232719146 | Q97: 652975.38 | R97: 343008.11 | S97: 309967.27 | T97: 0.903673298 | V97: 1874135.14 | W97: 1466160 | X97: 407975.14 | Y97: 0.2782609947
A98: %,V5100000 | B98: 5100000 | C98: Maint Supv & Engineering | F98: 69178.41 | G98: 65789.02 | H98: 3389.39 | I98: 0.05151908328 | K98: 544937.32 | L98: 524607.31 | M98: 20330.01 | N98: 0.03875281494 | Q98: 251424.65 | R98: 263765.79 | S98: -12341.14 | T98: -0.04678825105 | V98: 1012012.1 | W98: 1289727.2 | X98: -277715.1 | Y98: -0.2153285594
A99: %,V5100001 | B99: 5100001 | C99: Dresden Maint Sup& Engineer | F99: 15.71 | G99: 0 | H99: 15.71 | I99: N.M. | K99: 5.77 | L99: 0 | M99: 5.77 | N99: N.M. | Q99: 15.71 | R99: 0 | S99: 15.71 | T99: N.M. | V99: 375.34 | W99: 0 | X99: 375.34 | Y99: N.M.
A100: %,V5110000 | B100: 5110000 | C100: Maintenance of Structures | F100: 99973.82 | G100: 167010.37 | H100: -67036.55 | I100: -0.4013915423 | K100: 970716.25 | L100: 900636.81 | M100: 70079.44 | N100: 0.07781098798 | Q100: 380452.15 | R100: 447180.39 | S100: -66728.24 | T100: -0.1492199602 | V100: 1762959.08 | W100: 2065957.56 | X100: -302998.48 | Y100: -0.14666249
A101: %,V5120000 | B101: 5120000 | C101: Maintenance of Boiler Plant | F101: 721884.84 | G101: 316845.68 | H101: 405039.16 | I101: 1.278348375 | K101: 6885136.69 | L101: 7594538.63 | M101: -709401.94 | N101: -0.0934094847 | Q101: 3858686.37 | R101: 3724881.02 | S101: 133805.35 | T101: 0.03592204671 | V101: 11837820 | W101: 15209176.84 | X101: -3371356.84 | Y101: -0.2216659636
A102: %,V5120034 | B102: 5120034 | C102: BSDR O/U Recovery - Maint Cost | F102: -1845.36 | G102: -540.36 | H102: -1305 | I102: -2.415056629 | K102: -17752.8 | L102: -3221.82 | M102: -14530.98 | N102: -4.510177477 | Q102: -14903.28 | R102: -2634.75 | S102: -12268.53 | T102: -4.656430401 | V102: -23053.4 | W102: -7719.5 | X102: -15333.9 | Y102: -1.986385129
A103: %,V5120037 | B103: 5120037 | C103: KY Steam Maint O/U | F103: -58271.11 | G103: -58271.11 | H103: 0 | I103: 0 | K103: -349626.66 | L103: -349626.66 | M103: 0 | N103: 0 | Q103: -174813.33 | R103: -174813.33 | S103: 0 | T103: 0 | V103: -699253.32 | W103: -699253.32 | X103: 0 | Y103: 0
A104: %,V5130000 | B104: 5130000 | C104: Maintenance of Electric Plant | F104: 533257.79 | G104: 252404.07 | H104: 280853.72 | I104: 1.112714704 | K104: 3284304.64 | L104: 2628405.12 | M104: 655899.52 | N104: 0.2495427798 | Q104: 2120560.3 | R104: 1135146.34 | S104: 985413.96 | T104: 0.8680942054 | V104: 6562013.02 | W104: 4489140.33 | X104: 2072872.69 | Y104: 0.4617527049
A105: %,V5132000 | B105: 5132000 | C105: Maint of Computer Software-Mjr | F105: 3837.85 | G105: 2475.3 | H105: 1362.55 | I105: 0.5504585303 | K105: 23100.95 | L105: 29545.25 | M105: -6444.3 | N105: -0.2181162793 | Q105: 10026.75 | R105: 12377.75 | S105: -2351 | T105: -0.1899375896 | V105: 48820.7 | W105: 29545.25 | X105: 19275.45 | Y105: 0.6524043628
A106: %,V5133000 | B106: 5133000 | C106: Maint of Comm Equipmt-Mjr | F106: 272.28 | G106: 248.73 | H106: 23.55 | I106: 0.09468097938 | K106: 3696.97 | L106: 1372.91 | M106: 2324.06 | N106: 1.692798508 | Q106: 741.23 | R106: 961.05 | S106: -219.82 | T106: -0.2287289943 | V106: 8007.79 | W106: 1372.91 | X106: 6634.88 | Y106: 4.832712996
A107: %,V5140000 | B107: 5140000 | C107: Maintenance of Misc Steam Plt | F107: 177278.11 | G107: 183758.83 | H107: -6480.72 | I107: -0.03526752973 | K107: 1139946.28 | L107: 748353.77 | M107: 391592.51 | N107: 0.5232719146 | Q107: 652975.38 | R107: 343008.11 | S107: 309967.27 | T107: 0.903673298 | V107: 1874135.14 | W107: 1466160 | X107: 407975.14 | Y107: 0.2782609947
A108: %,FACCOUNT,X,TGL_FERC_ACCT,N510-515 | B108: Line 20 | C108: TOTAL Maintenance (Enter Total of lines 15 thru 19) | D108: m | F108: 1545582.34 | G108: 929720.53 | H108: 615861.81 | I108: 0.6624160596 | K108: 12484465.41 | L108: 12074611.32 | M108: 409854.09 | N108: 0.0339434603 | Q108: 7085165.93 | R108: 5749872.37 | S108: 1335293.56 | T108: 0.2322301217 | V108: 22383836.45 | W108: 23844107.27 | X108: -1460270.82 | Y108: -0.0612424195
A109: %,V5000000 | B109: 5000000 | C109: Oper Supervision & Engineering | F109: 370425.13 | G109: 340471.02 | H109: 29954.11 | I109: 0.08797844234 | K109: 2287064.52 | L109: 1951709.91 | M109: 335354.61 | N109: 0.1718260528 | Q109: 1095506.19 | R109: 964221.19 | S109: 131285 | T109: 0.1361565182 | V109: 4838427.2 | W109: 4041549.7 | X109: 796877.5 | Y109: 0.1971712732
A110: %,V5000002 | B110: 5000002 | C110: Dresden Oper Supervision & Eng | F110: 0 | G110: 0 | H110: 0 | I110: 0 | K110: 0 | L110: 0 | M110: 0 | N110: 0 | Q110: 0 | R110: 0 | S110: 0 | T110: 0 | V110: -33.12 | W110: 0 | X110: -33.12 | Y110: N.M.
A111: %,V5000003 | B111: 5000003 | C111: Cnstr Srchrge Op Sup & Eng Exp | F111: 0 | G111: 0 | H111: 0 | I111: 0 | K111: 0 | L111: 0 | M111: 0 | N111: 0 | Q111: 0 | R111: 0 | S111: 0 | T111: 0 | V111: 64.34 | W111: 0 | X111: 64.34 | Y111: N.M.
A112: %,V5010000 | B112: 5010000 | C112: Fuel | F112: 523739.1 | G112: 438840.56 | H112: 84898.54 | I112: 0.1934610146 | K112: 3131516.11 | L112: 4099683.87 | M112: =+K112-L112 -> -968167.76 | N112: -0.2361566869 | Q112: 1689503.55 | R112: 1397412.57 | S112: =+Q112-R112 -> 292090.98 | T112: 0.2090227226 | V112: 6782297.75 | W112: 7373288.13 | X112: =+V112-W112 -> -590990.38 | Y112: =IF(W112<0,IF(X112=0,0,IF(OR(W112=0,V112=0),"N.M.",IF(ABS(X112/W112)>=10,"N.M.",X112/(-W112)))),IF(X112=0,0,IF(OR(W112=0,V112=0),"N.M.",IF(ABS(X112/W112)>=10,"N.M.",X112/W112)))) -> -0.08015289374
A113: %,V5010001 | B113: 5010001 | C113: Fuel Consumed | F113: 4070848.44 | G113: 5465171.12 | H113: -1394322.68 | I113: -0.2551288239 | K113: 30111505.26 | L113: 28988957.97 | M113: 1122547.29 | N113: 0.0387232715 | Q113: 10520090.72 | R113: 11994024.05 | S113: -1473933.33 | T113: -0.1228889757 | V113: 75432287.23 | W113: 72898701.36 | X113: 2533585.87 | Y113: 0.03475488346
A114: %,V5010003 | B114: 5010003 | C114: Fuel - Procure Unload & Handle | F114: 369120.61 | G114: 500918.55 | H114: -131797.94 | I114: -0.263112516 | K114: 1773107.11 | L114: 1749200.13 | M114: 23906.98 | N114: 0.01366737836 | Q114: 755364.45 | R114: 890622.49 | S114: -135258.04 | T114: -0.1518691045 | V114: 4095539.11 | W114: 3804662.46 | X114: 290876.65 | Y114: 0.07645268222
A115: %,V5010005 | B115: 5010005 | C115: Fuel - Deferred | F115: 3211356.809 | G115: -3340582.92 | H115: 6551939.729 | I115: 1.961316299 | K115: 3635723.411 | L115: 1555354.3 | M115: 2080369.111 | N115: 1.337553194 | Q115: 13528402.91 | R115: 2122048.909 | S115: 11406354 | T115: 5.375160749 | V115: 7217515.944 | W115: -267358.96 | X115: 7484874.904 | Y115: N.M.
A116: %,V5010012 | B116: 5010012 | C116: Ash Sales Proceeds | F116: 789.28 | G116: -1796.76 | H116: 2586.04 | I116: 1.439279592 | K116: 3607.35 | L116: 1958.46 | M116: 1648.89 | N116: 0.8419319261 | Q116: 1810.86 | R116: -1376.5 | S116: 3187.36 | T116: 2.315553941 | V116: 8923.83 | W116: 12268.57 | X116: -3344.74 | Y116: -0.2726267201
A117: %,V5010013 | B117: 5010013 | C117: Fuel Survey Activity | F117: 2019976.75 | G117: 4136038.43 | H117: -2116061.68 | I117: -0.5116155751 | K117: 2019976.75 | L117: 4136038.43 | M117: -2116061.68 | N117: -0.5116155751 | Q117: 2019976.75 | R117: 4136038.43 | S117: -2116061.68 | T117: -0.5116155751 | V117: 1790471.45 | W117: 4136038.43 | X117: -2345566.98 | Y117: -0.5671047355
A118: %,V5010019 | B118: 5010019 | C118: Fuel Oil Consumed | F118: 953718.64 | G118: 1026257.44 | H118: -72538.8 | I118: -0.07068284932 | K118: 3132568.8 | L118: 2389555.58 | M118: 743013.22 | N118: 0.3109420121 | Q118: 2292899.62 | R118: 1283557.56 | S118: 1009342.06 | T118: 0.7863629115 | V118: 4881341.3 | W118: 4306433.5 | X118: 574907.8 | Y118: 0.133499751
A119: %,V5010020 | B119: 5010020 | C119: Nat Gas Consumed Steam | F119: 2695738.82 | G119: 3625585.34 | H119: -929846.52 | I119: -0.2564679721 | K119: 26607729.1 | L119: 20948927.28 | M119: 5658801.82 | N119: 0.2701237034 | Q119: 6177446.99 | R119: 8035922.82 | S119: -1858475.83 | T119: -0.2312709905 | V119: 44534997.75 | W119: 31582773.46 | X119: 12952224.29 | Y119: 0.4101040812
A120: %,V5010021 | B120: 5010021 | C120: Transp Gas Consumed Steam | F120: 26793.66 | G120: 86157.96 | H120: -59364.3 | I120: -0.6890170102 | K120: 269749.79 | L120: 280191.31 | M120: -10441.52 | N120: -0.03726568108 | Q120: 92616.18 | R120: 171145.92 | S120: -78529.74 | T120: -0.4588466964 | V120: 490330.77 | W120: 387422.67 | X120: 102908.1 | Y120: 0.2656222983
A121: %,V5010027 | B121: 5010027 | C121: Gypsum handling/disposal costs | F121: 118418.89 | G121: 119621.95 | H121: -1203.06 | I121: -0.01005718432 | K121: 791622.73 | L121: 645973.99 | M121: 145648.74 | N121: 0.225471524 | Q121: 363936.37 | R121: 278311.02 | S121: 85625.35 | T121: 0.3076606525 | V121: 1537996.39 | W121: 1355179.5 | X121: 182816.89 | Y121: 0.1349023432
A122: %,V5010028 | B122: 5010028 | C122: Gypsum Sales Proceeds | F122: -24552.9 | G122: -57542.76 | H122: 32989.86 | I122: 0.5733103522 | K122: -496616.48 | L122: -609206.72 | M122: 112590.24 | N122: 0.1848145076 | Q122: -138566.82 | R122: -209761.13 | S122: 71194.31 | T122: 0.3394065907 | V122: -1109851.93 | W122: -1225360.95 | X122: 115509.02 | Y122: 0.09426530199
A123: %,V5010033 | B123: 5010033 | C123: Coal Procurement Sales Net-NA | F123: 0 | G123: 0 | H123: 0 | I123: 0 | K123: 281689.3 | L123: 0 | M123: 281689.3 | N123: N.M. | Q123: 150302.14 | R123: 0 | S123: 150302.14 | T123: N.M. | V123: 281689.3 | W123: 0 | X123: 281689.3 | Y123: N.M.
A124: %,V5010034 | B124: 5010034 | C124: Gas Transp Res Fees-Steam | F124: 488447.28 | G124: 487940.4 | H124: 506.88 | I124: 0.001038815396 | K124: 2950274.16 | L124: 3097248.48 | M124: -146974.32 | N124: -0.04745318981 | Q124: 1481258.16 | R124: 1481684.4 | S124: -426.24 | T124: -0.0002876725975 | V124: 5956231.74 | W124: 6185840.6 | X124: -229608.86 | Y124: -0.03711845727
A125: %,V5010040 | B125: 5010040 | C125: Gas Procuremnt Sales Net | F125: -4024.51 | G125: -0.045 | H125: -4024.465 | I125: N.M. | K125: 119105.71 | L125: 237983.675 | M125: -118877.965 | N125: -0.4995215113 | Q125: 119105.58 | R125: -215304.515 | S125: 334410.095 | T125: 1.553195923 | V125: 505413.935 | W125: 1796089.295 | X125: -1290675.36 | Y125: -0.7186031138
A126: %,V5020000 | B126: 5020000 | C126: Steam Expenses | F126: 166389.81 | G126: 161081.79 | H126: 5308.02 | I126: 0.03295232813 | K126: 1004301.07 | L126: 987585.79 | M126: 16715.28 | N126: 0.01692539541 | Q126: 470536.32 | R126: 492009.93 | S126: -21473.61 | T126: -0.0436446679 | V126: 2033152.61 | W126: 1697129.64 | X126: 336022.97 | Y126: 0.1979948745
A127: %,V5020002 | B127: 5020002 | C127: Urea Expense | F127: 56908.78 | G127: 82902.21 | H127: -25993.43 | I127: -0.3135432698 | K127: 407494.67 | L127: 390980.68 | M127: 16513.99 | N127: 0.04223735556 | Q127: 110708.06 | R127: 157744.72 | S127: -47036.66 | T127: -0.2981821515 | V127: 931003.57 | W127: 1002768.23 | X127: -71764.66 | Y127: -0.07156654734
A128: %,V5020004 | B128: 5020004 | C128: Lime-Related Expenses | F128: 202655.83 | G128: 92368.08 | H128: 110287.75 | I128: 1.194002842 | K128: 1108790.46 | L128: 780669.01 | M128: 328121.45 | N128: =IF(L128<0,IF(M128=0,0,IF(OR(L128=0,K128=0),"N.M.",IF(ABS(M128/L128)>=10,"N.M.",M128/(-L128)))),IF(M128=0,0,IF(OR(L128=0,K128=0),"N.M.",IF(ABS(M128/L128)>=10,"N.M.",M128/L128)))) -> 0.4203080253 | Q128: 426005.4 | R128: 350614.95 | S128: 75390.45 | T128: =IF(R128<0,IF(S128=0,0,IF(OR(R128=0,Q128=0),"N.M.",IF(ABS(S128/R128)>=10,"N.M.",S128/(-R128)))),IF(S128=0,0,IF(OR(R128=0,Q128=0),"N.M.",IF(ABS(S128/R128)>=10,"N.M.",S128/R128)))) -> 0.2150234894 | V128: 2738154.75 | W128: 2180933.43 | X128: 557221.32 | Y128: 0.2554967118
A129: %,V5050000 | B129: 5050000 | C129: Electric Expenses | F129: 1727.81 | G129: 13658.29 | H129: -11930.48 | I129: -0.8734973412 | K129: 32761.35 | L129: 39587.04 | M129: -6825.69 | N129: -0.1724223382 | Q129: 18048.22 | R129: 36774.96 | S129: -18726.74 | T129: -0.509225299 | V129: 68217.7 | W129: 65726.21 | X129: 2491.49 | Y129: 0.03790709977
A130: %,V5060000 | B130: 5060000 | C130: Misc Steam Power Expenses | F130: 462090.4 | G130: 412492.9 | H130: 49597.5 | I130: 0.1202384332 | K130: 2914752.76 | L130: 2393523.596 | M130: 521229.164 | N130: 0.2177664615 | Q130: 1333971.94 | R130: 1241600.27 | S130: 92371.67 | T130: 0.07439726958 | V130: 5530900.59 | W130: 4958181.756 | X130: 572718.834 | Y130: 0.1155098506
A131: %,V5060002 | B131: 5060002 | C131: Misc Steam Power Exp-Assoc | F131: 4071.92 | G131: 3074.38 | H131: 997.54 | I131: 0.3244686734 | K131: 27666.14 | L131: 25593.01 | M131: 2073.13 | N131: 0.08100375845 | Q131: 12789.6 | R131: 11208.78 | S131: 1580.82 | T131: 0.1410340822 | V131: 50072.44 | W131: 50832.15 | X131: -759.71 | Y131: -0.01494546266
A132: %,V5060011 | B132: 5060011 | C132: BSRR O/U Recovery-Oper Costs | F132: 1779.73 | G132: 0 | H132: 1779.73 | I132: N.M. | K132: 9899.81 | L132: 0 | M132: 9899.81 | N132: N.M. | Q132: 9899.81 | R132: 0 | S132: 9899.81 | T132: N.M. | V132: 9899.81 | W132: 0 | X132: 9899.81 | Y132: N.M.
A133: %,V5070006 | B133: 5070006 | C133: Rents - Associated | F133: 127.56 | G133: 193.17 | H133: -65.61 | I133: -0.3396490138 | K133: 765.35 | L133: 1159.02 | M133: -393.67 | N133: -0.3396576418 | Q133: 382.68 | R133: 579.51 | S133: -196.83 | T133: -0.3396490138 | V133: 1924.37 | W133: 1159.02 | X133: 765.35 | Y133: 0.6603423582
A134: %,V5090000 | B134: 5090000 | C134: Allow Consum Title IV SO2 | F134: 2859.33 | G134: 1321.84 | H134: 1537.49 | I134: 1.1631438 | K134: 8772.35 | L134: 7860.93 | M134: 911.42 | N134: 0.1159430246 | Q134: 5478.42 | R134: 2605.91 | S134: 2872.51 | T134: 1.102305912 | V134: 17609.82 | W134: 33077.77 | X134: -15467.95 | Y134: -0.4676237243
A135: %,V5090001 | B135: 5090001 | C135: Allowance Consumption - NOx | F135: -24634.08 | G135: 0 | H135: -24634.08 | I135: N.M. | K135: -39768.74 | L135: 0 | M135: -39768.74 | N135: N.M. | Q135: -39768.74 | R135: 0 | S135: -39768.74 | T135: N.M. | V135: -196911.6 | W135: 42857.15 | X135: -239768.75 | Y135: -5.594603234
A136: %,V5090009 | B136: 5090009 | C136: Allow Consumpt CSAPR SO2 | F136: 14.25 | G136: 6.46 | H136: 7.79 | I136: 1.205882353 | K136: 43.25 | L136: 38.4 | M136: 4.85 | N136: 0.1263020833 | Q136: 27.1 | R136: 12.74 | S136: 14.36 | T136: 1.127158556 | V136: 85.87 | W136: 159.26 | X136: -73.39 | Y136: -0.4608187869
A137: %,V5100000 | B137: 5100000 | C137: Maint Supv & Engineering | F137: 69178.41 | G137: 65789.02 | H137: 3389.39 | I137: 0.05151908328 | K137: 544937.32 | L137: 524607.31 | M137: 20330.01 | N137: 0.03875281494 | Q137: 251424.65 | R137: 263765.79 | S137: -12341.14 | T137: -0.04678825105 | V137: 1012012.1 | W137: 1289727.2 | X137: -277715.1 | Y137: -0.2153285594
A138: %,V5100001 | B138: 5100001 | C138: Dresden Maint Sup& Engineer | F138: 15.71 | G138: 0 | H138: 15.71 | I138: N.M. | K138: 5.77 | L138: 0 | M138: 5.77 | N138: N.M. | Q138: 15.71 | R138: 0 | S138: 15.71 | T138: N.M. | V138: 375.34 | W138: 0 | X138: 375.34 | Y138: N.M.
A139: %,V5110000 | B139: 5110000 | C139: Maintenance of Structures | F139: 99973.82 | G139: 167010.37 | H139: -67036.55 | I139: -0.4013915423 | K139: 970716.25 | L139: 900636.81 | M139: 70079.44 | N139: 0.07781098798 | Q139: 380452.15 | R139: 447180.39 | S139: -66728.24 | T139: -0.1492199602 | V139: 1762959.08 | W139: 2065957.56 | X139: -302998.48 | Y139: -0.14666249
A140: %,V5120000 | B140: 5120000 | C140: Maintenance of Boiler Plant | F140: 721884.84 | G140: 316845.68 | H140: 405039.16 | I140: 1.278348375 | K140: 6885136.69 | L140: 7594538.63 | M140: -709401.94 | N140: -0.0934094847 | Q140: 3858686.37 | R140: 3724881.02 | S140: 133805.35 | T140: 0.03592204671 | V140: 11837820 | W140: 15209176.84 | X140: -3371356.84 | Y140: -0.2216659636
A141: %,V5120034 | B141: 5120034 | C141: BSDR O/U Recovery - Maint Cost | F141: -1845.36 | G141: -540.36 | H141: -1305 | I141: -2.415056629 | K141: -17752.8 | L141: -3221.82 | M141: -14530.98 | N141: -4.510177477 | Q141: -14903.28 | R141: -2634.75 | S141: -12268.53 | T141: -4.656430401 | V141: -23053.4 | W141: -7719.5 | X141: -15333.9 | Y141: -1.986385129
A142: %,V5120037 | B142: 5120037 | C142: KY Steam Maint O/U | F142: -58271.11 | G142: -58271.11 | H142: 0 | I142: 0 | K142: -349626.66 | L142: -349626.66 | M142: 0 | N142: 0 | Q142: -174813.33 | R142: -174813.33 | S142: 0 | T142: 0 | V142: -699253.32 | W142: -699253.32 | X142: 0 | Y142: 0
A143: %,V5130000 | B143: 5130000 | C143: Maintenance of Electric Plant | F143: 533257.79 | G143: 252404.07 | H143: 280853.72 | I143: 1.112714704 | K143: 3284304.64 | L143: 2628405.12 | M143: 655899.52 | N143: 0.2495427798 | Q143: 2120560.3 | R143: 1135146.34 | S143: 985413.96 | T143: 0.8680942054 | V143: 6562013.02 | W143: 4489140.33 | X143: 2072872.69 | Y143: 0.4617527049
A144: %,V5132000 | B144: 5132000 | C144: Maint of Computer Software-Mjr | F144: 3837.85 | G144: 2475.3 | H144: =+F144-G144 -> 1362.55 | I144: =IF(G144<0,IF(H144=0,0,IF(OR(G144=0,F144=0),"N.M.",IF(ABS(H144/G144)>=10,"N.M.",H144/(-G144)))),IF(H144=0,0,IF(OR(G144=0,F144=0),"N.M.",IF(ABS(H144/G144)>=10,"N.M.",H144/G144)))) -> 0.5504585303 | K144: 23100.95 | L144: 29545.25 | M144: =+K144-L144 -> -6444.3 | N144: -0.2181162793 | Q144: 10026.75 | R144: 12377.75 | S144: =+Q144-R144 -> -2351 | T144: -0.1899375896 | V144: 48820.7 | W144: 29545.25 | X144: =+V144-W144 -> 19275.45 | Y144: =IF(W144<0,IF(X144=0,0,IF(OR(W144=0,V144=0),"N.M.",IF(ABS(X144/W144)>=10,"N.M.",X144/(-W144)))),IF(X144=0,0,IF(OR(W144=0,V144=0),"N.M.",IF(ABS(X144/W144)>=10,"N.M.",X144/W144)))) -> 0.6524043628
A145: %,V5133000 | B145: 5133000 | C145: Maint of Comm Equipmt-Mjr | F145: 272.28 | G145: 248.73 | H145: 23.55 | I145: 0.09468097938 | K145: 3696.97 | L145: 1372.91 | M145: 2324.06 | N145: 1.692798508 | Q145: 741.23 | R145: 961.05 | S145: -219.82 | T145: -0.2287289943 | V145: 8007.79 | W145: 1372.91 | X145: 6634.88 | Y145: 4.832712996
A146: %,V5140000 | B146: 5140000 | C146: Maintenance of Misc Steam Plt | F146: 177278.11 | G146: 183758.83 | H146: -6480.72 | I146: -0.03526752973 | K146: 1139946.28 | L146: 748353.77 | M146: 391592.51 | N146: 0.5232719146 | Q146: 652975.38 | R146: 343008.11 | S146: 309967.27 | T146: 0.903673298 | V146: 1874135.14 | W146: 1466160 | X146: 407975.14 | Y146: 0.2782609947
A147: %,FACCOUNT,X,TGL_FERC_ACCT,N510-515,N500-509 | B147: Line 21 | C147: TOTAL Power Production Expenses-Steam Power (Entr Tot lines 13 & 20) | F147: 17240369.68 | G147: 14523899.94 | H147: 2716469.744 | I147: 0.1870344574 | K147: 94578567.5 | L147: 86175185.46 | M147: 8403382.04 | N147: 0.09751510246 | Q147: 49582898.39 | R147: 40371571.35 | S147: 9211327.039 | T147: 0.2281636986 | V147: 190811589.4 | W147: 170264459.7 | X147: 20547129.72 | Y147: 0.1206777372
B148: Line 22 | C148: B. Nuclear Power Generation | H148: 0 | I148: 0 | M148: 0 | N148: 0 | S148: 0 | T148: 0 | X148: 0 | Y148: 0
B149: Line 23 | C149: Operation | H149: 0 | I149: 0 | M149: 0 | N149: 0 | S149: 0 | T149: 0 | X149: 0 | Y149: 0
A150: %,FACCOUNT,X,TGL_FERC_ACCT,N5170 | B150: Line 24 | C150: (517) Operation Supervision and Engineering | F150: 0 | G150: 0 | H150: 0 | I150: 0 | K150: 0 | L150: 0 | M150: 0 | N150: 0 | Q150: 0 | R150: 0 | S150: 0 | T150: 0 | V150: 0 | W150: 0 | X150: 0 | Y150: 0
A151: %,FACCOUNT,X,TGL_FERC_ACCT,N5180 | B151: Line 25 | C151: (518) Fuel | F151: 0 | G151: 0 | H151: 0 | I151: 0 | K151: 0 | L151: 0 | M151: 0 | N151: 0 | Q151: 0 | R151: 0 | S151: 0 | T151: 0 | V151: 0 | W151: 0 | X151: 0 | Y151: 0
A152: %,FACCOUNT,X,TGL_FERC_ACCT,N5190 | B152: Line 26 | C152: (519) Coolants and Water | F152: 0 | G152: 0 | H152: 0 | I152: 0 | K152: 0 | L152: 0 | M152: 0 | N152: 0 | Q152: 0 | R152: 0 | S152: 0 | T152: 0 | V152: 0 | W152: 0 | X152: 0 | Y152: 0
A153: %,FACCOUNT,X,TGL_FERC_ACCT,N5200 | B153: Line 27 | C153: (520) Steam Expenses | F153: 0 | G153: 0 | H153: 0 | I153: 0 | K153: 0 | L153: 0 | M153: 0 | N153: 0 | Q153: 0 | R153: 0 | S153: 0 | T153: 0 | V153: 0 | W153: 0 | X153: 0 | Y153: 0
A154: %,FACCOUNT,X,TGL_FERC_ACCT,N5210 | B154: Line 28 | C154: (521) Steam from Other Sources | F154: 0 | G154: 0 | H154: 0 | I154: 0 | K154: 0 | L154: 0 | M154: 0 | N154: 0 | Q154: 0 | R154: 0 | S154: 0 | T154: 0 | V154: 0 | W154: 0 | X154: 0 | Y154: 0
B155: Line 29 | C155: (Less) (522) Steam Transferred-Cr. | H155: 0 | I155: 0 | M155: 0 | N155: 0 | S155: 0 | T155: 0 | X155: 0 | Y155: 0
A156: %,FACCOUNT,X,TGL_FERC_ACCT,N5230 | B156: Line 30 | C156: (523) Electric Expenses | F156: 0 | G156: 0 | H156: 0 | I156: 0 | K156: 0 | L156: 0 | M156: 0 | N156: 0 | Q156: 0 | R156: 0 | S156: 0 | T156: 0 | V156: 0 | W156: 0 | X156: 0 | Y156: 0
A157: %,FACCOUNT,X,TGL_FERC_ACCT,N5240 | B157: Line 31 | C157: (524) Miscellaneous Nuclear Power Expenses | F157: 0 | G157: 0 | H157: 0 | I157: 0 | K157: 0 | L157: 0 | M157: 0 | N157: 0 | Q157: 0 | R157: 0 | S157: 0 | T157: 0 | V157: 0 | W157: 0 | X157: 0 | Y157: 0
A158: %,FACCOUNT,X,TGL_FERC_ACCT,N5250 | B158: Line 32 | C158: (525) Rents | F158: 0 | G158: 0 | H158: 0 | I158: 0 | K158: 0 | L158: 0 | M158: 0 | N158: 0 | Q158: 0 | R158: 0 | S158: 0 | T158: 0 | V158: 0 | W158: 0 | X158: 0 | Y158: 0
A159: %,FACCOUNT,X,TGL_FERC_ACCT,N517-525 | B159: Line 33 | C159: TOTAL Operation (Enter Total of Lines 24 thru 32) | D159: o | F159: 0 | G159: 0 | H159: 0 | I159: 0 | K159: 0 | L159: 0 | M159: 0 | N159: 0 | Q159: 0 | R159: 0 | S159: 0 | T159: 0 | V159: 0 | W159: 0 | X159: 0 | Y159: 0
B160: Line 34 | C160: Maintenance | H160: 0 | I160: 0 | M160: 0 | N160: =IF(L160<0,IF(M160=0,0,IF(OR(L160=0,K160=0),"N.M.",IF(ABS(M160/L160)>=10,"N.M.",M160/(-L160)))),IF(M160=0,0,IF(OR(L160=0,K160=0),"N.M.",IF(ABS(M160/L160)>=10,"N.M.",M160/L160)))) -> 0 | S160: 0 | T160: =IF(R160<0,IF(S160=0,0,IF(OR(R160=0,Q160=0),"N.M.",IF(ABS(S160/R160)>=10,"N.M.",S160/(-R160)))),IF(S160=0,0,IF(OR(R160=0,Q160=0),"N.M.",IF(ABS(S160/R160)>=10,"N.M.",S160/R160)))) -> 0 | X160: 0 | Y160: 0
A161: %,FACCOUNT,X,TGL_FERC_ACCT,N5280 | B161: Line 35 | C161: (528) Maintenance Supervision and Engineering | F161: 0 | G161: 0 | H161: 0 | I161: 0 | K161: 0 | L161: 0 | M161: 0 | N161: 0 | Q161: 0 | R161: 0 | S161: 0 | T161: 0 | V161: 0 | W161: 0 | X161: 0 | Y161: 0
A162: %,FACCOUNT,X,TGL_FERC_ACCT,N5290 | B162: Line 36 | C162: (529) Maintenance of Structures | F162: 0 | G162: 0 | H162: 0 | I162: 0 | K162: 0 | L162: 0 | M162: 0 | N162: 0 | Q162: 0 | R162: 0 | S162: 0 | T162: 0 | V162: 0 | W162: 0 | X162: 0 | Y162: 0
A163: %,FACCOUNT,X,TGL_FERC_ACCT,N5300 | B163: Line 37 | C163: (530) Maintenance of Reactor Plant Equipment | F163: 0 | G163: 0 | H163: 0 | I163: 0 | K163: 0 | L163: 0 | M163: 0 | N163: 0 | Q163: 0 | R163: 0 | S163: 0 | T163: 0 | V163: 0 | W163: 0 | X163: 0 | Y163: 0
A164: %,FACCOUNT,X,TGL_FERC_ACCT,N5310 | B164: Line 38 | C164: (531) Maintenance of Electric Plant | F164: 0 | G164: 0 | H164: 0 | I164: 0 | K164: 0 | L164: 0 | M164: 0 | N164: 0 | Q164: 0 | R164: 0 | S164: 0 | T164: 0 | V164: 0 | W164: 0 | X164: 0 | Y164: 0
A165: %,V5311000 | B165: 5311000 | C165: Maint of Computer Hardware | F165: 0 | G165: 0 | H165: 0 | I165: 0 | K165: 0 | L165: 0 | Q165: 93.06 | R165: 0 | V165: 76.69 | W165: 0
A166: %,FACCOUNT,X,TGL_FERC_ACCT,N5311 | B166: Line 38.1 | C166: (531.1) Maintenance of Computer Hardware | D166: m | F166: 0 | G166: 0 | H166: 0 | I166: 0 | K166: 0 | L166: 0 | Q166: 93.06 | R166: 0 | V166: 76.69 | W166: 0
A167: %,V5312000 | B167: 5312000 | C167: Maint of Computer Software | F167: 0 | G167: -14.44 | H167: 14.44 | I167: N.M. | K167: 0 | L167: -14.44 | Q167: 0 | R167: -14.44 | V167: 14.63 | W167: -14.44
A168: %,FACCOUNT,X,TGL_FERC_ACCT,N5312 | B168: Line 38.2 | C168: (531.2) Maintenance of Computer Software | D168: m | F168: 0 | G168: -14.44 | H168: 14.44 | I168: N.M. | K168: 0 | L168: -14.44 | Q168: 0 | R168: -14.44 | V168: 14.63 | W168: -14.44
A169: %,FACCOUNT,X,TGL_FERC_ACCT,N5313 | B169: Line 38.3 | C169: (531.3) Maintenance of Communication Equipment | D169: m | F169: 0 | G169: 0 | H169: 0 | I169: 0 | K169: 0 | L169: 0 | Q169: 0 | R169: 0 | V169: 0 | W169: 0
A170: %,FACCOUNT,X,TGL_FERC_ACCT,N5320 | B170: Line 39 | C170: (532) Maintenance of Miscellaneous Nuclear Plant | F170: 0 | G170: 0 | H170: 0 | I170: 0 | K170: 0 | L170: 0 | M170: =+K170-L170 -> 0 | N170: =IF(L170<0,IF(M170=0,0,IF(OR(L170=0,K170=0),"N.M.",IF(ABS(M170/L170)>=10,"N.M.",M170/(-L170)))),IF(M170=0,0,IF(OR(L170=0,K170=0),"N.M.",IF(ABS(M170/L170)>=10,"N.M.",M170/L170)))) -> 0 | Q170: 0 | R170: 0 | S170: =+Q170-R170 -> 0 | T170: =IF(R170<0,IF(S170=0,0,IF(OR(R170=0,Q170=0),"N.M.",IF(ABS(S170/R170)>=10,"N.M.",S170/(-R170)))),IF(S170=0,0,IF(OR(R170=0,Q170=0),"N.M.",IF(ABS(S170/R170)>=10,"N.M.",S170/R170)))) -> 0 | V170: 0 | W170: 0 | X170: =+V170-W170 -> 0 | Y170: =IF(W170<0,IF(X170=0,0,IF(OR(W170=0,V170=0),"N.M.",IF(ABS(X170/W170)>=10,"N.M.",X170/(-W170)))),IF(X170=0,0,IF(OR(W170=0,V170=0),"N.M.",IF(ABS(X170/W170)>=10,"N.M.",X170/W170)))) -> 0
A171: %,V5311000 | B171: 5311000 | C171: Maint of Computer Hardware | F171: 0 | G171: 0 | H171: 0 | I171: 0 | K171: 0 | L171: 0 | M171: 0 | N171: 0 | Q171: 93.06 | R171: 0 | S171: 93.06 | T171: N.M. | V171: 76.69 | W171: 0 | X171: 76.69 | Y171: N.M.
A172: %,V5312000 | B172: 5312000 | C172: Maint of Computer Software | F172: 0 | G172: -14.44 | H172: 14.44 | I172: N.M. | K172: 0 | L172: -14.44 | M172: 14.44 | N172: N.M. | Q172: 0 | R172: -14.44 | S172: 14.44 | T172: N.M. | V172: 14.63 | W172: -14.44 | X172: 29.07 | Y172: 2.013157895
A173: %,FACCOUNT,X,TGL_FERC_ACCT,N528-533 | B173: Line 40 | C173: TOTAL Maintenance (Enter Total of lines 35 thru 39) | D173: m | F173: 0 | G173: -14.44 | H173: 14.44 | I173: N.M. | K173: 0 | L173: -14.44 | M173: 14.44 | N173: N.M. | Q173: 93.06 | R173: -14.44 | S173: 107.5 | T173: 7.444598338 | V173: 91.32 | W173: -14.44 | X173: 105.76 | Y173: 7.324099723
A174: %,V5311000 | B174: 5311000 | C174: Maint of Computer Hardware | F174: 0 | G174: 0 | H174: 0 | I174: 0 | K174: 0 | L174: 0 | M174: 0 | N174: 0 | Q174: 93.06 | R174: 0 | S174: 93.06 | T174: N.M. | V174: 76.69 | W174: 0 | X174: 76.69 | Y174: N.M.
A175: %,V5312000 | B175: 5312000 | C175: Maint of Computer Software | F175: 0 | G175: -14.44 | H175: 14.44 | I175: N.M. | K175: 0 | L175: -14.44 | M175: 14.44 | N175: N.M. | Q175: 0 | R175: -14.44 | S175: 14.44 | T175: N.M. | V175: 14.63 | W175: -14.44 | X175: 29.07 | Y175: 2.013157895
A176: %,FACCOUNT,X,TGL_FERC_ACCT,N517-533 | B176: Line 41 | C176: TOTAL Power Production Expenses-Nuc Power (Entr Tot lines 33 & 40) | F176: 0 | G176: -14.44 | H176: 14.44 | I176: N.M. | K176: 0 | L176: -14.44 | M176: 14.44 | N176: N.M. | Q176: 93.06 | R176: -14.44 | S176: 107.5 | T176: 7.444598338 | V176: 91.32 | W176: -14.44 | X176: 105.76 | Y176: 7.324099723
B177: Line 42 | C177: C. Hydraulic Power Generation | H177: 0 | I177: 0 | M177: 0 | N177: 0 | S177: 0 | T177: 0 | X177: 0 | Y177: 0
B178: Line 43 | C178: Operation | H178: 0 | I178: 0 | M178: 0 | N178: 0 | S178: 0 | T178: 0 | X178: 0 | Y178: 0
A179: %,FACCOUNT,X,TGL_FERC_ACCT,N5350 | B179: Line 44 | C179: (535) Operation Supervision and Engineering | F179: 0 | G179: 0 | H179: 0 | I179: 0 | K179: 0 | L179: 0 | M179: 0 | N179: 0 | Q179: 0 | R179: 0 | S179: 0 | T179: 0 | V179: 0 | W179: 0 | X179: 0 | Y179: 0
A180: %,FACCOUNT,X,TGL_FERC_ACCT,N5360 | B180: Line 45 | C180: (536) Water for Power | F180: 0 | G180: 0 | H180: 0 | I180: 0 | K180: 0 | L180: 0 | M180: 0 | N180: 0 | Q180: 0 | R180: 0 | S180: 0 | T180: 0 | V180: 0 | W180: 0 | X180: 0 | Y180: 0
A181: %,FACCOUNT,X,TGL_FERC_ACCT,N5370 | B181: Line 46 | C181: (537) Hydraulic Expenses | F181: 0 | G181: 0 | H181: 0 | I181: 0 | K181: 0 | L181: 0 | M181: 0 | N181: 0 | Q181: 0 | R181: 0 | S181: 0 | T181: 0 | V181: 0 | W181: 0 | X181: 0 | Y181: 0
A182: %,FACCOUNT,X,TGL_FERC_ACCT,N5380 | B182: Line 47 | C182: (538) Electric Expenses | F182: 0 | G182: 0 | H182: 0 | I182: 0 | K182: 0 | L182: 0 | M182: 0 | N182: 0 | Q182: 0 | R182: 0 | S182: 0 | T182: 0 | V182: 0 | W182: 0 | X182: 0 | Y182: 0
A183: %,FACCOUNT,X,TGL_FERC_ACCT,N5390 | B183: Line 48 | C183: (539) Miscellaneous Hydraulic Power Generation Expenses | F183: 0 | G183: 0 | H183: 0 | I183: 0 | K183: 0 | L183: 0 | M183: 0 | N183: 0 | Q183: 0 | R183: 0 | S183: 0 | T183: 0 | V183: 0 | W183: 0 | X183: 0 | Y183: 0
A184: %,FACCOUNT,X,TGL_FERC_ACCT,N5400 | B184: Line 49 | C184: (540) Rents | F184: 0 | G184: 0 | H184: 0 | I184: 0 | K184: 0 | L184: 0 | M184: 0 | N184: 0 | Q184: 0 | R184: 0 | S184: 0 | T184: 0 | V184: 0 | W184: 0 | X184: 0 | Y184: 0
A185: %,FACCOUNT,X,TGL_FERC_ACCT,N535-540 | B185: Line 50 | C185: TOTAL Operation (Enter Total of Lines 44 thru 49) | D185: o | F185: 0 | G185: 0 | H185: 0 | I185: 0 | K185: 0 | L185: 0 | M185: 0 | N185: 0 | Q185: 0 | R185: 0 | S185: 0 | T185: 0 | V185: 0 | W185: 0 | X185: 0 | Y185: 0
B186: Line 51 | C186: C. Hydraulic Power Generation (Continued) | H186: 0 | I186: 0 | M186: 0 | N186: 0 | S186: 0 | T186: 0 | X186: 0 | Y186: 0
B187: Line 52 | C187: Maintenance | H187: 0 | I187: 0 | M187: 0 | N187: 0 | S187: 0 | T187: 0 | X187: 0 | Y187: 0
A188: %,FACCOUNT,X,TGL_FERC_ACCT,N5410 | B188: Line 53 | C188: (541) Maintenance Supervision and Engineering | F188: 0 | G188: 0 | H188: 0 | I188: 0 | K188: 0 | L188: 0 | M188: 0 | N188: 0 | Q188: 0 | R188: 0 | S188: 0 | T188: 0 | V188: 0 | W188: 0 | X188: 0 | Y188: 0
A189: %,FACCOUNT,X,TGL_FERC_ACCT,N5420 | B189: Line 54 | C189: (542) Maintenance of Structures | F189: 0 | G189: 0 | H189: 0 | I189: 0 | K189: 0 | L189: 0 | M189: 0 | N189: 0 | Q189: 0 | R189: 0 | S189: 0 | T189: 0 | V189: 0 | W189: 0 | X189: 0 | Y189: 0
A190: %,FACCOUNT,X,TGL_FERC_ACCT,N5430 | B190: Line 55 | C190: (543) Maintenance of Reservoirs, Dams, and Waterways | F190: 0 | G190: 0 | H190: 0 | I190: 0 | K190: 0 | L190: 0 | M190: 0 | N190: 0 | Q190: 0 | R190: 0 | S190: 0 | T190: 0 | V190: 0 | W190: 0 | X190: 0 | Y190: 0
A191: %,FACCOUNT,X,TGL_FERC_ACCT,N5440 | B191: Line 56 | C191: (544) Maintenance of Electric Plant | F191: 0 | G191: 0 | H191: 0 | I191: 0 | K191: 0 | L191: 0 | M191: 0 | N191: 0 | Q191: 0 | R191: 0 | S191: 0 | T191: 0 | V191: 0 | W191: 0 | X191: 0 | Y191: 0
A192: %,FACCOUNT,X,TGL_FERC_ACCT,N5441 | B192: Line 56.1 | C192: (544.1) Maintenance of Computer Hardware | D192: m | F192: 0 | G192: 0 | H192: 0 | I192: 0 | K192: 0 | L192: 0 | Q192: 0 | R192: 0 | V192: 0 | W192: 0
A193: %,FACCOUNT,X,TGL_FERC_ACCT,N5442 | B193: Line 56.2 | C193: (544.2) Maintenance of Computer Software | D193: m | F193: 0 | G193: 0 | H193: 0 | I193: 0 | K193: 0 | L193: 0 | Q193: 0 | R193: 0 | V193: 0 | W193: 0
A194: %,FACCOUNT,X,TGL_FERC_ACCT,N5443 | B194: Line 56.3 | C194: (544.3) Maintenance of Communication Equipment | D194: m | F194: 0 | G194: 0 | H194: 0 | I194: 0 | K194: 0 | L194: 0 | Q194: 0 | R194: 0 | V194: 0 | W194: 0
A195: %,FACCOUNT,X,TGL_FERC_ACCT,N5450 | B195: Line 57 | C195: (545) Maintenance of Miscellaneous Hydraulic Plant | F195: 0 | G195: 0 | H195: 0 | I195: 0 | K195: 0 | L195: 0 | M195: =+K195-L195 -> 0 | N195: =IF(L195<0,IF(M195=0,0,IF(OR(L195=0,K195=0),"N.M.",IF(ABS(M195/L195)>=10,"N.M.",M195/(-L195)))),IF(M195=0,0,IF(OR(L195=0,K195=0),"N.M.",IF(ABS(M195/L195)>=10,"N.M.",M195/L195)))) -> 0 | Q195: 0 | R195: 0 | S195: =+Q195-R195 -> 0 | T195: =IF(R195<0,IF(S195=0,0,IF(OR(R195=0,Q195=0),"N.M.",IF(ABS(S195/R195)>=10,"N.M.",S195/(-R195)))),IF(S195=0,0,IF(OR(R195=0,Q195=0),"N.M.",IF(ABS(S195/R195)>=10,"N.M.",S195/R195)))) -> 0 | V195: 0 | W195: 0 | X195: =+V195-W195 -> 0 | Y195: =IF(W195<0,IF(X195=0,0,IF(OR(W195=0,V195=0),"N.M.",IF(ABS(X195/W195)>=10,"N.M.",X195/(-W195)))),IF(X195=0,0,IF(OR(W195=0,V195=0),"N.M.",IF(ABS(X195/W195)>=10,"N.M.",X195/W195)))) -> 0
A196: %,FACCOUNT,X,TGL_FERC_ACCT,N541-545 | B196: Line 58 | C196: TOTAL Maintenance (Total of lines 53 thru 57) | D196: m | F196: 0 | G196: 0 | H196: 0 | I196: 0 | K196: 0 | L196: 0 | M196: 0 | N196: 0 | Q196: 0 | R196: 0 | S196: 0 | T196: 0 | V196: 0 | W196: 0 | X196: 0 | Y196: 0
A197: %,FACCOUNT,X,TGL_FERC_ACCT,N535-545 | B197: Line 59 | C197: TOTAL Power Production Expenses-Hydraulic Power (Tot lines 50 & 58) | F197: 0 | G197: 0 | H197: 0 | I197: 0 | K197: 0 | L197: 0 | M197: 0 | N197: 0 | Q197: 0 | R197: 0 | S197: 0 | T197: 0 | V197: 0 | W197: 0 | X197: 0 | Y197: 0
B198: Line 60 | C198: D. Other Power Generation | H198: 0 | I198: 0 | M198: 0 | N198: 0 | S198: 0 | T198: 0 | X198: 0 | Y198: 0
B199: Line 61 | C199: Operation | H199: 0 | I199: 0 | M199: 0 | N199: 0 | S199: 0 | T199: 0 | X199: 0 | Y199: 0
A200: %,FACCOUNT,X,TGL_FERC_ACCT,N5460 | B200: Line 62 | C200: (546) Operation Supervision and Engineering | F200: 0 | G200: 0 | H200: 0 | I200: 0 | K200: 0 | L200: 0 | M200: 0 | N200: 0 | Q200: 0 | R200: 0 | S200: 0 | T200: 0 | V200: 0 | W200: 0 | X200: 0 | Y200: 0
A201: %,FACCOUNT,X,TGL_FERC_ACCT,N5470 | B201: Line 63 | C201: (547) Fuel | F201: 0 | G201: 0 | H201: 0 | I201: 0 | K201: 0 | L201: 0 | M201: 0 | N201: 0 | Q201: 0 | R201: 0 | S201: 0 | T201: 0 | V201: 0 | W201: 0 | X201: 0 | Y201: 0
... 1485 more rows

Sheet O&M QRT
A1: %,LACTUALS,SBAL | B1: %,ATF,FACCOUNT | C1: %,ATT,FDESCR,UDESCR | F1: %,LACTUALS,SPER | G1: %,LACTUALS,SPER-1YR | H1: %,C | I1: %,C | K1: %,LACTUALS,SYTD | L1: %,LACTUALS,SYTD-1YR | M1: %,C | N1: %,C | Q1: %,LACTUALS,SQTR | R1: %,LACTUALS,SQTR-1YR | S1: %,C | T1: %,C | V1: %,LACTUALS,SROLLING12 | W1: %,LACTUALS,SROLNG12-1Y | X1: %,C | Y1: %,C
C2: Kentucky Power Corp Consol | G2: Kentucky Power Corp Consol | L2: Kentucky Power Corp Consol | R2: Kentucky Power Corp Consol | W2: Kentucky Power Corp Consol
C3: June 2026 | G3: As of: Jun 2026 | L3: As of: Jun 2026 | R3: As of: Jun 2026 | W3: As of: Jun 2026
B4: Run Date: 07/08/2026 05:29 AM
B5: GLR6283P | C5: Rpt ID: FERC_IS1 Layout: FERC_IS1 | F5: ONE MONTH ENDED | H5: Variance | K5: YEAR TO DATE | M5: Variance | Q5: THREE MONTHS ENDED | S5: Variance | V5: TWELVE MONTHS ENDED | X5: Variance
B6: KYP_CORP_CONSOL | C6: V2099-01-01 Acct: GL_FERC_ACCT BU: GL_PRPT_CONS | F6: 2026 | G6: 2025 | H6: $ | I6: % | K6: 2026 | L6: 2025 | M6: $ | N6: % | O6: Explanation | Q6: 2026 | R6: 2025 | S6: $ | T6: % | V6: 2026 | W6: 2025 | X6: $ | Y6: %
C8: OPERATING AND MAINTENANCE DETAIL
C9: FERC Page 320 QUARTERLY
B10: 1 | C10: 1. POWER PRODUCTION AND OTHER POWER SUPPLYEXPENSES
A11: %,V5000000 | B11: 5000000 | C11: Oper Supervision & Engineering | F11: 370425.13 | G11: 340471.02 | H11: =+F11-G11 -> 29954.11 | I11: =IF(AND(F11=0,G11=0),"",IF(OR(F11=0,G11=0),100%,(+H11/G11))) -> 0.08797844234 | K11: 2287064.52 | L11: 1951709.91 | M11: =+K11-L11 -> 335354.61 | N11: =IF(AND(K11=0,L11=0),"",IF(OR(K11=0,L11=0),100%,(+M11/L11))) -> 0.1718260528 | Q11: 1095506.19 | R11: 964221.19 | S11: =+Q11-R11 -> 131285 | T11: =IF(AND(Q11=0,R11=0),"",IF(OR(Q11=0,R11=0),100%,(+S11/R11))) -> 0.1361565182 | V11: 4838427.2 | W11: 4041549.7 | X11: =+V11-W11 -> 796877.5 | Y11: =IF(AND(V11=0,W11=0),"",IF(OR(V11=0,W11=0),100%,(+X11/W11))) -> 0.1971712732
A12: %,V5000002 | B12: 5000002 | C12: Dresden Oper Supervision & Eng | F12: 0 | G12: 0 | H12: 0 | K12: 0 | L12: 0 | M12: 0 | Q12: 0 | R12: 0 | S12: 0 | V12: -33.12 | W12: 0 | X12: -33.12 | Y12: 1
A13: %,V5000003 | B13: 5000003 | C13: Cnstr Srchrge Op Sup & Eng Exp | F13: 0 | G13: 0 | H13: 0 | K13: 0 | L13: 0 | M13: 0 | Q13: 0 | R13: 0 | S13: 0 | V13: 64.34 | W13: 0 | X13: 64.34 | Y13: 1
A14: %,V5010000 | B14: 5010000 | C14: Fuel | F14: 523739.1 | G14: 438840.56 | H14: 84898.54 | I14: 0.1934610146 | K14: 3131516.11 | L14: 4099683.87 | M14: -968167.76 | N14: -0.2361566869 | Q14: 1689503.55 | R14: 1397412.57 | S14: 292090.98 | T14: 0.2090227226 | V14: 6782297.75 | W14: 7373288.13 | X14: -590990.38 | Y14: -0.08015289374
A15: %,V5010001 | B15: 5010001 | C15: Fuel Consumed | F15: 4070848.44 | G15: 5465171.12 | H15: -1394322.68 | I15: -0.2551288239 | K15: 30111505.26 | L15: 28988957.97 | M15: 1122547.29 | N15: 0.0387232715 | Q15: 10520090.72 | R15: 11994024.05 | S15: -1473933.33 | T15: -0.1228889757 | V15: 75432287.23 | W15: 72898701.36 | X15: 2533585.87 | Y15: 0.03475488346
A16: %,V5010003 | B16: 5010003 | C16: Fuel - Procure Unload & Handle | F16: 369120.61 | G16: 500918.55 | H16: -131797.94 | I16: -0.263112516 | K16: 1773107.11 | L16: 1749200.13 | M16: 23906.98 | N16: 0.01366737836 | Q16: 755364.45 | R16: 890622.49 | S16: -135258.04 | T16: -0.1518691045 | V16: 4095539.11 | W16: 3804662.46 | X16: 290876.65 | Y16: 0.07645268222
A17: %,V5010005 | B17: 5010005 | C17: Fuel - Deferred | F17: 3211356.809 | G17: -3340582.92 | H17: 6551939.729 | I17: -1.961316299 | K17: 3635723.411 | L17: 1555354.3 | M17: 2080369.111 | N17: 1.337553194 | Q17: 13528402.91 | R17: 2122048.909 | S17: 11406354 | T17: 5.375160749 | V17: 7217515.944 | W17: -267358.96 | X17: 7484874.904 | Y17: -27.99560151
A18: %,V5010012 | B18: 5010012 | C18: Ash Sales Proceeds | F18: 789.28 | G18: -1796.76 | H18: 2586.04 | I18: -1.439279592 | K18: 3607.35 | L18: 1958.46 | M18: 1648.89 | N18: 0.8419319261 | Q18: 1810.86 | R18: -1376.5 | S18: 3187.36 | T18: -2.315553941 | V18: 8923.83 | W18: 12268.57 | X18: -3344.74 | Y18: -0.2726267201
A19: %,V5010013 | B19: 5010013 | C19: Fuel Survey Activity | F19: 2019976.75 | G19: 4136038.43 | H19: -2116061.68 | I19: -0.5116155751 | K19: 2019976.75 | L19: 4136038.43 | M19: -2116061.68 | N19: -0.5116155751 | Q19: 2019976.75 | R19: 4136038.43 | S19: -2116061.68 | T19: -0.5116155751 | V19: 1790471.45 | W19: 4136038.43 | X19: -2345566.98 | Y19: -0.5671047355
A20: %,V5010019 | B20: 5010019 | C20: Fuel Oil Consumed | F20: 953718.64 | G20: 1026257.44 | H20: -72538.8 | I20: -0.07068284932 | K20: 3132568.8 | L20: 2389555.58 | M20: 743013.22 | N20: 0.3109420121 | Q20: 2292899.62 | R20: 1283557.56 | S20: 1009342.06 | T20: 0.7863629115 | V20: 4881341.3 | W20: 4306433.5 | X20: 574907.8 | Y20: 0.133499751
A21: %,V5010020 | B21: 5010020 | C21: Nat Gas Consumed Steam | F21: 2695738.82 | G21: 3625585.34 | H21: -929846.52 | I21: -0.2564679721 | K21: 26607729.1 | L21: 20948927.28 | M21: 5658801.82 | N21: 0.2701237034 | Q21: 6177446.99 | R21: 8035922.82 | S21: -1858475.83 | T21: -0.2312709905 | V21: 44534997.75 | W21: 31582773.46 | X21: 12952224.29 | Y21: 0.4101040812
A22: %,V5010021 | B22: 5010021 | C22: Transp Gas Consumed Steam | F22: 26793.66 | G22: 86157.96 | H22: -59364.3 | I22: -0.6890170102 | K22: 269749.79 | L22: 280191.31 | M22: -10441.52 | N22: -0.03726568108 | Q22: 92616.18 | R22: 171145.92 | S22: -78529.74 | T22: -0.4588466964 | V22: 490330.77 | W22: 387422.67 | X22: 102908.1 | Y22: 0.2656222983
A23: %,V5010027 | B23: 5010027 | C23: Gypsum handling/disposal costs | F23: 118418.89 | G23: 119621.95 | H23: -1203.06 | I23: -0.01005718432 | K23: 791622.73 | L23: 645973.99 | M23: 145648.74 | N23: 0.225471524 | Q23: 363936.37 | R23: 278311.02 | S23: 85625.35 | T23: 0.3076606525 | V23: 1537996.39 | W23: 1355179.5 | X23: 182816.89 | Y23: 0.1349023432
A24: %,V5010028 | B24: 5010028 | C24: Gypsum Sales Proceeds | F24: -24552.9 | G24: -57542.76 | H24: 32989.86 | I24: -0.5733103522 | K24: -496616.48 | L24: -609206.72 | M24: 112590.24 | N24: -0.1848145076 | Q24: -138566.82 | R24: -209761.13 | S24: 71194.31 | T24: -0.3394065907 | V24: -1109851.93 | W24: -1225360.95 | X24: 115509.02 | Y24: -0.09426530199
A25: %,V5010033 | B25: 5010033 | C25: Coal Procurement Sales Net-NA | F25: 0 | G25: 0 | H25: 0 | K25: 281689.3 | L25: 0 | M25: 281689.3 | N25: 1 | Q25: 150302.14 | R25: 0 | S25: 150302.14 | T25: 1 | V25: 281689.3 | W25: 0 | X25: 281689.3 | Y25: 1
A26: %,V5010034 | B26: 5010034 | C26: Gas Transp Res Fees-Steam | F26: 488447.28 | G26: 487940.4 | H26: 506.88 | I26: 0.001038815396 | K26: 2950274.16 | L26: 3097248.48 | M26: -146974.32 | N26: -0.04745318981 | Q26: 1481258.16 | R26: 1481684.4 | S26: -426.24 | T26: -0.0002876725975 | V26: 5956231.74 | W26: 6185840.6 | X26: -229608.86 | Y26: -0.03711845727
A27: %,V5010040 | B27: 5010040 | C27: Gas Procuremnt Sales Net | F27: -4024.51 | G27: -0.045 | H27: -4024.465 | I27: 89432.55556 | K27: 119105.71 | L27: 237983.675 | M27: -118877.965 | N27: -0.4995215113 | Q27: 119105.58 | R27: -215304.515 | S27: 334410.095 | T27: -1.553195923 | V27: 505413.935 | W27: 1796089.295 | X27: -1290675.36 | Y27: -0.7186031138
A28: %,V5020000 | B28: 5020000 | C28: Steam Expenses | F28: 166389.81 | G28: 161081.79 | H28: 5308.02 | I28: 0.03295232813 | K28: 1004301.07 | L28: 987585.79 | M28: 16715.28 | N28: 0.01692539541 | Q28: 470536.32 | R28: 492009.93 | S28: -21473.61 | T28: -0.0436446679 | V28: 2033152.61 | W28: 1697129.64 | X28: 336022.97 | Y28: 0.1979948745
A29: %,V5020002 | B29: 5020002 | C29: Urea Expense | F29: 56908.78 | G29: 82902.21 | H29: -25993.43 | I29: -0.3135432698 | K29: 407494.67 | L29: 390980.68 | M29: 16513.99 | N29: 0.04223735556 | Q29: 110708.06 | R29: 157744.72 | S29: -47036.66 | T29: -0.2981821515 | V29: 931003.57 | W29: 1002768.23 | X29: -71764.66 | Y29: -0.07156654734
A30: %,V5020004 | B30: 5020004 | C30: Lime-Related Expenses | F30: 202655.83 | G30: 92368.08 | H30: 110287.75 | I30: 1.194002842 | K30: 1108790.46 | L30: 780669.01 | M30: 328121.45 | N30: 0.4203080253 | Q30: 426005.4 | R30: 350614.95 | S30: 75390.45 | T30: 0.2150234894 | V30: 2738154.75 | W30: 2180933.43 | X30: 557221.32 | Y30: 0.2554967118
A31: %,V5050000 | B31: 5050000 | C31: Electric Expenses | F31: 1727.81 | G31: 13658.29 | H31: -11930.48 | I31: -0.8734973412 | K31: 32761.35 | L31: 39587.04 | M31: -6825.69 | N31: -0.1724223382 | Q31: 18048.22 | R31: 36774.96 | S31: -18726.74 | T31: -0.509225299 | V31: 68217.7 | W31: 65726.21 | X31: 2491.49 | Y31: 0.03790709977
A32: %,V5060000 | B32: 5060000 | C32: Misc Steam Power Expenses | F32: 462090.4 | G32: 412492.9 | H32: 49597.5 | I32: 0.1202384332 | K32: 2914752.76 | L32: 2393523.596 | M32: 521229.164 | N32: 0.2177664615 | Q32: 1333971.94 | R32: 1241600.27 | S32: 92371.67 | T32: 0.07439726958 | V32: 5530900.59 | W32: 4958181.756 | X32: 572718.834 | Y32: 0.1155098506
A33: %,V5060002 | B33: 5060002 | C33: Misc Steam Power Exp-Assoc | F33: 4071.92 | G33: 3074.38 | H33: 997.54 | I33: 0.3244686734 | K33: 27666.14 | L33: 25593.01 | M33: 2073.13 | N33: 0.08100375845 | Q33: 12789.6 | R33: 11208.78 | S33: 1580.82 | T33: 0.1410340822 | V33: 50072.44 | W33: 50832.15 | X33: -759.71 | Y33: -0.01494546266
A34: %,V5060011 | B34: 5060011 | C34: BSRR O/U Recovery-Oper Costs | F34: 1779.73 | G34: 0 | H34: 1779.73 | I34: 1 | K34: 9899.81 | L34: 0 | M34: 9899.81 | N34: 1 | Q34: 9899.81 | R34: 0 | S34: 9899.81 | T34: 1 | V34: 9899.81 | W34: 0 | X34: 9899.81 | Y34: 1
A35: %,V5070006 | B35: 5070006 | C35: Rents - Associated | F35: 127.56 | G35: 193.17 | H35: -65.61 | I35: -0.3396490138 | K35: 765.35 | L35: 1159.02 | M35: -393.67 | N35: -0.3396576418 | Q35: 382.68 | R35: 579.51 | S35: -196.83 | T35: -0.3396490138 | V35: 1924.37 | W35: 1159.02 | X35: 765.35 | Y35: 0.6603423582
A36: %,V5090000 | B36: 5090000 | C36: Allow Consum Title IV SO2 | F36: 2859.33 | G36: 1321.84 | H36: 1537.49 | I36: 1.1631438 | K36: 8772.35 | L36: 7860.93 | M36: 911.42 | N36: 0.1159430246 | Q36: 5478.42 | R36: 2605.91 | S36: 2872.51 | T36: 1.102305912 | V36: 17609.82 | W36: 33077.77 | X36: -15467.95 | Y36: -0.4676237243
A37: %,V5090001 | B37: 5090001 | C37: Allowance Consumption - NOx | F37: -24634.08 | G37: 0 | H37: -24634.08 | I37: 1 | K37: -39768.74 | L37: 0 | M37: -39768.74 | N37: 1 | Q37: -39768.74 | R37: 0 | S37: -39768.74 | T37: 1 | V37: -196911.6 | W37: 42857.15 | X37: -239768.75 | Y37: -5.594603234
A38: %,V5090009 | B38: 5090009 | C38: Allow Consumpt CSAPR SO2 | F38: 14.25 | G38: 6.46 | H38: 7.79 | I38: 1.205882353 | K38: 43.25 | L38: 38.4 | M38: 4.85 | N38: 0.1263020833 | Q38: 27.1 | R38: 12.74 | S38: 14.36 | T38: 1.127158556 | V38: 85.87 | W38: 159.26 | X38: -73.39 | Y38: -0.4608187869
A39: %,FACCOUNT,X,TGL_FERC_ACCT,N500-509 | B39: 2 | C39: Steam Power Generation - Operation (500-509) | D39: o | F39: 15694787.34 | G39: 13594179.41 | H39: 2100607.934 | I39: 0.1545225991 | K39: 82094102.09 | L39: 74100574.14 | M39: 7993527.95 | N39: 0.1078740353 | Q39: 42497732.46 | R39: 34621698.98 | S39: 7876033.479 | T39: 0.2274883587 | V39: 168427752.9 | W39: 146420352.4 | X39: 22007400.54 | Y39: 0.1503028792
A40: %,V5100000 | B40: 5100000 | C40: Maint Supv & Engineering | F40: 69178.41 | G40: 65789.02 | H40: 3389.39 | I40: 0.05151908328 | K40: 544937.32 | L40: 524607.31 | M40: 20330.01 | N40: 0.03875281494 | Q40: 251424.65 | R40: 263765.79 | S40: -12341.14 | T40: -0.04678825105 | V40: 1012012.1 | W40: 1289727.2 | X40: -277715.1 | Y40: -0.2153285594
A41: %,V5100001 | B41: 5100001 | C41: Dresden Maint Sup& Engineer | F41: 15.71 | G41: 0 | H41: 15.71 | I41: 1 | K41: 5.77 | L41: 0 | M41: 5.77 | N41: 1 | Q41: 15.71 | R41: 0 | S41: 15.71 | T41: 1 | V41: 375.34 | W41: 0 | X41: 375.34 | Y41: 1
A42: %,V5110000 | B42: 5110000 | C42: Maintenance of Structures | F42: 99973.82 | G42: 167010.37 | H42: -67036.55 | I42: -0.4013915423 | K42: 970716.25 | L42: 900636.81 | M42: 70079.44 | N42: 0.07781098798 | Q42: 380452.15 | R42: 447180.39 | S42: -66728.24 | T42: -0.1492199602 | V42: 1762959.08 | W42: 2065957.56 | X42: -302998.48 | Y42: -0.14666249
A43: %,V5120000 | B43: 5120000 | C43: Maintenance of Boiler Plant | F43: 721884.84 | G43: 316845.68 | H43: =+F43-G43 -> 405039.16 | I43: =IF(AND(F43=0,G43=0),"",IF(OR(F43=0,G43=0),100%,(+H43/G43))) -> 1.278348375 | K43: 6885136.69 | L43: 7594538.63 | M43: =+K43-L43 -> -709401.94 | N43: =IF(AND(K43=0,L43=0),"",IF(OR(K43=0,L43=0),100%,(+M43/L43))) -> -0.0934094847 | Q43: 3858686.37 | R43: 3724881.02 | S43: =+Q43-R43 -> 133805.35 | T43: =IF(AND(Q43=0,R43=0),"",IF(OR(Q43=0,R43=0),100%,(+S43/R43))) -> 0.03592204671 | V43: 11837820 | W43: 15209176.84 | X43: =+V43-W43 -> -3371356.84 | Y43: =IF(AND(V43=0,W43=0),"",IF(OR(V43=0,W43=0),100%,(+X43/W43))) -> -0.2216659636
A44: %,V5120034 | B44: 5120034 | C44: BSDR O/U Recovery - Maint Cost | F44: -1845.36 | G44: -540.36 | H44: -1305 | I44: 2.415056629 | K44: -17752.8 | L44: -3221.82 | M44: -14530.98 | N44: 4.510177477 | Q44: -14903.28 | R44: -2634.75 | S44: -12268.53 | T44: 4.656430401 | V44: -23053.4 | W44: -7719.5 | X44: -15333.9 | Y44: 1.986385129
A45: %,V5120037 | B45: 5120037 | C45: KY Steam Maint O/U | F45: -58271.11 | G45: -58271.11 | H45: 0 | I45: 0 | K45: -349626.66 | L45: -349626.66 | M45: 0 | N45: 0 | Q45: -174813.33 | R45: -174813.33 | S45: 0 | T45: 0 | V45: -699253.32 | W45: -699253.32 | X45: 0 | Y45: 0
A46: %,V5130000 | B46: 5130000 | C46: Maintenance of Electric Plant | F46: 533257.79 | G46: 252404.07 | H46: 280853.72 | I46: 1.112714704 | K46: 3284304.64 | L46: 2628405.12 | M46: 655899.52 | N46: 0.2495427798 | Q46: 2120560.3 | R46: 1135146.34 | S46: 985413.96 | T46: 0.8680942054 | V46: 6562013.02 | W46: 4489140.33 | X46: 2072872.69 | Y46: 0.4617527049
A47: %,V5132000 | B47: 5132000 | C47: Maint of Computer Software-Mjr | F47: 3837.85 | G47: 2475.3 | H47: 1362.55 | I47: 0.5504585303 | K47: 23100.95 | L47: 29545.25 | M47: -6444.3 | N47: -0.2181162793 | Q47: 10026.75 | R47: 12377.75 | S47: -2351 | T47: -0.1899375896 | V47: 48820.7 | W47: 29545.25 | X47: 19275.45 | Y47: 0.6524043628
A48: %,V5133000 | B48: 5133000 | C48: Maint of Comm Equipmt-Mjr | F48: 272.28 | G48: 248.73 | H48: 23.55 | I48: 0.09468097938 | K48: 3696.97 | L48: 1372.91 | M48: 2324.06 | N48: 1.692798508 | Q48: 741.23 | R48: 961.05 | S48: -219.82 | T48: -0.2287289943 | V48: 8007.79 | W48: 1372.91 | X48: 6634.88 | Y48: 4.832712996
A49: %,V5140000 | B49: 5140000 | C49: Maintenance of Misc Steam Plt | F49: 177278.11 | G49: 183758.83 | H49: -6480.72 | I49: -0.03526752973 | K49: 1139946.28 | L49: 748353.77 | M49: 391592.51 | N49: 0.5232719146 | Q49: 652975.38 | R49: 343008.11 | S49: 309967.27 | T49: 0.903673298 | V49: 1874135.14 | W49: 1466160 | X49: 407975.14 | Y49: 0.2782609947
A50: %,FACCOUNT,X,TGL_FERC_ACCT,N510-515 | B50: 3 | C50: Steam Power Generation - Maintenance (510-515) | D50: m | F50: 1545582.34 | G50: 929720.53 | H50: 615861.81 | I50: 0.6624160596 | K50: 12484465.41 | L50: 12074611.32 | M50: 409854.09 | N50: 0.0339434603 | Q50: 7085165.93 | R50: 5749872.37 | S50: 1335293.56 | T50: 0.2322301217 | V50: 22383836.45 | W50: 23844107.27 | X50: -1460270.82 | Y50: -0.0612424195
A51: %,V5000000 | B51: 5000000 | C51: Oper Supervision & Engineering | F51: 370425.13 | G51: 340471.02 | H51: 29954.11 | I51: 0.08797844234 | K51: 2287064.52 | L51: 1951709.91 | M51: 335354.61 | N51: 0.1718260528 | Q51: 1095506.19 | R51: 964221.19 | S51: 131285 | T51: 0.1361565182 | V51: 4838427.2 | W51: 4041549.7 | X51: 796877.5 | Y51: 0.1971712732
A52: %,V5000002 | B52: 5000002 | C52: Dresden Oper Supervision & Eng | F52: 0 | G52: 0 | H52: 0 | K52: 0 | L52: 0 | M52: 0 | Q52: 0 | R52: 0 | S52: 0 | V52: -33.12 | W52: 0 | X52: -33.12 | Y52: 1
A53: %,V5000003 | B53: 5000003 | C53: Cnstr Srchrge Op Sup & Eng Exp | F53: 0 | G53: 0 | H53: 0 | K53: 0 | L53: 0 | M53: 0 | Q53: 0 | R53: 0 | S53: 0 | V53: 64.34 | W53: 0 | X53: 64.34 | Y53: 1
A54: %,V5010000 | B54: 5010000 | C54: Fuel | F54: 523739.1 | G54: 438840.56 | H54: 84898.54 | I54: 0.1934610146 | K54: 3131516.11 | L54: 4099683.87 | M54: -968167.76 | N54: -0.2361566869 | Q54: 1689503.55 | R54: 1397412.57 | S54: 292090.98 | T54: 0.2090227226 | V54: 6782297.75 | W54: 7373288.13 | X54: -590990.38 | Y54: -0.08015289374
A55: %,V5010001 | B55: 5010001 | C55: Fuel Consumed | F55: 4070848.44 | G55: 5465171.12 | H55: -1394322.68 | I55: -0.2551288239 | K55: 30111505.26 | L55: 28988957.97 | M55: 1122547.29 | N55: 0.0387232715 | Q55: 10520090.72 | R55: 11994024.05 | S55: -1473933.33 | T55: -0.1228889757 | V55: 75432287.23 | W55: 72898701.36 | X55: 2533585.87 | Y55: 0.03475488346
A56: %,V5010003 | B56: 5010003 | C56: Fuel - Procure Unload & Handle | F56: 369120.61 | G56: 500918.55 | H56: -131797.94 | I56: -0.263112516 | K56: 1773107.11 | L56: 1749200.13 | M56: 23906.98 | N56: 0.01366737836 | Q56: 755364.45 | R56: 890622.49 | S56: -135258.04 | T56: -0.1518691045 | V56: 4095539.11 | W56: 3804662.46 | X56: 290876.65 | Y56: 0.07645268222
A57: %,V5010005 | B57: 5010005 | C57: Fuel - Deferred | F57: 3211356.809 | G57: -3340582.92 | H57: 6551939.729 | I57: -1.961316299 | K57: 3635723.411 | L57: 1555354.3 | M57: 2080369.111 | N57: 1.337553194 | Q57: 13528402.91 | R57: 2122048.909 | S57: 11406354 | T57: 5.375160749 | V57: 7217515.944 | W57: -267358.96 | X57: 7484874.904 | Y57: -27.99560151
A58: %,V5010012 | B58: 5010012 | C58: Ash Sales Proceeds | F58: 789.28 | G58: -1796.76 | H58: 2586.04 | I58: -1.439279592 | K58: 3607.35 | L58: 1958.46 | M58: 1648.89 | N58: 0.8419319261 | Q58: 1810.86 | R58: -1376.5 | S58: 3187.36 | T58: -2.315553941 | V58: 8923.83 | W58: 12268.57 | X58: -3344.74 | Y58: -0.2726267201
A59: %,V5010013 | B59: 5010013 | C59: Fuel Survey Activity | F59: 2019976.75 | G59: 4136038.43 | H59: -2116061.68 | I59: -0.5116155751 | K59: 2019976.75 | L59: 4136038.43 | M59: -2116061.68 | N59: -0.5116155751 | Q59: 2019976.75 | R59: 4136038.43 | S59: -2116061.68 | T59: -0.5116155751 | V59: 1790471.45 | W59: 4136038.43 | X59: -2345566.98 | Y59: -0.5671047355
A60: %,V5010019 | B60: 5010019 | C60: Fuel Oil Consumed | F60: 953718.64 | G60: 1026257.44 | H60: -72538.8 | I60: -0.07068284932 | K60: 3132568.8 | L60: 2389555.58 | M60: 743013.22 | N60: 0.3109420121 | Q60: 2292899.62 | R60: 1283557.56 | S60: 1009342.06 | T60: 0.7863629115 | V60: 4881341.3 | W60: 4306433.5 | X60: 574907.8 | Y60: 0.133499751
A61: %,V5010020 | B61: 5010020 | C61: Nat Gas Consumed Steam | F61: 2695738.82 | G61: 3625585.34 | H61: -929846.52 | I61: -0.2564679721 | K61: 26607729.1 | L61: 20948927.28 | M61: 5658801.82 | N61: 0.2701237034 | Q61: 6177446.99 | R61: 8035922.82 | S61: -1858475.83 | T61: -0.2312709905 | V61: 44534997.75 | W61: 31582773.46 | X61: 12952224.29 | Y61: 0.4101040812
A62: %,V5010021 | B62: 5010021 | C62: Transp Gas Consumed Steam | F62: 26793.66 | G62: 86157.96 | H62: -59364.3 | I62: -0.6890170102 | K62: 269749.79 | L62: 280191.31 | M62: -10441.52 | N62: -0.03726568108 | Q62: 92616.18 | R62: 171145.92 | S62: -78529.74 | T62: -0.4588466964 | V62: 490330.77 | W62: 387422.67 | X62: 102908.1 | Y62: 0.2656222983
A63: %,V5010027 | B63: 5010027 | C63: Gypsum handling/disposal costs | F63: 118418.89 | G63: 119621.95 | H63: -1203.06 | I63: -0.01005718432 | K63: 791622.73 | L63: 645973.99 | M63: 145648.74 | N63: 0.225471524 | Q63: 363936.37 | R63: 278311.02 | S63: 85625.35 | T63: 0.3076606525 | V63: 1537996.39 | W63: 1355179.5 | X63: 182816.89 | Y63: 0.1349023432
A64: %,V5010028 | B64: 5010028 | C64: Gypsum Sales Proceeds | F64: -24552.9 | G64: -57542.76 | H64: 32989.86 | I64: -0.5733103522 | K64: -496616.48 | L64: -609206.72 | M64: 112590.24 | N64: -0.1848145076 | Q64: -138566.82 | R64: -209761.13 | S64: 71194.31 | T64: -0.3394065907 | V64: -1109851.93 | W64: -1225360.95 | X64: 115509.02 | Y64: -0.09426530199
A65: %,V5010033 | B65: 5010033 | C65: Coal Procurement Sales Net-NA | F65: 0 | G65: 0 | H65: 0 | K65: 281689.3 | L65: 0 | M65: 281689.3 | N65: 1 | Q65: 150302.14 | R65: 0 | S65: 150302.14 | T65: 1 | V65: 281689.3 | W65: 0 | X65: 281689.3 | Y65: 1
A66: %,V5010034 | B66: 5010034 | C66: Gas Transp Res Fees-Steam | F66: 488447.28 | G66: 487940.4 | H66: 506.88 | I66: 0.001038815396 | K66: 2950274.16 | L66: 3097248.48 | M66: -146974.32 | N66: -0.04745318981 | Q66: 1481258.16 | R66: 1481684.4 | S66: -426.24 | T66: -0.0002876725975 | V66: 5956231.74 | W66: 6185840.6 | X66: -229608.86 | Y66: -0.03711845727
A67: %,V5010040 | B67: 5010040 | C67: Gas Procuremnt Sales Net | F67: -4024.51 | G67: -0.045 | H67: -4024.465 | I67: 89432.55556 | K67: 119105.71 | L67: 237983.675 | M67: -118877.965 | N67: -0.4995215113 | Q67: 119105.58 | R67: -215304.515 | S67: 334410.095 | T67: -1.553195923 | V67: 505413.935 | W67: 1796089.295 | X67: -1290675.36 | Y67: -0.7186031138
A68: %,V5020000 | B68: 5020000 | C68: Steam Expenses | F68: 166389.81 | G68: 161081.79 | H68: 5308.02 | I68: 0.03295232813 | K68: 1004301.07 | L68: 987585.79 | M68: 16715.28 | N68: 0.01692539541 | Q68: 470536.32 | R68: 492009.93 | S68: -21473.61 | T68: -0.0436446679 | V68: 2033152.61 | W68: 1697129.64 | X68: 336022.97 | Y68: 0.1979948745
A69: %,V5020002 | B69: 5020002 | C69: Urea Expense | F69: 56908.78 | G69: 82902.21 | H69: -25993.43 | I69: -0.3135432698 | K69: 407494.67 | L69: 390980.68 | M69: 16513.99 | N69: 0.04223735556 | Q69: 110708.06 | R69: 157744.72 | S69: -47036.66 | T69: -0.2981821515 | V69: 931003.57 | W69: 1002768.23 | X69: -71764.66 | Y69: -0.07156654734
A70: %,V5020004 | B70: 5020004 | C70: Lime-Related Expenses | F70: 202655.83 | G70: 92368.08 | H70: 110287.75 | I70: 1.194002842 | K70: 1108790.46 | L70: 780669.01 | M70: 328121.45 | N70: 0.4203080253 | Q70: 426005.4 | R70: 350614.95 | S70: 75390.45 | T70: 0.2150234894 | V70: 2738154.75 | W70: 2180933.43 | X70: 557221.32 | Y70: 0.2554967118
A71: %,V5050000 | B71: 5050000 | C71: Electric Expenses | F71: 1727.81 | G71: 13658.29 | H71: -11930.48 | I71: -0.8734973412 | K71: 32761.35 | L71: 39587.04 | M71: -6825.69 | N71: -0.1724223382 | Q71: 18048.22 | R71: 36774.96 | S71: -18726.74 | T71: -0.509225299 | V71: 68217.7 | W71: 65726.21 | X71: 2491.49 | Y71: 0.03790709977
A72: %,V5060000 | B72: 5060000 | C72: Misc Steam Power Expenses | F72: 462090.4 | G72: 412492.9 | H72: 49597.5 | I72: 0.1202384332 | K72: 2914752.76 | L72: 2393523.596 | M72: 521229.164 | N72: 0.2177664615 | Q72: 1333971.94 | R72: 1241600.27 | S72: 92371.67 | T72: 0.07439726958 | V72: 5530900.59 | W72: 4958181.756 | X72: 572718.834 | Y72: 0.1155098506
A73: %,V5060002 | B73: 5060002 | C73: Misc Steam Power Exp-Assoc | F73: 4071.92 | G73: 3074.38 | H73: 997.54 | I73: 0.3244686734 | K73: 27666.14 | L73: 25593.01 | M73: 2073.13 | N73: 0.08100375845 | Q73: 12789.6 | R73: 11208.78 | S73: 1580.82 | T73: 0.1410340822 | V73: 50072.44 | W73: 50832.15 | X73: -759.71 | Y73: -0.01494546266
A74: %,V5060011 | B74: 5060011 | C74: BSRR O/U Recovery-Oper Costs | F74: 1779.73 | G74: 0 | H74: 1779.73 | I74: 1 | K74: 9899.81 | L74: 0 | M74: 9899.81 | N74: 1 | Q74: 9899.81 | R74: 0 | S74: 9899.81 | T74: 1 | V74: 9899.81 | W74: 0 | X74: 9899.81 | Y74: 1
A75: %,V5070006 | B75: 5070006 | C75: Rents - Associated | F75: 127.56 | G75: 193.17 | H75: =+F75-G75 -> -65.61 | I75: =IF(AND(F75=0,G75=0),"",IF(OR(F75=0,G75=0),100%,(+H75/G75))) -> -0.3396490138 | K75: 765.35 | L75: 1159.02 | M75: =+K75-L75 -> -393.67 | N75: =IF(AND(K75=0,L75=0),"",IF(OR(K75=0,L75=0),100%,(+M75/L75))) -> -0.3396576418 | Q75: 382.68 | R75: 579.51 | S75: =+Q75-R75 -> -196.83 | T75: =IF(AND(Q75=0,R75=0),"",IF(OR(Q75=0,R75=0),100%,(+S75/R75))) -> -0.3396490138 | V75: 1924.37 | W75: 1159.02 | X75: =+V75-W75 -> 765.35 | Y75: =IF(AND(V75=0,W75=0),"",IF(OR(V75=0,W75=0),100%,(+X75/W75))) -> 0.6603423582
A76: %,V5090000 | B76: 5090000 | C76: Allow Consum Title IV SO2 | F76: 2859.33 | G76: 1321.84 | H76: 1537.49 | I76: 1.1631438 | K76: 8772.35 | L76: 7860.93 | M76: 911.42 | N76: 0.1159430246 | Q76: 5478.42 | R76: 2605.91 | S76: 2872.51 | T76: 1.102305912 | V76: 17609.82 | W76: 33077.77 | X76: -15467.95 | Y76: -0.4676237243
A77: %,V5090001 | B77: 5090001 | C77: Allowance Consumption - NOx | F77: -24634.08 | G77: 0 | H77: -24634.08 | I77: 1 | K77: -39768.74 | L77: 0 | M77: -39768.74 | N77: 1 | Q77: -39768.74 | R77: 0 | S77: -39768.74 | T77: 1 | V77: -196911.6 | W77: 42857.15 | X77: -239768.75 | Y77: -5.594603234
A78: %,V5090009 | B78: 5090009 | C78: Allow Consumpt CSAPR SO2 | F78: 14.25 | G78: 6.46 | H78: 7.79 | I78: 1.205882353 | K78: 43.25 | L78: 38.4 | M78: 4.85 | N78: 0.1263020833 | Q78: 27.1 | R78: 12.74 | S78: 14.36 | T78: 1.127158556 | V78: 85.87 | W78: 159.26 | X78: -73.39 | Y78: -0.4608187869
A79: %,V5100000 | B79: 5100000 | C79: Maint Supv & Engineering | F79: 69178.41 | G79: 65789.02 | H79: 3389.39 | I79: 0.05151908328 | K79: 544937.32 | L79: 524607.31 | M79: 20330.01 | N79: 0.03875281494 | Q79: 251424.65 | R79: 263765.79 | S79: -12341.14 | T79: -0.04678825105 | V79: 1012012.1 | W79: 1289727.2 | X79: -277715.1 | Y79: -0.2153285594
A80: %,V5100001 | B80: 5100001 | C80: Dresden Maint Sup& Engineer | F80: 15.71 | G80: 0 | H80: 15.71 | I80: 1 | K80: 5.77 | L80: 0 | M80: 5.77 | N80: 1 | Q80: 15.71 | R80: 0 | S80: 15.71 | T80: 1 | V80: 375.34 | W80: 0 | X80: 375.34 | Y80: 1
A81: %,V5110000 | B81: 5110000 | C81: Maintenance of Structures | F81: 99973.82 | G81: 167010.37 | H81: -67036.55 | I81: -0.4013915423 | K81: 970716.25 | L81: 900636.81 | M81: 70079.44 | N81: 0.07781098798 | Q81: 380452.15 | R81: 447180.39 | S81: -66728.24 | T81: -0.1492199602 | V81: 1762959.08 | W81: 2065957.56 | X81: -302998.48 | Y81: -0.14666249
A82: %,V5120000 | B82: 5120000 | C82: Maintenance of Boiler Plant | F82: 721884.84 | G82: 316845.68 | H82: 405039.16 | I82: 1.278348375 | K82: 6885136.69 | L82: 7594538.63 | M82: -709401.94 | N82: -0.0934094847 | Q82: 3858686.37 | R82: 3724881.02 | S82: 133805.35 | T82: 0.03592204671 | V82: 11837820 | W82: 15209176.84 | X82: -3371356.84 | Y82: -0.2216659636
A83: %,V5120034 | B83: 5120034 | C83: BSDR O/U Recovery - Maint Cost | F83: -1845.36 | G83: -540.36 | H83: -1305 | I83: 2.415056629 | K83: -17752.8 | L83: -3221.82 | M83: -14530.98 | N83: 4.510177477 | Q83: -14903.28 | R83: -2634.75 | S83: -12268.53 | T83: 4.656430401 | V83: -23053.4 | W83: -7719.5 | X83: -15333.9 | Y83: 1.986385129
A84: %,V5120037 | B84: 5120037 | C84: KY Steam Maint O/U | F84: -58271.11 | G84: -58271.11 | H84: 0 | I84: 0 | K84: -349626.66 | L84: -349626.66 | M84: 0 | N84: 0 | Q84: -174813.33 | R84: -174813.33 | S84: 0 | T84: 0 | V84: -699253.32 | W84: -699253.32 | X84: 0 | Y84: 0
A85: %,V5130000 | B85: 5130000 | C85: Maintenance of Electric Plant | F85: 533257.79 | G85: 252404.07 | H85: 280853.72 | I85: 1.112714704 | K85: 3284304.64 | L85: 2628405.12 | M85: 655899.52 | N85: 0.2495427798 | Q85: 2120560.3 | R85: 1135146.34 | S85: 985413.96 | T85: 0.8680942054 | V85: 6562013.02 | W85: 4489140.33 | X85: 2072872.69 | Y85: 0.4617527049
A86: %,V5132000 | B86: 5132000 | C86: Maint of Computer Software-Mjr | F86: 3837.85 | G86: 2475.3 | H86: 1362.55 | I86: 0.5504585303 | K86: 23100.95 | L86: 29545.25 | M86: -6444.3 | N86: -0.2181162793 | Q86: 10026.75 | R86: 12377.75 | S86: -2351 | T86: -0.1899375896 | V86: 48820.7 | W86: 29545.25 | X86: 19275.45 | Y86: 0.6524043628
A87: %,V5133000 | B87: 5133000 | C87: Maint of Comm Equipmt-Mjr | F87: 272.28 | G87: 248.73 | H87: 23.55 | I87: 0.09468097938 | K87: 3696.97 | L87: 1372.91 | M87: 2324.06 | N87: 1.692798508 | Q87: 741.23 | R87: 961.05 | S87: -219.82 | T87: -0.2287289943 | V87: 8007.79 | W87: 1372.91 | X87: 6634.88 | Y87: 4.832712996
A88: %,V5140000 | B88: 5140000 | C88: Maintenance of Misc Steam Plt | F88: 177278.11 | G88: 183758.83 | H88: -6480.72 | I88: -0.03526752973 | K88: 1139946.28 | L88: 748353.77 | M88: 391592.51 | N88: 0.5232719146 | Q88: 652975.38 | R88: 343008.11 | S88: 309967.27 | T88: 0.903673298 | V88: 1874135.14 | W88: 1466160 | X88: 407975.14 | Y88: 0.2782609947
A89: %,FACCOUNT,X,TGL_FERC_ACCT,N500-515 | B89: 4 | C89: Total Power Production Expenses - Steam Power | F89: 17240369.68 | G89: 14523899.94 | H89: 2716469.744 | I89: 0.1870344574 | K89: 94578567.5 | L89: 86175185.46 | M89: 8403382.04 | N89: 0.09751510246 | Q89: 49582898.39 | R89: 40371571.35 | S89: 9211327.039 | T89: 0.2281636986 | V89: 190811589.4 | W89: 170264459.7 | X89: 20547129.72 | Y89: 0.1206777372
A90: %,FACCOUNT,X,TGL_FERC_ACCT,N517-525 | B90: 5 | C90: Nuclear Power Generation - Operation (517-525) | D90: o | F90: 0 | G90: 0 | H90: 0 | K90: 0 | L90: 0 | M90: 0 | Q90: 0 | R90: 0 | S90: 0 | V90: 0 | W90: 0 | X90: 0
A91: %,V5311000 | B91: 5311000 | C91: Maint of Computer Hardware | F91: 0 | G91: 0 | H91: 0 | K91: 0 | L91: 0 | M91: 0 | Q91: 93.06 | R91: 0 | S91: 93.06 | T91: 1 | V91: 76.69 | W91: 0 | X91: 76.69 | Y91: 1
A92: %,V5312000 | B92: 5312000 | C92: Maint of Computer Software | F92: 0 | G92: -14.44 | H92: 14.44 | I92: 1 | K92: 0 | L92: -14.44 | M92: 14.44 | N92: 1 | Q92: 0 | R92: -14.44 | S92: 14.44 | T92: 1 | V92: 14.63 | W92: -14.44 | X92: 29.07 | Y92: -2.013157895
A93: %,FACCOUNT,X,TGL_FERC_ACCT,N528-533 | B93: 6 | C93: Nuclear Power Generation - Maintenance (528-532) | D93: m | F93: 0 | G93: -14.44 | H93: 14.44 | I93: 1 | K93: 0 | L93: -14.44 | M93: 14.44 | N93: 1 | Q93: 93.06 | R93: -14.44 | S93: 107.5 | T93: -7.444598338 | V93: 91.32 | W93: -14.44 | X93: 105.76 | Y93: -7.324099723
A94: %,V5311000 | B94: 5311000 | C94: Maint of Computer Hardware | F94: 0 | G94: 0 | H94: 0 | K94: 0 | L94: 0 | M94: 0 | Q94: 93.06 | R94: 0 | S94: 93.06 | T94: 1 | V94: 76.69 | W94: 0 | X94: 76.69 | Y94: 1
A95: %,V5312000 | B95: 5312000 | C95: Maint of Computer Software | F95: 0 | G95: -14.44 | H95: 14.44 | I95: 1 | K95: 0 | L95: -14.44 | M95: 14.44 | N95: 1 | Q95: 0 | R95: -14.44 | S95: 14.44 | T95: 1 | V95: 14.63 | W95: -14.44 | X95: 29.07 | Y95: -2.013157895
A96: %,FACCOUNT,X,TGL_FERC_ACCT,N517-533 | B96: 7 | C96: Total Power Production Expenses - Nuclear Power | F96: 0 | G96: -14.44 | H96: 14.44 | I96: 1 | K96: 0 | L96: -14.44 | M96: 14.44 | N96: 1 | Q96: 93.06 | R96: -14.44 | S96: 107.5 | T96: -7.444598338 | V96: 91.32 | W96: -14.44 | X96: 105.76 | Y96: -7.324099723
A97: %,FACCOUNT,X,TGL_FERC_ACCT,N535-540 | B97: 8 | C97: Hydraulic Power Generation - Operation (535-540.1) | D97: o | F97: 0 | G97: 0 | H97: 0 | K97: 0 | L97: 0 | M97: 0 | Q97: 0 | R97: 0 | S97: 0 | V97: 0 | W97: 0 | X97: 0
A98: %,FACCOUNT,X,TGL_FERC_ACCT,N541-545 | B98: 9 | C98: Hydraulic Power Generation - Maintenance (541-545.1) | D98: m | F98: 0 | G98: 0 | H98: 0 | K98: 0 | L98: 0 | M98: 0 | Q98: 0 | R98: 0 | S98: 0 | V98: 0 | W98: 0 | X98: 0
A99: %,FACCOUNT,X,TGL_FERC_ACCT,N535-545 | B99: 10 | C99: Total Power Production Expenses - Hydraulic Power | F99: 0 | G99: 0 | H99: 0 | K99: 0 | L99: 0 | M99: 0 | Q99: 0 | R99: 0 | S99: 0 | V99: 0 | W99: 0 | X99: 0
A100: %,V5581000 | B100: 5581000 | C100: Oper Supervision & Engineering | F100: 273.64 | G100: 78.59 | K100: 1045.45 | L100: 224.88 | Q100: 744.2 | R100: 224.88 | V100: 2225.34 | W100: 224.88
A101: %,V5582000 | B101: 5582000 | C101: Solar Panel Gen&Oth Plt Op-Mjr | F101: -1.69 | G101: 0 | K101: 11.1 | L101: 2.07 | Q101: 11.1 | R101: -8.32 | V101: 11.1 | W101: 2.07
A102: %,FACCOUNT,X,TGL_FERC_ACCT,N5581,N5582,N5584,N5585 | B102: 10.1 | C102: Solar Generation – Operation (558.1-558.5) | D102: o | F102: 271.95 | G102: 78.59 | K102: 1056.55 | L102: 226.95 | Q102: 755.3 | R102: 216.56 | V102: 2236.44 | W102: 226.95
A103: %,V5587000 | B103: 5587000 | C103: Maint Solar Pnl Strct & Eq-Mjr | F103: 1.17 | G103: -3.51 | K103: 2.78 | L103: 0 | Q103: -4.03 | R103: -41.21 | V103: 5.85 | W103: 0
A104: %,FACCOUNT,X,TGL_FERC_ACCT,N5586,N5587,N5588,N5589,N55810,N55811,N55812 | B104: 10.2 | C104: Solar Generation – Maintenance (558.6-558.12) | D104: m | F104: 1.17 | G104: -3.51 | K104: 2.78 | L104: 0 | Q104: -4.03 | R104: -41.21 | V104: 5.85 | W104: 0
B105: 10.3 | C105: Total Power Production Expenses – Solar | F105: =F102+F104 -> 273.12
A106: %,V5581300 | B106: 5581300 | C106: Oper Supervision & Engineering | F106: 0 | G106: 1636.25 | K106: 0 | L106: 3971.3 | Q106: -2412.1 | R106: 3599.56 | V106: 5541.93 | W106: 3971.3
A107: %,V5581400 | B107: 5581400 | C107: Wind Turb Gen&Oth Plnt Op-Mjr | F107: 0 | G107: 103.28 | K107: 0 | L107: 514.06 | Q107: -342.41 | R107: -518.02 | V107: -0.21 | W107: 514.06
A108: %,V5581601 | B108: 5581601 | C108: Wind - Variable Production Exp | F108: 0 | G108: 53.61 | K108: 0 | L108: 53.61 | Q108: -60.77 | R108: 53.61 | V108: -29.55 | W108: 53.61
A109: %,FACCOUNT,X,TGL_FERC_ACCT,N55813,N55814,N55816,N55817 | B109: 10.4 | C109: Wind Generation – Operation (558.13-558.17) | D109: o | F109: 0 | G109: 1793.14 | K109: 0 | L109: 4538.97 | Q109: -2815.28 | R109: 3135.15 | V109: 5512.17 | W109: 4538.97
A110: %,V5581900 | B110: 5581900 | C110: Maint Wind Turb Struct&Eq-Mjr | F110: 0 | G110: 0 | K110: 0 | L110: 0 | Q110: 0 | R110: 0 | V110: 0 | W110: 0
A111: %,FACCOUNT,X,TGL_FERC_ACCT,N55818,N55819,N55820,N55821,N55822,N55823,N55824 | B111: 10.5 | C111: Wind Generation – Maintenance (558.18-558.24) | D111: m | F111: 0 | G111: 0 | K111: 0 | L111: 0 | Q111: 0 | R111: 0 | V111: 0 | W111: 0
B112: 10.6 | C112: Total Power Production Expenses – Wind | F112: =F109+F111 -> 0
A113: %,FACCOUNT,X,TGL_FERC_ACCT,N5590 | B113: 10.7 | C113: Other Renewable Generation – Operation (559.1-559.5) | D113: o | F113: 0 | G113: 0 | K113: 0 | L113: 0 | Q113: 0 | R113: 0 | V113: 0 | W113: 0
A114: %,FACCOUNT,X,TGL_FERC_ACCT,N559 | B114: 10.8 | C114: Other Renewable Generation – Maintenance (559.6-559.16) | D114: m | F114: 0 | G114: 0 | K114: 0 | L114: 0 | Q114: 0 | R114: 0 | V114: 0 | W114: 0
B115: 10.9 | C115: Total Power Production Expenses – Other Renewable | F115: =F113+F114 -> 0
A116: %,V5490000 | B116: 5490000 | C116: Misc Other Pwer Generation Exp | F116: 0 | G116: 0 | H116: =+F116-G116 -> 0 | I116: =IF(AND(F116=0,G116=0),"",IF(OR(F116=0,G116=0),100%,(+H116/G116))) ->  | K116: 0 | L116: 0 | M116: =+K116-L116 -> 0 | N116: =IF(AND(K116=0,L116=0),"",IF(OR(K116=0,L116=0),100%,(+M116/L116))) ->  | Q116: 0 | R116: 0 | S116: =+Q116-R116 -> 0 | T116: =IF(AND(Q116=0,R116=0),"",IF(OR(Q116=0,R116=0),100%,(+S116/R116))) ->  | V116: 0.01 | W116: 0 | X116: =+V116-W116 -> 0.01 | Y116: =IF(AND(V116=0,W116=0),"",IF(OR(V116=0,W116=0),100%,(+X116/W116))) -> 1
A117: %,V8140000 | B117: 8140000 | C117: Underground Storage Expenses | F117: 0 | G117: 0 | H117: 0 | K117: 0 | L117: 0 | M117: 0 | Q117: 0 | R117: 0 | S117: 0 | V117: 0 | W117: 0 | X117: 0
A118: %,FACCOUNT,X,TGL_FERC_ACCT,N546-550 | B118: 11 | C118: Other Power Generation - Operation (546-550.1) | D118: o | F118: 0 | G118: 0 | H118: 0 | K118: 0 | L118: 0 | M118: 0 | Q118: 0 | R118: 0 | S118: 0 | V118: 0.01 | W118: 0 | X118: 0.01 | Y118: 1
A119: %,FACCOUNT,X,TGL_FERC_ACCT,N551-554 | B119: 12 | C119: Other Power Generation - Maintenance (551-554.1) | D119: m | F119: 0 | G119: 0 | H119: 0 | K119: 0 | L119: 0 | M119: 0 | Q119: 0 | R119: 0 | S119: 0 | V119: 0 | W119: 0 | X119: 0
A120: %,V5490000 | B120: 5490000 | C120: Misc Other Pwer Generation Exp | F120: 0 | G120: 0 | H120: 0 | K120: 0 | L120: 0 | M120: 0 | Q120: 0 | R120: 0 | S120: 0 | V120: 0.01 | W120: 0 | X120: 0.01 | Y120: 1
A121: %,V8140000 | B121: 8140000 | C121: Underground Storage Expenses | F121: 0 | G121: 0 | H121: 0 | K121: 0 | L121: 0 | M121: 0 | Q121: 0 | R121: 0 | S121: 0 | V121: 0 | W121: 0 | X121: 0
A122: %,FACCOUNT,X,TGL_FERC_ACCT,N546-554 | B122: 13 | C122: Total Power Production Expenses - Other Power | F122: 0 | G122: 0 | H122: 0 | K122: 0 | L122: 0 | M122: 0 | Q122: 0 | R122: 0 | S122: 0 | V122: 0.01 | W122: 0 | X122: 0.01 | Y122: 1
B123: 14 | C123: Other Power Supply Expenses | H123: 0 | M123: 0 | S123: 0 | X123: 0
A124: %,V5550001 | B124: 5550001 | C124: Purch Pwr-NonTrading-Nonassoc | F124: 12940602.84 | G124: 6715935.28 | H124: 6224667.56 | I124: 0.9268504386 | K124: 76438790.63 | L124: 68678373.62 | M124: 7760417.01 | N124: 0.112996517 | Q124: 38815169.99 | R124: 24662942.85 | S124: 14152227.14 | T124: 0.573825566 | V124: 120796722.3 | W124: 112345802.7 | X124: 8450919.56 | Y124: 0.07522238799
A125: %,V5550003 | B125: 5550003 | C125: Purchased Power - Cogeneration | F125: 3941 | G125: 0 | H125: 3941 | I125: 1 | K125: 3941 | L125: 0 | M125: 3941 | N125: 1 | Q125: 3941 | R125: 0 | S125: 3941 | T125: 1 | V125: 3941 | W125: 0 | X125: 3941 | Y125: 1
A126: %,V5550004 | B126: 5550004 | C126: Purchased Power-Pool Capacity | F126: 0 | G126: 0 | H126: 0 | K126: 158289.38 | L126: 0 | M126: 158289.38 | N126: 1 | Q126: 63679.78 | R126: 0 | S126: 63679.78 | T126: 1 | V126: 383250 | W126: 0 | X126: 383250 | Y126: 1
A127: %,V5550023 | B127: 5550023 | C127: Purch Power Capacity -NA | F127: 0 | G127: 483018.55 | H127: -483018.55 | I127: 1 | K127: 0 | L127: 2332542 | M127: -2332542 | N127: 1 | Q127: 0 | R127: 1727896.68 | S127: -1727896.68 | T127: 1 | V127: -480389.31 | W127: 3531740.64 | X127: -4012129.95 | Y127: -1.136020552
A128: %,V5550029 | B128: 5550029 | C128: Purch Power-Assoc-Trnsfr Price | F128: 0 | G128: 0 | H128: 0 | K128: 0 | L128: 0 | M128: 0 | Q128: 0 | R128: 0 | S128: 0 | V128: 0 | W128: 0 | X128: 0
A129: %,V5550039 | B129: 5550039 | C129: PJM Inadvertent Mtr Res-OSS | F129: -681.28 | G129: 891.5 | H129: -1572.78 | I129: -1.764195177 | K129: 2702.81 | L129: -1531.24 | M129: 4234.05 | N129: -2.765111935 | Q129: -787.64 | R129: -391.77 | S129: -395.87 | T129: 1.010465324 | V129: 569.32 | W129: 1843.49 | X129: -1274.17 | Y129: -0.6911727213
A130: %,V5550040 | B130: 5550040 | C130: PJM Inadvertent Mtr Res-LSE | F130: -31837.43 | G130: -4019.14 | H130: -27818.29 | I130: 6.921453346 | K130: 67682.75 | L130: -38270.13 | M130: 105952.88 | N130: -2.768552916 | Q130: 3794.73 | R130: -21728.22 | S130: 25522.95 | T130: -1.174645231 | V130: 43243.85 | W130: -4990.23 | X130: 48234.08 | Y130: -9.665702783
A131: %,V5550074 | B131: 5550074 | C131: PJM Reactive-Charge | F131: -46309.94 | G131: 271549.29 | H131: -317859.23 | I131: -1.17053972 | K131: 1087270.95 | L131: 1649750.95 | M131: -562480 | N131: -0.3409484322 | Q131: 338612.31 | R131: 818938.66 | S131: -480326.35 | T131: -0.5865229882 | V131: 2655321.88 | W131: 3389853.77 | X131: -734531.89 | Y131: -0.2166854206
A132: %,V5550075 | B132: 5550075 | C132: PJM Reactive-Credit | F132: 0 | G132: -119573 | H132: 119573 | I132: 1 | K132: -597865 | L132: -717438 | M132: 119573 | N132: -0.1666666667 | Q132: -239146 | R132: -358719 | S132: 119573 | T132: -0.3333333333 | V132: -1315303 | W132: -1434876 | X132: 119573 | Y132: -0.08333333333
A133: %,V5550076 | B133: 5550076 | C133: PJM Black Start-Charge | F133: 34809.12 | G133: 26888.6 | H133: 7920.52 | I133: 0.2945679582 | K133: 194306.52 | L133: 208661.02 | M133: -14354.5 | N133: -0.06879339514 | Q133: 119680.6 | R133: 111222.19 | S133: 8458.41 | T133: 0.07604966239 | V133: 448878.12 | W133: 782192.34 | X133: -333314.22 | Y133: -0.4261282078
A134: %,V5550078 | B134: 5550078 | C134: PJM Regulation-Charge | F134: 95390.75 | G134: 108302.07 | H134: -12911.32 | I134: -0.1192158192 | K134: 1091282.92 | L134: 505567.03 | M134: 585715.89 | N134: 1.158532608 | Q134: 279110.21 | R134: 228433.39 | S134: 50676.82 | T134: 0.2218450639 | V134: 1864951.59 | W134: 799682.65 | X134: 1065268.94 | Y134: 1.332114608
A135: %,V5550079 | B135: 5550079 | C135: PJM Regulation-Credit | F135: -14873.11 | G135: -961.09 | H135: -13912.02 | I135: 14.47525206 | K135: -687138.06 | L135: 211096.54 | M135: -898234.6 | N135: -4.255089164 | Q135: -524629.8 | R135: -1821.42 | S135: -522808.38 | T135: 287.0334025 | V135: -404952.32 | W135: -19127.42 | X135: -385824.9 | Y135: 20.17129859
A136: %,V5550080 | B136: 5550080 | C136: PJM Hourly Net Purch.-FERC | F136: 1105089.92 | G136: 3619595.03 | H136: -2514505.11 | I136: -0.6946923866 | K136: 9040239.12 | L136: 6498538.99 | M136: 2541700.13 | N136: 0.3911187013 | Q136: 2340209.37 | R136: 5159257.56 | S136: -2819048.19 | T136: -0.5464057875 | V136: 21991666.48 | W136: 12556509.93 | X136: 9435156.55 | Y136: 0.7514155289
A137: %,V5550083 | B137: 5550083 | C137: PJM Sync & Non Sync-Charge | F137: 62566.07 | G137: 95618.73 | H137: -33052.66 | I137: -0.3456713972 | K137: 553463.28 | L137: 544778.74 | M137: 8684.54 | N137: 0.0159414077 | Q137: 162768.65 | R137: 270474.18 | S137: -107705.53 | T137: -0.3982100251 | V137: 1078823.24 | W137: 795604.79 | X137: 283218.45 | Y137: 0.3559788146
A138: %,V5550084 | B138: 5550084 | C138: PJM Sync & Non Sync-Credit | F138: -6156.01 | G138: -5237.44 | H138: -918.57 | I138: 0.1753853027 | K138: -45779.52 | L138: -98626.83 | M138: 52847.31 | N138: -0.5358309701 | Q138: -9669.31 | R138: -55687.7 | S138: 46018.39 | T138: -0.8263654272 | V138: -115777.84 | W138: -120514.41 | X138: 4736.57 | Y138: -0.03930293481
A139: %,V5550123 | B139: 5550123 | C139: PJM OpRes-LSE-Charge | F139: 176400.55 | G139: 115041.68 | H139: 61358.87 | I139: 0.5333620823 | K139: 6714953.44 | L139: 3754534.42 | M139: 2960419.02 | N139: 0.7884916447 | Q139: 449552.42 | R139: 441454 | S139: 8098.42 | T139: 0.01834487852 | V139: 7548634.03 | W139: 4223240.52 | X139: 3325393.51 | Y139: 0.7874032971
A140: %,V5550124 | B140: 5550124 | C140: PJM Implicit Congestion-LSE | F140: -1019610.94 | G140: 652934.32 | H140: -1672545.26 | I140: -2.561582703 | K140: 10798634.2 | L140: 3399859.13 | M140: 7398775.07 | N140: 2.17620048 | Q140: -1239600.11 | R140: 934624.7 | S140: -2174224.81 | T140: -2.326307886 | V140: 12681309.98 | W140: 7868469.75 | X140: 4812840.23 | Y140: 0.611661528
A141: %,V5550132 | B141: 5550132 | C141: PJM FTR Revenue-LSE | F141: -2702638.35 | G141: -77097.56 | H141: -2625540.79 | I141: 34.05478448 | K141: -24704362.14 | L141: -6119712.68 | M141: -18584649.46 | N141: 3.036850001 | Q141: -9596827.24 | R141: -1341557.79 | S141: -8255269.45 | T141: 6.153495221 | V141: -28731875.37 | W141: -9904130.78 | X141: -18827744.59 | Y141: 1.90099919
A142: %,V5550137 | B142: 5550137 | C142: PJM OpRes-LSE-Credit | F142: 12050.84 | G142: -356.27 | H142: 12407.11 | I142: -34.82502035 | K142: -101148.53 | L142: -37127.01 | M142: -64021.52 | N142: 1.724392026 | Q142: -78654.12 | R142: -21039.74 | S142: -57614.38 | T142: 2.738359885 | V142: -199224.55 | W142: -65337.69 | X142: -133886.86 | Y142: 2.049152028
A143: %,V5550139 | B143: 5550139 | C143: Generation Deactivation expens | F143: 43102.74 | G143: 0 | H143: 43102.74 | I143: 1 | K143: -20964.7 | L143: 0 | M143: -20964.7 | N143: 1 | Q143: 105216.77 | R143: 0 | S143: 105216.77 | T143: 1 | V143: 104037.37 | W143: 0 | X143: 104037.37 | Y143: 1
A144: %,V5550326 | B144: 5550326 | C144: PJM Transm Loss Charges - LSE | F144: 199558.97 | G144: 547423.21 | H144: -347864.24 | I144: -0.6354576014 | K144: 5048289.66 | L144: 3523439.49 | M144: 1524850.17 | N144: 0.4327731963 | Q144: 224011.3 | R144: 1178978.75 | S144: -954967.45 | T144: -0.8099954728 | V144: 8437234.17 | W144: 6410111.34 | X144: 2027122.83 | Y144: 0.3162383183
A145: %,V5550327 | B145: 5550327 | C145: PJM Transm Loss Credits-LSE | F145: -303927.19 | G145: -279161.09 | H145: -24766.1 | I145: 0.08871616026 | K145: -3263696.26 | L145: -1889123.8 | M145: -1374572.46 | N145: 0.727624341 | Q145: -811189.43 | R145: -670774.89 | S145: -140414.54 | T145: 0.2093318371 | V145: -5117694.11 | W145: -3178811.56 | X145: -1938882.55 | Y145: 0.6099394423
A146: %,V5550328 | B146: 5550328 | C146: PJM FC Penalty Credit | F146: 0 | G146: -288.03 | H146: 288.03 | I146: 1 | K146: -10216.63 | L146: -2256.95 | M146: -7959.68 | N146: 3.526741842 | Q146: -10120.1 | R146: -659.8 | S146: -9460.3 | T146: 14.33813277 | V146: -10680.45 | W146: -2779.37 | X146: -7901.08 | Y146: 2.84275933
A147: %,V5550335 | B147: 5550335 | C147: Purchased Power-PPA Rider | F147: -766148.2 | G147: 0 | H147: -766148.2 | I147: 1 | K147: -4586956.888 | L147: 0 | M147: -4586956.888 | N147: 1 | Q147: -4586956.888 | R147: 0 | S147: -4586956.888 | T147: 1 | V147: -4586956.888 | W147: 0 | X147: -4586956.888 | Y147: 1
A148: %,FACCOUNT,X,TGL_FERC_ACCT,N5550 | B148: 15 | C148: Purchased Power (555) | F148: 9781330.35 | G148: 12150504.64 | H148: -2369174.29 | I148: -0.1949856702 | K148: 77181718.93 | L148: 82403055.29 | M148: -5221336.358 | N148: -0.06336338306 | Q148: 25808166.49 | R148: 33061842.63 | S148: -7253676.138 | T148: -0.2193972133 | V148: 137075729.5 | W148: 137974484.5 | X148: -898755.008 | Y148: -0.006513921842
B149: 15.1 | C149: Power Purchased for Storage Operations (555.1)
A150: %,FACCOUNT,X,TGL_FERC_ACCT,N5552 | B150: 15.2 | C150: Bundled Environmental Credits (555.2) | F150: 0 | G150: 0 | K150: 0 | L150: 0 | Q150: 0 | R150: 0 | V150: 0 | W150: 0
A151: %,FACCOUNT,X,TGL_FERC_ACCT,N5553 | B151: 15.3 | C151: Unbundled Environmental Credits (555.3) | F151: 0 | G151: 0 | K151: 0 | L151: 0 | Q151: 0 | R151: 0 | V151: 0 | W151: 0
A152: %,V5560000 | B152: 5560000 | C152: Sys Control & Load Dispatching | F152: 3659.43 | G152: 3584.03 | H152: =+F152-G152 -> 75.4 | I152: =IF(AND(F152=0,G152=0),"",IF(OR(F152=0,G152=0),100%,(+H152/G152))) -> 0.02103777033 | K152: 26011.5 | L152: 23562.55 | M152: =+K152-L152 -> 2448.95 | N152: =IF(AND(K152=0,L152=0),"",IF(OR(K152=0,L152=0),100%,(+M152/L152))) -> 0.103933997 | Q152: 12458.8 | R152: 10333.35 | S152: =+Q152-R152 -> 2125.45 | T152: =IF(AND(Q152=0,R152=0),"",IF(OR(Q152=0,R152=0),100%,(+S152/R152))) -> 0.2056883779 | V152: 56531.73 | W152: 62567.05 | X152: =+V152-W152 -> -6035.32 | Y152: =IF(AND(V152=0,W152=0),"",IF(OR(V152=0,W152=0),100%,(+X152/W152))) -> -0.09646163596
A153: %,FACCOUNT,X,TGL_FERC_ACCT,N5560 | B153: 16 | C153: System Control and Load Dispatching (556) | F153: 3659.43 | G153: 3584.03 | H153: 75.4 | I153: 0.02103777033 | K153: 26011.5 | L153: 23562.55 | M153: 2448.95 | N153: 0.103933997 | Q153: 12458.8 | R153: 10333.35 | S153: 2125.45 | T153: 0.2056883779 | V153: 56531.73 | W153: 62567.05 | X153: -6035.32 | Y153: -0.09646163596
A154: %,V5570000 | B154: 5570000 | C154: Other Expenses | F154: 64386.57 | G154: 61090.1 | H154: 3296.47 | I154: 0.05396078906 | K154: 423576.1 | L154: 376416.24 | M154: 47159.86 | N154: 0.1252864648 | Q154: 236680.13 | R154: 183964.11 | S154: 52716.02 | T154: 0.2865560027 | V154: 858345.97 | W154: 716667.11 | X154: 141678.86 | Y154: 0.1976913103
A155: %,V5570007 | B155: 5570007 | C155: Other Pwr Exp - Wholesale RECs | F155: 0 | G155: 0 | H155: 0 | K155: 231.75 | L155: 243.15 | M155: -11.4 | N155: -0.04688463911 | Q155: 0 | R155: 0 | S155: 0 | V155: 231.75 | W155: 243.15 | X155: -11.4 | Y155: -0.04688463911
A156: %,V5570025 | B156: 5570025 | C156: MATL-SAFETY | F156: 0 | G156: 0 | H156: 0 | K156: 0 | L156: 0.93 | M156: -0.93 | N156: 1 | Q156: 0 | R156: 0.93 | S156: -0.93 | T156: 1 | V156: 0 | W156: 0.93 | X156: -0.93 | Y156: 1
A157: %,FACCOUNT,X,TGL_FERC_ACCT,N5570 | B157: 17 | C157: Other Expenses (557) | F157: 64386.57 | G157: 61090.1 | H157: 3296.47 | I157: 0.05396078906 | K157: 423807.85 | L157: 376660.32 | M157: 47147.53 | N157: 0.1251725427 | Q157: 236680.13 | R157: 183965.04 | S157: 52715.09 | T157: 0.2865494988 | V157: 858577.72 | W157: 716911.19 | X157: 141666.53 | Y157: 0.1976068054
A158: %,V5550001 | B158: 5550001 | C158: Purch Pwr-NonTrading-Nonassoc | F158: 12940602.84 | G158: 6715935.28 | H158: 6224667.56 | I158: 0.9268504386 | K158: 76438790.63 | L158: 68678373.62 | M158: 7760417.01 | N158: 0.112996517 | Q158: 38815169.99 | R158: 24662942.85 | S158: 14152227.14 | T158: 0.573825566 | V158: 120796722.3 | W158: 112345802.7 | X158: 8450919.56 | Y158: 0.07522238799
A159: %,V5550003 | B159: 5550003 | C159: Purchased Power - Cogeneration | F159: 3941 | G159: 0 | H159: 3941 | I159: 1 | K159: 3941 | L159: 0 | M159: 3941 | N159: 1 | Q159: 3941 | R159: 0 | S159: 3941 | T159: 1 | V159: 3941 | W159: 0 | X159: 3941 | Y159: 1
A160: %,V5550004 | B160: 5550004 | C160: Purchased Power-Pool Capacity | F160: 0 | G160: 0 | H160: 0 | K160: 158289.38 | L160: 0 | M160: 158289.38 | N160: 1 | Q160: 63679.78 | R160: 0 | S160: 63679.78 | T160: 1 | V160: 383250 | W160: 0 | X160: 383250 | Y160: 1
A161: %,V5550023 | B161: 5550023 | C161: Purch Power Capacity -NA | F161: 0 | G161: 483018.55 | H161: -483018.55 | I161: 1 | K161: 0 | L161: 2332542 | M161: -2332542 | N161: 1 | Q161: 0 | R161: 1727896.68 | S161: -1727896.68 | T161: 1 | V161: -480389.31 | W161: 3531740.64 | X161: -4012129.95 | Y161: -1.136020552
A162: %,V5550029 | B162: 5550029 | C162: Purch Power-Assoc-Trnsfr Price | F162: 0 | G162: 0 | H162: 0 | K162: 0 | L162: 0 | M162: 0 | Q162: 0 | R162: 0 | S162: 0 | V162: 0 | W162: 0 | X162: 0
A163: %,V5550039 | B163: 5550039 | C163: PJM Inadvertent Mtr Res-OSS | F163: -681.28 | G163: 891.5 | H163: -1572.78 | I163: -1.764195177 | K163: 2702.81 | L163: -1531.24 | M163: 4234.05 | N163: -2.765111935 | Q163: -787.64 | R163: -391.77 | S163: -395.87 | T163: 1.010465324 | V163: 569.32 | W163: 1843.49 | X163: -1274.17 | Y163: -0.6911727213
A164: %,V5550040 | B164: 5550040 | C164: PJM Inadvertent Mtr Res-LSE | F164: -31837.43 | G164: -4019.14 | H164: -27818.29 | I164: 6.921453346 | K164: 67682.75 | L164: -38270.13 | M164: 105952.88 | N164: -2.768552916 | Q164: 3794.73 | R164: -21728.22 | S164: 25522.95 | T164: -1.174645231 | V164: 43243.85 | W164: -4990.23 | X164: 48234.08 | Y164: -9.665702783
A165: %,V5550074 | B165: 5550074 | C165: PJM Reactive-Charge | F165: -46309.94 | G165: 271549.29 | H165: -317859.23 | I165: -1.17053972 | K165: 1087270.95 | L165: 1649750.95 | M165: -562480 | N165: -0.3409484322 | Q165: 338612.31 | R165: 818938.66 | S165: -480326.35 | T165: -0.5865229882 | V165: 2655321.88 | W165: 3389853.77 | X165: -734531.89 | Y165: -0.2166854206
A166: %,V5550075 | B166: 5550075 | C166: PJM Reactive-Credit | F166: 0 | G166: -119573 | H166: 119573 | I166: 1 | K166: -597865 | L166: -717438 | M166: 119573 | N166: -0.1666666667 | Q166: -239146 | R166: -358719 | S166: 119573 | T166: -0.3333333333 | V166: -1315303 | W166: -1434876 | X166: 119573 | Y166: -0.08333333333
A167: %,V5550076 | B167: 5550076 | C167: PJM Black Start-Charge | F167: 34809.12 | G167: 26888.6 | H167: 7920.52 | I167: 0.2945679582 | K167: 194306.52 | L167: 208661.02 | M167: -14354.5 | N167: -0.06879339514 | Q167: 119680.6 | R167: 111222.19 | S167: 8458.41 | T167: 0.07604966239 | V167: 448878.12 | W167: 782192.34 | X167: -333314.22 | Y167: -0.4261282078
A168: %,V5550078 | B168: 5550078 | C168: PJM Regulation-Charge | F168: 95390.75 | G168: 108302.07 | H168: -12911.32 | I168: -0.1192158192 | K168: 1091282.92 | L168: 505567.03 | M168: 585715.89 | N168: 1.158532608 | Q168: 279110.21 | R168: 228433.39 | S168: 50676.82 | T168: 0.2218450639 | V168: 1864951.59 | W168: 799682.65 | X168: 1065268.94 | Y168: 1.332114608
A169: %,V5550079 | B169: 5550079 | C169: PJM Regulation-Credit | F169: -14873.11 | G169: -961.09 | H169: -13912.02 | I169: 14.47525206 | K169: -687138.06 | L169: 211096.54 | M169: -898234.6 | N169: -4.255089164 | Q169: -524629.8 | R169: -1821.42 | S169: -522808.38 | T169: 287.0334025 | V169: -404952.32 | W169: -19127.42 | X169: -385824.9 | Y169: 20.17129859
A170: %,V5550080 | B170: 5550080 | C170: PJM Hourly Net Purch.-FERC | F170: 1105089.92 | G170: 3619595.03 | H170: -2514505.11 | I170: -0.6946923866 | K170: 9040239.12 | L170: 6498538.99 | M170: 2541700.13 | N170: 0.3911187013 | Q170: 2340209.37 | R170: 5159257.56 | S170: -2819048.19 | T170: -0.5464057875 | V170: 21991666.48 | W170: 12556509.93 | X170: 9435156.55 | Y170: 0.7514155289
A171: %,V5550083 | B171: 5550083 | C171: PJM Sync & Non Sync-Charge | F171: 62566.07 | G171: 95618.73 | H171: -33052.66 | I171: -0.3456713972 | K171: 553463.28 | L171: 544778.74 | M171: 8684.54 | N171: 0.0159414077 | Q171: 162768.65 | R171: 270474.18 | S171: -107705.53 | T171: -0.3982100251 | V171: 1078823.24 | W171: 795604.79 | X171: 283218.45 | Y171: 0.3559788146
A172: %,V5550084 | B172: 5550084 | C172: PJM Sync & Non Sync-Credit | F172: -6156.01 | G172: -5237.44 | H172: -918.57 | I172: 0.1753853027 | K172: -45779.52 | L172: -98626.83 | M172: 52847.31 | N172: -0.5358309701 | Q172: -9669.31 | R172: -55687.7 | S172: 46018.39 | T172: -0.8263654272 | V172: -115777.84 | W172: -120514.41 | X172: 4736.57 | Y172: -0.03930293481
A173: %,V5550123 | B173: 5550123 | C173: PJM OpRes-LSE-Charge | F173: 176400.55 | G173: 115041.68 | H173: 61358.87 | I173: 0.5333620823 | K173: 6714953.44 | L173: 3754534.42 | M173: 2960419.02 | N173: 0.7884916447 | Q173: 449552.42 | R173: 441454 | S173: 8098.42 | T173: 0.01834487852 | V173: 7548634.03 | W173: 4223240.52 | X173: 3325393.51 | Y173: 0.7874032971
A174: %,V5550124 | B174: 5550124 | C174: PJM Implicit Congestion-LSE | F174: -1019610.94 | G174: 652934.32 | H174: -1672545.26 | I174: -2.561582703 | K174: 10798634.2 | L174: 3399859.13 | M174: 7398775.07 | N174: 2.17620048 | Q174: -1239600.11 | R174: 934624.7 | S174: -2174224.81 | T174: -2.326307886 | V174: 12681309.98 | W174: 7868469.75 | X174: 4812840.23 | Y174: 0.611661528
A175: %,V5550132 | B175: 5550132 | C175: PJM FTR Revenue-LSE | F175: -2702638.35 | G175: -77097.56 | H175: -2625540.79 | I175: 34.05478448 | K175: -24704362.14 | L175: -6119712.68 | M175: -18584649.46 | N175: 3.036850001 | Q175: -9596827.24 | R175: -1341557.79 | S175: -8255269.45 | T175: 6.153495221 | V175: -28731875.37 | W175: -9904130.78 | X175: -18827744.59 | Y175: 1.90099919
A176: %,V5550137 | B176: 5550137 | C176: PJM OpRes-LSE-Credit | F176: 12050.84 | G176: -356.27 | H176: 12407.11 | I176: -34.82502035 | K176: -101148.53 | L176: -37127.01 | M176: -64021.52 | N176: 1.724392026 | Q176: -78654.12 | R176: -21039.74 | S176: -57614.38 | T176: 2.738359885 | V176: -199224.55 | W176: -65337.69 | X176: -133886.86 | Y176: 2.049152028
A177: %,V5550139 | B177: 5550139 | C177: Generation Deactivation expens | F177: 43102.74 | G177: 0 | H177: 43102.74 | I177: 1 | K177: -20964.7 | L177: 0 | M177: -20964.7 | N177: 1 | Q177: 105216.77 | R177: 0 | S177: 105216.77 | T177: 1 | V177: 104037.37 | W177: 0 | X177: 104037.37 | Y177: 1
A178: %,V5550326 | B178: 5550326 | C178: PJM Transm Loss Charges - LSE | F178: 199558.97 | G178: 547423.21 | H178: -347864.24 | I178: -0.6354576014 | K178: 5048289.66 | L178: 3523439.49 | M178: 1524850.17 | N178: 0.4327731963 | Q178: 224011.3 | R178: 1178978.75 | S178: -954967.45 | T178: -0.8099954728 | V178: 8437234.17 | W178: 6410111.34 | X178: 2027122.83 | Y178: 0.3162383183
A179: %,V5550327 | B179: 5550327 | C179: PJM Transm Loss Credits-LSE | F179: -303927.19 | G179: -279161.09 | H179: -24766.1 | I179: 0.08871616026 | K179: -3263696.26 | L179: -1889123.8 | M179: -1374572.46 | N179: 0.727624341 | Q179: -811189.43 | R179: -670774.89 | S179: -140414.54 | T179: 0.2093318371 | V179: -5117694.11 | W179: -3178811.56 | X179: -1938882.55 | Y179: 0.6099394423
A180: %,V5550328 | B180: 5550328 | C180: PJM FC Penalty Credit | F180: 0 | G180: -288.03 | H180: 288.03 | I180: 1 | K180: -10216.63 | L180: -2256.95 | M180: -7959.68 | N180: 3.526741842 | Q180: -10120.1 | R180: -659.8 | S180: -9460.3 | T180: 14.33813277 | V180: -10680.45 | W180: -2779.37 | X180: -7901.08 | Y180: 2.84275933
A181: %,V5550335 | B181: 5550335 | C181: Purchased Power-PPA Rider | F181: -766148.2 | G181: 0 | H181: -766148.2 | I181: 1 | K181: -4586956.888 | L181: 0 | M181: -4586956.888 | N181: 1 | Q181: -4586956.888 | R181: 0 | S181: -4586956.888 | T181: 1 | V181: -4586956.888 | W181: 0 | X181: -4586956.888 | Y181: 1
A182: %,V5560000 | B182: 5560000 | C182: Sys Control & Load Dispatching | F182: 3659.43 | G182: 3584.03 | H182: 75.4 | I182: 0.02103777033 | K182: 26011.5 | L182: 23562.55 | M182: 2448.95 | N182: 0.103933997 | Q182: 12458.8 | R182: 10333.35 | S182: 2125.45 | T182: 0.2056883779 | V182: 56531.73 | W182: 62567.05 | X182: -6035.32 | Y182: -0.09646163596
A183: %,V5570000 | B183: 5570000 | C183: Other Expenses | F183: 64386.57 | G183: 61090.1 | H183: 3296.47 | I183: 0.05396078906 | K183: 423576.1 | L183: 376416.24 | M183: 47159.86 | N183: 0.1252864648 | Q183: 236680.13 | R183: 183964.11 | S183: 52716.02 | T183: 0.2865560027 | V183: 858345.97 | W183: 716667.11 | X183: 141678.86 | Y183: 0.1976913103
A184: %,V5570007 | B184: 5570007 | C184: Other Pwr Exp - Wholesale RECs | F184: 0 | G184: 0 | H184: =+F184-G184 -> 0 | I184: =IF(AND(F184=0,G184=0),"",IF(OR(F184=0,G184=0),100%,(+H184/G184))) ->  | K184: 231.75 | L184: 243.15 | M184: =+K184-L184 -> -11.4 | N184: =IF(AND(K184=0,L184=0),"",IF(OR(K184=0,L184=0),100%,(+M184/L184))) -> -0.04688463911 | Q184: 0 | R184: 0 | S184: =+Q184-R184 -> 0 | T184: =IF(AND(Q184=0,R184=0),"",IF(OR(Q184=0,R184=0),100%,(+S184/R184))) ->  | V184: 231.75 | W184: 243.15 | X184: =+V184-W184 -> -11.4 | Y184: =IF(AND(V184=0,W184=0),"",IF(OR(V184=0,W184=0),100%,(+X184/W184))) -> -0.04688463911
A185: %,V5570025 | B185: 5570025 | C185: MATL-SAFETY | F185: 0 | G185: 0 | H185: 0 | K185: 0 | L185: 0.93 | M185: -0.93 | N185: 1 | Q185: 0 | R185: 0.93 | S185: -0.93 | T185: 1 | V185: 0 | W185: 0.93 | X185: -0.93 | Y185: 1
A186: %,FACCOUNT,X,TGL_FERC_ACCT,N555-557 | B186: 18 | C186: Total Other Power Supply Expenses (line 15-17) | D186: o | F186: 9849376.35 | G186: 12215178.77 | H186: -2365802.42 | I186: -0.1936772654 | K186: 77631538.28 | L186: 82803278.16 | M186: -5171739.878 | N186: -0.06245815375 | Q186: 26057305.42 | R186: 33256141.02 | S186: -7198835.598 | T186: -0.2164663541 | V186: 137990838.9 | W186: 138753962.7 | X186: -763123.798 | Y186: -0.005499834262
A187: %,V5000000 | B187: 5000000 | C187: Oper Supervision & Engineering | F187: 370425.13 | G187: 340471.02 | H187: 29954.11 | I187: 0.08797844234 | K187: 2287064.52 | L187: 1951709.91 | M187: 335354.61 | N187: 0.1718260528 | Q187: 1095506.19 | R187: 964221.19 | S187: 131285 | T187: 0.1361565182 | V187: 4838427.2 | W187: 4041549.7 | X187: 796877.5 | Y187: 0.1971712732
A188: %,V5000002 | B188: 5000002 | C188: Dresden Oper Supervision & Eng | F188: 0 | G188: 0 | H188: 0 | K188: 0 | L188: 0 | M188: 0 | Q188: 0 | R188: 0 | S188: 0 | V188: -33.12 | W188: 0 | X188: -33.12 | Y188: 1
A189: %,V5000003 | B189: 5000003 | C189: Cnstr Srchrge Op Sup & Eng Exp | F189: 0 | G189: 0 | H189: 0 | K189: 0 | L189: 0 | M189: 0 | Q189: 0 | R189: 0 | S189: 0 | V189: 64.34 | W189: 0 | X189: 64.34 | Y189: 1
A190: %,V5010000 | B190: 5010000 | C190: Fuel | F190: 523739.1 | G190: 438840.56 | H190: 84898.54 | I190: 0.1934610146 | K190: 3131516.11 | L190: 4099683.87 | M190: -968167.76 | N190: -0.2361566869 | Q190: 1689503.55 | R190: 1397412.57 | S190: 292090.98 | T190: 0.2090227226 | V190: 6782297.75 | W190: 7373288.13 | X190: -590990.38 | Y190: -0.08015289374
A191: %,V5010001 | B191: 5010001 | C191: Fuel Consumed | F191: 4070848.44 | G191: 5465171.12 | H191: -1394322.68 | I191: -0.2551288239 | K191: 30111505.26 | L191: 28988957.97 | M191: 1122547.29 | N191: 0.0387232715 | Q191: 10520090.72 | R191: 11994024.05 | S191: -1473933.33 | T191: -0.1228889757 | V191: 75432287.23 | W191: 72898701.36 | X191: 2533585.87 | Y191: 0.03475488346
A192: %,V5010003 | B192: 5010003 | C192: Fuel - Procure Unload & Handle | F192: 369120.61 | G192: 500918.55 | H192: -131797.94 | I192: -0.263112516 | K192: 1773107.11 | L192: 1749200.13 | M192: 23906.98 | N192: 0.01366737836 | Q192: 755364.45 | R192: 890622.49 | S192: -135258.04 | T192: -0.1518691045 | V192: 4095539.11 | W192: 3804662.46 | X192: 290876.65 | Y192: 0.07645268222
A193: %,V5010005 | B193: 5010005 | C193: Fuel - Deferred | F193: 3211356.809 | G193: -3340582.92 | H193: 6551939.729 | I193: -1.961316299 | K193: 3635723.411 | L193: 1555354.3 | M193: 2080369.111 | N193: 1.337553194 | Q193: 13528402.91 | R193: 2122048.909 | S193: 11406354 | T193: 5.375160749 | V193: 7217515.944 | W193: -267358.96 | X193: 7484874.904 | Y193: -27.99560151
A194: %,V5010012 | B194: 5010012 | C194: Ash Sales Proceeds | F194: 789.28 | G194: -1796.76 | H194: 2586.04 | I194: -1.439279592 | K194: 3607.35 | L194: 1958.46 | M194: 1648.89 | N194: 0.8419319261 | Q194: 1810.86 | R194: -1376.5 | S194: 3187.36 | T194: -2.315553941 | V194: 8923.83 | W194: 12268.57 | X194: -3344.74 | Y194: -0.2726267201
A195: %,V5010013 | B195: 5010013 | C195: Fuel Survey Activity | F195: 2019976.75 | G195: 4136038.43 | H195: -2116061.68 | I195: -0.5116155751 | K195: 2019976.75 | L195: 4136038.43 | M195: -2116061.68 | N195: -0.5116155751 | Q195: 2019976.75 | R195: 4136038.43 | S195: -2116061.68 | T195: -0.5116155751 | V195: 1790471.45 | W195: 4136038.43 | X195: -2345566.98 | Y195: -0.5671047355
A196: %,V5010019 | B196: 5010019 | C196: Fuel Oil Consumed | F196: 953718.64 | G196: 1026257.44 | H196: -72538.8 | I196: -0.07068284932 | K196: 3132568.8 | L196: 2389555.58 | M196: 743013.22 | N196: 0.3109420121 | Q196: 2292899.62 | R196: 1283557.56 | S196: 1009342.06 | T196: 0.7863629115 | V196: 4881341.3 | W196: 4306433.5 | X196: 574907.8 | Y196: 0.133499751
A197: %,V5010020 | B197: 5010020 | C197: Nat Gas Consumed Steam | F197: 2695738.82 | G197: 3625585.34 | H197: -929846.52 | I197: -0.2564679721 | K197: 26607729.1 | L197: 20948927.28 | M197: 5658801.82 | N197: 0.2701237034 | Q197: 6177446.99 | R197: 8035922.82 | S197: -1858475.83 | T197: -0.2312709905 | V197: 44534997.75 | W197: 31582773.46 | X197: 12952224.29 | Y197: 0.4101040812
A198: %,V5010021 | B198: 5010021 | C198: Transp Gas Consumed Steam | F198: 26793.66 | G198: 86157.96 | H198: -59364.3 | I198: -0.6890170102 | K198: 269749.79 | L198: 280191.31 | M198: -10441.52 | N198: -0.03726568108 | Q198: 92616.18 | R198: 171145.92 | S198: -78529.74 | T198: -0.4588466964 | V198: 490330.77 | W198: 387422.67 | X198: 102908.1 | Y198: 0.2656222983
A199: %,V5010027 | B199: 5010027 | C199: Gypsum handling/disposal costs | F199: 118418.89 | G199: 119621.95 | H199: -1203.06 | I199: -0.01005718432 | K199: 791622.73 | L199: 645973.99 | M199: 145648.74 | N199: 0.225471524 | Q199: 363936.37 | R199: 278311.02 | S199: 85625.35 | T199: 0.3076606525 | V199: 1537996.39 | W199: 1355179.5 | X199: 182816.89 | Y199: 0.1349023432
A200: %,V5010028 | B200: 5010028 | C200: Gypsum Sales Proceeds | F200: -24552.9 | G200: -57542.76 | H200: 32989.86 | I200: -0.5733103522 | K200: -496616.48 | L200: -609206.72 | M200: 112590.24 | N200: -0.1848145076 | Q200: -138566.82 | R200: -209761.13 | S200: 71194.31 | T200: -0.3394065907 | V200: -1109851.93 | W200: -1225360.95 | X200: 115509.02 | Y200: -0.09426530199
A201: %,V5010033 | B201: 5010033 | C201: Coal Procurement Sales Net-NA | F201: 0 | G201: 0 | H201: 0 | K201: 281689.3 | L201: 0 | M201: 281689.3 | N201: 1 | Q201: 150302.14 | R201: 0 | S201: 150302.14 | T201: 1 | V201: 281689.3 | W201: 0 | X201: 281689.3 | Y201: 1
... 648 more rows

Sheet KWH
A1: %,LACTUALS,SBAL | B1: %,ATF,FACCOUNT | C1: %,ATT,FDESCR,UDESCR | F1: %,LACTUALS,SPER,R | G1: %,LACTUALS,SPER-1YR,R | H1: %,C | I1: %,C | K1: %,LACTUALS,SPER,R,FCURRENCY_CD,V,FSTATISTICS_CODE,VKWH | L1: %,LACTUALS,SPER-1YR,R,FCURRENCY_CD,V,FSTATISTICS_CODE,VKWH | M1: %,C | N1: %,C | P1: %,LACTUALS,SPER,FCURRENCY_CD,V,FSTATISTICS_CODE,VCUS | Q1: %,LACTUALS,SPER-1YR,FCURRENCY_CD,V,FSTATISTICS_CODE,VCUS | R1: %,C | S1: %,C | T1: %,LACTUALS,SYTD,R | U1: %,LACTUALS,SYTD-1YR,R | V1: %,C | W1: %,C | Y1: %,LACTUALS,SYTD,R,FCURRENCY_CD,V,FSTATISTICS_CODE,VKWH | Z1: %,LACTUALS,SYTD-1YR,R,FCURRENCY_CD,V,FSTATISTICS_CODE,VKWH | AA1: %,C | AB1: %,C | AD1: %,C | AE1: %,LACTUALS,SYTD,FCURRENCY_CD,V,FSTATISTICS_CODE,VCUS | AF1: %,C | AG1: %,LACTUALS,SYTD-1YR,FCURRENCY_CD,V,FSTATISTICS_CODE,VCUS | AH1: %,C | AJ1: %,LACTUALS,SQTR,R | AK1: %,LACTUALS,SQTR-1YR,R | AL1: %,C | AM1: %,C | AO1: %,LACTUALS,SQTR,R,FCURRENCY_CD,V,FSTATISTICS_CODE,VKWH | AP1: %,LACTUALS,SQTR-1YR,R,FCURRENCY_CD,V,FSTATISTICS_CODE,VKWH | AQ1: %,C | AR1: %,C | AT1: %,C | AU1: %,LACTUALS,SQTR,FCURRENCY_CD,V,FSTATISTICS_CODE,VCUS | AV1: %,C | AW1: %,LACTUALS,SQTR-1YR,FCURRENCY_CD,V,FSTATISTICS_CODE,VCUS | AX1: %,C | AZ1: %,LACTUALS,SROLLING12,R | BA1: %,LACTUALS,SROLNG12-1Y,R | BB1: %,C | BC1: %,C | BE1: %,LACTUALS,SROLLING12,R,FCURRENCY_CD,V,FSTATISTICS_CODE,VKWH | BF1: %,LACTUALS,SROLNG12-1Y,R,FCURRENCY_CD,V,FSTATISTICS_CODE,VKWH | BG1: %,C | BH1: %,C | BJ1: %,C | BK1: %,LACTUALS,SROLLING12,FCURRENCY_CD,V,FSTATISTICS_CODE,VCUS | BL1: %,C | BM1: %,LACTUALS,SROLNG12-1Y,FCURRENCY_CD,V,FSTATISTICS_CODE,VCUS | BN1: %,C
C2: Kentucky Power Corp Consol
C3: June 2026 | F3: OPERATING REVENUES | K3: KILOWATT-HOUR SALES | P3: CUSTOMERS | T3: OPERATING REVENUES | Y3: KILOWATT-HOUR SALES | AD3: CUSTOMERS | AJ3: OPERATING REVENUES | AO3: KILOWATT-HOUR SALES | AT3: CUSTOMERS | AZ3: OPERATING REVENUES | BE3: KILOWATT-HOUR SALES | BJ3: CUSTOMERS
B4: Run Date: 07/08/2026 05:29 AM | F4: ONE MONTH ENDED | K4: ONE MONTH ENDED | P4: ONE MONTH ENDED | T4: YEAR TO DATE | Y4: YEAR TO DATE | AD4: YEAR TO DATE | AJ4: 3 Month Ending | AO4: 3 Month Ending | AT4: 3 Month Ending | AZ4: 12 Month Rolling | BE4: 12 Month Rolling | BJ4: 12 Month Rolling
B5: GLR6283P | C5: Rpt ID: FERC_IS1 Layout: FERC_IS1
B6: KYP_CORP_CONSOL | C6: V2099-01-01 Acct: GL_FERC_ACCT BU: GL_PRPT_CONS | F6: 2026 | G6: 2025 | H6: Variance | I6: % | K6: 2026 | L6: 2025 | M6: Variance | N6: % | P6: 2026 | Q6: 2025 | R6: Variance | T6: 2026 | U6: 2025 | V6: Variance | W6: % | Y6: 2026 | Z6: 2025 | AA6: Variance | AB6: % | AD6: 2026 | AF6: 2025 | AH6: Variance | AJ6: 2026 | AK6: 2025 | AL6: Variance | AM6: % | AO6: 2026 | AP6: 2025 | AQ6: Variance | AR6: % | AT6: 2026 | AV6: 2025 | AX6: Variance | AZ6: 2026 | BA6: 2025 | BB6: Variance | BC6: % | BE6: 2026 | BF6: 2025 | BG6: Variance | BH6: % | BJ6: 2026 | BL6: 2025 | BN6: Variance
B8: Page 300 | C8: SALES OF ELECTRICITY
A9: %,V4400001 | B9: 4400001 | C9: Residential Sales-W/Space Htg | F9: 11877288.92 | G9: 10518841.64 | H9: =+F9-G9 -> 1358447.282 | I9: =IF(AND(F9=0,G9=0),"",IF(OR(F9=0,G9=0),100%,(+H9/G9))) -> 0.1291441899 | K9: 87073308 | L9: 111085780 | M9: =+K9-L9 -> -24012472 | N9: =IF(AND(K9=0,L9=0),"",IF(OR(K9=0,L9=0),100%,(+M9/L9))) -> -0.2161615285 | P9: 81658 | Q9: 82290 | R9: =+P9-Q9 -> -632 | T9: 86255437.65 | U9: 82223736.13 | V9: =+T9-U9 -> 4031701.517 | W9: =IF(AND(T9=0,U9=0),"",IF(OR(T9=0,U9=0),100%,(+V9/U9))) -> 0.04903330482 | Y9: 687187645 | Z9: 731550835 | AA9: =+Y9-Z9 -> -44363190 | AB9: =IF(AND(Y9=0,Z9=0),"",IF(OR(Y9=0,Z9=0),100%,(+AA9/Z9))) -> -0.06064266197 | AD9: =ROUND(ABS(AE9)/MONTH(FERC_IS1!$C$696),0) -> 81956 | AE9: 491738 | AF9: =ROUND(ABS(AG9)/MONTH(FERC_IS1!$C$696),0) -> 82670 | AG9: 496022 | AH9: =+AD9-AF9 -> -714 | AJ9: 34380321.68 | AK9: 28645041.59 | AL9: =+AJ9-AK9 -> 5735280.093 | AM9: =IF(AND(AJ9=0,AK9=0),"",IF(OR(AJ9=0,AK9=0),100%,(+AL9/AK9))) -> 0.200218948 | AO9: 230381840 | AP9: 242375315 | AQ9: =+AO9-AP9 -> -11993475 | AR9: =IF(AND(AO9=0,AP9=0),"",IF(OR(AO9=0,AP9=0),100%,(+AQ9/AP9))) -> -0.04948307133 | AT9: =ROUND(ABS(AU9)/3,0) -> 81728 | AU9: 245183 | AV9: =ROUND(ABS(AW9)/3,0) -> 82438 | AW9: 247313 | AX9: =+AT9-AV9 -> -710 | AZ9: 160881560.9 | BA9: 154050466 | BB9: =+AZ9-BA9 -> 6831094.863 | BC9: =IF(AND(AZ9=0,BA9=0),"",IF(OR(AZ9=0,BA9=0),100%,(+BB9/BA9))) -> 0.04434322751 | BE9: 1301691971 | BF9: 1343065994 | BG9: =+BE9-BF9 -> -41374023 | BH9: =IF(AND(BE9=0,BF9=0),"",IF(OR(BE9=0,BF9=0),100%,(+BG9/BF9))) -> -0.03080565154 | BJ9: =ROUND(ABS(BK9)/12,0) -> 82055 | BK9: 984665 | BL9: =ROUND(ABS(BM9)/12,0) -> 82781 | BM9: 993376 | BN9: =+BJ9-BL9 -> -726
A10: %,V4400002 | B10: 4400002 | C10: Residential Sales-W/O Space Ht | F10: 6266781.251 | G10: 5838656.28 | H10: 428124.971 | I10: 0.07332594187 | K10: 45506844 | L10: 56360570 | M10: -10853726 | N10: -0.1925765832 | P10: 47769 | Q10: 47787 | R10: -18 | T10: 37898885.12 | U10: 34140674.99 | V10: 3758210.133 | W10: 0.1100801356 | Y10: 277248207 | Z10: 288819791 | AA10: -11571584 | AB10: -0.04006506604 | AD10: =ROUND(ABS(AE10)/MONTH(FERC_IS1!$C$696),0) -> 47894 | AE10: 287363 | AF10: =ROUND(ABS(AG10)/MONTH(FERC_IS1!$C$696),0) -> 47935 | AG10: 287612 | AH10: -41 | AJ10: 18238297.09 | AK10: 14614184.12 | AL10: 3624112.971 | AM10: 0.2479859937 | AO10: 115500691 | AP10: 118036630 | AQ10: -2535939 | AR10: -0.02148433923 | AT10: 47791 | AU10: 143373 | AV10: 47848 | AW10: 143543 | AX10: -57 | AZ10: 75414614.15 | BA10: 68188104.01 | BB10: 7226510.135 | BC10: 0.1059790449 | BE10: 573626252 | BF10: 581280506 | BG10: -7654254 | BH10: -0.01316791793 | BJ10: 47889 | BK10: 574671 | BL10: 47930 | BM10: 575165 | BN10: -41
A11: %,V4400005 | B11: 4400005 | C11: Residential Fuel Rev | F11: 5362804.56 | G11: 12113659.34 | H11: -6750854.78 | I11: -0.557292771 | K11: 0 | L11: 0 | M11: 0 | P11: 0 | Q11: 0 | R11: 0 | T11: 41290799.57 | U11: 43100164.3 | V11: -1809364.73 | W11: -0.04198046015 | Y11: 0 | Z11: 0 | AA11: 0 | AD11: =ROUND(ABS(AE11)/MONTH(FERC_IS1!$C$696),0) -> 0 | AE11: 0 | AF11: =ROUND(ABS(AG11)/MONTH(FERC_IS1!$C$696),0) -> 0 | AG11: 0 | AH11: 0 | AJ11: 15226812.16 | AK11: 18452329.53 | AL11: -3225517.37 | AM11: -0.1748027188 | AO11: 0 | AP11: 0 | AQ11: 0 | AT11: 0 | AU11: 0 | AV11: 0 | AW11: 0 | AX11: 0 | AZ11: 77752941.58 | BA11: 77554301.81 | BB11: 198639.77 | BC11: 0.002561299185 | BE11: 0 | BF11: 0 | BG11: 0 | BJ11: 0 | BK11: 0 | BL11: 0 | BM11: 0 | BN11: 0
A12: %,FACCOUNT,X,TGL_FERC_ACCT,N4400 | B12: Line 1 | C12: (440) Residential Sales | F12: 23506874.73 | G12: 28471157.26 | H12: -4964282.527 | I12: -0.1743618105 | K12: 132580152 | L12: 167446350 | M12: -34866198 | N12: -0.2082230995 | P12: 129427 | Q12: 130077 | R12: -650 | T12: 165445122.3 | U12: 159464575.4 | V12: 5980546.92 | W12: 0.03750392151 | Y12: 964435852 | Z12: 1020370626 | AA12: -55934774 | AB12: -0.05481809509 | AD12: =ROUND(ABS(AE12)/MONTH(FERC_IS1!$C$696),0) -> 129850 | AE12: 779101 | AF12: =ROUND(ABS(AG12)/MONTH(FERC_IS1!$C$696),0) -> 130606 | AG12: 783634 | AH12: -756 | AJ12: 67845430.93 | AK12: 61711555.24 | AL12: 6133875.694 | AM12: 0.09939590195 | AO12: 345882531 | AP12: 360411945 | AQ12: -14529414 | AR12: -0.0403133531 | AT12: 129519 | AU12: 388556 | AV12: 130285 | AW12: 390856 | AX12: -766 | AZ12: 314049116.6 | BA12: 299792871.8 | BB12: 14256244.77 | BC12: 0.04755364823 | BE12: 1875318223 | BF12: 1924346500 | BG12: -49028277 | BH12: -0.02547788405 | BJ12: 129945 | BK12: 1559336 | BL12: 130712 | BM12: 1568541 | BN12: -767
B13: Line 3 | C13: (442) Commercial and Industrial Sales | H13: 0 | M13: 0 | R13: 0 | V13: 0 | AA13: 0 | AD13: =ROUND(ABS(AE13)/MONTH(FERC_IS1!$C$696),0) -> 0 | AF13: =ROUND(ABS(AG13)/MONTH(FERC_IS1!$C$696),0) -> 0 | AH13: 0 | AL13: 0 | AQ13: 0 | AT13: 0 | AV13: 0 | AX13: 0 | BB13: 0 | BG13: 0 | BJ13: 0 | BL13: 0 | BN13: 0
A14: %,V4420001 | B14: 4420001 | C14: Commercial Sales | F14: 9075580.51 | G14: 8621358.89 | H14: 454221.62 | I14: 0.05268561787 | K14: 93307206 | L14: 109954244 | M14: -16647038 | N14: -0.1513996859 | P14: 26280 | Q14: 26340 | R14: -60 | T14: 51002790.03 | U14: 49736597.09 | V14: 1266192.94 | W14: 0.02545797288 | Y14: 524372651 | Z14: 551459934 | AA14: -27087283 | AB14: -0.04911922214 | AD14: =ROUND(ABS(AE14)/MONTH(FERC_IS1!$C$696),0) -> 26394 | AE14: 158361 | AF14: =ROUND(ABS(AG14)/MONTH(FERC_IS1!$C$696),0) -> 26343 | AG14: 158060 | AH14: 51 | AJ14: 27518461.28 | AK14: 22981716.99 | AL14: 4536744.286 | AM14: 0.1974066728 | AO14: 260754353 | AP14: 265963611 | AQ14: -5209258 | AR14: -0.01958635612 | AT14: 26256 | AU14: 78769 | AV14: 26340 | AW14: 79020 | AX14: -84 | AZ14: 102045441 | BA14: 101452967 | BB14: 592474.011 | BC14: 0.005839888456 | BE14: 1074626926 | BF14: 1119006273 | BG14: -44379347 | BH14: -0.0396596052 | BJ14: 26310 | BK14: 315717 | BL14: 26385 | BM14: 316615 | BN14: -75
A15: %,V4420006 | B15: 4420006 | C15: Sales to Pub Auth - Schools | F15: 1349459.978 | G15: 1463355.15 | H15: -113895.172 | I15: -0.07783153119 | K15: 11007313 | L15: 14304542 | M15: -3297229 | N15: -0.2305022419 | P15: 696 | Q15: 693 | R15: 3 | T15: 8239002.113 | U15: 8422279.2 | V15: -183277.087 | W15: -0.02176098449 | Y15: 67204608 | Z15: 70205197 | AA15: -3000589 | AB15: -0.04274026893 | AD15: =ROUND(ABS(AE15)/MONTH(FERC_IS1!$C$696),0) -> 701 | AE15: 4205 | AF15: =ROUND(ABS(AG15)/MONTH(FERC_IS1!$C$696),0) -> 696 | AG15: 4176 | AH15: 5 | AJ15: 4221211.085 | AK15: 3897844.22 | AL15: 323366.865 | AM15: 0.08296043832 | AO15: 31118228 | AP15: 32671804 | AQ15: -1553576 | AR15: -0.04755097086 | AT15: 694 | AU15: 2082 | AV15: 693 | AW15: 2079 | AX15: 1 | AZ15: 16170857.17 | BA15: 16394960.09 | BB15: -224102.919 | BC15: -0.01366901278 | BE15: 133712082 | BF15: 137017789 | BG15: -3305707 | BH15: -0.02412611548 | BJ15: 694 | BK15: 8330 | BL15: 694 | BM15: 8330 | BN15: 0
A16: %,V4420007 | B16: 4420007 | C16: Sales to Pub Auth - Ex Schools | F16: 1762457.92 | G16: 1945278.57 | H16: -182820.65 | I16: -0.0939817324 | K16: 15369354 | L16: 21188307 | M16: -5818953 | N16: -0.2746303893 | P16: 3357 | Q16: 3320 | R16: 37 | T16: 10263062.81 | U16: 10096519.21 | V16: 166543.601 | W16: 0.01649515021 | Y16: 89971383 | Z16: 93119576 | AA16: -3148193 | AB16: -0.03380806846 | AD16: =ROUND(ABS(AE16)/MONTH(FERC_IS1!$C$696),0) -> 3382 | AE16: 20290 | AF16: =ROUND(ABS(AG16)/MONTH(FERC_IS1!$C$696),0) -> 3329 | AG16: 19972 | AH16: 53 | AJ16: 5471929.997 | AK16: 4856258.23 | AL16: 615671.767 | AM16: 0.1267790422 | AO16: 44673189 | AP16: 46289654 | AQ16: -1616465 | AR16: -0.03492065419 | AT16: 3372 | AU16: 10116 | AV16: 3323 | AW16: 9968 | AX16: 49 | AZ16: 19997949.09 | BA16: 20348040.07 | BB16: -350090.983 | BC16: -0.01720514515 | BE16: 180060846 | BF16: 183444847 | BG16: -3384001 | BH16: -0.01844696679 | BJ16: 3355 | BK16: 40254 | BL16: 3323 | BM16: 39870 | BN16: 32
A17: %,V4420013 | B17: 4420013 | C17: Commercial Fuel Rev | F17: 4941052.17 | G17: 9559013.53 | H17: -4617961.36 | I17: -0.4831002012 | K17: 0 | L17: 0 | M17: 0 | P17: 0 | Q17: 0 | R17: 0 | T17: 30251285.27 | U17: 30465300.4 | V17: -214015.13 | W17: -0.007024881658 | Y17: 0 | Z17: 0 | AA17: 0 | AD17: =ROUND(ABS(AE17)/MONTH(FERC_IS1!$C$696),0) -> 0 | AE17: 0 | AF17: =ROUND(ABS(AG17)/MONTH(FERC_IS1!$C$696),0) -> 0 | AG17: 0 | AH17: 0 | AJ17: 15048712.11 | AK17: 16462182.71 | AL17: -1413470.6 | AM17: -0.08586167612 | AO17: 0 | AP17: 0 | AQ17: 0 | AT17: 0 | AU17: 0 | AV17: 0 | AW17: 0 | AX17: 0 | AZ17: 58471116.57 | BA17: 58119574.23 | BB17: 351542.34 | BC17: 0.006048604875 | BE17: 0 | BF17: 0 | BG17: 0 | BJ17: 0 | BK17: 0 | BL17: 0 | BM17: 0 | BN17: 0
A18: %,FACCOUNT,X,TGL_FERC_ACCT,N442_COMMERCIAL | B18: Line 4 | C18: (442) Small (or Commercial) | F18: 17128550.58 | G18: 21589006.14 | H18: -4460455.562 | I18: -0.2066077305 | K18: 119683873 | L18: 145447093 | M18: -25763220 | N18: -0.1771312129 | P18: 30333 | Q18: 30353 | R18: -20 | T18: 99756140.22 | U18: 98720695.9 | V18: 1035444.324 | W18: 0.01048862465 | Y18: 681548642 | Z18: 714784707 | AA18: -33236065 | AB18: -0.04649800797 | AD18: =ROUND(ABS(AE18)/MONTH(FERC_IS1!$C$696),0) -> 30476 | AE18: 182856 | AF18: =ROUND(ABS(AG18)/MONTH(FERC_IS1!$C$696),0) -> 30368 | AG18: 182208 | AH18: 108 | AJ18: 52260314.47 | AK18: 48198002.15 | AL18: 4062312.318 | AM18: 0.08428383204 | AO18: 336545770 | AP18: 344925069 | AQ18: -8379299 | AR18: -0.02429309944 | AT18: 30322 | AU18: 90967 | AV18: 30356 | AW18: 91067 | AX18: -34 | AZ18: 196685363.9 | BA18: 196315541.4 | BB18: 369822.449 | BC18: 0.001883816464 | BE18: 1388399854 | BF18: 1439468909 | BG18: -51069055 | BH18: -0.03547770617 | BJ18: 30358 | BK18: 364301 | BL18: 30401 | BM18: 364815 | BN18: -43
A19: %,V4420002 | B19: 4420002 | C19: Industrial Sales (Excl Mines) | F19: 5081451.085 | G19: 2312197.92 | H19: 2769253.165 | I19: 1.197671333 | K19: 151296050 | L19: 170703584 | M19: -19407534 | N19: -0.1136914267 | P19: 765 | Q19: 764 | R19: 1 | T19: 41139297.17 | U19: 34922578.14 | V19: 6216719.028 | W19: 0.1780143208 | Y19: 853965058 | Z19: 909037985 | AA19: -55072927 | AB19: -0.06058374667 | AD19: =ROUND(ABS(AE19)/MONTH(FERC_IS1!$C$696),0) -> 771 | AE19: 4627 | AF19: =ROUND(ABS(AG19)/MONTH(FERC_IS1!$C$696),0) -> 765 | AG19: 4592 | AH19: 6 | AJ19: 19839929.36 | AK19: 15594247.91 | AL19: 4245681.45 | AM19: 0.2722594558 | AO19: 453081446 | AP19: 479849814 | AQ19: -26768368 | AR19: -0.05578488773 | AT19: 768 | AU19: 2303 | AV19: 764 | AW19: 2291 | AX19: 4 | AZ19: 72166584.8 | BA19: 74631180.78 | BB19: -2464595.976 | BC19: -0.03302367657 | BE19: 1707561111 | BF19: 1825372663 | BG19: -117811552 | BH19: -0.06454109585 | BJ19: 768 | BK19: 9211 | BL19: 770 | BM19: 9244 | BN19: -2
A20: %,V4420004 | B20: 4420004 | C20: Ind Sales-NonAffil(Incl Mines) | F20: 1289560.189 | G20: 1112011.19 | H20: 177548.999 | I20: 0.1596647593 | K20: 10071268 | L20: 13601082 | M20: -3529814 | N20: -0.2595244996 | P20: 144 | Q20: 165 | R20: -21 | T20: 6855090.891 | U20: 8070400.18 | V20: -1215309.289 | W20: -0.1505884791 | Y20: 67366262 | Z20: 85255501 | AA20: -17889239 | AB20: -0.2098309058 | AD20: =ROUND(ABS(AE20)/MONTH(FERC_IS1!$C$696),0) -> 150 | AE20: 902 | AF20: =ROUND(ABS(AG20)/MONTH(FERC_IS1!$C$696),0) -> 167 | AG20: 1004 | AH20: -17 | AJ20: 3541491.771 | AK20: 3655583.56 | AL20: -114091.789 | AM20: -0.03121028069 | AO20: 31402800 | AP20: 39254430 | AQ20: -7851630 | AR20: -0.2000189533 | AT20: 143 | AU20: 430 | AV20: 165 | AW20: 495 | AX20: -22 | AZ20: 13707772.16 | BA20: 16402272.41 | BB20: -2694500.245 | BC20: -0.1642760331 | BE20: 136499733 | BF20: 175396101 | BG20: -38896368 | BH20: -0.221763014 | BJ20: 154 | BK20: 1850 | BL20: 171 | BM20: 2050 | BN20: -17
A21: %,V4420016 | B21: 4420016 | C21: Industrial Fuel Rev | F21: 6995875.95 | G21: 12406794.84 | H21: -5410918.89 | I21: -0.4361254425 | K21: 0 | L21: 0 | M21: 0 | P21: 0 | Q21: 0 | R21: 0 | T21: 37655498.36 | U21: 41913346.01 | V21: -4257847.65 | W21: -0.1015869181 | Y21: 0 | Z21: 0 | AA21: 0 | AD21: =ROUND(ABS(AE21)/MONTH(FERC_IS1!$C$696),0) -> 0 | AE21: 0 | AF21: =ROUND(ABS(AG21)/MONTH(FERC_IS1!$C$696),0) -> 0 | AG21: 0 | AH21: 0 | AJ21: 22547277.8 | AK21: 24255954.17 | AL21: -1708676.37 | AM21: -0.07044358503 | AO21: 0 | AP21: 0 | AQ21: 0 | AT21: 0 | AU21: 0 | AV21: 0 | AW21: 0 | AX21: 0 | AZ21: 76798596.14 | BA21: 79540452.79 | BB21: -2741856.65 | BC21: -0.03447122255 | BE21: 0 | BF21: 0 | BG21: 0 | BJ21: 0 | BK21: 0 | BL21: 0 | BM21: 0 | BN21: 0
A22: %,FACCOUNT,X,TGL_FERC_ACCT,N442_INDUSTRIAL | B22: Line 5 | C22: (442) Large (or Industrial) | F22: 13366887.22 | G22: 15831003.95 | H22: -2464116.726 | I22: -0.1556513241 | K22: 161367318 | L22: 184304666 | M22: -22937348 | N22: -0.1244534308 | P22: 909 | Q22: 929 | R22: -20 | T22: 85649886.42 | U22: 84906324.33 | V22: 743562.089 | W22: 0.008757440566 | Y22: 921331320 | Z22: 994293486 | AA22: -72962166 | AB22: -0.07338091522 | AD22: =ROUND(ABS(AE22)/MONTH(FERC_IS1!$C$696),0) -> 922 | AE22: 5529 | AF22: =ROUND(ABS(AG22)/MONTH(FERC_IS1!$C$696),0) -> 933 | AG22: 5596 | AH22: -11 | AJ22: 45928698.93 | AK22: 43505785.64 | AL22: 2422913.291 | AM22: 0.05569174893 | AO22: 484484246 | AP22: 519104244 | AQ22: -34619998 | AR22: -0.06669180304 | AT22: 911 | AU22: 2733 | AV22: 929 | AW22: 2786 | AX22: -18 | AZ22: 162672953.1 | BA22: 170573906 | BB22: -7900952.871 | BC22: -0.04631982146 | BE22: 1844060844 | BF22: 2000768764 | BG22: -156707920 | BH22: -0.07832385372 | BJ22: 922 | BK22: 11061 | BL22: 941 | BM22: 11294 | BN22: -19
A23: %,V4440000 | B23: 4440000 | C23: Public Street/Highway Lighting | F23: 162289.267 | G23: 144242.97 | H23: 18046.297 | I23: 0.1251104092 | K23: 488466 | L23: 546410 | M23: -57944 | N23: -0.1060449113 | P23: 294 | Q23: 300 | R23: -6 | T23: 1101891.307 | U23: 923095.01 | V23: 178796.297 | W23: 0.1936921932 | Y23: 4712596 | Z23: 4172761 | AA23: 539835 | AB23: 0.1293711765 | AD23: =ROUND(ABS(AE23)/MONTH(FERC_IS1!$C$696),0) -> 305 | AE23: 1828 | AF23: =ROUND(ABS(AG23)/MONTH(FERC_IS1!$C$696),0) -> 299 | AG23: 1796 | AH23: 6 | AJ23: 506199.839 | AK23: 451856.72 | AL23: 54343.119 | AM23: 0.1202662627 | AO23: 1670094 | AP23: 1746020 | AQ23: -75926 | AR23: -0.04348518345 | AT23: 296 | AU23: 887 | AV23: 300 | AW23: 899 | AX23: -4 | AZ23: 1890515.813 | BA23: 1826066.23 | BB23: 64449.583 | BC23: 0.03529421986 | BE23: 8232092 | BF23: 8657646 | BG23: -425554 | BH23: -0.04915354589 | BJ23: 296 | BK23: 3556 | BL23: 301 | BM23: 3612 | BN23: -5
A24: %,V4440002 | B24: 4440002 | C24: Public St & Hwy Light Fuel Rev | F24: 22595.82 | G24: 43292.14 | H24: -20696.32 | I24: -0.4780618376 | K24: 0 | L24: 0 | M24: 0 | P24: 0 | Q24: 0 | R24: 0 | T24: 192031.28 | U24: 173007.32 | V24: 19023.96 | W24: 0.109960434 | Y24: 0 | Z24: 0 | AA24: 0 | AD24: =ROUND(ABS(AE24)/MONTH(FERC_IS1!$C$696),0) -> 0 | AE24: 0 | AF24: =ROUND(ABS(AG24)/MONTH(FERC_IS1!$C$696),0) -> 0 | AG24: 0 | AH24: 0 | AJ24: 75394.71 | AK24: 83846.11 | AL24: -8451.4 | AM24: -0.1007965665 | AO24: 0 | AP24: 0 | AQ24: 0 | AT24: 0 | AU24: 0 | AV24: 0 | AW24: 0 | AX24: 0 | AZ24: 336024.29 | BA24: 343880.02 | BB24: -7855.73 | BC24: -0.02284439206 | BE24: 0 | BF24: 0 | BG24: 0 | BJ24: 0 | BK24: 0 | BL24: 0 | BM24: 0 | BN24: 0
A25: %,FACCOUNT,X,TGL_FERC_ACCT,N4440 | B25: Line 6 | C25: (444) Public Street and Highway Lighting | F25: 184885.087 | G25: 187535.11 | H25: -2650.023 | I25: -0.01413080996 | K25: 488466 | L25: 546410 | M25: -57944 | N25: -0.1060449113 | P25: 294 | Q25: 300 | R25: -6 | T25: 1293922.587 | U25: 1096102.33 | V25: 197820.257 | W25: 0.1804760847 | Y25: 4712596 | Z25: 4172761 | AA25: 539835 | AB25: 0.1293711765 | AD25: =ROUND(ABS(AE25)/MONTH(FERC_IS1!$C$696),0) -> 305 | AE25: 1828 | AF25: =ROUND(ABS(AG25)/MONTH(FERC_IS1!$C$696),0) -> 299 | AG25: 1796 | AH25: 6 | AJ25: 581594.549 | AK25: 535702.83 | AL25: 45891.719 | AM25: 0.08566637402 | AO25: 1670094 | AP25: 1746020 | AQ25: -75926 | AR25: -0.04348518345 | AT25: 296 | AU25: 887 | AV25: 300 | AW25: 899 | AX25: -4 | AZ25: 2226540.103 | BA25: 2169946.25 | BB25: 56593.853 | BC25: 0.0260807626 | BE25: 8232092 | BF25: 8657646 | BG25: -425554 | BH25: -0.04915354589 | BJ25: 296 | BK25: 3556 | BL25: 301 | BM25: 3612 | BN25: -5
A26: %,FACCOUNT,X,TGL_FERC_ACCT,N4450 | B26: Line 7 | C26: (445) Other Sales to Public Authorities | F26: 0 | G26: 0 | H26: 0 | K26: 0 | L26: 0 | M26: 0 | P26: 0 | Q26: 0 | R26: 0 | T26: 0 | U26: 0 | V26: 0 | Y26: 0 | Z26: 0 | AA26: 0 | AD26: =ROUND(ABS(AE26)/MONTH(FERC_IS1!$C$696),0) -> 0 | AE26: 0 | AF26: =ROUND(ABS(AG26)/MONTH(FERC_IS1!$C$696),0) -> 0 | AG26: 0 | AH26: 0 | AJ26: 0 | AK26: 0 | AL26: 0 | AO26: 0 | AP26: 0 | AQ26: 0 | AT26: 0 | AU26: 0 | AV26: 0 | AW26: 0 | AX26: 0 | AZ26: 0 | BA26: 0 | BB26: 0 | BE26: 0 | BF26: 0 | BG26: 0 | BJ26: 0 | BK26: 0 | BL26: 0 | BM26: 0 | BN26: 0
A27: %,FACCOUNT,X,TGL_FERC_ACCT,N4460 | B27: Line 8 | C27: (446) Sales to Railroads and Railways | F27: 0 | G27: 0 | H27: 0 | K27: 0 | L27: 0 | M27: 0 | P27: 0 | Q27: 0 | R27: 0 | T27: 0 | U27: 0 | V27: 0 | Y27: 0 | Z27: 0 | AA27: 0 | AD27: =ROUND(ABS(AE27)/MONTH(FERC_IS1!$C$696),0) -> 0 | AE27: 0 | AF27: =ROUND(ABS(AG27)/MONTH(FERC_IS1!$C$696),0) -> 0 | AG27: 0 | AH27: 0 | AJ27: 0 | AK27: 0 | AL27: 0 | AO27: 0 | AP27: 0 | AQ27: 0 | AT27: 0 | AU27: 0 | AV27: 0 | AW27: 0 | AX27: 0 | AZ27: 0 | BA27: 0 | BB27: 0 | BE27: 0 | BF27: 0 | BG27: 0 | BJ27: 0 | BK27: 0 | BL27: 0 | BM27: 0 | BN27: 0
A28: %,FACCOUNT,X,TGL_FERC_ACCT,N4480 | B28: Line 9 | C28: (448) Interdepartmental Sales | F28: 0 | G28: 0 | H28: 0 | K28: 0 | L28: 0 | M28: 0 | P28: 0 | Q28: 0 | R28: 0 | T28: 0 | U28: 0 | V28: 0 | Y28: 0 | Z28: 0 | AA28: 0 | AD28: =ROUND(ABS(AE28)/MONTH(FERC_IS1!$C$696),0) -> 0 | AE28: 0 | AF28: =ROUND(ABS(AG28)/MONTH(FERC_IS1!$C$696),0) -> 0 | AG28: 0 | AH28: 0 | AJ28: 0 | AK28: 0 | AL28: 0 | AO28: 0 | AP28: 0 | AQ28: 0 | AT28: 0 | AU28: 0 | AV28: 0 | AW28: 0 | AX28: 0 | AZ28: 0 | BA28: 0 | BB28: 0 | BE28: 0 | BF28: 0 | BG28: 0 | BJ28: 0 | BK28: 0 | BL28: 0 | BM28: 0 | BN28: 0
A29: %,FACCOUNT,TGL_FERC_ACCT,NELEC_SALES_ULT_CUST | B29: Line 10 | C29: TOTAL Sales to Ultimate Customers | F29: 54187197.62 | G29: 66078702.46 | H29: -11891504.84 | I29: -0.1799597207 | K29: 414119809 | L29: 497744519 | M29: -83624710 | N29: -0.1680072945 | P29: 160963 | Q29: 161659 | R29: -696 | T29: 352145071.6 | U29: 344187698 | V29: 7957373.59 | W29: 0.02311928531 | Y29: 2572028410 | Z29: 2733621580 | AA29: -161593170 | AB29: -0.05911321859 | AD29: =ROUND(ABS(AE29)/MONTH(FERC_IS1!$C$696),0) -> 161552 | AE29: 969314 | AF29: =ROUND(ABS(AG29)/MONTH(FERC_IS1!$C$696),0) -> 162206 | AG29: 973234 | AH29: -654 | AJ29: 166616038.9 | AK29: 153951045.9 | AL29: 12664993.02 | AM29: 0.08226636559 | AO29: 1168582641 | AP29: 1226187278 | AQ29: -57604637 | AR29: -0.04697866144 | AT29: 161048 | AU29: 483143 | AV29: 161869 | AW29: 485608 | AX29: -821 | AZ29: 675633973.7 | BA29: 668852265.5 | BB29: 6781708.199 | BC29: 0.01013932156 | BE29: 5116011013 | BF29: 5373241819 | BG29: -257230806 | BH29: -0.04787255342 | BJ29: 161521 | BK29: 1938254 | BL29: 162355 | BM29: 1948262 | BN29: -834
A30: %,V4470006 | B30: 4470006 | C30: Sales for Resale-Bookout Sales | F30: 0 | G30: 0 | H30: 0 | K30: 0 | L30: 0 | M30: 0 | P30: 0 | Q30: 0 | R30: 0 | T30: 0 | U30: 0 | V30: 0 | Y30: 0 | Z30: 0 | AA30: 0 | AD30: =ROUND(ABS(AE30)/MONTH(FERC_IS1!$C$696),0) -> 0 | AE30: 0 | AF30: =ROUND(ABS(AG30)/MONTH(FERC_IS1!$C$696),0) -> 0 | AG30: 0 | AH30: 0 | AJ30: 0 | AK30: 0 | AL30: 0 | AO30: 0 | AP30: 0 | AQ30: 0 | AT30: 0 | AU30: 0 | AV30: 0 | AW30: 0 | AX30: 0 | AZ30: 0.2 | BA30: 0 | BB30: 0.2 | BC30: 1 | BE30: 0 | BF30: 0 | BG30: 0 | BJ30: 0 | BK30: 0 | BL30: 0 | BM30: 0 | BN30: 0
A31: %,V4470010 | B31: 4470010 | C31: Sales for Resale-Bookout Purch | F31: 0 | G31: 0 | H31: 0 | K31: 0 | L31: 0 | M31: 0 | P31: 0 | Q31: 0 | R31: 0 | T31: -12.02 | U31: 0 | V31: -12.02 | W31: 1 | Y31: 0 | Z31: 0 | AA31: 0 | AD31: =ROUND(ABS(AE31)/MONTH(FERC_IS1!$C$696),0) -> 0 | AE31: 0 | AF31: =ROUND(ABS(AG31)/MONTH(FERC_IS1!$C$696),0) -> 0 | AG31: 0 | AH31: 0 | AJ31: 0 | AK31: 0 | AL31: 0 | AO31: 0 | AP31: 0 | AQ31: 0 | AT31: 0 | AU31: 0 | AV31: 0 | AW31: 0 | AX31: 0 | AZ31: 34.63 | BA31: 0 | BB31: 34.63 | BC31: 1 | BE31: 0 | BF31: 0 | BG31: 0 | BJ31: 0 | BK31: 0 | BL31: 0 | BM31: 0 | BN31: 0
A32: %,V4470027 | B32: 4470027 | C32: Whsal/Muni/Pb Ath Fuel Rev | F32: 0 | G32: 3490.5 | H32: -3490.5 | I32: 1 | K32: 0 | L32: 24073 | M32: -24073 | N32: 1 | P32: 0 | Q32: 0 | R32: 0 | T32: 10166.21 | U32: 1518601.93 | V32: -1508435.72 | W32: -0.9933055465 | Y32: 0 | Z32: 32141242 | AA32: -32141242 | AB32: 1 | AD32: =ROUND(ABS(AE32)/MONTH(FERC_IS1!$C$696),0) -> 0 | AE32: 0 | AF32: =ROUND(ABS(AG32)/MONTH(FERC_IS1!$C$696),0) -> 0 | AG32: 0 | AH32: 0 | AJ32: 10166.21 | AK32: 596169.99 | AL32: -586003.78 | AM32: -0.9829474644 | AO32: 0 | AP32: 10233316 | AQ32: -10233316 | AR32: 1 | AT32: 0 | AU32: 0 | AV32: 0 | AW32: 0 | AX32: 0 | AZ32: 53132.94 | BA32: 2810530.43 | BB32: -2757397.49 | BC32: -0.981095049 | BE32: 0 | BF32: 69066171 | BG32: -69066171 | BH32: 1 | BJ32: 0 | BK32: 0 | BL32: 0 | BM32: 0 | BN32: 0
A33: %,V4470033 | B33: 4470033 | C33: Whsal/Muni/Pub Auth Base Rev | F33: 0 | G33: 132.43 | H33: -132.43 | I33: 1 | K33: 0 | L33: 0 | M33: 0 | P33: 0 | Q33: 0 | R33: 0 | T33: 31333.83 | U33: 1325054.69 | V33: -1293720.86 | W33: -0.9763528025 | Y33: 0 | Z33: 0 | AA33: 0 | AD33: =ROUND(ABS(AE33)/MONTH(FERC_IS1!$C$696),0) -> 0 | AE33: 0 | AF33: =ROUND(ABS(AG33)/MONTH(FERC_IS1!$C$696),0) -> 0 | AG33: 0 | AH33: 0 | AJ33: 31333.83 | AK33: 669868.24 | AL33: -638534.41 | AM33: -0.9532238907 | AO33: 0 | AP33: 0 | AQ33: 0 | AT33: 0 | AU33: 0 | AV33: 0 | AW33: 0 | AX33: 0 | AZ33: 31333.83 | BA33: 2378979.06 | BB33: -2347645.23 | BC33: -0.9868288752 | BE33: 0 | BF33: 0 | BG33: 0 | BJ33: 0 | BK33: 0 | BL33: 0 | BM33: 0 | BN33: 0
A34: %,V4470074 | B34: 4470074 | C34: Sale for Resale-Aff-Trnf Price | F34: 0 | G34: 0 | H34: 0 | K34: 0 | L34: 0 | M34: 0 | P34: 0 | Q34: 0 | R34: 0 | T34: 0 | U34: 0 | V34: 0 | Y34: 0 | Z34: 0 | AA34: 0 | AD34: =ROUND(ABS(AE34)/MONTH(FERC_IS1!$C$696),0) -> 0 | AE34: 0 | AF34: =ROUND(ABS(AG34)/MONTH(FERC_IS1!$C$696),0) -> 0 | AG34: 0 | AH34: 0 | AJ34: 0 | AK34: 0 | AL34: 0 | AO34: 0 | AP34: 0 | AQ34: 0 | AT34: 0 | AU34: 0 | AV34: 0 | AW34: 0 | AX34: 0 | AZ34: 0 | BA34: 0 | BB34: 0 | BE34: 0 | BF34: 0 | BG34: 0 | BJ34: 0 | BK34: 0 | BL34: 0 | BM34: 0 | BN34: 0
A35: %,V4470082 | B35: 4470082 | C35: Financial Electric Realized | F35: -249.93 | G35: -220.65 | H35: -29.28 | I35: 0.1326988443 | K35: 0 | L35: 0 | M35: 0 | P35: 0 | Q35: 0 | R35: 0 | T35: -1126.86 | U35: -2247.05 | V35: 1120.19 | W35: -0.4985158319 | Y35: 0 | Z35: 0 | AA35: 0 | AD35: =ROUND(ABS(AE35)/MONTH(FERC_IS1!$C$696),0) -> 0 | AE35: 0 | AF35: =ROUND(ABS(AG35)/MONTH(FERC_IS1!$C$696),0) -> 0 | AG35: 0 | AH35: 0 | AJ35: -749.68 | AK35: -878.1 | AL35: 128.42 | AM35: -0.14624758 | AO35: 0 | AP35: 0 | AQ35: 0 | AT35: 0 | AU35: 0 | AV35: 0 | AW35: 0 | AX35: 0 | AZ35: -2585.16 | BA35: -6016.61 | BB35: 3431.45 | BC35: -0.5703294712 | BE35: 0 | BF35: 0 | BG35: 0 | BJ35: 0 | BK35: 0 | BL35: 0 | BM35: 0 | BN35: 0
A36: %,V4470089 | B36: 4470089 | C36: PJM Energy Sales Margin | F36: -358174.7 | G36: 1140661.57 | H36: -1498836.27 | I36: -1.314006108 | K36: 0 | L36: 0 | M36: 0 | P36: 0 | Q36: 0 | R36: 0 | T36: 812260.94 | U36: 1484495.94 | V36: -672235 | W36: -0.4528372102 | Y36: 0 | Z36: 0 | AA36: 0 | AD36: =ROUND(ABS(AE36)/MONTH(FERC_IS1!$C$696),0) -> 0 | AE36: 0 | AF36: =ROUND(ABS(AG36)/MONTH(FERC_IS1!$C$696),0) -> 0 | AG36: 0 | AH36: 0 | AJ36: -525364.13 | AK36: 1196694.71 | AL36: -1722058.84 | AM36: -1.439012662 | AO36: 0 | AP36: 0 | AQ36: 0 | AT36: 0 | AU36: 0 | AV36: 0 | AW36: 0 | AX36: 0 | AZ36: 1767801.62 | BA36: 708078.74 | BB36: 1059722.88 | BC36: 1.496617283 | BE36: 0 | BF36: 0 | BG36: 0 | BJ36: 0 | BK36: 0 | BL36: 0 | BM36: 0 | BN36: 0
A37: %,V4470098 | B37: 4470098 | C37: PJM Oper.Reserve Rev-OSS | F37: -6895.73 | G37: 1589.11 | H37: -8484.84 | I37: -5.33936606 | K37: 0 | L37: 0 | M37: 0 | P37: 0 | Q37: 0 | R37: 0 | T37: -448991.26 | U37: -32988.91 | V37: -416002.35 | W37: 12.61036967 | Y37: 0 | Z37: 0 | AA37: 0 | AD37: =ROUND(ABS(AE37)/MONTH(FERC_IS1!$C$696),0) -> 0 | AE37: 0 | AF37: =ROUND(ABS(AG37)/MONTH(FERC_IS1!$C$696),0) -> 0 | AG37: 0 | AH37: 0 | AJ37: -7767.61 | AK37: -13176.59 | AL37: 5408.98 | AM37: -0.4104992263 | AO37: 0 | AP37: 0 | AQ37: 0 | AT37: 0 | AU37: 0 | AV37: 0 | AW37: 0 | AX37: 0 | AZ37: -515111.03 | BA37: -63960.32 | BB37: -451150.71 | BC37: 7.053603078 | BE37: 0 | BF37: 0 | BG37: 0 | BJ37: 0 | BK37: 0 | BL37: 0 | BM37: 0 | BN37: 0
A38: %,V4470099 | B38: 4470099 | C38: Capacity Cr. Net Sales | F38: 134950.5 | G38: 0 | H38: 134950.5 | I38: 1 | K38: 0 | L38: 0 | M38: 0 | P38: 0 | Q38: 0 | R38: 0 | T38: 134950.5 | U38: -50880.99 | V38: 185831.49 | W38: -3.652277403 | Y38: 0 | Z38: 0 | AA38: 0 | AD38: =ROUND(ABS(AE38)/MONTH(FERC_IS1!$C$696),0) -> 0 | AE38: 0 | AF38: =ROUND(ABS(AG38)/MONTH(FERC_IS1!$C$696),0) -> 0 | AG38: 0 | AH38: 0 | AJ38: 134950.5 | AK38: -20554.56 | AL38: 155505.06 | AM38: -7.565477442 | AO38: 0 | AP38: 0 | AQ38: 0 | AT38: 0 | AU38: 0 | AV38: 0 | AW38: 0 | AX38: 0 | AZ38: 134950.5 | BA38: -122922.11 | BB38: 257872.61 | BC38: -2.097853755 | BE38: 0 | BF38: 0 | BG38: 0 | BJ38: 0 | BK38: 0 | BL38: 0 | BM38: 0 | BN38: 0
A39: %,V4470100 | B39: 4470100 | C39: PJM FTR Revenue-OSS | F39: 197146.29 | G39: -26837.99 | H39: 223984.28 | I39: -8.345791917 | K39: 0 | L39: 0 | M39: 0 | P39: 0 | Q39: 0 | R39: 0 | T39: 509139.58 | U39: 50888.03 | V39: 458251.55 | W39: 9.005095108 | Y39: 0 | Z39: 0 | AA39: 0 | AD39: =ROUND(ABS(AE39)/MONTH(FERC_IS1!$C$696),0) -> 0 | AE39: 0 | AF39: =ROUND(ABS(AG39)/MONTH(FERC_IS1!$C$696),0) -> 0 | AG39: 0 | AH39: 0 | AJ39: 234467.8 | AK39: 13874.05 | AL39: 220593.75 | AM39: 15.89973728 | AO39: 0 | AP39: 0 | AQ39: 0 | AT39: 0 | AU39: 0 | AV39: 0 | AW39: 0 | AX39: 0 | AZ39: 679199.92 | BA39: 225002.79 | BB39: 454197.13 | BC39: 2.01862888 | BE39: 0 | BF39: 0 | BG39: 0 | BJ39: 0 | BK39: 0 | BL39: 0 | BM39: 0 | BN39: 0
A40: %,V4470103 | B40: 4470103 | C40: PJM Energy Sales Cost | F40: 1611541.06 | G40: 4740913.12 | H40: -3129372.06 | I40: -0.6600779176 | K40: 33061875 | L40: 90341003 | M40: -57279128 | N40: -0.6340324559 | P40: 0 | Q40: 0 | R40: 0 | T40: 13424791.49 | U40: 9683651.76 | V40: 3741139.73 | W40: 0.3863356327 | Y40: 204148539 | Z40: 210104835 | AA40: -5956296 | AB40: -0.02834916198 | AD40: =ROUND(ABS(AE40)/MONTH(FERC_IS1!$C$696),0) -> 0 | AE40: 0 | AF40: =ROUND(ABS(AG40)/MONTH(FERC_IS1!$C$696),0) -> 0 | AG40: 0 | AH40: 0 | AJ40: 3736723.1 | AK40: 6702714.37 | AL40: -2965991.27 | AM40: -0.4425059918 | AO40: 79849587 | AP40: 142162917 | AQ40: -62313330 | AR40: -0.438323378 | AT40: 0 | AU40: 0 | AV40: 0 | AW40: 0 | AX40: 0 | AZ40: 31433025.17 | BA40: 18617694.86 | BB40: 12815330.31 | BC40: 0.6883414089 | BE40: 571367715 | BF40: 441110483 | BG40: 130257232 | BH40: 0.2952938935 | BJ40: 0 | BK40: 0 | BL40: 0 | BM40: 0 | BN40: 0
